Workbook

Sheet Indice
Q37: Versión 2019.01
Q38: Actualizada a enero 2019

Sheet Datos
B3: CONFIGURACIÓN DE LA PLANILLA
B10: DATOS DEL EMPLEADOR Y DEL TRABAJADOR
B12: PERÍODO FISCAL: | F12: 2019
B14: DATOS DEL TRABAJADOR
B15: Nombres:
B16: Apellido:
B17: Legajo:
B18: CUIL:
B19: Dato adicional (optativo):
B20: Zona geográfica | F20: Todo el país excepto zona patagónica
B23: DATOS DEL AGENTE DE RETENCIÓN
B24: CUIT:
B25: Denominación legal:
B28: FORMULARIO LIQUIDACIÓN DEL IMPUESTO A LAS GANANCIAS
B29: Apellido y nombres del firmante:
B30: Cargo:
B31: Fecha (desde): | F31: 2017-01-01
B32: Fecha (hasta): | F32: 31/12/2017
B33: Lugar de extensión del certificado:
B34: Fecha de extensión del certificado: | F34: 2019-12-31

Sheet Ingresos
B5: INGRESOS BRUTOS PAGADOS POR EL AGENTE DE RETENCIÓN
P6: Tratamiento en el impuesto
B7: Concepto ($) | C7: enero | D7: febrero | E7: marzo | F7: abril | G7: mayo | H7: junio | I7: julio | J7: agosto | K7: septiembre | L7: octubre | M7: noviembre | N7: diciembre | P7: G/E/NG | Q7: Prorrateo | R7: Remunerativo | S7: Base del SAC
B8: Sueldo bruto | C8: 70000 | P8: Gravado | Q8: No | R8: Sí | S8: Sí
B9: Horas extras (días inhábiles) | P9: Gravado | Q9: No | R9: Sí | S9: Sí
B10: Plus horas extras (días inhábiles) | P10: Exento | Q10: No | R10: Sí | S10: No
B11: Horas extras (días hábiles) | P11: Gravado | Q11: No | R11: Sí | S11: Sí
B12: SAC | P12: Gravado | Q12: Sí | R12: Sí | S12: No
B13: Plus Vacacional | P13: Gravado | Q13: Sí | R13: Sí | S13: Sí
B14: Plus Feriado | P14: Gravado | Q14: No | R14: Sí | S14: Sí
B15: Movilidad y viáticos (gravado) | P15: Gravado | Q15: No | R15: Sí | S15: No
B16: Movilidad y viáticos (exento) | P16: Exento | Q16: No | R16: Sí | S16: No
B17: Licencias varias | P17: Gravado | Q17: No | R17: Sí | S17: Sí
B18: Benef. Soc. (no rem.) | P18: Gravado | Q18: No | R18: No | S18: No
B19: Indemnización art. 245 | P19: No gravado | Q19: No | R19: No | S19: No
B20: Preaviso | P20: Gravado | Q20: No | R20: Sí | S20: No
B21: SAC s/preaviso | P21: Gravado | Q21: No | R21: No | S21: No
B22: Vacaciones no gozadas | P22: Gravado | Q22: No | R22: No | S22: No
B23: SAC s/vacaciones no gozadas | P23: Gravado | Q23: No | R23: No | S23: No
B24: Integración mes de despido | P24: Gravado | Q24: No | R24: No | S24: No
B25: SAC s/integración mes de despido | P25: Gravado | Q25: No | R25: No | S25: No
B26: Gratificación por cese | P26: No gravado | Q26: No | R26: No | S26: No
B27: Total | C27: =SUM(C8:C26) -> 70000 | D27: 0 | E27: 0 | F27: 0 | G27: 0 | H27: 0 | I27: 0 | J27: 0 | K27: 0 | L27: 0 | M27: 0 | N27: 0
B28: SAC neto estimado (automático) | C28: =Auxiliares!D195 -> 4841.666667 | D28: =Auxiliares!E195 -> 0 | E28: =Auxiliares!F195 -> 0 | F28: =Auxiliares!G195 -> 0 | G28: =Auxiliares!H195 -> 0 | H28: =Auxiliares!I195 -> 0 | I28: =Auxiliares!J195 -> 0 | J28: =Auxiliares!K195 -> 0 | K28: =Auxiliares!L195 -> 0 | L28: =Auxiliares!M195 -> 0 | M28: =Auxiliares!N195 -> 0 | N28: =Auxiliares!O195 -> 0
B29: SAC neto estimado (automáticol)
B30: Horas extras netas (automático) | C30: =+Auxiliares!D225 -> 0 | D30: =+Auxiliares!E225 -> 0 | E30: =+Auxiliares!F225 -> 0 | F30: =+Auxiliares!G225 -> 0 | G30: =+Auxiliares!H225 -> 0 | H30: =+Auxiliares!I225 -> 0 | I30: =+Auxiliares!J225 -> 0 | J30: =+Auxiliares!K225 -> 0 | K30: =+Auxiliares!L225 -> 0 | L30: =+Auxiliares!M225 -> 0 | M30: =+Auxiliares!N225 -> 0 | N30: =+Auxiliares!O225 -> 0
B31: Horas extras netas (para art. 90)
B33: PLURIEMPLEO | P33: Tratamiento en el impuesto
B34: Concepto | C34: enero | D34: febrero | E34: marzo | F34: abril | G34: mayo | H34: junio | I34: julio | J34: agosto | K34: septiembre | L34: octubre | M34: noviembre | N34: diciembre | P34: G/E/NG | Q34: Prorrateo | R34: Remunerativo | S34: Base del SAC
B35: Sueldo bruto | P35: Gravado | Q35: No | R35: Sí | S35: Sí
B36: Horas extras (días inhábiles) | P36: Gravado | Q36: No | R36: Sí | S36: Sí
B37: Plus horas extras (días inhábiles) | P37: Exento | Q37: No | R37: Sí | S37: Sí
B38: Horas extras (días hábiles) | P38: Gravado | Q38: Sí | R38: Sí | S38: Sí
B39: SAC | P39: Gravado | Q39: Sí | R39: Sí | S39: No
B40: Movilidad y viáticos | P40: Gravado | Q40: No | R40: Sí | S40: No
B41: Movilidad y viáticos (exento) | P41: Exento | Q41: No | R41: Sí | S41: No
P42: Gravado | Q42: No | R42: Sí | S42: Sí
P43: Gravado | Q43: No | R43: Sí | S43: Sí
P44: Gravado | Q44: No | R44: Sí | S44: Sí
P45: Gravado | Q45: No | R45: Sí | S45: Sí
B46: Total | C46: =SUM(C35:C45) -> 0 | D46: =SUM(D35:D45) -> 0 | E46: 0 | F46: 0 | G46: 0 | H46: 0 | I46: 0 | J46: 0 | K46: 0 | L46: 0 | M46: 0 | N46: 0
B47: SAC neto estimado (automático) | C47: =Auxiliares!D200 -> 0 | D47: =Auxiliares!E200 -> 0 | E47: =Auxiliares!F200 -> 0 | F47: =Auxiliares!G200 -> 0 | G47: =Auxiliares!H200 -> 0 | H47: =Auxiliares!I200 -> 0 | I47: =Auxiliares!J200 -> 0 | J47: =Auxiliares!K200 -> 0 | K47: =Auxiliares!L200 -> 0 | L47: =Auxiliares!M200 -> 0 | M47: =Auxiliares!N200 -> 0 | N47: =Auxiliares!O200 -> 0
B48: SAC neto estimado (manual)
B49: Horas extras netas (para art. 90) | C49: =+Auxiliares!D233 -> 0 | D49: =+Auxiliares!E233 -> 0 | E49: =+Auxiliares!F233 -> 0 | F49: =+Auxiliares!G233 -> 0 | G49: =+Auxiliares!H233 -> 0 | H49: =+Auxiliares!I233 -> 0 | I49: =+Auxiliares!J233 -> 0 | J49: =+Auxiliares!K233 -> 0 | K49: =+Auxiliares!L233 -> 0 | L49: =+Auxiliares!M233 -> 0 | M49: =+Auxiliares!N233 -> 0 | N49: =+Auxiliares!O233 -> 0
B50: Horas extras netas (para art. 90)

Sheet DedGrales
B3: DEDUCCIONES GENERALES
C11: Concepto | D11: Enero | E11: Febrero | F11: Marzo | G11: Abril | H11: Mayo | I11: Junio | J11: Julio | K11: Agosto | L11: Septiembre | M11: Octubre | N11: Noviembre | O11: Diciembre
C12: Jubilación
C13: Ley 19032
C14: Obra social
C15: Sindicato
C18: Ded. al SAC Prorrateado
C20: Pluriempleo
C22: Concepto | D22: Enero | E22: Febrero | F22: Marzo | G22: Abril | H22: Mayo | I22: Junio | J22: Julio | K22: Agosto | L22: Septiembre | M22: Octubre | N22: Noviembre | O22: Diciembre
C23: Jubilación
C24: Ley 19032
C25: Obra social
C26: Sindicato
C29: Ded. al SAC Prorrateado
C34: Concepto | D34: Enero | E34: Febrero | F34: Marzo | G34: Abril | H34: Mayo | I34: Junio | J34: Julio | K34: Agosto | L34: Septiembre | M34: Octubre | N34: Noviembre | O34: Diciembre
C35: Importe
C36: Total acumulado | D36: =+D35 -> 0 | E36: =+D36+E35 -> 0 | F36: =+E36+F35 -> 0 | G36: 0 | H36: 0 | I36: 0 | J36: 0 | K36: 0 | L36: 0 | M36: 0 | N36: 0 | O36: 0
C37: Mes en que se informa | D37: 1 | E37: 2 | F37: 3 | G37: 4 | H37: 5 | I37: 6 | J37: 7 | K37: 8 | L37: 9 | M37: 10 | N37: 11 | O37: 12
C42: Concepto | D42: Enero | E42: Febrero | F42: Marzo | G42: Abril | H42: Mayo | I42: Junio | J42: Julio | K42: Agosto | L42: Septiembre | M42: Octubre | N42: Noviembre | O42: Diciembre
C43: Importe
C44: Total acumulado | D44: =+D43 -> 0 | E44: =+D44+E43 -> 0 | F44: =+E44+F43 -> 0 | G44: 0 | H44: 0 | I44: 0 | J44: 0 | K44: 0 | L44: 0 | M44: 0 | N44: 0 | O44: 0
C45: Mes en que se informa | D45: 1 | E45: 2 | F45: 3 | G45: 4 | H45: 5 | I45: 6 | J45: 7 | K45: 8 | L45: 9 | M45: 10 | N45: 11 | O45: 12
C50: Concepto | D50: Enero | E50: Febrero | F50: Marzo | G50: Abril | H50: Mayo | I50: Junio | J50: Julio | K50: Agosto | L50: Septiembre | M50: Octubre | N50: Noviembre | O50: Diciembre
C51: Importe
C52: Total acumulado | D52: =+D51 -> 0 | E52: =+D52+E51 -> 0 | F52: =+E52+F51 -> 0 | G52: 0 | H52: 0 | I52: 0 | J52: 0 | K52: 0 | L52: 0 | M52: 0 | N52: 0 | O52: 0
C53: Mes en que se informa | D53: 1 | E53: 2 | F53: 3 | G53: 4 | H53: 5 | I53: 6 | J53: 7 | K53: 8 | L53: 9 | M53: 10 | N53: 11 | O53: 12
C58: Concepto | D58: Enero | E58: Febrero | F58: Marzo | G58: Abril | H58: Mayo | I58: Junio | J58: Julio | K58: Agosto | L58: Septiembre | M58: Octubre | N58: Noviembre | O58: Diciembre
C59: Importe
C60: Total acumulado | D60: =+D59 -> 0 | E60: =+D60+E59 -> 0 | F60: =+E60+F59 -> 0 | G60: 0 | H60: 0 | I60: 0 | J60: 0 | K60: 0 | L60: 0 | M60: 0 | N60: 0 | O60: 0
C61: Mes en que se informa | D61: 1 | E61: 2 | F61: 3 | G61: 4 | H61: 5 | I61: 6 | J61: 7 | K61: 8 | L61: 9 | M61: 10 | N61: 11 | O61: 12
C67: Concepto | D67: Enero | E67: Febrero | F67: Marzo | G67: Abril | H67: Mayo | I67: Junio | J67: Julio | K67: Agosto | L67: Septiembre | M67: Octubre | N67: Noviembre | O67: Diciembre
C68: Importe | D68: 7400
C69: Total acumulado | D69: =+D68 -> 7400 | E69: =+D69+E68 -> 7400 | F69: =+E69+F68 -> 7400 | G69: 7400 | H69: 7400 | I69: 7400 | J69: 7400 | K69: 7400 | L69: 7400 | M69: 7400 | N69: 7400 | O69: 7400
C70: Mes en que se informa | D70: 1 | E70: 2 | F70: 3 | G70: 4 | H70: 5 | I70: 6 | J70: 7 | K70: 8 | L70: 9 | M70: 10 | N70: 11 | O70: 12
C76: Concepto | D76: Enero | E76: Febrero | F76: Marzo | G76: Abril | H76: Mayo | I76: Junio | J76: Julio | K76: Agosto | L76: Septiembre | M76: Octubre | N76: Noviembre | O76: Diciembre
C77: Importe
C78: Total acumulado | D78: =+D77 -> 0 | E78: =+E77+DedGrales!$D78 -> 0 | F78: =+DedGrales!$E78+F77 -> 0 | G78: =+DedGrales!$F78+G77 -> 0 | H78: =+DedGrales!$G78+H77 -> 0 | I78: =+DedGrales!$H78+I77 -> 0 | J78: =+DedGrales!$I78+J77 -> 0 | K78: =+DedGrales!$J78+K77 -> 0 | L78: =+DedGrales!$K78+L77 -> 0 | M78: =+DedGrales!$L78+M77 -> 0 | N78: =+DedGrales!$M78+N77 -> 0 | O78: =+DedGrales!$N78+O77 -> 0
C79: Mes en que se informa | D79: 1 | E79: 2 | F79: 3 | G79: 4 | H79: 5 | I79: 6 | J79: 7 | K79: 8 | L79: 9 | M79: 10 | N79: 11 | O79: 12
C85: Cantidad de sepelios | D85: 1
C87: Concepto | D87: Enero | E87: Febrero | F87: Marzo | G87: Abril | H87: Mayo | I87: Junio | J87: Julio | K87: Agosto | L87: Septiembre | M87: Octubre | N87: Noviembre | O87: Diciembre
C88: Importe
C89: Total acumulado | D89: =+D88 -> 0 | E89: =+D89+E88 -> 0 | F89: =+E89+F88 -> 0 | G89: =+F89+G88 -> 0 | H89: 0 | I89: 0 | J89: 0 | K89: 0 | L89: 0 | M89: 0 | N89: 0 | O89: 0
C90: Mes en que se informa | D90: 1 | E90: 2 | F90: 3 | G90: 4 | H90: 5 | I90: 6 | J90: 7 | K90: 8 | L90: 9 | M90: 10 | N90: 11 | O90: 12
C95: Concepto | D95: Enero | E95: Febrero | F95: Marzo | G95: Abril | H95: Mayo | I95: Junio | J95: Julio | K95: Agosto | L95: Septiembre | M95: Octubre | N95: Noviembre | O95: Diciembre
C96: Importe | D96: 5274.8
C97: Total acumulado | D97: =+D96 -> 5274.8 | E97: =+D97+E96 -> 5274.8 | F97: 5274.8 | G97: 5274.8 | H97: 5274.8 | I97: 5274.8 | J97: 5274.8 | K97: 5274.8 | L97: 5274.8 | M97: 5274.8 | N97: 5274.8 | O97: 5274.8
C98: Mes en que se informa | D98: 1 | E98: 2 | F98: 3 | G98: 4 | H98: 5 | I98: 6 | J98: 7 | K98: 8 | L98: 9 | M98: 10 | N98: 11 | O98: 12
C104: Concepto | D104: Enero | E104: Febrero | F104: Marzo | G104: Abril | H104: Mayo | I104: Junio | J104: Julio | K104: Agosto | L104: Septiembre | M104: Octubre | N104: Noviembre | O104: Diciembre
C105: Importe
C106: Total acumulado | D106: =+D105 -> 0 | E106: =+D106+E105 -> 0 | F106: =+E106+F105 -> 0 | G106: 0 | H106: 0 | I106: 0 | J106: 0 | K106: 0 | L106: 0 | M106: 0 | N106: 0 | O106: 0
C107: Mes en que se informa | D107: 1 | E107: 2 | F107: 3 | G107: 4 | H107: 5 | I107: 6 | J107: 7 | K107: 8 | L107: 9 | M107: 10 | N107: 11 | O107: 12
C113: Concepto | D113: Enero | E113: Febrero | F113: Marzo | G113: Abril | H113: Mayo | I113: Junio | J113: Julio | K113: Agosto | L113: Septiembre | M113: Octubre | N113: Noviembre | O113: Diciembre
C114: Importe
C115: Total acumulado | D115: =+D114 -> 0 | E115: =+D115+E114 -> 0 | F115: 0 | G115: 0 | H115: 0 | I115: 0 | J115: 0 | K115: 0 | L115: 0 | M115: 0 | N115: 0 | O115: 0
C116: Mes en que se informa | D116: 1 | E116: 2 | F116: 3 | G116: 4 | H116: 5 | I116: 6 | J116: 7 | K116: 8 | L116: 9 | M116: 10 | N116: 11 | O116: 12
C122: Concepto | D122: Enero | E122: Febrero | F122: Marzo | G122: Abril | H122: Mayo | I122: Junio | J122: Julio | K122: Agosto | L122: Septiembre | M122: Octubre | N122: Noviembre | O122: Diciembre
C123: Importe
C124: Total acumulado | D124: =+D123 -> 0 | E124: =+D124+E123 -> 0 | F124: =+E124+F123 -> 0 | G124: 0 | H124: 0 | I124: 0 | J124: 0 | K124: 0 | L124: 0 | M124: 0 | N124: 0 | O124: 0
C125: Mes en que se informa | D125: 1 | E125: 2 | F125: 3 | G125: 4 | H125: 5 | I125: 6 | J125: 7 | K125: 8 | L125: 9 | M125: 10 | N125: 11 | O125: 12
C130: Concepto | D130: Enero | E130: Febrero | F130: Marzo | G130: Abril | H130: Mayo | I130: Junio | J130: Julio | K130: Agosto | L130: Septiembre | M130: Octubre | N130: Noviembre | O130: Diciembre
C131: Importe
C132: Total acumulado | D132: =+D131 -> 0 | E132: =+D132+E131 -> 0 | F132: 0 | G132: 0 | H132: 0 | I132: 0 | J132: 0 | K132: 0 | L132: 0 | M132: 0 | N132: 0 | O132: 0
C133: Mes en que se informa | D133: 1 | E133: 2 | F133: 3 | G133: 4 | H133: 5 | I133: 6 | J133: 7 | K133: 8 | L133: 9 | M133: 10 | N133: 11 | O133: 12
C138: Concepto | D138: Enero | E138: Febrero | F138: Marzo | G138: Abril | H138: Mayo | I138: Junio | J138: Julio | K138: Agosto | L138: Septiembre | M138: Octubre | N138: Noviembre | O138: Diciembre
C139: Importe
C140: Total acumulado | D140: =+D139 -> 0 | E140: =+D140+E139 -> 0 | F140: =+E140+F139 -> 0 | G140: =+F140+G139 -> 0 | H140: =+G140+H139 -> 0 | I140: =+H140+I139 -> 0 | J140: =+I140+J139 -> 0 | K140: =+J140+K139 -> 0 | L140: =+K140+L139 -> 0 | M140: =+L140+M139 -> 0 | N140: =+M140+N139 -> 0 | O140: =+N140+O139 -> 0
C141: Mes en que se informa | D141: 1 | E141: 2 | F141: 3 | G141: 4 | H141: 5 | I141: 6 | J141: 7 | K141: 8 | L141: 9 | M141: 10 | N141: 11 | O141: 12
C147: Concepto | D147: Enero | E147: Febrero | F147: Marzo | G147: Abril | H147: Mayo | I147: Junio | J147: Julio | K147: Agosto | L147: Septiembre | M147: Octubre | N147: Noviembre | O147: Diciembre
C148: Importe | D148: 1500
C149: Total acumulado | D149: =+D148 -> 1500 | E149: =+D149+E148 -> 1500 | F149: =+E149+F148 -> 1500 | G149: =+F149+G148 -> 1500 | H149: =+G149+H148 -> 1500 | I149: =+H149+I148 -> 1500 | J149: =+I149+J148 -> 1500 | K149: =+J149+K148 -> 1500 | L149: =+K149+L148 -> 1500 | M149: =+L149+M148 -> 1500 | N149: =+M149+N148 -> 1500 | O149: =+N149+O148 -> 1500
C150: Mes en que se informa | D150: 1 | E150: 2 | F150: 3 | G150: 4 | H150: 5 | I150: 6 | J150: 7 | K150: 8 | L150: 9 | M150: 10 | N150: 11 | O150: 12
C157: Concepto | D157: Enero | E157: Febrero | F157: Marzo | G157: Abril | H157: Mayo | I157: Junio | J157: Julio | K157: Agosto | L157: Septiembre | M157: Octubre | N157: Noviembre | O157: Diciembre
C158: Importe
C159: Total acumulado | D159: =+D158 -> 0 | E159: =+D159+E158 -> 0 | F159: =+E159+F158 -> 0 | G159: =+F159+G158 -> 0 | H159: =+G159+H158 -> 0 | I159: =+H159+I158 -> 0 | J159: =+I159+J158 -> 0 | K159: =+J159+K158 -> 0 | L159: =+K159+L158 -> 0 | M159: =+L159+M158 -> 0 | N159: =+M159+N158 -> 0 | O159: =+N159+O158 -> 0
C160: Mes en que se informa | D160: 1 | E160: 2 | F160: 3 | G160: 4 | H160: 5 | I160: 6 | J160: 7 | K160: 8 | L160: 9 | M160: 10 | N160: 11 | O160: 12
C167: Concepto | D167: Enero | E167: Febrero | F167: Marzo | G167: Abril | H167: Mayo | I167: Junio | J167: Julio | K167: Agosto | L167: Septiembre | M167: Octubre | N167: Noviembre | O167: Diciembre
C168: Importe
C169: Total acumulado | D169: =+D168 -> 0 | E169: =+D169+E168 -> 0 | F169: =+E169+F168 -> 0 | G169: =+F169+G168 -> 0 | H169: =+G169+H168 -> 0 | I169: =+H169+I168 -> 0 | J169: =+I169+J168 -> 0 | K169: =+J169+K168 -> 0 | L169: =+K169+L168 -> 0 | M169: =+L169+M168 -> 0 | N169: =+M169+N168 -> 0 | O169: =+N169+O168 -> 0
C170: Mes en que se informa | D170: 1 | E170: 2 | F170: 3 | G170: 4 | H170: 5 | I170: 6 | J170: 7 | K170: 8 | L170: 9 | M170: 10 | N170: 11 | O170: 12
C176: Concepto | D176: Enero | E176: Febrero | F176: Marzo | G176: Abril | H176: Mayo | I176: Junio | J176: Julio | K176: Agosto | L176: Septiembre | M176: Octubre | N176: Noviembre | O176: Diciembre
C177: Importe
C178: Total acumulado | D178: =+D177 -> 0 | E178: =+D178+E177 -> 0 | F178: =+E178+F177 -> 0 | G178: =+F178+G177 -> 0 | H178: =+G178+H177 -> 0 | I178: =+H178+I177 -> 0 | J178: =+I178+J177 -> 0 | K178: =+J178+K177 -> 0 | L178: =+K178+L177 -> 0 | M178: =+L178+M177 -> 0 | N178: =+M178+N177 -> 0 | O178: =+N178+O177 -> 0
C179: Mes en que se informa | D179: 1 | E179: 2 | F179: 3 | G179: 4 | H179: 5 | I179: 6 | J179: 7 | K179: 8 | L179: 9 | M179: 10 | N179: 11 | O179: 12

Sheet Check
A1: Último día del mes
A2: Seguro de vida
A3: Gastos de sepelio
A4: Crédito hipotecario
A5: PCP | B5: Ok
A6: Cuota médico asistencial
A7: Donaciones
A8: Retenciones automáticas | B8: Ok
A9: Aportes a fondos de jubilaciones
A10: Alquiler de casa habitación | B10: Ok
A11: Viáticos | B11: Ok
A12: Descuentos obligatorios
A13: SGR
A14: Cajas complementarias de previsión
A15: Honorarios por asistencia sanitaria, médica
A16: Viajantes
A17: 35% de límite anual
A18: Planes de seguro de retiro privado
A19: Gastos de indumentaria
A20: Viáticos (larga distancia)

Sheet DedPersonales
B3: DEDUCCIONES PERSONALES
B5: Cónyuge
B6: ="Sean residentes en el país, estén a cargo del contribuyente y no tengan en el año ingresos netos superiores a pesos "&Tablas!O31&", cualquiera sea su origen y estén o no sujetas al impuesto" -> Sean residentes en el país, estén a cargo del contribuyente y no tengan en el año ingresos netos superiores a pesos 85848,99, cualquiera sea su origen y estén o no sujetas al impuesto
C7: Nombre y apellido | D7: CUIL | E7: Mes de alta | F7: Mes de baja | G7: Mes en que se informa
K8: =IF(AND(E8="",F8="",G8=""),"",IF(AND(OR(E8<>"",F8<>""),G8=""),"Recuerde completar el campo 'Mes en que se informa' para computar las deducciones","")) -> 
B10: Hijos
B11: ="Hijo, hija, hijastro o hijastra menor de dieciocho (18) años o incapacitado para el trabajo; residentes en el país, estén a cargo del contribuyente y no tengan en el año ingresos netos superiores a "&Tablas!O31&", cualquiera sea su origen y estén o no sujetas al impuesto" -> Hijo, hija, hijastro o hijastra menor de dieciocho (18) años o incapacitado para el trabajo; residentes en el país, estén a cargo del contribuyente y no tengan en el año ingresos netos superiores a 85848,99, cualquiera sea su origen y estén o no sujetas al impuesto
C12: Nombre y apellido | D12: CUIL | E12: Mes de alta | F12: Mes de baja | G12: Mes en que se informa | H12: Porcentaje de imputación Anterior | I12: Porcentaje de imputación | J12: Mes de cambio | Z12: 1 | AA12: 2 | AB12: 3 | AC12: 4 | AD12: =+AC12+1 -> 5 | AE12: =+AD12+1 -> 6 | AF12: 7 | AG12: 8 | AH12: 9 | AI12: 10 | AJ12: 11 | AK12: =+AJ12+1 -> 12
C13: hijo menor | E13: 1 | F13: 12 | G13: 1 | H13: 1 | I13: 1 | K13: =IF(T13=1,"",IF(AND(R13=0,S13=1),"Ingrese porcentaje de imputación y mes de cambio, de corresponder el cambio de la RG 4286",IF(AND(R13=0,S13=0),"",IF(R13=1,"Ingrese Mes de alta y mes que se informa")))) -> Ingrese porcentaje de imputación y mes de cambio, de corresponder el cambio de la RG 4286 | R13: =IF(AND(Tabla1[[#This Row],[Mes de alta]]<>"",Tabla1[[#This Row],[Mes en que se informa]]<>""),0,1) -> 0 | S13: =IF(AND(Tabla1[[#This Row],[Porcentaje de imputación]]<>"",Tabla1[[#This Row],[Mes de cambio]]<>""),0,1) -> 1 | T13: =IF(OR(Tabla1[[#This Row],[Mes de alta]]<>"",Tabla1[[#This Row],[Mes de baja]]<>"",Tabla1[[#This Row],[Mes en que se informa]]<>"",Tabla1[[#This Row],[Porcentaje de imputación]]<>"",Tabla1[[#This Row],[Mes de cambio]]<>""),0,1) -> 0
H14: 1 | K14: =IF(T14=1,"",IF(AND(R14=0,S14=1),"Ingrese porcentaje de imputación y mes de cambio, de corresponder",IF(AND(R14=0,S14=0),"",IF(R14=1,"Ingrese Mes de alta y mes que se informa")))) ->  | R14: =IF(OR(Tabla1[[#This Row],[Mes de alta]]<>"",Tabla1[[#This Row],[Mes en que se informa]]<>""),0,1) -> 1 | S14: =IF(AND(Tabla1[[#This Row],[Porcentaje de imputación]]<>"",Tabla1[[#This Row],[Mes de cambio]]<>""),0,1) -> 1 | T14: =IF(OR(Tabla1[[#This Row],[Mes de alta]]<>"",Tabla1[[#This Row],[Mes de baja]]<>"",Tabla1[[#This Row],[Mes en que se informa]]<>"",Tabla1[[#This Row],[Porcentaje de imputación]]<>"",Tabla1[[#This Row],[Mes de cambio]]<>""),0,1) -> 1
H15: 1 | R15: =IF(OR(Tabla1[[#This Row],[Mes de alta]]<>"",Tabla1[[#This Row],[Mes en que se informa]]<>""),0,1) -> 1 | S15: =IF(AND(Tabla1[[#This Row],[Porcentaje de imputación]]<>"",Tabla1[[#This Row],[Mes de cambio]]<>""),0,1) -> 1 | T15: =IF(OR(Tabla1[[#This Row],[Mes de alta]]<>"",Tabla1[[#This Row],[Mes de baja]]<>"",Tabla1[[#This Row],[Mes en que se informa]]<>"",Tabla1[[#This Row],[Porcentaje de imputación]]<>"",Tabla1[[#This Row],[Mes de cambio]]<>""),0,1) -> 1
H16: 1 | R16: =IF(OR(Tabla1[[#This Row],[Mes de alta]]<>"",Tabla1[[#This Row],[Mes en que se informa]]<>""),0,1) -> 1 | S16: =IF(AND(Tabla1[[#This Row],[Porcentaje de imputación]]<>"",Tabla1[[#This Row],[Mes de cambio]]<>""),0,1) -> 1 | T16: =IF(OR(Tabla1[[#This Row],[Mes de alta]]<>"",Tabla1[[#This Row],[Mes de baja]]<>"",Tabla1[[#This Row],[Mes en que se informa]]<>"",Tabla1[[#This Row],[Porcentaje de imputación]]<>"",Tabla1[[#This Row],[Mes de cambio]]<>""),0,1) -> 1
H17: 1 | R17: =IF(OR(Tabla1[[#This Row],[Mes de alta]]<>"",Tabla1[[#This Row],[Mes en que se informa]]<>""),0,1) -> 1 | S17: =IF(AND(Tabla1[[#This Row],[Porcentaje de imputación]]<>"",Tabla1[[#This Row],[Mes de cambio]]<>""),0,1) -> 1 | T17: =IF(OR(Tabla1[[#This Row],[Mes de alta]]<>"",Tabla1[[#This Row],[Mes de baja]]<>"",Tabla1[[#This Row],[Mes en que se informa]]<>"",Tabla1[[#This Row],[Porcentaje de imputación]]<>"",Tabla1[[#This Row],[Mes de cambio]]<>""),0,1) -> 1
H18: 1 | R18: =IF(OR(Tabla1[[#This Row],[Mes de alta]]<>"",Tabla1[[#This Row],[Mes en que se informa]]<>""),0,1) -> 1 | S18: =IF(AND(Tabla1[[#This Row],[Porcentaje de imputación]]<>"",Tabla1[[#This Row],[Mes de cambio]]<>""),0,1) -> 1 | T18: =IF(OR(Tabla1[[#This Row],[Mes de alta]]<>"",Tabla1[[#This Row],[Mes de baja]]<>"",Tabla1[[#This Row],[Mes en que se informa]]<>"",Tabla1[[#This Row],[Porcentaje de imputación]]<>"",Tabla1[[#This Row],[Mes de cambio]]<>""),0,1) -> 1
H19: 1 | R19: =IF(OR(Tabla1[[#This Row],[Mes de alta]]<>"",Tabla1[[#This Row],[Mes en que se informa]]<>""),0,1) -> 1 | S19: =IF(AND(Tabla1[[#This Row],[Porcentaje de imputación]]<>"",Tabla1[[#This Row],[Mes de cambio]]<>""),0,1) -> 1 | T19: =IF(OR(Tabla1[[#This Row],[Mes de alta]]<>"",Tabla1[[#This Row],[Mes de baja]]<>"",Tabla1[[#This Row],[Mes en que se informa]]<>"",Tabla1[[#This Row],[Porcentaje de imputación]]<>"",Tabla1[[#This Row],[Mes de cambio]]<>""),0,1) -> 1
H20: 1 | R20: =IF(OR(Tabla1[[#This Row],[Mes de alta]]<>"",Tabla1[[#This Row],[Mes en que se informa]]<>""),0,1) -> 1 | S20: =IF(AND(Tabla1[[#This Row],[Porcentaje de imputación]]<>"",Tabla1[[#This Row],[Mes de cambio]]<>""),0,1) -> 1 | T20: =IF(OR(Tabla1[[#This Row],[Mes de alta]]<>"",Tabla1[[#This Row],[Mes de baja]]<>"",Tabla1[[#This Row],[Mes en que se informa]]<>"",Tabla1[[#This Row],[Porcentaje de imputación]]<>"",Tabla1[[#This Row],[Mes de cambio]]<>""),0,1) -> 1
H21: 1 | R21: =IF(OR(Tabla1[[#This Row],[Mes de alta]]<>"",Tabla1[[#This Row],[Mes en que se informa]]<>""),0,1) -> 1 | S21: =IF(AND(Tabla1[[#This Row],[Porcentaje de imputación]]<>"",Tabla1[[#This Row],[Mes de cambio]]<>""),0,1) -> 1 | T21: =IF(OR(Tabla1[[#This Row],[Mes de alta]]<>"",Tabla1[[#This Row],[Mes de baja]]<>"",Tabla1[[#This Row],[Mes en que se informa]]<>"",Tabla1[[#This Row],[Porcentaje de imputación]]<>"",Tabla1[[#This Row],[Mes de cambio]]<>""),0,1) -> 1
H22: 1 | R22: =IF(OR(Tabla1[[#This Row],[Mes de alta]]<>"",Tabla1[[#This Row],[Mes en que se informa]]<>""),0,1) -> 1 | S22: =IF(AND(Tabla1[[#This Row],[Porcentaje de imputación]]<>"",Tabla1[[#This Row],[Mes de cambio]]<>""),0,1) -> 1 | T22: =IF(OR(Tabla1[[#This Row],[Mes de alta]]<>"",Tabla1[[#This Row],[Mes de baja]]<>"",Tabla1[[#This Row],[Mes en que se informa]]<>"",Tabla1[[#This Row],[Porcentaje de imputación]]<>"",Tabla1[[#This Row],[Mes de cambio]]<>""),0,1) -> 1
H23: 1 | R23: =IF(OR(Tabla1[[#This Row],[Mes de alta]]<>"",Tabla1[[#This Row],[Mes en que se informa]]<>""),0,1) -> 1 | S23: =IF(AND(Tabla1[[#This Row],[Porcentaje de imputación]]<>"",Tabla1[[#This Row],[Mes de cambio]]<>""),0,1) -> 1 | T23: =IF(OR(Tabla1[[#This Row],[Mes de alta]]<>"",Tabla1[[#This Row],[Mes de baja]]<>"",Tabla1[[#This Row],[Mes en que se informa]]<>"",Tabla1[[#This Row],[Porcentaje de imputación]]<>"",Tabla1[[#This Row],[Mes de cambio]]<>""),0,1) -> 1
H24: 1 | R24: =IF(OR(Tabla1[[#This Row],[Mes de alta]]<>"",Tabla1[[#This Row],[Mes en que se informa]]<>""),0,1) -> 1 | S24: =IF(AND(Tabla1[[#This Row],[Porcentaje de imputación]]<>"",Tabla1[[#This Row],[Mes de cambio]]<>""),0,1) -> 1 | T24: =IF(OR(Tabla1[[#This Row],[Mes de alta]]<>"",Tabla1[[#This Row],[Mes de baja]]<>"",Tabla1[[#This Row],[Mes en que se informa]]<>"",Tabla1[[#This Row],[Porcentaje de imputación]]<>"",Tabla1[[#This Row],[Mes de cambio]]<>""),0,1) -> 1
H25: 1 | R25: =IF(OR(Tabla1[[#This Row],[Mes de alta]]<>"",Tabla1[[#This Row],[Mes en que se informa]]<>""),0,1) -> 1 | S25: =IF(AND(Tabla1[[#This Row],[Porcentaje de imputación]]<>"",Tabla1[[#This Row],[Mes de cambio]]<>""),0,1) -> 1 | T25: =IF(OR(Tabla1[[#This Row],[Mes de alta]]<>"",Tabla1[[#This Row],[Mes de baja]]<>"",Tabla1[[#This Row],[Mes en que se informa]]<>"",Tabla1[[#This Row],[Porcentaje de imputación]]<>"",Tabla1[[#This Row],[Mes de cambio]]<>""),0,1) -> 1
H26: 1 | R26: =IF(OR(Tabla1[[#This Row],[Mes de alta]]<>"",Tabla1[[#This Row],[Mes en que se informa]]<>""),0,1) -> 1 | S26: =IF(AND(Tabla1[[#This Row],[Porcentaje de imputación]]<>"",Tabla1[[#This Row],[Mes de cambio]]<>""),0,1) -> 1 | T26: =IF(OR(Tabla1[[#This Row],[Mes de alta]]<>"",Tabla1[[#This Row],[Mes de baja]]<>"",Tabla1[[#This Row],[Mes en que se informa]]<>"",Tabla1[[#This Row],[Porcentaje de imputación]]<>"",Tabla1[[#This Row],[Mes de cambio]]<>""),0,1) -> 1
H27: 1 | R27: =IF(OR(Tabla1[[#This Row],[Mes de alta]]<>"",Tabla1[[#This Row],[Mes en que se informa]]<>""),0,1) -> 1 | S27: =IF(AND(Tabla1[[#This Row],[Porcentaje de imputación]]<>"",Tabla1[[#This Row],[Mes de cambio]]<>""),0,1) -> 1 | T27: =IF(OR(Tabla1[[#This Row],[Mes de alta]]<>"",Tabla1[[#This Row],[Mes de baja]]<>"",Tabla1[[#This Row],[Mes en que se informa]]<>"",Tabla1[[#This Row],[Porcentaje de imputación]]<>"",Tabla1[[#This Row],[Mes de cambio]]<>""),0,1) -> 1
H28: 1 | R28: =IF(OR(Tabla1[[#This Row],[Mes de alta]]<>"",Tabla1[[#This Row],[Mes en que se informa]]<>""),0,1) -> 1 | S28: =IF(AND(Tabla1[[#This Row],[Porcentaje de imputación]]<>"",Tabla1[[#This Row],[Mes de cambio]]<>""),0,1) -> 1 | T28: =IF(OR(Tabla1[[#This Row],[Mes de alta]]<>"",Tabla1[[#This Row],[Mes de baja]]<>"",Tabla1[[#This Row],[Mes en que se informa]]<>"",Tabla1[[#This Row],[Porcentaje de imputación]]<>"",Tabla1[[#This Row],[Mes de cambio]]<>""),0,1) -> 1

Sheet PagosACuenta
B4: PERCEPCIONES EFECTUADAS POR LA DIRECCIÓN GENERAL DE ADUANAS, IMPUESTO SOBRE LOS CRÉDITOS Y DÉBITOS BANCARIOS Y PERCEPCIONES DE LA RG 3819
B6: Concepto | C6: enero | D6: febrero | E6: marzo | F6: abril | G6: mayo | H6: junio | I6: julio | J6: agosto | K6: septiembre | L6: octubre | M6: noviembre | N6: diciembre | O6: anual
B7: Importe
B8: Acumulado | C8: =+C7 -> 0 | D8: =+D7+C8 -> 0 | E8: =+E7+D8 -> 0 | F8: 0 | G8: 0 | H8: 0 | I8: 0 | J8: 0 | K8: 0 | L8: 0 | M8: 0 | N8: 0 | O8: 0
B10: IMPUESTO SOBRE LOS CRÉDITOS Y DÉBITOS BANCARIOS
B12: Concepto | C12: enero | D12: febrero | E12: marzo | F12: abril | G12: mayo | H12: junio | I12: julio | J12: agosto | K12: septiembre | L12: octubre | M12: noviembre | N12: diciembre | O12: anual
B13: Importe
B14: Acumulado | C14: =+C13 -> 0 | D14: =+D13+C14 -> 0 | E14: =+E13+D14 -> 0 | F14: =+F13+E14 -> 0 | G14: =+G13+F14 -> 0 | H14: =+H13+G14 -> 0 | I14: =+I13+H14 -> 0 | J14: =+J13+I14 -> 0 | K14: =+K13+J14 -> 0 | L14: =+L13+K14 -> 0 | M14: =+M13+L14 -> 0 | N14: =+N13+M14 -> 0 | O14: =+O13+N14 -> 0
B16: PERCEPCIONES DE LA RG 3819
B18: Concepto | C18: enero | D18: febrero | E18: marzo | F18: abril | G18: mayo | H18: junio | I18: julio | J18: agosto | K18: septiembre | L18: octubre | M18: noviembre | N18: diciembre | O18: anual
B19: Importe
B20: Acumulado | C20: =+C19 -> 0 | D20: =+D19+C20 -> 0 | E20: =+E19+D20 -> 0 | F20: =+F19+E20 -> 0 | G20: =+G19+F20 -> 0 | H20: =+H19+G20 -> 0 | I20: =+I19+H20 -> 0 | J20: =+J19+I20 -> 0 | K20: =+K19+J20 -> 0 | L20: =+L19+K20 -> 0 | M20: =+M19+L20 -> 0 | N20: =+N19+M20 -> 0 | O20: =+O19+N20 -> 0
B22: IMPORTE EFECTIVAMENTE RETENIDO/DEVUELTO (MENSUAL)
B24: Concepto | C24: enero | D24: febrero | E24: marzo | F24: abril | G24: mayo | H24: junio | I24: julio | J24: agosto | K24: septiembre | L24: octubre | M24: noviembre | N24: diciembre | O24: anual
B25: Retenciones
B26: Devoluciones
B27: Acumulado | C27: =+C25-C26 -> 0 | D27: =+D25-D26+C27 -> 0 | E27: =+E25-E26+D27 -> 0 | F27: 0 | G27: 0 | H27: 0 | I27: 0 | J27: 0 | K27: 0 | L27: 0 | M27: 0 | N27: 0 | O27: 0

Sheet Auxiliares
C3: No
C5: Mes | D5: 2017-01-01 | E5: 2017-02-01 | F5: 2017-03-01 | G5: 2017-04-01 | H5: 2017-05-01 | I5: 2017-06-01 | J5: 2017-07-01 | K5: 2017-08-01 | L5: 2017-09-01 | M5: 2017-10-01 | N5: 2017-11-01 | O5: 2017-12-01
C7: Concepto | D7: 2017-01-01 | E7: 2017-02-01 | F7: 2017-03-01 | G7: 2017-04-01 | H7: 2017-05-01 | I7: 2017-06-01 | J7: 2017-07-01 | K7: 2017-08-01 | L7: 2017-09-01 | M7: 2017-10-01 | N7: 2017-11-01 | O7: 2017-12-01 | P7: Anual
C8: Gravado - SAC
C9: Sueldo Rem. (no prorrateo) | D9: =SUMIFS(Ingresos!C$8:C$26,Ingresos!$P$8:$P$26,"Gravado",Ingresos!$R$8:$R$26,"Sí",Ingresos!$Q$8:$Q$26,"No")+SUMIFS(Ingresos!C$35:C$45,Ingresos!$P$35:$P$45,"Gravado",Ingresos!$R$35:$R$45,"Sí",Ingresos!$Q$35:$Q$45,"No") -> 70000 | E9: =SUMIFS(Ingresos!D$8:D$26,Ingresos!$P$8:$P$26,"Gravado",Ingresos!$R$8:$R$26,"Sí",Ingresos!$Q$8:$Q$26,"No")+SUMIFS(Ingresos!D$35:D$45,Ingresos!$P$35:$P$45,"Gravado",Ingresos!$R$35:$R$45,"Sí",Ingresos!$Q$35:$Q$45,"No") -> 0 | F9: =SUMIFS(Ingresos!E$8:E$26,Ingresos!$P$8:$P$26,"Gravado",Ingresos!$R$8:$R$26,"Sí",Ingresos!$Q$8:$Q$26,"No")+SUMIFS(Ingresos!E$35:E$45,Ingresos!$P$35:$P$45,"Gravado",Ingresos!$R$35:$R$45,"Sí",Ingresos!$Q$35:$Q$45,"No") -> 0 | G9: =SUMIFS(Ingresos!F$8:F$26,Ingresos!$P$8:$P$26,"Gravado",Ingresos!$R$8:$R$26,"Sí",Ingresos!$Q$8:$Q$26,"No")+SUMIFS(Ingresos!F$35:F$45,Ingresos!$P$35:$P$45,"Gravado",Ingresos!$R$35:$R$45,"Sí",Ingresos!$Q$35:$Q$45,"No") -> 0 | H9: =SUMIFS(Ingresos!G$8:G$26,Ingresos!$P$8:$P$26,"Gravado",Ingresos!$R$8:$R$26,"Sí",Ingresos!$Q$8:$Q$26,"No")+SUMIFS(Ingresos!G$35:G$45,Ingresos!$P$35:$P$45,"Gravado",Ingresos!$R$35:$R$45,"Sí",Ingresos!$Q$35:$Q$45,"No") -> 0 | I9: =SUMIFS(Ingresos!H$8:H$26,Ingresos!$P$8:$P$26,"Gravado",Ingresos!$R$8:$R$26,"Sí",Ingresos!$Q$8:$Q$26,"No")+SUMIFS(Ingresos!H$35:H$45,Ingresos!$P$35:$P$45,"Gravado",Ingresos!$R$35:$R$45,"Sí",Ingresos!$Q$35:$Q$45,"No") -> 0 | J9: =SUMIFS(Ingresos!I$8:I$26,Ingresos!$P$8:$P$26,"Gravado",Ingresos!$R$8:$R$26,"Sí",Ingresos!$Q$8:$Q$26,"No")+SUMIFS(Ingresos!I$35:I$45,Ingresos!$P$35:$P$45,"Gravado",Ingresos!$R$35:$R$45,"Sí",Ingresos!$Q$35:$Q$45,"No") -> 0 | K9: =SUMIFS(Ingresos!J$8:J$26,Ingresos!$P$8:$P$26,"Gravado",Ingresos!$R$8:$R$26,"Sí",Ingresos!$Q$8:$Q$26,"No")+SUMIFS(Ingresos!J$35:J$45,Ingresos!$P$35:$P$45,"Gravado",Ingresos!$R$35:$R$45,"Sí",Ingresos!$Q$35:$Q$45,"No") -> 0 | L9: =SUMIFS(Ingresos!K$8:K$26,Ingresos!$P$8:$P$26,"Gravado",Ingresos!$R$8:$R$26,"Sí",Ingresos!$Q$8:$Q$26,"No")+SUMIFS(Ingresos!K$35:K$45,Ingresos!$P$35:$P$45,"Gravado",Ingresos!$R$35:$R$45,"Sí",Ingresos!$Q$35:$Q$45,"No") -> 0 | M9: =SUMIFS(Ingresos!L$8:L$26,Ingresos!$P$8:$P$26,"Gravado",Ingresos!$R$8:$R$26,"Sí",Ingresos!$Q$8:$Q$26,"No")+SUMIFS(Ingresos!L$35:L$45,Ingresos!$P$35:$P$45,"Gravado",Ingresos!$R$35:$R$45,"Sí",Ingresos!$Q$35:$Q$45,"No") -> 0 | N9: =SUMIFS(Ingresos!M$8:M$26,Ingresos!$P$8:$P$26,"Gravado",Ingresos!$R$8:$R$26,"Sí",Ingresos!$Q$8:$Q$26,"No")+SUMIFS(Ingresos!M$35:M$45,Ingresos!$P$35:$P$45,"Gravado",Ingresos!$R$35:$R$45,"Sí",Ingresos!$Q$35:$Q$45,"No") -> 0 | O9: =SUMIFS(Ingresos!N$8:N$26,Ingresos!$P$8:$P$26,"Gravado",Ingresos!$R$8:$R$26,"Sí",Ingresos!$Q$8:$Q$26,"No")+SUMIFS(Ingresos!N$35:N$45,Ingresos!$P$35:$P$45,"Gravado",Ingresos!$R$35:$R$45,"Sí",Ingresos!$Q$35:$Q$45,"No") -> 0 | P9: =SUM(D9:O9) -> 70000
C10: Sueldo Rem. (prorrateo) | D10: =SUMIFS(Ingresos!C$8:C$26,Ingresos!$P$8:$P$26,"Gravado",Ingresos!$R$8:$R$26,"Sí",Ingresos!$Q$8:$Q$26,"Sí")+SUMIFS(Ingresos!C$35:C$45,Ingresos!$P$35:$P$45,"Gravado",Ingresos!$R$35:$R$45,"Sí",Ingresos!$Q$35:$Q$45,"Sí")-Ingresos!C12-Ingresos!C39 -> 0 | E10: =SUMIFS(Ingresos!D$8:D$26,Ingresos!$P$8:$P$26,"Gravado",Ingresos!$R$8:$R$26,"Sí",Ingresos!$Q$8:$Q$26,"Sí")+SUMIFS(Ingresos!D$35:D$45,Ingresos!$P$35:$P$45,"Gravado",Ingresos!$R$35:$R$45,"Sí",Ingresos!$Q$35:$Q$45,"Sí")-Ingresos!D12-Ingresos!D39 -> 0 | F10: =SUMIFS(Ingresos!E$8:E$26,Ingresos!$P$8:$P$26,"Gravado",Ingresos!$R$8:$R$26,"Sí",Ingresos!$Q$8:$Q$26,"Sí")+SUMIFS(Ingresos!E$35:E$45,Ingresos!$P$35:$P$45,"Gravado",Ingresos!$R$35:$R$45,"Sí",Ingresos!$Q$35:$Q$45,"Sí")-Ingresos!E12-Ingresos!E39 -> 0 | G10: =SUMIFS(Ingresos!F$8:F$26,Ingresos!$P$8:$P$26,"Gravado",Ingresos!$R$8:$R$26,"Sí",Ingresos!$Q$8:$Q$26,"Sí")+SUMIFS(Ingresos!F$35:F$45,Ingresos!$P$35:$P$45,"Gravado",Ingresos!$R$35:$R$45,"Sí",Ingresos!$Q$35:$Q$45,"Sí")-Ingresos!F12-Ingresos!F39 -> 0 | H10: =SUMIFS(Ingresos!G$8:G$26,Ingresos!$P$8:$P$26,"Gravado",Ingresos!$R$8:$R$26,"Sí",Ingresos!$Q$8:$Q$26,"Sí")+SUMIFS(Ingresos!G$35:G$45,Ingresos!$P$35:$P$45,"Gravado",Ingresos!$R$35:$R$45,"Sí",Ingresos!$Q$35:$Q$45,"Sí")-Ingresos!G12-Ingresos!G39 -> 0 | I10: =SUMIFS(Ingresos!H$8:H$26,Ingresos!$P$8:$P$26,"Gravado",Ingresos!$R$8:$R$26,"Sí",Ingresos!$Q$8:$Q$26,"Sí")+SUMIFS(Ingresos!H$35:H$45,Ingresos!$P$35:$P$45,"Gravado",Ingresos!$R$35:$R$45,"Sí",Ingresos!$Q$35:$Q$45,"Sí")-Ingresos!H12-Ingresos!H39 -> 0 | J10: =SUMIFS(Ingresos!I$8:I$26,Ingresos!$P$8:$P$26,"Gravado",Ingresos!$R$8:$R$26,"Sí",Ingresos!$Q$8:$Q$26,"Sí")+SUMIFS(Ingresos!I$35:I$45,Ingresos!$P$35:$P$45,"Gravado",Ingresos!$R$35:$R$45,"Sí",Ingresos!$Q$35:$Q$45,"Sí")-Ingresos!I12-Ingresos!I39 -> 0 | K10: =SUMIFS(Ingresos!J$8:J$26,Ingresos!$P$8:$P$26,"Gravado",Ingresos!$R$8:$R$26,"Sí",Ingresos!$Q$8:$Q$26,"Sí")+SUMIFS(Ingresos!J$35:J$45,Ingresos!$P$35:$P$45,"Gravado",Ingresos!$R$35:$R$45,"Sí",Ingresos!$Q$35:$Q$45,"Sí")-Ingresos!J12-Ingresos!J39 -> 0 | L10: =SUMIFS(Ingresos!K$8:K$26,Ingresos!$P$8:$P$26,"Gravado",Ingresos!$R$8:$R$26,"Sí",Ingresos!$Q$8:$Q$26,"Sí")+SUMIFS(Ingresos!K$35:K$45,Ingresos!$P$35:$P$45,"Gravado",Ingresos!$R$35:$R$45,"Sí",Ingresos!$Q$35:$Q$45,"Sí")-Ingresos!K12-Ingresos!K39 -> 0 | M10: =SUMIFS(Ingresos!L$8:L$26,Ingresos!$P$8:$P$26,"Gravado",Ingresos!$R$8:$R$26,"Sí",Ingresos!$Q$8:$Q$26,"Sí")+SUMIFS(Ingresos!L$35:L$45,Ingresos!$P$35:$P$45,"Gravado",Ingresos!$R$35:$R$45,"Sí",Ingresos!$Q$35:$Q$45,"Sí")-Ingresos!L12-Ingresos!L39 -> 0 | N10: =SUMIFS(Ingresos!M$8:M$26,Ingresos!$P$8:$P$26,"Gravado",Ingresos!$R$8:$R$26,"Sí",Ingresos!$Q$8:$Q$26,"Sí")+SUMIFS(Ingresos!M$35:M$45,Ingresos!$P$35:$P$45,"Gravado",Ingresos!$R$35:$R$45,"Sí",Ingresos!$Q$35:$Q$45,"Sí")-Ingresos!M12-Ingresos!M39 -> 0 | O10: =SUMIFS(Ingresos!N$8:N$26,Ingresos!$P$8:$P$26,"Gravado",Ingresos!$R$8:$R$26,"Sí",Ingresos!$Q$8:$Q$26,"Sí")+SUMIFS(Ingresos!N$35:N$45,Ingresos!$P$35:$P$45,"Gravado",Ingresos!$R$35:$R$45,"Sí",Ingresos!$Q$35:$Q$45,"Sí")-Ingresos!N12-Ingresos!N39 -> 0 | P10: =SUM(D10:O10) -> 0
C11: Sueldo no Rem. (no prorrateo) | D11: =SUMIFS(Ingresos!C$8:C$26,Ingresos!$P$8:$P$26,"Gravado",Ingresos!$R$8:$R$26,"No",Ingresos!$Q$8:$Q$26,"No")+SUMIFS(Ingresos!C$35:C$45,Ingresos!$P$35:$P$45,"Gravado",Ingresos!$R$35:$R$45,"No",Ingresos!$Q$35:$Q$45,"No") -> 0 | E11: =SUMIFS(Ingresos!D$8:D$26,Ingresos!$P$8:$P$26,"Gravado",Ingresos!$R$8:$R$26,"No",Ingresos!$Q$8:$Q$26,"No")+SUMIFS(Ingresos!D$35:D$45,Ingresos!$P$35:$P$45,"Gravado",Ingresos!$R$35:$R$45,"No",Ingresos!$Q$35:$Q$45,"No") -> 0 | F11: =SUMIFS(Ingresos!E$8:E$26,Ingresos!$P$8:$P$26,"Gravado",Ingresos!$R$8:$R$26,"No",Ingresos!$Q$8:$Q$26,"No")+SUMIFS(Ingresos!E$35:E$45,Ingresos!$P$35:$P$45,"Gravado",Ingresos!$R$35:$R$45,"No",Ingresos!$Q$35:$Q$45,"No") -> 0 | G11: =SUMIFS(Ingresos!F$8:F$26,Ingresos!$P$8:$P$26,"Gravado",Ingresos!$R$8:$R$26,"No",Ingresos!$Q$8:$Q$26,"No")+SUMIFS(Ingresos!F$35:F$45,Ingresos!$P$35:$P$45,"Gravado",Ingresos!$R$35:$R$45,"No",Ingresos!$Q$35:$Q$45,"No") -> 0 | H11: =SUMIFS(Ingresos!G$8:G$26,Ingresos!$P$8:$P$26,"Gravado",Ingresos!$R$8:$R$26,"No",Ingresos!$Q$8:$Q$26,"No")+SUMIFS(Ingresos!G$35:G$45,Ingresos!$P$35:$P$45,"Gravado",Ingresos!$R$35:$R$45,"No",Ingresos!$Q$35:$Q$45,"No") -> 0 | I11: =SUMIFS(Ingresos!H$8:H$26,Ingresos!$P$8:$P$26,"Gravado",Ingresos!$R$8:$R$26,"No",Ingresos!$Q$8:$Q$26,"No")+SUMIFS(Ingresos!H$35:H$45,Ingresos!$P$35:$P$45,"Gravado",Ingresos!$R$35:$R$45,"No",Ingresos!$Q$35:$Q$45,"No") -> 0 | J11: =SUMIFS(Ingresos!I$8:I$26,Ingresos!$P$8:$P$26,"Gravado",Ingresos!$R$8:$R$26,"No",Ingresos!$Q$8:$Q$26,"No")+SUMIFS(Ingresos!I$35:I$45,Ingresos!$P$35:$P$45,"Gravado",Ingresos!$R$35:$R$45,"No",Ingresos!$Q$35:$Q$45,"No") -> 0 | K11: =SUMIFS(Ingresos!J$8:J$26,Ingresos!$P$8:$P$26,"Gravado",Ingresos!$R$8:$R$26,"No",Ingresos!$Q$8:$Q$26,"No")+SUMIFS(Ingresos!J$35:J$45,Ingresos!$P$35:$P$45,"Gravado",Ingresos!$R$35:$R$45,"No",Ingresos!$Q$35:$Q$45,"No") -> 0 | L11: =SUMIFS(Ingresos!K$8:K$26,Ingresos!$P$8:$P$26,"Gravado",Ingresos!$R$8:$R$26,"No",Ingresos!$Q$8:$Q$26,"No")+SUMIFS(Ingresos!K$35:K$45,Ingresos!$P$35:$P$45,"Gravado",Ingresos!$R$35:$R$45,"No",Ingresos!$Q$35:$Q$45,"No") -> 0 | M11: =SUMIFS(Ingresos!L$8:L$26,Ingresos!$P$8:$P$26,"Gravado",Ingresos!$R$8:$R$26,"No",Ingresos!$Q$8:$Q$26,"No")+SUMIFS(Ingresos!L$35:L$45,Ingresos!$P$35:$P$45,"Gravado",Ingresos!$R$35:$R$45,"No",Ingresos!$Q$35:$Q$45,"No") -> 0 | N11: =SUMIFS(Ingresos!M$8:M$26,Ingresos!$P$8:$P$26,"Gravado",Ingresos!$R$8:$R$26,"No",Ingresos!$Q$8:$Q$26,"No")+SUMIFS(Ingresos!M$35:M$45,Ingresos!$P$35:$P$45,"Gravado",Ingresos!$R$35:$R$45,"No",Ingresos!$Q$35:$Q$45,"No") -> 0 | O11: =SUMIFS(Ingresos!N$8:N$26,Ingresos!$P$8:$P$26,"Gravado",Ingresos!$R$8:$R$26,"No",Ingresos!$Q$8:$Q$26,"No")+SUMIFS(Ingresos!N$35:N$45,Ingresos!$P$35:$P$45,"Gravado",Ingresos!$R$35:$R$45,"No",Ingresos!$Q$35:$Q$45,"No") -> 0 | P11: 0
C12: Sueldo no Rem. (prorrateo) | D12: =SUMIFS(Ingresos!C$8:C$26,Ingresos!$P$8:$P$26,"Gravado",Ingresos!$R$8:$R$26,"No",Ingresos!$Q$8:$Q$26,"Sí")+SUMIFS(Ingresos!C$35:C$45,Ingresos!$P$35:$P$45,"Gravado",Ingresos!$R$35:$R$45,"No",Ingresos!$Q$35:$Q$45,"Sí") -> 0 | E12: =SUMIFS(Ingresos!D$8:D$26,Ingresos!$P$8:$P$26,"Gravado",Ingresos!$R$8:$R$26,"No",Ingresos!$Q$8:$Q$26,"Sí")+SUMIFS(Ingresos!D$35:D$45,Ingresos!$P$35:$P$45,"Gravado",Ingresos!$R$35:$R$45,"No",Ingresos!$Q$35:$Q$45,"Sí") -> 0 | F12: =SUMIFS(Ingresos!E$8:E$26,Ingresos!$P$8:$P$26,"Gravado",Ingresos!$R$8:$R$26,"No",Ingresos!$Q$8:$Q$26,"Sí")+SUMIFS(Ingresos!E$35:E$45,Ingresos!$P$35:$P$45,"Gravado",Ingresos!$R$35:$R$45,"No",Ingresos!$Q$35:$Q$45,"Sí") -> 0 | G12: =SUMIFS(Ingresos!F$8:F$26,Ingresos!$P$8:$P$26,"Gravado",Ingresos!$R$8:$R$26,"No",Ingresos!$Q$8:$Q$26,"Sí")+SUMIFS(Ingresos!F$35:F$45,Ingresos!$P$35:$P$45,"Gravado",Ingresos!$R$35:$R$45,"No",Ingresos!$Q$35:$Q$45,"Sí") -> 0 | H12: =SUMIFS(Ingresos!G$8:G$26,Ingresos!$P$8:$P$26,"Gravado",Ingresos!$R$8:$R$26,"No",Ingresos!$Q$8:$Q$26,"Sí")+SUMIFS(Ingresos!G$35:G$45,Ingresos!$P$35:$P$45,"Gravado",Ingresos!$R$35:$R$45,"No",Ingresos!$Q$35:$Q$45,"Sí") -> 0 | I12: =SUMIFS(Ingresos!H$8:H$26,Ingresos!$P$8:$P$26,"Gravado",Ingresos!$R$8:$R$26,"No",Ingresos!$Q$8:$Q$26,"Sí")+SUMIFS(Ingresos!H$35:H$45,Ingresos!$P$35:$P$45,"Gravado",Ingresos!$R$35:$R$45,"No",Ingresos!$Q$35:$Q$45,"Sí") -> 0 | J12: =SUMIFS(Ingresos!I$8:I$26,Ingresos!$P$8:$P$26,"Gravado",Ingresos!$R$8:$R$26,"No",Ingresos!$Q$8:$Q$26,"Sí")+SUMIFS(Ingresos!I$35:I$45,Ingresos!$P$35:$P$45,"Gravado",Ingresos!$R$35:$R$45,"No",Ingresos!$Q$35:$Q$45,"Sí") -> 0 | K12: =SUMIFS(Ingresos!J$8:J$26,Ingresos!$P$8:$P$26,"Gravado",Ingresos!$R$8:$R$26,"No",Ingresos!$Q$8:$Q$26,"Sí")+SUMIFS(Ingresos!J$35:J$45,Ingresos!$P$35:$P$45,"Gravado",Ingresos!$R$35:$R$45,"No",Ingresos!$Q$35:$Q$45,"Sí") -> 0 | L12: =SUMIFS(Ingresos!K$8:K$26,Ingresos!$P$8:$P$26,"Gravado",Ingresos!$R$8:$R$26,"No",Ingresos!$Q$8:$Q$26,"Sí")+SUMIFS(Ingresos!K$35:K$45,Ingresos!$P$35:$P$45,"Gravado",Ingresos!$R$35:$R$45,"No",Ingresos!$Q$35:$Q$45,"Sí") -> 0 | M12: =SUMIFS(Ingresos!L$8:L$26,Ingresos!$P$8:$P$26,"Gravado",Ingresos!$R$8:$R$26,"No",Ingresos!$Q$8:$Q$26,"Sí")+SUMIFS(Ingresos!L$35:L$45,Ingresos!$P$35:$P$45,"Gravado",Ingresos!$R$35:$R$45,"No",Ingresos!$Q$35:$Q$45,"Sí") -> 0 | N12: =SUMIFS(Ingresos!M$8:M$26,Ingresos!$P$8:$P$26,"Gravado",Ingresos!$R$8:$R$26,"No",Ingresos!$Q$8:$Q$26,"Sí")+SUMIFS(Ingresos!M$35:M$45,Ingresos!$P$35:$P$45,"Gravado",Ingresos!$R$35:$R$45,"No",Ingresos!$Q$35:$Q$45,"Sí") -> 0 | O12: =SUMIFS(Ingresos!N$8:N$26,Ingresos!$P$8:$P$26,"Gravado",Ingresos!$R$8:$R$26,"No",Ingresos!$Q$8:$Q$26,"Sí")+SUMIFS(Ingresos!N$35:N$45,Ingresos!$P$35:$P$45,"Gravado",Ingresos!$R$35:$R$45,"No",Ingresos!$Q$35:$Q$45,"Sí") -> 0 | P12: 0
C13: Gravado total
C15: No gravado
C16: Sueldo Rem. (no prorrateo) | D16: =SUMIFS(Ingresos!C$8:C$26,Ingresos!$P$8:$P$26,"No gravado",Ingresos!$R$8:$R$26,"Sí",Ingresos!$Q$8:$Q$26,"No")+SUMIFS(Ingresos!C$35:C$45,Ingresos!$P$35:$P$45,"No gravado",Ingresos!$R$35:$R$45,"Sí",Ingresos!$Q$35:$Q$45,"No") -> 0 | E16: =SUMIFS(Ingresos!D$8:D$26,Ingresos!$P$8:$P$26,"No gravado",Ingresos!$R$8:$R$26,"Sí",Ingresos!$Q$8:$Q$26,"No") -> 0 | F16: =SUMIFS(Ingresos!E$8:E$26,Ingresos!$P$8:$P$26,"No gravado",Ingresos!$R$8:$R$26,"Sí",Ingresos!$Q$8:$Q$26,"No") -> 0 | G16: =SUMIFS(Ingresos!F$8:F$26,Ingresos!$P$8:$P$26,"No gravado",Ingresos!$R$8:$R$26,"Sí",Ingresos!$Q$8:$Q$26,"No") -> 0 | H16: =SUMIFS(Ingresos!G$8:G$26,Ingresos!$P$8:$P$26,"No gravado",Ingresos!$R$8:$R$26,"Sí",Ingresos!$Q$8:$Q$26,"No") -> 0 | I16: =SUMIFS(Ingresos!H$8:H$26,Ingresos!$P$8:$P$26,"No gravado",Ingresos!$R$8:$R$26,"Sí",Ingresos!$Q$8:$Q$26,"No") -> 0 | J16: =SUMIFS(Ingresos!I$8:I$26,Ingresos!$P$8:$P$26,"No gravado",Ingresos!$R$8:$R$26,"Sí",Ingresos!$Q$8:$Q$26,"No") -> 0 | K16: =SUMIFS(Ingresos!J$8:J$26,Ingresos!$P$8:$P$26,"No gravado",Ingresos!$R$8:$R$26,"Sí",Ingresos!$Q$8:$Q$26,"No") -> 0 | L16: =SUMIFS(Ingresos!K$8:K$26,Ingresos!$P$8:$P$26,"No gravado",Ingresos!$R$8:$R$26,"Sí",Ingresos!$Q$8:$Q$26,"No") -> 0 | M16: =SUMIFS(Ingresos!L$8:L$26,Ingresos!$P$8:$P$26,"No gravado",Ingresos!$R$8:$R$26,"Sí",Ingresos!$Q$8:$Q$26,"No") -> 0 | N16: =SUMIFS(Ingresos!M$8:M$26,Ingresos!$P$8:$P$26,"No gravado",Ingresos!$R$8:$R$26,"Sí",Ingresos!$Q$8:$Q$26,"No") -> 0 | O16: =SUMIFS(Ingresos!N$8:N$26,Ingresos!$P$8:$P$26,"No gravado",Ingresos!$R$8:$R$26,"Sí",Ingresos!$Q$8:$Q$26,"No") -> 0 | P16: =SUM(D16:O16) -> 0
C17: Sueldo Rem. (prorrateo) | D17: =SUMIFS(Ingresos!C$8:C$26,Ingresos!$P$8:$P$26,"No gravado",Ingresos!$R$8:$R$26,"Sí",Ingresos!$Q$8:$Q$26,"Sí")+SUMIFS(Ingresos!C$35:C$45,Ingresos!$P$35:$P$45,"No gravado",Ingresos!$R$35:$R$45,"Sí",Ingresos!$Q$35:$Q$45,"Sí") -> 0 | E17: =SUMIFS(Ingresos!D$8:D$26,Ingresos!$P$8:$P$26,"No gravado",Ingresos!$R$8:$R$26,"Sí",Ingresos!$Q$8:$Q$26,"Sí")+SUMIFS(Ingresos!D$35:D$45,Ingresos!$P$35:$P$45,"No gravado",Ingresos!$R$35:$R$45,"Sí",Ingresos!$Q$35:$Q$45,"Sí") -> 0 | F17: =SUMIFS(Ingresos!E$8:E$26,Ingresos!$P$8:$P$26,"No gravado",Ingresos!$R$8:$R$26,"Sí",Ingresos!$Q$8:$Q$26,"Sí")+SUMIFS(Ingresos!E$35:E$45,Ingresos!$P$35:$P$45,"No gravado",Ingresos!$R$35:$R$45,"Sí",Ingresos!$Q$35:$Q$45,"Sí") -> 0 | G17: =SUMIFS(Ingresos!F$8:F$26,Ingresos!$P$8:$P$26,"No gravado",Ingresos!$R$8:$R$26,"Sí",Ingresos!$Q$8:$Q$26,"Sí")+SUMIFS(Ingresos!F$35:F$45,Ingresos!$P$35:$P$45,"No gravado",Ingresos!$R$35:$R$45,"Sí",Ingresos!$Q$35:$Q$45,"Sí") -> 0 | H17: =SUMIFS(Ingresos!G$8:G$26,Ingresos!$P$8:$P$26,"No gravado",Ingresos!$R$8:$R$26,"Sí",Ingresos!$Q$8:$Q$26,"Sí")+SUMIFS(Ingresos!G$35:G$45,Ingresos!$P$35:$P$45,"No gravado",Ingresos!$R$35:$R$45,"Sí",Ingresos!$Q$35:$Q$45,"Sí") -> 0 | I17: =SUMIFS(Ingresos!H$8:H$26,Ingresos!$P$8:$P$26,"No gravado",Ingresos!$R$8:$R$26,"Sí",Ingresos!$Q$8:$Q$26,"Sí")+SUMIFS(Ingresos!H$35:H$45,Ingresos!$P$35:$P$45,"No gravado",Ingresos!$R$35:$R$45,"Sí",Ingresos!$Q$35:$Q$45,"Sí") -> 0 | J17: =SUMIFS(Ingresos!I$8:I$26,Ingresos!$P$8:$P$26,"No gravado",Ingresos!$R$8:$R$26,"Sí",Ingresos!$Q$8:$Q$26,"Sí")+SUMIFS(Ingresos!I$35:I$45,Ingresos!$P$35:$P$45,"No gravado",Ingresos!$R$35:$R$45,"Sí",Ingresos!$Q$35:$Q$45,"Sí") -> 0 | K17: =SUMIFS(Ingresos!J$8:J$26,Ingresos!$P$8:$P$26,"No gravado",Ingresos!$R$8:$R$26,"Sí",Ingresos!$Q$8:$Q$26,"Sí")+SUMIFS(Ingresos!J$35:J$45,Ingresos!$P$35:$P$45,"No gravado",Ingresos!$R$35:$R$45,"Sí",Ingresos!$Q$35:$Q$45,"Sí") -> 0 | L17: =SUMIFS(Ingresos!K$8:K$26,Ingresos!$P$8:$P$26,"No gravado",Ingresos!$R$8:$R$26,"Sí",Ingresos!$Q$8:$Q$26,"Sí")+SUMIFS(Ingresos!K$35:K$45,Ingresos!$P$35:$P$45,"No gravado",Ingresos!$R$35:$R$45,"Sí",Ingresos!$Q$35:$Q$45,"Sí") -> 0 | M17: =SUMIFS(Ingresos!L$8:L$26,Ingresos!$P$8:$P$26,"No gravado",Ingresos!$R$8:$R$26,"Sí",Ingresos!$Q$8:$Q$26,"Sí")+SUMIFS(Ingresos!L$35:L$45,Ingresos!$P$35:$P$45,"No gravado",Ingresos!$R$35:$R$45,"Sí",Ingresos!$Q$35:$Q$45,"Sí") -> 0 | N17: =SUMIFS(Ingresos!M$8:M$26,Ingresos!$P$8:$P$26,"No gravado",Ingresos!$R$8:$R$26,"Sí",Ingresos!$Q$8:$Q$26,"Sí")+SUMIFS(Ingresos!M$35:M$45,Ingresos!$P$35:$P$45,"No gravado",Ingresos!$R$35:$R$45,"Sí",Ingresos!$Q$35:$Q$45,"Sí") -> 0 | O17: =SUMIFS(Ingresos!N$8:N$26,Ingresos!$P$8:$P$26,"No gravado",Ingresos!$R$8:$R$26,"Sí",Ingresos!$Q$8:$Q$26,"Sí")+SUMIFS(Ingresos!N$35:N$45,Ingresos!$P$35:$P$45,"No gravado",Ingresos!$R$35:$R$45,"Sí",Ingresos!$Q$35:$Q$45,"Sí") -> 0 | P17: 0
C18: Sueldo no Rem. (no prorrateo) | D18: =SUMIFS(Ingresos!C$8:C$26,Ingresos!$P$8:$P$26,"No gravado",Ingresos!$R$8:$R$26,"No",Ingresos!$Q$8:$Q$26,"No")+SUMIFS(Ingresos!C$35:C$45,Ingresos!$P$35:$P$45,"No gravado",Ingresos!$R$35:$R$45,"No",Ingresos!$Q$35:$Q$45,"No") -> 0 | E18: =SUMIFS(Ingresos!D$8:D$26,Ingresos!$P$8:$P$26,"No gravado",Ingresos!$R$8:$R$26,"No",Ingresos!$Q$8:$Q$26,"No")+SUMIFS(Ingresos!D$35:D$45,Ingresos!$P$35:$P$45,"No gravado",Ingresos!$R$35:$R$45,"No",Ingresos!$Q$35:$Q$45,"No") -> 0 | F18: =SUMIFS(Ingresos!E$8:E$26,Ingresos!$P$8:$P$26,"No gravado",Ingresos!$R$8:$R$26,"No",Ingresos!$Q$8:$Q$26,"No")+SUMIFS(Ingresos!E$35:E$45,Ingresos!$P$35:$P$45,"No gravado",Ingresos!$R$35:$R$45,"No",Ingresos!$Q$35:$Q$45,"No") -> 0 | G18: =SUMIFS(Ingresos!F$8:F$26,Ingresos!$P$8:$P$26,"No gravado",Ingresos!$R$8:$R$26,"No",Ingresos!$Q$8:$Q$26,"No")+SUMIFS(Ingresos!F$35:F$45,Ingresos!$P$35:$P$45,"No gravado",Ingresos!$R$35:$R$45,"No",Ingresos!$Q$35:$Q$45,"No") -> 0 | H18: =SUMIFS(Ingresos!G$8:G$26,Ingresos!$P$8:$P$26,"No gravado",Ingresos!$R$8:$R$26,"No",Ingresos!$Q$8:$Q$26,"No")+SUMIFS(Ingresos!G$35:G$45,Ingresos!$P$35:$P$45,"No gravado",Ingresos!$R$35:$R$45,"No",Ingresos!$Q$35:$Q$45,"No") -> 0 | I18: =SUMIFS(Ingresos!H$8:H$26,Ingresos!$P$8:$P$26,"No gravado",Ingresos!$R$8:$R$26,"No",Ingresos!$Q$8:$Q$26,"No")+SUMIFS(Ingresos!H$35:H$45,Ingresos!$P$35:$P$45,"No gravado",Ingresos!$R$35:$R$45,"No",Ingresos!$Q$35:$Q$45,"No") -> 0 | J18: =SUMIFS(Ingresos!I$8:I$26,Ingresos!$P$8:$P$26,"No gravado",Ingresos!$R$8:$R$26,"No",Ingresos!$Q$8:$Q$26,"No")+SUMIFS(Ingresos!I$35:I$45,Ingresos!$P$35:$P$45,"No gravado",Ingresos!$R$35:$R$45,"No",Ingresos!$Q$35:$Q$45,"No") -> 0 | K18: =SUMIFS(Ingresos!J$8:J$26,Ingresos!$P$8:$P$26,"No gravado",Ingresos!$R$8:$R$26,"No",Ingresos!$Q$8:$Q$26,"No")+SUMIFS(Ingresos!J$35:J$45,Ingresos!$P$35:$P$45,"No gravado",Ingresos!$R$35:$R$45,"No",Ingresos!$Q$35:$Q$45,"No") -> 0 | L18: =SUMIFS(Ingresos!K$8:K$26,Ingresos!$P$8:$P$26,"No gravado",Ingresos!$R$8:$R$26,"No",Ingresos!$Q$8:$Q$26,"No")+SUMIFS(Ingresos!K$35:K$45,Ingresos!$P$35:$P$45,"No gravado",Ingresos!$R$35:$R$45,"No",Ingresos!$Q$35:$Q$45,"No") -> 0 | M18: =SUMIFS(Ingresos!L$8:L$26,Ingresos!$P$8:$P$26,"No gravado",Ingresos!$R$8:$R$26,"No",Ingresos!$Q$8:$Q$26,"No")+SUMIFS(Ingresos!L$35:L$45,Ingresos!$P$35:$P$45,"No gravado",Ingresos!$R$35:$R$45,"No",Ingresos!$Q$35:$Q$45,"No") -> 0 | N18: =SUMIFS(Ingresos!M$8:M$26,Ingresos!$P$8:$P$26,"No gravado",Ingresos!$R$8:$R$26,"No",Ingresos!$Q$8:$Q$26,"No")+SUMIFS(Ingresos!M$35:M$45,Ingresos!$P$35:$P$45,"No gravado",Ingresos!$R$35:$R$45,"No",Ingresos!$Q$35:$Q$45,"No") -> 0 | O18: =SUMIFS(Ingresos!N$8:N$26,Ingresos!$P$8:$P$26,"No gravado",Ingresos!$R$8:$R$26,"No",Ingresos!$Q$8:$Q$26,"No")+SUMIFS(Ingresos!N$35:N$45,Ingresos!$P$35:$P$45,"No gravado",Ingresos!$R$35:$R$45,"No",Ingresos!$Q$35:$Q$45,"No") -> 0 | P18: 0
C19: Sueldo no Rem. (prorrateo) | D19: =SUMIFS(Ingresos!C$8:C$26,Ingresos!$P$8:$P$26,"No gravado",Ingresos!$R$8:$R$26,"No",Ingresos!$Q$8:$Q$26,"Sí")+SUMIFS(Ingresos!C$35:C$45,Ingresos!$P$35:$P$45,"No gravado",Ingresos!$R$35:$R$45,"No",Ingresos!$Q$35:$Q$45,"Sí") -> 0 | E19: =SUMIFS(Ingresos!D$8:D$26,Ingresos!$P$8:$P$26,"No gravado",Ingresos!$R$8:$R$26,"No",Ingresos!$Q$8:$Q$26,"Sí")+SUMIFS(Ingresos!D$35:D$45,Ingresos!$P$35:$P$45,"No gravado",Ingresos!$R$35:$R$45,"No",Ingresos!$Q$35:$Q$45,"Sí") -> 0 | F19: =SUMIFS(Ingresos!E$8:E$26,Ingresos!$P$8:$P$26,"No gravado",Ingresos!$R$8:$R$26,"No",Ingresos!$Q$8:$Q$26,"Sí")+SUMIFS(Ingresos!E$35:E$45,Ingresos!$P$35:$P$45,"No gravado",Ingresos!$R$35:$R$45,"No",Ingresos!$Q$35:$Q$45,"Sí") -> 0 | G19: =SUMIFS(Ingresos!F$8:F$26,Ingresos!$P$8:$P$26,"No gravado",Ingresos!$R$8:$R$26,"No",Ingresos!$Q$8:$Q$26,"Sí")+SUMIFS(Ingresos!F$35:F$45,Ingresos!$P$35:$P$45,"No gravado",Ingresos!$R$35:$R$45,"No",Ingresos!$Q$35:$Q$45,"Sí") -> 0 | H19: =SUMIFS(Ingresos!G$8:G$26,Ingresos!$P$8:$P$26,"No gravado",Ingresos!$R$8:$R$26,"No",Ingresos!$Q$8:$Q$26,"Sí")+SUMIFS(Ingresos!G$35:G$45,Ingresos!$P$35:$P$45,"No gravado",Ingresos!$R$35:$R$45,"No",Ingresos!$Q$35:$Q$45,"Sí") -> 0 | I19: =SUMIFS(Ingresos!H$8:H$26,Ingresos!$P$8:$P$26,"No gravado",Ingresos!$R$8:$R$26,"No",Ingresos!$Q$8:$Q$26,"Sí")+SUMIFS(Ingresos!H$35:H$45,Ingresos!$P$35:$P$45,"No gravado",Ingresos!$R$35:$R$45,"No",Ingresos!$Q$35:$Q$45,"Sí") -> 0 | J19: =SUMIFS(Ingresos!I$8:I$26,Ingresos!$P$8:$P$26,"No gravado",Ingresos!$R$8:$R$26,"No",Ingresos!$Q$8:$Q$26,"Sí")+SUMIFS(Ingresos!I$35:I$45,Ingresos!$P$35:$P$45,"No gravado",Ingresos!$R$35:$R$45,"No",Ingresos!$Q$35:$Q$45,"Sí") -> 0 | K19: =SUMIFS(Ingresos!J$8:J$26,Ingresos!$P$8:$P$26,"No gravado",Ingresos!$R$8:$R$26,"No",Ingresos!$Q$8:$Q$26,"Sí")+SUMIFS(Ingresos!J$35:J$45,Ingresos!$P$35:$P$45,"No gravado",Ingresos!$R$35:$R$45,"No",Ingresos!$Q$35:$Q$45,"Sí") -> 0 | L19: =SUMIFS(Ingresos!K$8:K$26,Ingresos!$P$8:$P$26,"No gravado",Ingresos!$R$8:$R$26,"No",Ingresos!$Q$8:$Q$26,"Sí")+SUMIFS(Ingresos!K$35:K$45,Ingresos!$P$35:$P$45,"No gravado",Ingresos!$R$35:$R$45,"No",Ingresos!$Q$35:$Q$45,"Sí") -> 0 | M19: =SUMIFS(Ingresos!L$8:L$26,Ingresos!$P$8:$P$26,"No gravado",Ingresos!$R$8:$R$26,"No",Ingresos!$Q$8:$Q$26,"Sí")+SUMIFS(Ingresos!L$35:L$45,Ingresos!$P$35:$P$45,"No gravado",Ingresos!$R$35:$R$45,"No",Ingresos!$Q$35:$Q$45,"Sí") -> 0 | N19: =SUMIFS(Ingresos!M$8:M$26,Ingresos!$P$8:$P$26,"No gravado",Ingresos!$R$8:$R$26,"No",Ingresos!$Q$8:$Q$26,"Sí")+SUMIFS(Ingresos!M$35:M$45,Ingresos!$P$35:$P$45,"No gravado",Ingresos!$R$35:$R$45,"No",Ingresos!$Q$35:$Q$45,"Sí") -> 0 | O19: =SUMIFS(Ingresos!N$8:N$26,Ingresos!$P$8:$P$26,"No gravado",Ingresos!$R$8:$R$26,"No",Ingresos!$Q$8:$Q$26,"Sí")+SUMIFS(Ingresos!N$35:N$45,Ingresos!$P$35:$P$45,"No gravado",Ingresos!$R$35:$R$45,"No",Ingresos!$Q$35:$Q$45,"Sí") -> 0 | P19: 0
C20: No gravado total
C22: Exento
C23: Sueldo Rem. (no prorrateo) | D23: =SUMIFS(Ingresos!C$8:C$26,Ingresos!$P$8:$P$26,"Exento",Ingresos!$R$8:$R$26,"Sí",Ingresos!$Q$8:$Q$26,"No")+SUMIFS(Ingresos!C$35:C$45,Ingresos!$P$35:$P$45,"Exento",Ingresos!$R$35:$R$45,"Sí",Ingresos!$Q$35:$Q$45,"No") -> 0 | E23: =SUMIFS(Ingresos!D$8:D$26,Ingresos!$P$8:$P$26,"Exento",Ingresos!$R$8:$R$26,"Sí",Ingresos!$Q$8:$Q$26,"No")+SUMIFS(Ingresos!D$35:D$45,Ingresos!$P$35:$P$45,"Exento",Ingresos!$R$35:$R$45,"Sí",Ingresos!$Q$35:$Q$45,"No") -> 0 | F23: =SUMIFS(Ingresos!E$8:E$26,Ingresos!$P$8:$P$26,"Exento",Ingresos!$R$8:$R$26,"Sí",Ingresos!$Q$8:$Q$26,"No")+SUMIFS(Ingresos!E$35:E$45,Ingresos!$P$35:$P$45,"Exento",Ingresos!$R$35:$R$45,"Sí",Ingresos!$Q$35:$Q$45,"No") -> 0 | G23: =SUMIFS(Ingresos!F$8:F$26,Ingresos!$P$8:$P$26,"Exento",Ingresos!$R$8:$R$26,"Sí",Ingresos!$Q$8:$Q$26,"No")+SUMIFS(Ingresos!F$35:F$45,Ingresos!$P$35:$P$45,"Exento",Ingresos!$R$35:$R$45,"Sí",Ingresos!$Q$35:$Q$45,"No") -> 0 | H23: =SUMIFS(Ingresos!G$8:G$26,Ingresos!$P$8:$P$26,"Exento",Ingresos!$R$8:$R$26,"Sí",Ingresos!$Q$8:$Q$26,"No")+SUMIFS(Ingresos!G$35:G$45,Ingresos!$P$35:$P$45,"Exento",Ingresos!$R$35:$R$45,"Sí",Ingresos!$Q$35:$Q$45,"No") -> 0 | I23: =SUMIFS(Ingresos!H$8:H$26,Ingresos!$P$8:$P$26,"Exento",Ingresos!$R$8:$R$26,"Sí",Ingresos!$Q$8:$Q$26,"No")+SUMIFS(Ingresos!H$35:H$45,Ingresos!$P$35:$P$45,"Exento",Ingresos!$R$35:$R$45,"Sí",Ingresos!$Q$35:$Q$45,"No") -> 0 | J23: =SUMIFS(Ingresos!I$8:I$26,Ingresos!$P$8:$P$26,"Exento",Ingresos!$R$8:$R$26,"Sí",Ingresos!$Q$8:$Q$26,"No")+SUMIFS(Ingresos!I$35:I$45,Ingresos!$P$35:$P$45,"Exento",Ingresos!$R$35:$R$45,"Sí",Ingresos!$Q$35:$Q$45,"No") -> 0 | K23: =SUMIFS(Ingresos!J$8:J$26,Ingresos!$P$8:$P$26,"Exento",Ingresos!$R$8:$R$26,"Sí",Ingresos!$Q$8:$Q$26,"No")+SUMIFS(Ingresos!J$35:J$45,Ingresos!$P$35:$P$45,"Exento",Ingresos!$R$35:$R$45,"Sí",Ingresos!$Q$35:$Q$45,"No") -> 0 | L23: =SUMIFS(Ingresos!K$8:K$26,Ingresos!$P$8:$P$26,"Exento",Ingresos!$R$8:$R$26,"Sí",Ingresos!$Q$8:$Q$26,"No")+SUMIFS(Ingresos!K$35:K$45,Ingresos!$P$35:$P$45,"Exento",Ingresos!$R$35:$R$45,"Sí",Ingresos!$Q$35:$Q$45,"No") -> 0 | M23: =SUMIFS(Ingresos!L$8:L$26,Ingresos!$P$8:$P$26,"Exento",Ingresos!$R$8:$R$26,"Sí",Ingresos!$Q$8:$Q$26,"No")+SUMIFS(Ingresos!L$35:L$45,Ingresos!$P$35:$P$45,"Exento",Ingresos!$R$35:$R$45,"Sí",Ingresos!$Q$35:$Q$45,"No") -> 0 | N23: =SUMIFS(Ingresos!M$8:M$26,Ingresos!$P$8:$P$26,"Exento",Ingresos!$R$8:$R$26,"Sí",Ingresos!$Q$8:$Q$26,"No")+SUMIFS(Ingresos!M$35:M$45,Ingresos!$P$35:$P$45,"Exento",Ingresos!$R$35:$R$45,"Sí",Ingresos!$Q$35:$Q$45,"No") -> 0 | O23: =SUMIFS(Ingresos!N$8:N$26,Ingresos!$P$8:$P$26,"Exento",Ingresos!$R$8:$R$26,"Sí",Ingresos!$Q$8:$Q$26,"No")+SUMIFS(Ingresos!N$35:N$45,Ingresos!$P$35:$P$45,"Exento",Ingresos!$R$35:$R$45,"Sí",Ingresos!$Q$35:$Q$45,"No") -> 0 | P23: =SUM(D23:O23) -> 0
C24: Sueldo Rem. (prorrateo) | D24: =SUMIFS(Ingresos!C$8:C$26,Ingresos!$P$8:$P$26,"Exento",Ingresos!$R$8:$R$26,"Sí",Ingresos!$Q$8:$Q$26,"Sí")+SUMIFS(Ingresos!C$35:C$45,Ingresos!$P$35:$P$45,"Exento",Ingresos!$R$35:$R$45,"Sí",Ingresos!$Q$35:$Q$45,"Sí") -> 0 | E24: =SUMIFS(Ingresos!D$8:D$26,Ingresos!$P$8:$P$26,"Exento",Ingresos!$R$8:$R$26,"Sí",Ingresos!$Q$8:$Q$26,"Sí")+SUMIFS(Ingresos!D$35:D$45,Ingresos!$P$35:$P$45,"Exento",Ingresos!$R$35:$R$45,"Sí",Ingresos!$Q$35:$Q$45,"Sí") -> 0 | F24: =SUMIFS(Ingresos!E$8:E$26,Ingresos!$P$8:$P$26,"Exento",Ingresos!$R$8:$R$26,"Sí",Ingresos!$Q$8:$Q$26,"Sí")+SUMIFS(Ingresos!E$35:E$45,Ingresos!$P$35:$P$45,"Exento",Ingresos!$R$35:$R$45,"Sí",Ingresos!$Q$35:$Q$45,"Sí") -> 0 | G24: =SUMIFS(Ingresos!F$8:F$26,Ingresos!$P$8:$P$26,"Exento",Ingresos!$R$8:$R$26,"Sí",Ingresos!$Q$8:$Q$26,"Sí")+SUMIFS(Ingresos!F$35:F$45,Ingresos!$P$35:$P$45,"Exento",Ingresos!$R$35:$R$45,"Sí",Ingresos!$Q$35:$Q$45,"Sí") -> 0 | H24: =SUMIFS(Ingresos!G$8:G$26,Ingresos!$P$8:$P$26,"Exento",Ingresos!$R$8:$R$26,"Sí",Ingresos!$Q$8:$Q$26,"Sí")+SUMIFS(Ingresos!G$35:G$45,Ingresos!$P$35:$P$45,"Exento",Ingresos!$R$35:$R$45,"Sí",Ingresos!$Q$35:$Q$45,"Sí") -> 0 | I24: =SUMIFS(Ingresos!H$8:H$26,Ingresos!$P$8:$P$26,"Exento",Ingresos!$R$8:$R$26,"Sí",Ingresos!$Q$8:$Q$26,"Sí")+SUMIFS(Ingresos!H$35:H$45,Ingresos!$P$35:$P$45,"Exento",Ingresos!$R$35:$R$45,"Sí",Ingresos!$Q$35:$Q$45,"Sí") -> 0 | J24: =SUMIFS(Ingresos!I$8:I$26,Ingresos!$P$8:$P$26,"Exento",Ingresos!$R$8:$R$26,"Sí",Ingresos!$Q$8:$Q$26,"Sí")+SUMIFS(Ingresos!I$35:I$45,Ingresos!$P$35:$P$45,"Exento",Ingresos!$R$35:$R$45,"Sí",Ingresos!$Q$35:$Q$45,"Sí") -> 0 | K24: =SUMIFS(Ingresos!J$8:J$26,Ingresos!$P$8:$P$26,"Exento",Ingresos!$R$8:$R$26,"Sí",Ingresos!$Q$8:$Q$26,"Sí")+SUMIFS(Ingresos!J$35:J$45,Ingresos!$P$35:$P$45,"Exento",Ingresos!$R$35:$R$45,"Sí",Ingresos!$Q$35:$Q$45,"Sí") -> 0 | L24: =SUMIFS(Ingresos!K$8:K$26,Ingresos!$P$8:$P$26,"Exento",Ingresos!$R$8:$R$26,"Sí",Ingresos!$Q$8:$Q$26,"Sí")+SUMIFS(Ingresos!K$35:K$45,Ingresos!$P$35:$P$45,"Exento",Ingresos!$R$35:$R$45,"Sí",Ingresos!$Q$35:$Q$45,"Sí") -> 0 | M24: =SUMIFS(Ingresos!L$8:L$26,Ingresos!$P$8:$P$26,"Exento",Ingresos!$R$8:$R$26,"Sí",Ingresos!$Q$8:$Q$26,"Sí")+SUMIFS(Ingresos!L$35:L$45,Ingresos!$P$35:$P$45,"Exento",Ingresos!$R$35:$R$45,"Sí",Ingresos!$Q$35:$Q$45,"Sí") -> 0 | N24: =SUMIFS(Ingresos!M$8:M$26,Ingresos!$P$8:$P$26,"Exento",Ingresos!$R$8:$R$26,"Sí",Ingresos!$Q$8:$Q$26,"Sí")+SUMIFS(Ingresos!M$35:M$45,Ingresos!$P$35:$P$45,"Exento",Ingresos!$R$35:$R$45,"Sí",Ingresos!$Q$35:$Q$45,"Sí") -> 0 | O24: =SUMIFS(Ingresos!N$8:N$26,Ingresos!$P$8:$P$26,"Exento",Ingresos!$R$8:$R$26,"Sí",Ingresos!$Q$8:$Q$26,"Sí")+SUMIFS(Ingresos!N$35:N$45,Ingresos!$P$35:$P$45,"Exento",Ingresos!$R$35:$R$45,"Sí",Ingresos!$Q$35:$Q$45,"Sí") -> 0 | P24: 0
C25: Sueldo no Rem. (no prorrateo) | D25: =SUMIFS(Ingresos!C$8:C$26,Ingresos!$P$8:$P$26,"Exento",Ingresos!$R$8:$R$26,"No",Ingresos!$Q$8:$Q$26,"No")+SUMIFS(Ingresos!C$35:C$45,Ingresos!$P$35:$P$45,"Exento",Ingresos!$R$35:$R$45,"No",Ingresos!$Q$35:$Q$45,"No") -> 0 | E25: =SUMIFS(Ingresos!D$8:D$26,Ingresos!$P$8:$P$26,"Exento",Ingresos!$R$8:$R$26,"No",Ingresos!$Q$8:$Q$26,"No")+SUMIFS(Ingresos!D$35:D$45,Ingresos!$P$35:$P$45,"Exento",Ingresos!$R$35:$R$45,"No",Ingresos!$Q$35:$Q$45,"No") -> 0 | F25: =SUMIFS(Ingresos!E$8:E$26,Ingresos!$P$8:$P$26,"Exento",Ingresos!$R$8:$R$26,"No",Ingresos!$Q$8:$Q$26,"No")+SUMIFS(Ingresos!E$35:E$45,Ingresos!$P$35:$P$45,"Exento",Ingresos!$R$35:$R$45,"No",Ingresos!$Q$35:$Q$45,"No") -> 0 | G25: =SUMIFS(Ingresos!F$8:F$26,Ingresos!$P$8:$P$26,"Exento",Ingresos!$R$8:$R$26,"No",Ingresos!$Q$8:$Q$26,"No")+SUMIFS(Ingresos!F$35:F$45,Ingresos!$P$35:$P$45,"Exento",Ingresos!$R$35:$R$45,"No",Ingresos!$Q$35:$Q$45,"No") -> 0 | H25: =SUMIFS(Ingresos!G$8:G$26,Ingresos!$P$8:$P$26,"Exento",Ingresos!$R$8:$R$26,"No",Ingresos!$Q$8:$Q$26,"No")+SUMIFS(Ingresos!G$35:G$45,Ingresos!$P$35:$P$45,"Exento",Ingresos!$R$35:$R$45,"No",Ingresos!$Q$35:$Q$45,"No") -> 0 | I25: =SUMIFS(Ingresos!H$8:H$26,Ingresos!$P$8:$P$26,"Exento",Ingresos!$R$8:$R$26,"No",Ingresos!$Q$8:$Q$26,"No")+SUMIFS(Ingresos!H$35:H$45,Ingresos!$P$35:$P$45,"Exento",Ingresos!$R$35:$R$45,"No",Ingresos!$Q$35:$Q$45,"No") -> 0 | J25: =SUMIFS(Ingresos!I$8:I$26,Ingresos!$P$8:$P$26,"Exento",Ingresos!$R$8:$R$26,"No",Ingresos!$Q$8:$Q$26,"No")+SUMIFS(Ingresos!I$35:I$45,Ingresos!$P$35:$P$45,"Exento",Ingresos!$R$35:$R$45,"No",Ingresos!$Q$35:$Q$45,"No") -> 0 | K25: =SUMIFS(Ingresos!J$8:J$26,Ingresos!$P$8:$P$26,"Exento",Ingresos!$R$8:$R$26,"No",Ingresos!$Q$8:$Q$26,"No")+SUMIFS(Ingresos!J$35:J$45,Ingresos!$P$35:$P$45,"Exento",Ingresos!$R$35:$R$45,"No",Ingresos!$Q$35:$Q$45,"No") -> 0 | L25: =SUMIFS(Ingresos!K$8:K$26,Ingresos!$P$8:$P$26,"Exento",Ingresos!$R$8:$R$26,"No",Ingresos!$Q$8:$Q$26,"No")+SUMIFS(Ingresos!K$35:K$45,Ingresos!$P$35:$P$45,"Exento",Ingresos!$R$35:$R$45,"No",Ingresos!$Q$35:$Q$45,"No") -> 0 | M25: =SUMIFS(Ingresos!L$8:L$26,Ingresos!$P$8:$P$26,"Exento",Ingresos!$R$8:$R$26,"No",Ingresos!$Q$8:$Q$26,"No")+SUMIFS(Ingresos!L$35:L$45,Ingresos!$P$35:$P$45,"Exento",Ingresos!$R$35:$R$45,"No",Ingresos!$Q$35:$Q$45,"No") -> 0 | N25: =SUMIFS(Ingresos!M$8:M$26,Ingresos!$P$8:$P$26,"Exento",Ingresos!$R$8:$R$26,"No",Ingresos!$Q$8:$Q$26,"No")+SUMIFS(Ingresos!M$35:M$45,Ingresos!$P$35:$P$45,"Exento",Ingresos!$R$35:$R$45,"No",Ingresos!$Q$35:$Q$45,"No") -> 0 | O25: =SUMIFS(Ingresos!N$8:N$26,Ingresos!$P$8:$P$26,"Exento",Ingresos!$R$8:$R$26,"No",Ingresos!$Q$8:$Q$26,"No")+SUMIFS(Ingresos!N$35:N$45,Ingresos!$P$35:$P$45,"Exento",Ingresos!$R$35:$R$45,"No",Ingresos!$Q$35:$Q$45,"No") -> 0 | P25: 0
C26: Sueldo no Rem. (prorrateo) | D26: =SUMIFS(Ingresos!C$8:C$26,Ingresos!$P$8:$P$26,"Exento",Ingresos!$R$8:$R$26,"No",Ingresos!$Q$8:$Q$26,"Sí")+SUMIFS(Ingresos!C$35:C$45,Ingresos!$P$35:$P$45,"Exento",Ingresos!$R$35:$R$45,"No",Ingresos!$Q$35:$Q$45,"Sí") -> 0 | E26: =SUMIFS(Ingresos!D$8:D$26,Ingresos!$P$8:$P$26,"Exento",Ingresos!$R$8:$R$26,"No",Ingresos!$Q$8:$Q$26,"Sí")+SUMIFS(Ingresos!D$35:D$45,Ingresos!$P$35:$P$45,"Exento",Ingresos!$R$35:$R$45,"No",Ingresos!$Q$35:$Q$45,"Sí") -> 0 | F26: =SUMIFS(Ingresos!E$8:E$26,Ingresos!$P$8:$P$26,"Exento",Ingresos!$R$8:$R$26,"No",Ingresos!$Q$8:$Q$26,"Sí")+SUMIFS(Ingresos!E$35:E$45,Ingresos!$P$35:$P$45,"Exento",Ingresos!$R$35:$R$45,"No",Ingresos!$Q$35:$Q$45,"Sí") -> 0 | G26: =SUMIFS(Ingresos!F$8:F$26,Ingresos!$P$8:$P$26,"Exento",Ingresos!$R$8:$R$26,"No",Ingresos!$Q$8:$Q$26,"Sí")+SUMIFS(Ingresos!F$35:F$45,Ingresos!$P$35:$P$45,"Exento",Ingresos!$R$35:$R$45,"No",Ingresos!$Q$35:$Q$45,"Sí") -> 0 | H26: =SUMIFS(Ingresos!G$8:G$26,Ingresos!$P$8:$P$26,"Exento",Ingresos!$R$8:$R$26,"No",Ingresos!$Q$8:$Q$26,"Sí")+SUMIFS(Ingresos!G$35:G$45,Ingresos!$P$35:$P$45,"Exento",Ingresos!$R$35:$R$45,"No",Ingresos!$Q$35:$Q$45,"Sí") -> 0 | I26: =SUMIFS(Ingresos!H$8:H$26,Ingresos!$P$8:$P$26,"Exento",Ingresos!$R$8:$R$26,"No",Ingresos!$Q$8:$Q$26,"Sí")+SUMIFS(Ingresos!H$35:H$45,Ingresos!$P$35:$P$45,"Exento",Ingresos!$R$35:$R$45,"No",Ingresos!$Q$35:$Q$45,"Sí") -> 0 | J26: =SUMIFS(Ingresos!I$8:I$26,Ingresos!$P$8:$P$26,"Exento",Ingresos!$R$8:$R$26,"No",Ingresos!$Q$8:$Q$26,"Sí")+SUMIFS(Ingresos!I$35:I$45,Ingresos!$P$35:$P$45,"Exento",Ingresos!$R$35:$R$45,"No",Ingresos!$Q$35:$Q$45,"Sí") -> 0 | K26: =SUMIFS(Ingresos!J$8:J$26,Ingresos!$P$8:$P$26,"Exento",Ingresos!$R$8:$R$26,"No",Ingresos!$Q$8:$Q$26,"Sí")+SUMIFS(Ingresos!J$35:J$45,Ingresos!$P$35:$P$45,"Exento",Ingresos!$R$35:$R$45,"No",Ingresos!$Q$35:$Q$45,"Sí") -> 0 | L26: =SUMIFS(Ingresos!K$8:K$26,Ingresos!$P$8:$P$26,"Exento",Ingresos!$R$8:$R$26,"No",Ingresos!$Q$8:$Q$26,"Sí")+SUMIFS(Ingresos!K$35:K$45,Ingresos!$P$35:$P$45,"Exento",Ingresos!$R$35:$R$45,"No",Ingresos!$Q$35:$Q$45,"Sí") -> 0 | M26: =SUMIFS(Ingresos!L$8:L$26,Ingresos!$P$8:$P$26,"Exento",Ingresos!$R$8:$R$26,"No",Ingresos!$Q$8:$Q$26,"Sí")+SUMIFS(Ingresos!L$35:L$45,Ingresos!$P$35:$P$45,"Exento",Ingresos!$R$35:$R$45,"No",Ingresos!$Q$35:$Q$45,"Sí") -> 0 | N26: =SUMIFS(Ingresos!M$8:M$26,Ingresos!$P$8:$P$26,"Exento",Ingresos!$R$8:$R$26,"No",Ingresos!$Q$8:$Q$26,"Sí")+SUMIFS(Ingresos!M$35:M$45,Ingresos!$P$35:$P$45,"Exento",Ingresos!$R$35:$R$45,"No",Ingresos!$Q$35:$Q$45,"Sí") -> 0 | O26: =SUMIFS(Ingresos!N$8:N$26,Ingresos!$P$8:$P$26,"Exento",Ingresos!$R$8:$R$26,"No",Ingresos!$Q$8:$Q$26,"Sí")+SUMIFS(Ingresos!N$35:N$45,Ingresos!$P$35:$P$45,"Exento",Ingresos!$R$35:$R$45,"No",Ingresos!$Q$35:$Q$45,"Sí") -> 0 | P26: 0
C27: Exento total
C29: Deducciones | D29: 2017-01-01 | E29: 2017-02-01 | F29: 2017-03-01 | G29: 2017-04-01 | H29: 2017-05-01 | I29: 2017-06-01 | J29: 2017-07-01 | K29: 2017-08-01 | L29: 2017-09-01 | M29: 2017-10-01 | N29: 2017-11-01 | O29: 2017-12-01 | P29: Anual | R29: Aplica tope
C30: =Tablas!B8 -> Jubilación | D30: =retenciones(Check!$B$8,$R30,SUM(D$9:D$10,D$16:D$17,D$23:D$24),Tablas!C$7,Tablas!C8,D$9,DedGrales!D12+DedGrales!D23) -> 7700 | E30: =retenciones(Check!$B$8,$R30,SUM(E$9:E$10,E$16:E$17,E$23:E$24),Tablas!D$7,Tablas!D8,E$9,DedGrales!E12+DedGrales!E23) -> 0 | F30: =retenciones(Check!$B$8,$R30,SUM(F$9:F$10,F$16:F$17,F$23:F$24),Tablas!E$7,Tablas!E8,F$9,DedGrales!F12+DedGrales!F23) -> 0 | G30: =retenciones(Check!$B$8,$R30,SUM(G$9:G$10,G$16:G$17,G$23:G$24),Tablas!F$7,Tablas!F8,G$9,DedGrales!G12+DedGrales!G23) -> 0 | H30: =retenciones(Check!$B$8,$R30,SUM(H$9:H$10,H$16:H$17,H$23:H$24),Tablas!G$7,Tablas!G8,H$9,DedGrales!H12+DedGrales!H23) -> 0 | I30: =retenciones(Check!$B$8,$R30,SUM(I$9:I$10,I$16:I$17,I$23:I$24),Tablas!H$7,Tablas!H8,I$9,DedGrales!I12+DedGrales!I23) -> 0 | J30: =retenciones(Check!$B$8,$R30,SUM(J$9:J$10,J$16:J$17,J$23:J$24),Tablas!I$7,Tablas!I8,J$9,DedGrales!J12+DedGrales!J23) -> 0 | K30: =retenciones(Check!$B$8,$R30,SUM(K$9:K$10,K$16:K$17,K$23:K$24),Tablas!J$7,Tablas!J8,K$9,DedGrales!K12+DedGrales!K23) -> 0 | L30: =retenciones(Check!$B$8,$R30,SUM(L$9:L$10,L$16:L$17,L$23:L$24),Tablas!K$7,Tablas!K8,L$9,DedGrales!L12+DedGrales!L23) -> 0 | M30: =retenciones(Check!$B$8,$R30,SUM(M$9:M$10,M$16:M$17,M$23:M$24),Tablas!L$7,Tablas!L8,M$9,DedGrales!M12+DedGrales!M23) -> 0 | N30: =retenciones(Check!$B$8,$R30,SUM(N$9:N$10,N$16:N$17,N$23:N$24),Tablas!M$7,Tablas!M8,N$9,DedGrales!N12+DedGrales!N23) -> 0 | O30: =retenciones(Check!$B$8,$R30,SUM(O$9:O$10,O$16:O$17,O$23:O$24),Tablas!N$7,Tablas!N8,O$9,DedGrales!O12+DedGrales!O23) -> 0 | P30: =SUM(D30:O30) -> 7700 | R30: =Tablas!O8 -> Sí
C31: =Tablas!B9 -> Ley 19032 | D31: =retenciones(Check!$B$8,$R31,SUM(D$9:D$10,D$16:D$17,D$23:D$24),Tablas!C$7,Tablas!C9,D$9,DedGrales!D13+DedGrales!D24) -> 2100 | E31: =retenciones(Check!$B$8,$R31,SUM(E$9:E$10,E$16:E$17,E$23:E$24),Tablas!D$7,Tablas!D9,E$9,DedGrales!E13+DedGrales!E24) -> 0 | F31: =retenciones(Check!$B$8,$R31,SUM(F$9:F$10,F$16:F$17,F$23:F$24),Tablas!E$7,Tablas!E9,F$9,DedGrales!F13+DedGrales!F24) -> 0 | G31: =retenciones(Check!$B$8,$R31,SUM(G$9:G$10,G$16:G$17,G$23:G$24),Tablas!F$7,Tablas!F9,G$9,DedGrales!G13+DedGrales!G24) -> 0 | H31: =retenciones(Check!$B$8,$R31,SUM(H$9:H$10,H$16:H$17,H$23:H$24),Tablas!G$7,Tablas!G9,H$9,DedGrales!H13+DedGrales!H24) -> 0 | I31: =retenciones(Check!$B$8,$R31,SUM(I$9:I$10,I$16:I$17,I$23:I$24),Tablas!H$7,Tablas!H9,I$9,DedGrales!I13+DedGrales!I24) -> 0 | J31: =retenciones(Check!$B$8,$R31,SUM(J$9:J$10,J$16:J$17,J$23:J$24),Tablas!I$7,Tablas!I9,J$9,DedGrales!J13+DedGrales!J24) -> 0 | K31: =retenciones(Check!$B$8,$R31,SUM(K$9:K$10,K$16:K$17,K$23:K$24),Tablas!J$7,Tablas!J9,K$9,DedGrales!K13+DedGrales!K24) -> 0 | L31: =retenciones(Check!$B$8,$R31,SUM(L$9:L$10,L$16:L$17,L$23:L$24),Tablas!K$7,Tablas!K9,L$9,DedGrales!L13+DedGrales!L24) -> 0 | M31: =retenciones(Check!$B$8,$R31,SUM(M$9:M$10,M$16:M$17,M$23:M$24),Tablas!L$7,Tablas!L9,M$9,DedGrales!M13+DedGrales!M24) -> 0 | N31: =retenciones(Check!$B$8,$R31,SUM(N$9:N$10,N$16:N$17,N$23:N$24),Tablas!M$7,Tablas!M9,N$9,DedGrales!N13+DedGrales!N24) -> 0 | O31: =retenciones(Check!$B$8,$R31,SUM(O$9:O$10,O$16:O$17,O$23:O$24),Tablas!N$7,Tablas!N9,O$9,DedGrales!O13+DedGrales!O24) -> 0 | P31: =SUM(D31:O31) -> 2100 | R31: =Tablas!O9 -> Sí
C32: =Tablas!B10 -> Obra social | D32: =retenciones(Check!$B$8,$R32,SUM(D$9:D$10,D$16:D$17,D$23:D$24),Tablas!C$7,Tablas!C10,D$9,DedGrales!D14+DedGrales!D25) -> 2100 | E32: =retenciones(Check!$B$8,$R32,SUM(E$9:E$10,E$16:E$17,E$23:E$24),Tablas!D$7,Tablas!D10,E$9,DedGrales!E14+DedGrales!E25) -> 0 | F32: =retenciones(Check!$B$8,$R32,SUM(F$9:F$10,F$16:F$17,F$23:F$24),Tablas!E$7,Tablas!E10,F$9,DedGrales!F14+DedGrales!F25) -> 0 | G32: =retenciones(Check!$B$8,$R32,SUM(G$9:G$10,G$16:G$17,G$23:G$24),Tablas!F$7,Tablas!F10,G$9,DedGrales!G14+DedGrales!G25) -> 0 | H32: =retenciones(Check!$B$8,$R32,SUM(H$9:H$10,H$16:H$17,H$23:H$24),Tablas!G$7,Tablas!G10,H$9,DedGrales!H14+DedGrales!H25) -> 0 | I32: =retenciones(Check!$B$8,$R32,SUM(I$9:I$10,I$16:I$17,I$23:I$24),Tablas!H$7,Tablas!H10,I$9,DedGrales!I14+DedGrales!I25) -> 0 | J32: =retenciones(Check!$B$8,$R32,SUM(J$9:J$10,J$16:J$17,J$23:J$24),Tablas!I$7,Tablas!I10,J$9,DedGrales!J14+DedGrales!J25) -> 0 | K32: =retenciones(Check!$B$8,$R32,SUM(K$9:K$10,K$16:K$17,K$23:K$24),Tablas!J$7,Tablas!J10,K$9,DedGrales!K14+DedGrales!K25) -> 0 | L32: =retenciones(Check!$B$8,$R32,SUM(L$9:L$10,L$16:L$17,L$23:L$24),Tablas!K$7,Tablas!K10,L$9,DedGrales!L14+DedGrales!L25) -> 0 | M32: =retenciones(Check!$B$8,$R32,SUM(M$9:M$10,M$16:M$17,M$23:M$24),Tablas!L$7,Tablas!L10,M$9,DedGrales!M14+DedGrales!M25) -> 0 | N32: =retenciones(Check!$B$8,$R32,SUM(N$9:N$10,N$16:N$17,N$23:N$24),Tablas!M$7,Tablas!M10,N$9,DedGrales!N14+DedGrales!N25) -> 0 | O32: =retenciones(Check!$B$8,$R32,SUM(O$9:O$10,O$16:O$17,O$23:O$24),Tablas!N$7,Tablas!N10,O$9,DedGrales!O14+DedGrales!O25) -> 0 | P32: 2100 | R32: =Tablas!O10 -> Sí
C33: =Tablas!B11 -> Sindicato | D33: =retenciones(Check!$B$8,$R33,SUM(D$9:D$10,D$16:D$17,D$23:D$24),Tablas!C$7,Tablas!C11,D$9,DedGrales!D15+DedGrales!D26) -> 0 | E33: =retenciones(Check!$B$8,$R33,SUM(E$9:E$10,E$16:E$17,E$23:E$24),Tablas!D$7,Tablas!D11,E$9,DedGrales!E15+DedGrales!E26) -> 0 | F33: =retenciones(Check!$B$8,$R33,SUM(F$9:F$10,F$16:F$17,F$23:F$24),Tablas!E$7,Tablas!E11,F$9,DedGrales!F15+DedGrales!F26) -> 0 | G33: =retenciones(Check!$B$8,$R33,SUM(G$9:G$10,G$16:G$17,G$23:G$24),Tablas!F$7,Tablas!F11,G$9,DedGrales!G15+DedGrales!G26) -> 0 | H33: =retenciones(Check!$B$8,$R33,SUM(H$9:H$10,H$16:H$17,H$23:H$24),Tablas!G$7,Tablas!G11,H$9,DedGrales!H15+DedGrales!H26) -> 0 | I33: =retenciones(Check!$B$8,$R33,SUM(I$9:I$10,I$16:I$17,I$23:I$24),Tablas!H$7,Tablas!H11,I$9,DedGrales!I15+DedGrales!I26) -> 0 | J33: =retenciones(Check!$B$8,$R33,SUM(J$9:J$10,J$16:J$17,J$23:J$24),Tablas!I$7,Tablas!I11,J$9,DedGrales!J15+DedGrales!J26) -> 0 | K33: =retenciones(Check!$B$8,$R33,SUM(K$9:K$10,K$16:K$17,K$23:K$24),Tablas!J$7,Tablas!J11,K$9,DedGrales!K15+DedGrales!K26) -> 0 | L33: =retenciones(Check!$B$8,$R33,SUM(L$9:L$10,L$16:L$17,L$23:L$24),Tablas!K$7,Tablas!K11,L$9,DedGrales!L15+DedGrales!L26) -> 0 | M33: =retenciones(Check!$B$8,$R33,SUM(M$9:M$10,M$16:M$17,M$23:M$24),Tablas!L$7,Tablas!L11,M$9,DedGrales!M15+DedGrales!M26) -> 0 | N33: =retenciones(Check!$B$8,$R33,SUM(N$9:N$10,N$16:N$17,N$23:N$24),Tablas!M$7,Tablas!M11,N$9,DedGrales!N15+DedGrales!N26) -> 0 | O33: =retenciones(Check!$B$8,$R33,SUM(O$9:O$10,O$16:O$17,O$23:O$24),Tablas!N$7,Tablas!N11,O$9,DedGrales!O15+DedGrales!O26) -> 0 | P33: 0 | R33: =Tablas!O11 -> No
C34: =Tablas!B12 -> 0 | D34: =retenciones(Check!$B$8,$R34,SUM(D$9:D$10,D$16:D$17,D$23:D$24),Tablas!C$7,Tablas!C12,D$9,DedGrales!D16+DedGrales!D27) -> 0 | E34: =retenciones(Check!$B$8,$R34,SUM(E$9:E$10,E$16:E$17,E$23:E$24),Tablas!D$7,Tablas!D12,E$9,DedGrales!E16+DedGrales!E27) -> 0 | F34: =retenciones(Check!$B$8,$R34,SUM(F$9:F$10,F$16:F$17,F$23:F$24),Tablas!E$7,Tablas!E12,F$9,DedGrales!F16+DedGrales!F27) -> 0 | G34: =retenciones(Check!$B$8,$R34,SUM(G$9:G$10,G$16:G$17,G$23:G$24),Tablas!F$7,Tablas!F12,G$9,DedGrales!G16+DedGrales!G27) -> 0 | H34: =retenciones(Check!$B$8,$R34,SUM(H$9:H$10,H$16:H$17,H$23:H$24),Tablas!G$7,Tablas!G12,H$9,DedGrales!H16+DedGrales!H27) -> 0 | I34: =retenciones(Check!$B$8,$R34,SUM(I$9:I$10,I$16:I$17,I$23:I$24),Tablas!H$7,Tablas!H12,I$9,DedGrales!I16+DedGrales!I27) -> 0 | J34: =retenciones(Check!$B$8,$R34,SUM(J$9:J$10,J$16:J$17,J$23:J$24),Tablas!I$7,Tablas!I12,J$9,DedGrales!J16+DedGrales!J27) -> 0 | K34: =retenciones(Check!$B$8,$R34,SUM(K$9:K$10,K$16:K$17,K$23:K$24),Tablas!J$7,Tablas!J12,K$9,DedGrales!K16+DedGrales!K27) -> 0 | L34: =retenciones(Check!$B$8,$R34,SUM(L$9:L$10,L$16:L$17,L$23:L$24),Tablas!K$7,Tablas!K12,L$9,DedGrales!L16+DedGrales!L27) -> 0 | M34: =retenciones(Check!$B$8,$R34,SUM(M$9:M$10,M$16:M$17,M$23:M$24),Tablas!L$7,Tablas!L12,M$9,DedGrales!M16+DedGrales!M27) -> 0 | N34: =retenciones(Check!$B$8,$R34,SUM(N$9:N$10,N$16:N$17,N$23:N$24),Tablas!M$7,Tablas!M12,N$9,DedGrales!N16+DedGrales!N27) -> 0 | O34: =retenciones(Check!$B$8,$R34,SUM(O$9:O$10,O$16:O$17,O$23:O$24),Tablas!N$7,Tablas!N12,O$9,DedGrales!O16+DedGrales!O27) -> 0 | P34: 0 | R34: =Tablas!O12 -> No
C35: =Tablas!B13 -> 0 | D35: =retenciones(Check!$B$8,$R35,SUM(D$9:D$10,D$16:D$17,D$23:D$24),Tablas!C$7,Tablas!C13,D$9,DedGrales!D17+DedGrales!D28) -> 0 | E35: =retenciones(Check!$B$8,$R35,SUM(E$9:E$10,E$16:E$17,E$23:E$24),Tablas!D$7,Tablas!D13,E$9,DedGrales!E17+DedGrales!E28) -> 0 | F35: =retenciones(Check!$B$8,$R35,SUM(F$9:F$10,F$16:F$17,F$23:F$24),Tablas!E$7,Tablas!E13,F$9,DedGrales!F17+DedGrales!F28) -> 0 | G35: =retenciones(Check!$B$8,$R35,SUM(G$9:G$10,G$16:G$17,G$23:G$24),Tablas!F$7,Tablas!F13,G$9,DedGrales!G17+DedGrales!G28) -> 0 | H35: =retenciones(Check!$B$8,$R35,SUM(H$9:H$10,H$16:H$17,H$23:H$24),Tablas!G$7,Tablas!G13,H$9,DedGrales!H17+DedGrales!H28) -> 0 | I35: =retenciones(Check!$B$8,$R35,SUM(I$9:I$10,I$16:I$17,I$23:I$24),Tablas!H$7,Tablas!H13,I$9,DedGrales!I17+DedGrales!I28) -> 0 | J35: =retenciones(Check!$B$8,$R35,SUM(J$9:J$10,J$16:J$17,J$23:J$24),Tablas!I$7,Tablas!I13,J$9,DedGrales!J17+DedGrales!J28) -> 0 | K35: =retenciones(Check!$B$8,$R35,SUM(K$9:K$10,K$16:K$17,K$23:K$24),Tablas!J$7,Tablas!J13,K$9,DedGrales!K17+DedGrales!K28) -> 0 | L35: =retenciones(Check!$B$8,$R35,SUM(L$9:L$10,L$16:L$17,L$23:L$24),Tablas!K$7,Tablas!K13,L$9,DedGrales!L17+DedGrales!L28) -> 0 | M35: =retenciones(Check!$B$8,$R35,SUM(M$9:M$10,M$16:M$17,M$23:M$24),Tablas!L$7,Tablas!L13,M$9,DedGrales!M17+DedGrales!M28) -> 0 | N35: =retenciones(Check!$B$8,$R35,SUM(N$9:N$10,N$16:N$17,N$23:N$24),Tablas!M$7,Tablas!M13,N$9,DedGrales!N17+DedGrales!N28) -> 0 | O35: =retenciones(Check!$B$8,$R35,SUM(O$9:O$10,O$16:O$17,O$23:O$24),Tablas!N$7,Tablas!N13,O$9,DedGrales!O17+DedGrales!O28) -> 0 | P35: 0 | R35: =Tablas!O13 -> No
C36: Prorrateo | R36: Aplica tope
C37: =C30 -> Jubilación | D37: =retenciones(Check!$B$8,$R37,SUM(D$9:D$10,D$16:D$17,D$23:D$24),Tablas!C$7,Tablas!C8,D$10,0) -> 0 | E37: =retenciones(Check!$B$8,$R37,SUM(E$9:E$10,E$16:E$17,E$23:E$24),Tablas!D$7,Tablas!D8,E$10,0) -> 0 | F37: =retenciones(Check!$B$8,$R37,SUM(F$9:F$10,F$16:F$17,F$23:F$24),Tablas!E$7,Tablas!E8,F$10,0) -> 0 | G37: =retenciones(Check!$B$8,$R37,SUM(G$9:G$10,G$16:G$17,G$23:G$24),Tablas!F$7,Tablas!F8,G$10,0) -> 0 | H37: =retenciones(Check!$B$8,$R37,SUM(H$9:H$10,H$16:H$17,H$23:H$24),Tablas!G$7,Tablas!G8,H$10,0) -> 0 | I37: =retenciones(Check!$B$8,$R37,SUM(I$9:I$10,I$16:I$17,I$23:I$24),Tablas!H$7,Tablas!H8,I$10,0) -> 0 | J37: =retenciones(Check!$B$8,$R37,SUM(J$9:J$10,J$16:J$17,J$23:J$24),Tablas!I$7,Tablas!I8,J$10,0) -> 0 | K37: =retenciones(Check!$B$8,$R37,SUM(K$9:K$10,K$16:K$17,K$23:K$24),Tablas!J$7,Tablas!J8,K$10,0) -> 0 | L37: =retenciones(Check!$B$8,$R37,SUM(L$9:L$10,L$16:L$17,L$23:L$24),Tablas!K$7,Tablas!K8,L$10,0) -> 0 | M37: =retenciones(Check!$B$8,$R37,SUM(M$9:M$10,M$16:M$17,M$23:M$24),Tablas!L$7,Tablas!L8,M$10,0) -> 0 | N37: =retenciones(Check!$B$8,$R37,SUM(N$9:N$10,N$16:N$17,N$23:N$24),Tablas!M$7,Tablas!M8,N$10,0) -> 0 | O37: =retenciones(Check!$B$8,$R37,SUM(O$9:O$10,O$16:O$17,O$23:O$24),Tablas!N$7,Tablas!N8,O$10,0) -> 0 | P37: =SUM(D37:O37) -> 0 | R37: =R30 -> Sí
C38: =C31 -> Ley 19032 | D38: =retenciones(Check!$B$8,$R38,SUM(D$9:D$10,D$16:D$17,D$23:D$24),Tablas!C$7,Tablas!C9,D$10,0) -> 0 | E38: =retenciones(Check!$B$8,$R38,SUM(E$9:E$10,E$16:E$17,E$23:E$24),Tablas!D$7,Tablas!D9,E$10,0) -> 0 | F38: =retenciones(Check!$B$8,$R38,SUM(F$9:F$10,F$16:F$17,F$23:F$24),Tablas!E$7,Tablas!E9,F$10,0) -> 0 | G38: =retenciones(Check!$B$8,$R38,SUM(G$9:G$10,G$16:G$17,G$23:G$24),Tablas!F$7,Tablas!F9,G$10,0) -> 0 | H38: =retenciones(Check!$B$8,$R38,SUM(H$9:H$10,H$16:H$17,H$23:H$24),Tablas!G$7,Tablas!G9,H$10,0) -> 0 | I38: =retenciones(Check!$B$8,$R38,SUM(I$9:I$10,I$16:I$17,I$23:I$24),Tablas!H$7,Tablas!H9,I$10,0) -> 0 | J38: =retenciones(Check!$B$8,$R38,SUM(J$9:J$10,J$16:J$17,J$23:J$24),Tablas!I$7,Tablas!I9,J$10,0) -> 0 | K38: =retenciones(Check!$B$8,$R38,SUM(K$9:K$10,K$16:K$17,K$23:K$24),Tablas!J$7,Tablas!J9,K$10,0) -> 0 | L38: =retenciones(Check!$B$8,$R38,SUM(L$9:L$10,L$16:L$17,L$23:L$24),Tablas!K$7,Tablas!K9,L$10,0) -> 0 | M38: =retenciones(Check!$B$8,$R38,SUM(M$9:M$10,M$16:M$17,M$23:M$24),Tablas!L$7,Tablas!L9,M$10,0) -> 0 | N38: =retenciones(Check!$B$8,$R38,SUM(N$9:N$10,N$16:N$17,N$23:N$24),Tablas!M$7,Tablas!M9,N$10,0) -> 0 | O38: =retenciones(Check!$B$8,$R38,SUM(O$9:O$10,O$16:O$17,O$23:O$24),Tablas!N$7,Tablas!N9,O$10,0) -> 0 | P38: =SUM(D38:O38) -> 0 | R38: =R31 -> Sí
C39: =C32 -> Obra social | D39: =retenciones(Check!$B$8,$R39,SUM(D$9:D$10,D$16:D$17,D$23:D$24),Tablas!C$7,Tablas!C10,D$10,0) -> 0 | E39: =retenciones(Check!$B$8,$R39,SUM(E$9:E$10,E$16:E$17,E$23:E$24),Tablas!D$7,Tablas!D10,E$10,0) -> 0 | F39: =retenciones(Check!$B$8,$R39,SUM(F$9:F$10,F$16:F$17,F$23:F$24),Tablas!E$7,Tablas!E10,F$10,0) -> 0 | G39: =retenciones(Check!$B$8,$R39,SUM(G$9:G$10,G$16:G$17,G$23:G$24),Tablas!F$7,Tablas!F10,G$10,0) -> 0 | H39: =retenciones(Check!$B$8,$R39,SUM(H$9:H$10,H$16:H$17,H$23:H$24),Tablas!G$7,Tablas!G10,H$10,0) -> 0 | I39: =retenciones(Check!$B$8,$R39,SUM(I$9:I$10,I$16:I$17,I$23:I$24),Tablas!H$7,Tablas!H10,I$10,0) -> 0 | J39: =retenciones(Check!$B$8,$R39,SUM(J$9:J$10,J$16:J$17,J$23:J$24),Tablas!I$7,Tablas!I10,J$10,0) -> 0 | K39: =retenciones(Check!$B$8,$R39,SUM(K$9:K$10,K$16:K$17,K$23:K$24),Tablas!J$7,Tablas!J10,K$10,0) -> 0 | L39: =retenciones(Check!$B$8,$R39,SUM(L$9:L$10,L$16:L$17,L$23:L$24),Tablas!K$7,Tablas!K10,L$10,0) -> 0 | M39: =retenciones(Check!$B$8,$R39,SUM(M$9:M$10,M$16:M$17,M$23:M$24),Tablas!L$7,Tablas!L10,M$10,0) -> 0 | N39: =retenciones(Check!$B$8,$R39,SUM(N$9:N$10,N$16:N$17,N$23:N$24),Tablas!M$7,Tablas!M10,N$10,0) -> 0 | O39: =retenciones(Check!$B$8,$R39,SUM(O$9:O$10,O$16:O$17,O$23:O$24),Tablas!N$7,Tablas!N10,O$10,0) -> 0 | P39: 0 | R39: =R32 -> Sí
C40: =C33 -> Sindicato | D40: =retenciones(Check!$B$8,$R40,SUM(D$9:D$10,D$16:D$17,D$23:D$24),Tablas!C$7,Tablas!C11,D$10,0) -> 0 | E40: =retenciones(Check!$B$8,$R40,SUM(E$9:E$10,E$16:E$17,E$23:E$24),Tablas!D$7,Tablas!D11,E$10,0) -> 0 | F40: =retenciones(Check!$B$8,$R40,SUM(F$9:F$10,F$16:F$17,F$23:F$24),Tablas!E$7,Tablas!E11,F$10,0) -> 0 | G40: =retenciones(Check!$B$8,$R40,SUM(G$9:G$10,G$16:G$17,G$23:G$24),Tablas!F$7,Tablas!F11,G$10,0) -> 0 | H40: =retenciones(Check!$B$8,$R40,SUM(H$9:H$10,H$16:H$17,H$23:H$24),Tablas!G$7,Tablas!G11,H$10,0) -> 0 | I40: =retenciones(Check!$B$8,$R40,SUM(I$9:I$10,I$16:I$17,I$23:I$24),Tablas!H$7,Tablas!H11,I$10,0) -> 0 | J40: =retenciones(Check!$B$8,$R40,SUM(J$9:J$10,J$16:J$17,J$23:J$24),Tablas!I$7,Tablas!I11,J$10,0) -> 0 | K40: =retenciones(Check!$B$8,$R40,SUM(K$9:K$10,K$16:K$17,K$23:K$24),Tablas!J$7,Tablas!J11,K$10,0) -> 0 | L40: =retenciones(Check!$B$8,$R40,SUM(L$9:L$10,L$16:L$17,L$23:L$24),Tablas!K$7,Tablas!K11,L$10,0) -> 0 | M40: =retenciones(Check!$B$8,$R40,SUM(M$9:M$10,M$16:M$17,M$23:M$24),Tablas!L$7,Tablas!L11,M$10,0) -> 0 | N40: =retenciones(Check!$B$8,$R40,SUM(N$9:N$10,N$16:N$17,N$23:N$24),Tablas!M$7,Tablas!M11,N$10,0) -> 0 | O40: =retenciones(Check!$B$8,$R40,SUM(O$9:O$10,O$16:O$17,O$23:O$24),Tablas!N$7,Tablas!N11,O$10,0) -> 0 | P40: 0 | R40: =R33 -> No
C41: =C34 -> 0 | D41: =retenciones(Check!$B$8,$R41,SUM(D$9:D$10,D$16:D$17,D$23:D$24),Tablas!C$7,Tablas!C12,D$10,0) -> 0 | E41: =retenciones(Check!$B$8,$R41,SUM(E$9:E$10,E$16:E$17,E$23:E$24),Tablas!D$7,Tablas!D12,E$10,0) -> 0 | F41: =retenciones(Check!$B$8,$R41,SUM(F$9:F$10,F$16:F$17,F$23:F$24),Tablas!E$7,Tablas!E12,F$10,0) -> 0 | G41: =retenciones(Check!$B$8,$R41,SUM(G$9:G$10,G$16:G$17,G$23:G$24),Tablas!F$7,Tablas!F12,G$10,0) -> 0 | H41: =retenciones(Check!$B$8,$R41,SUM(H$9:H$10,H$16:H$17,H$23:H$24),Tablas!G$7,Tablas!G12,H$10,0) -> 0 | I41: =retenciones(Check!$B$8,$R41,SUM(I$9:I$10,I$16:I$17,I$23:I$24),Tablas!H$7,Tablas!H12,I$10,0) -> 0 | J41: =retenciones(Check!$B$8,$R41,SUM(J$9:J$10,J$16:J$17,J$23:J$24),Tablas!I$7,Tablas!I12,J$10,0) -> 0 | K41: =retenciones(Check!$B$8,$R41,SUM(K$9:K$10,K$16:K$17,K$23:K$24),Tablas!J$7,Tablas!J12,K$10,0) -> 0 | L41: =retenciones(Check!$B$8,$R41,SUM(L$9:L$10,L$16:L$17,L$23:L$24),Tablas!K$7,Tablas!K12,L$10,0) -> 0 | M41: =retenciones(Check!$B$8,$R41,SUM(M$9:M$10,M$16:M$17,M$23:M$24),Tablas!L$7,Tablas!L12,M$10,0) -> 0 | N41: =retenciones(Check!$B$8,$R41,SUM(N$9:N$10,N$16:N$17,N$23:N$24),Tablas!M$7,Tablas!M12,N$10,0) -> 0 | O41: =retenciones(Check!$B$8,$R41,SUM(O$9:O$10,O$16:O$17,O$23:O$24),Tablas!N$7,Tablas!N12,O$10,0) -> 0 | P41: 0 | R41: =R34 -> No
C42: 0 | D42: =retenciones(Check!$B$8,$R42,SUM(D$9:D$10,D$16:D$17,D$23:D$24),Tablas!C$7,Tablas!C13,D$10,0) -> 0 | E42: =retenciones(Check!$B$8,$R42,SUM(E$9:E$10,E$16:E$17,E$23:E$24),Tablas!D$7,Tablas!D13,E$10,0) -> 0 | F42: =retenciones(Check!$B$8,$R42,SUM(F$9:F$10,F$16:F$17,F$23:F$24),Tablas!E$7,Tablas!E13,F$10,0) -> 0 | G42: =retenciones(Check!$B$8,$R42,SUM(G$9:G$10,G$16:G$17,G$23:G$24),Tablas!F$7,Tablas!F13,G$10,0) -> 0 | H42: =retenciones(Check!$B$8,$R42,SUM(H$9:H$10,H$16:H$17,H$23:H$24),Tablas!G$7,Tablas!G13,H$10,0) -> 0 | I42: =retenciones(Check!$B$8,$R42,SUM(I$9:I$10,I$16:I$17,I$23:I$24),Tablas!H$7,Tablas!H13,I$10,0) -> 0 | J42: =retenciones(Check!$B$8,$R42,SUM(J$9:J$10,J$16:J$17,J$23:J$24),Tablas!I$7,Tablas!I13,J$10,0) -> 0 | K42: =retenciones(Check!$B$8,$R42,SUM(K$9:K$10,K$16:K$17,K$23:K$24),Tablas!J$7,Tablas!J13,K$10,0) -> 0 | L42: =retenciones(Check!$B$8,$R42,SUM(L$9:L$10,L$16:L$17,L$23:L$24),Tablas!K$7,Tablas!K13,L$10,0) -> 0 | M42: =retenciones(Check!$B$8,$R42,SUM(M$9:M$10,M$16:M$17,M$23:M$24),Tablas!L$7,Tablas!L13,M$10,0) -> 0 | N42: =retenciones(Check!$B$8,$R42,SUM(N$9:N$10,N$16:N$17,N$23:N$24),Tablas!M$7,Tablas!M13,N$10,0) -> 0 | O42: =retenciones(Check!$B$8,$R42,SUM(O$9:O$10,O$16:O$17,O$23:O$24),Tablas!N$7,Tablas!N13,O$10,0) -> 0 | P42: 0 | R42: No
C45: Total deducciones | D45: =SUM(D30:D35) -> 11900 | E45: =SUM(E30:E35) -> 0 | F45: 0 | G45: 0 | H45: 0 | I45: 0 | J45: 0 | K45: 0 | L45: 0 | M45: 0 | N45: 0 | O45: 0 | P45: 11900
C47: Ingresos gravados (prorrateo) acumulados
C48: Gravado
C49: Sueldo Rem. (prorrateo) | D49: =SUM(D50:D61) -> 0 | E49: =SUM(E50:E61) -> 0 | F49: 0 | G49: 0 | H49: 0 | I49: 0 | J49: 0 | K49: 0 | L49: 0 | M49: 0 | N49: 0 | O49: 0 | P49: =SUM(D49:O49) -> 0
B50: 1 | C50: Sueldo Rem. (prorrateo) | D50: =(D10+D12)/12 -> 0 | E50: =+D50 -> 0 | F50: =+E50 -> 0 | G50: 0 | H50: 0 | I50: 0 | J50: 0 | K50: 0 | L50: 0 | M50: 0 | N50: 0 | O50: 0 | P50: =SUM(D50:O50) -> 0
B51: =+B50+1 -> 2 | C51: Sueldo Rem. (prorrateo) | E51: =(+$E10+E12)/11 -> 0 | F51: =+E51 -> 0 | G51: 0 | H51: 0 | I51: 0 | J51: 0 | K51: 0 | L51: 0 | M51: 0 | N51: 0 | O51: 0 | P51: 0
B52: =+B51+1 -> 3 | C52: Sueldo Rem. (prorrateo) | F52: =(+$F10+F12)/10 -> 0 | G52: =+F52 -> 0 | H52: 0 | I52: 0 | J52: 0 | K52: 0 | L52: 0 | M52: 0 | N52: 0 | O52: 0 | P52: 0
B53: 4 | C53: Sueldo Rem. (prorrateo) | G53: =(G10+G12)/9 -> 0 | H53: =+G53 -> 0 | I53: 0 | J53: 0 | K53: 0 | L53: 0 | M53: 0 | N53: 0 | O53: 0 | P53: 0
B54: 5 | C54: Sueldo Rem. (prorrateo) | H54: =(H10+H12)/8 -> 0 | I54: =+H54 -> 0 | J54: 0 | K54: 0 | L54: 0 | M54: 0 | N54: 0 | O54: 0 | P54: 0
B55: 6 | C55: Sueldo Rem. (prorrateo) | I55: =(+I10+I12)/7 -> 0 | J55: =+I55 -> 0 | K55: 0 | L55: 0 | M55: 0 | N55: 0 | O55: 0 | P55: 0
B56: 7 | C56: Sueldo Rem. (prorrateo) | J56: =(+J10+J12)/6 -> 0 | K56: =+J56 -> 0 | L56: 0 | M56: 0 | N56: 0 | O56: 0 | P56: 0
B57: 8 | C57: Sueldo Rem. (prorrateo) | K57: =(+K10+K12)/5 -> 0 | L57: =+K57 -> 0 | M57: 0 | N57: 0 | O57: 0 | P57: 0
B58: 9 | C58: Sueldo Rem. (prorrateo) | L58: =(+L10+L12)/4 -> 0 | M58: =+L58 -> 0 | N58: 0 | O58: 0 | P58: 0
B59: 10 | C59: Sueldo Rem. (prorrateo) | M59: =(M10+M12)/3 -> 0 | N59: =+M59 -> 0 | O59: =+N59 -> 0 | P59: 0
B60: 11 | C60: Sueldo Rem. (prorrateo) | N60: =(+N10+N12)/2 -> 0 | O60: =+N60 -> 0 | P60: 0
B61: 12 | C61: Sueldo Rem. (prorrateo) | O61: =(+O10+O12)/1 -> 0 | P61: 0
C63: Deducciones Prorrateo | D63: =SUM(D64:D75) -> 0 | E63: =SUM(E64:E75) -> 0 | F63: 0 | G63: 0 | H63: 0 | I63: 0 | J63: 0 | K63: 0 | L63: 0 | M63: 0 | N63: 0 | O63: 0 | P63: =SUM(D63:O63) -> 0
B64: 1 | C64: Deducciones Prorrateo | D64: =+SUM(D$37:D$42)/12 -> 0 | E64: =+D64 -> 0 | F64: =+E64 -> 0 | G64: 0 | H64: 0 | I64: 0 | J64: 0 | K64: 0 | L64: 0 | M64: 0 | N64: 0 | O64: 0 | P64: 0
B65: =+B64+1 -> 2 | C65: Deducciones Prorrateo | E65: =+SUM(E$37:E$42)/11 -> 0 | F65: =+E65 -> 0 | G65: =+F65 -> 0 | H65: 0 | I65: 0 | J65: 0 | K65: 0 | L65: 0 | M65: 0 | N65: 0 | O65: 0 | P65: 0
B66: =+B65+1 -> 3 | C66: Deducciones Prorrateo | F66: =+SUM(F$37:F$42)/10 -> 0 | G66: =+F66 -> 0 | H66: 0 | I66: 0 | J66: 0 | K66: 0 | L66: 0 | M66: 0 | N66: 0 | O66: 0 | P66: 0
B67: 4 | C67: Deducciones Prorrateo | G67: =+SUM(G$37:G$42)/9 -> 0 | H67: =+G67 -> 0 | I67: =+H67 -> 0 | J67: 0 | K67: 0 | L67: 0 | M67: 0 | N67: 0 | O67: 0 | P67: 0
B68: 5 | C68: Deducciones Prorrateo | H68: =+SUM(H$37:H$42)/8 -> 0 | I68: =+H68 -> 0 | J68: 0 | K68: 0 | L68: 0 | M68: 0 | N68: 0 | O68: 0 | P68: 0
B69: 6 | C69: Deducciones Prorrateo | I69: =+SUM(I$37:I$42)/7 -> 0 | J69: =+I69 -> 0 | K69: 0 | L69: 0 | M69: 0 | N69: 0 | O69: 0 | P69: 0
B70: 7 | C70: Deducciones Prorrateo | J70: =+SUM(J$37:J$42)/6 -> 0 | K70: =+J70 -> 0 | L70: 0 | M70: 0 | N70: 0 | O70: 0 | P70: 0
B71: 8 | C71: Deducciones Prorrateo | K71: =+SUM(K$37:K$42)/5 -> 0 | L71: =+K71 -> 0 | M71: 0 | N71: 0 | O71: 0 | P71: 0
B72: 9 | C72: Deducciones Prorrateo | L72: =+SUM(L$37:L$42)/4 -> 0 | M72: =+L72 -> 0 | N72: 0 | O72: 0 | P72: 0
B73: 10 | C73: Deducciones Prorrateo | M73: =+SUM(M$37:M$42)/3 -> 0 | N73: =+M73 -> 0 | O73: 0 | P73: 0
B74: =+B73+1 -> 11 | C74: Deducciones Prorrateo | N74: =+SUM(N$37:N$42)/2 -> 0 | O74: =+N74 -> 0 | P74: 0
B75: =+B74+1 -> 12 | C75: Deducciones Prorrateo | O75: =+SUM(O$37:O$42) -> 0 | P75: 0
C78: Deducciones generales | D78: 2017-01-01 | E78: 2017-02-01 | F78: 2017-03-01 | G78: 2017-04-01 | H78: 2017-05-01 | I78: 2017-06-01 | J78: 2017-07-01 | K78: 2017-08-01 | L78: 2017-09-01 | M78: 2017-10-01 | N78: 2017-11-01 | O78: 2017-12-01 | P78: Anual
C79: Seguro de Vida | D79: =SUMIF(DedGrales!$D$79:$O$79,MONTH(Auxiliares!D$5),DedGrales!$D$77:$O$77) -> 0 | E79: =SUMIF(DedGrales!$D$79:$O$79,MONTH(Auxiliares!E$5),DedGrales!$D$77:$O$77) -> 0 | F79: =SUMIF(DedGrales!$D$79:$O$79,MONTH(Auxiliares!F$5),DedGrales!$D$77:$O$77) -> 0 | G79: =SUMIF(DedGrales!$D$79:$O$79,MONTH(Auxiliares!G$5),DedGrales!$D$77:$O$77) -> 0 | H79: =SUMIF(DedGrales!$D$79:$O$79,MONTH(Auxiliares!H$5),DedGrales!$D$77:$O$77) -> 0 | I79: =SUMIF(DedGrales!$D$79:$O$79,MONTH(Auxiliares!I$5),DedGrales!$D$77:$O$77) -> 0 | J79: =SUMIF(DedGrales!$D$79:$O$79,MONTH(Auxiliares!J$5),DedGrales!$D$77:$O$77) -> 0 | K79: =SUMIF(DedGrales!$D$79:$O$79,MONTH(Auxiliares!K$5),DedGrales!$D$77:$O$77) -> 0 | L79: =SUMIF(DedGrales!$D$79:$O$79,MONTH(Auxiliares!L$5),DedGrales!$D$77:$O$77) -> 0 | M79: =SUMIF(DedGrales!$D$79:$O$79,MONTH(Auxiliares!M$5),DedGrales!$D$77:$O$77) -> 0 | N79: =SUMIF(DedGrales!$D$79:$O$79,MONTH(Auxiliares!N$5),DedGrales!$D$77:$O$77) -> 0 | O79: =SUMIF(DedGrales!$D$79:$O$79,MONTH(Auxiliares!O$5),DedGrales!$D$77:$O$77) -> 0 | P79: =SUM(D79:O79) -> 0
C80: Gastos de Sepelio | D80: =SUMIF(DedGrales!$D$90:$O$90,MONTH(Auxiliares!D$5),DedGrales!$D$88:$O$88) -> 0 | E80: =SUMIF(DedGrales!$D$90:$O$90,MONTH(Auxiliares!E$5),DedGrales!$D$88:$O$88) -> 0 | F80: =SUMIF(DedGrales!$D$90:$O$90,MONTH(Auxiliares!F$5),DedGrales!$D$88:$O$88) -> 0 | G80: =SUMIF(DedGrales!$D$90:$O$90,MONTH(Auxiliares!G$5),DedGrales!$D$88:$O$88) -> 0 | H80: =SUMIF(DedGrales!$D$90:$O$90,MONTH(Auxiliares!H$5),DedGrales!$D$88:$O$88) -> 0 | I80: =SUMIF(DedGrales!$D$90:$O$90,MONTH(Auxiliares!I$5),DedGrales!$D$88:$O$88) -> 0 | J80: =SUMIF(DedGrales!$D$90:$O$90,MONTH(Auxiliares!J$5),DedGrales!$D$88:$O$88) -> 0 | K80: =SUMIF(DedGrales!$D$90:$O$90,MONTH(Auxiliares!K$5),DedGrales!$D$88:$O$88) -> 0 | L80: =SUMIF(DedGrales!$D$90:$O$90,MONTH(Auxiliares!L$5),DedGrales!$D$88:$O$88) -> 0 | M80: =SUMIF(DedGrales!$D$90:$O$90,MONTH(Auxiliares!M$5),DedGrales!$D$88:$O$88) -> 0 | N80: =SUMIF(DedGrales!$D$90:$O$90,MONTH(Auxiliares!N$5),DedGrales!$D$88:$O$88) -> 0 | O80: =SUMIF(DedGrales!$D$90:$O$90,MONTH(Auxiliares!O$5),DedGrales!$D$88:$O$88) -> 0 | P80: =SUM(D80:O80) -> 0
C81: Intereses Crédito Hipotecario | D81: =SUMIF(DedGrales!$D$107:$O$107,MONTH(Auxiliares!D$5),DedGrales!$D$105:$O$105) -> 0 | E81: =SUMIF(DedGrales!$D$107:$O$107,MONTH(Auxiliares!E$5),DedGrales!$D$105:$O$105) -> 0 | F81: =SUMIF(DedGrales!$D$107:$O$107,MONTH(Auxiliares!F$5),DedGrales!$D$105:$O$105) -> 0 | G81: =SUMIF(DedGrales!$D$107:$O$107,MONTH(Auxiliares!G$5),DedGrales!$D$105:$O$105) -> 0 | H81: =SUMIF(DedGrales!$D$107:$O$107,MONTH(Auxiliares!H$5),DedGrales!$D$105:$O$105) -> 0 | I81: =SUMIF(DedGrales!$D$107:$O$107,MONTH(Auxiliares!I$5),DedGrales!$D$105:$O$105) -> 0 | J81: =SUMIF(DedGrales!$D$107:$O$107,MONTH(Auxiliares!J$5),DedGrales!$D$105:$O$105) -> 0 | K81: =SUMIF(DedGrales!$D$107:$O$107,MONTH(Auxiliares!K$5),DedGrales!$D$105:$O$105) -> 0 | L81: =SUMIF(DedGrales!$D$107:$O$107,MONTH(Auxiliares!L$5),DedGrales!$D$105:$O$105) -> 0 | M81: =SUMIF(DedGrales!$D$107:$O$107,MONTH(Auxiliares!M$5),DedGrales!$D$105:$O$105) -> 0 | N81: =SUMIF(DedGrales!$D$107:$O$107,MONTH(Auxiliares!N$5),DedGrales!$D$105:$O$105) -> 0 | O81: =SUMIF(DedGrales!$D$107:$O$107,MONTH(Auxiliares!O$5),DedGrales!$D$105:$O$105) -> 0 | P81: 0
C82: Personal de Casas Particulares | D82: =SUMIF(DedGrales!$D$98:$O$98,MONTH(Auxiliares!D$5),DedGrales!$D$96:$O$96) -> 5274.8 | E82: =SUMIF(DedGrales!$D$98:$O$98,MONTH(Auxiliares!E$5),DedGrales!$D$96:$O$96) -> 0 | F82: =SUMIF(DedGrales!$D$98:$O$98,MONTH(Auxiliares!F$5),DedGrales!$D$96:$O$96) -> 0 | G82: =SUMIF(DedGrales!$D$98:$O$98,MONTH(Auxiliares!G$5),DedGrales!$D$96:$O$96) -> 0 | H82: =SUMIF(DedGrales!$D$98:$O$98,MONTH(Auxiliares!H$5),DedGrales!$D$96:$O$96) -> 0 | I82: =SUMIF(DedGrales!$D$98:$O$98,MONTH(Auxiliares!I$5),DedGrales!$D$96:$O$96) -> 0 | J82: =SUMIF(DedGrales!$D$98:$O$98,MONTH(Auxiliares!J$5),DedGrales!$D$96:$O$96) -> 0 | K82: =SUMIF(DedGrales!$D$98:$O$98,MONTH(Auxiliares!K$5),DedGrales!$D$96:$O$96) -> 0 | L82: =SUMIF(DedGrales!$D$98:$O$98,MONTH(Auxiliares!L$5),DedGrales!$D$96:$O$96) -> 0 | M82: =SUMIF(DedGrales!$D$98:$O$98,MONTH(Auxiliares!M$5),DedGrales!$D$96:$O$96) -> 0 | N82: =SUMIF(DedGrales!$D$98:$O$98,MONTH(Auxiliares!N$5),DedGrales!$D$96:$O$96) -> 0 | O82: =SUMIF(DedGrales!$D$98:$O$98,MONTH(Auxiliares!O$5),DedGrales!$D$96:$O$96) -> 0 | P82: 5274.8
C83: Aportes a fondos de jubilaciones | D83: =SUMIF(DedGrales!$D$45:$O$45,MONTH(Auxiliares!D$5),DedGrales!$D$43:$O$43) -> 0 | E83: =SUMIF(DedGrales!$D$45:$O$45,MONTH(Auxiliares!E$5),DedGrales!$D$43:$O$43) -> 0 | F83: =SUMIF(DedGrales!$D$45:$O$45,MONTH(Auxiliares!F$5),DedGrales!$D$43:$O$43) -> 0 | G83: =SUMIF(DedGrales!$D$45:$O$45,MONTH(Auxiliares!G$5),DedGrales!$D$43:$O$43) -> 0 | H83: =SUMIF(DedGrales!$D$45:$O$45,MONTH(Auxiliares!H$5),DedGrales!$D$43:$O$43) -> 0 | I83: =SUMIF(DedGrales!$D$45:$O$45,MONTH(Auxiliares!I$5),DedGrales!$D$43:$O$43) -> 0 | J83: =SUMIF(DedGrales!$D$45:$O$45,MONTH(Auxiliares!J$5),DedGrales!$D$43:$O$43) -> 0 | K83: =SUMIF(DedGrales!$D$45:$O$45,MONTH(Auxiliares!K$5),DedGrales!$D$43:$O$43) -> 0 | L83: =SUMIF(DedGrales!$D$45:$O$45,MONTH(Auxiliares!L$5),DedGrales!$D$43:$O$43) -> 0 | M83: =SUMIF(DedGrales!$D$45:$O$45,MONTH(Auxiliares!M$5),DedGrales!$D$43:$O$43) -> 0 | N83: =SUMIF(DedGrales!$D$45:$O$45,MONTH(Auxiliares!N$5),DedGrales!$D$43:$O$43) -> 0 | O83: =SUMIF(DedGrales!$D$45:$O$45,MONTH(Auxiliares!O$5),DedGrales!$D$43:$O$43) -> 0 | P83: 0
C84: Alquiler de casa habitación | D84: =SUMIF(DedGrales!$D$70:$O$70,MONTH(Auxiliares!D$5),DedGrales!$D$68:$O$68)*0.4 -> 2960 | E84: =SUMIF(DedGrales!$D$70:$O$70,MONTH(Auxiliares!E$5),DedGrales!$D$68:$O$68)*0.4 -> 0 | F84: =SUMIF(DedGrales!$D$70:$O$70,MONTH(Auxiliares!F$5),DedGrales!$D$68:$O$68)*0.4 -> 0 | G84: =SUMIF(DedGrales!$D$70:$O$70,MONTH(Auxiliares!G$5),DedGrales!$D$68:$O$68)*0.4 -> 0 | H84: =SUMIF(DedGrales!$D$70:$O$70,MONTH(Auxiliares!H$5),DedGrales!$D$68:$O$68)*0.4 -> 0 | I84: =SUMIF(DedGrales!$D$70:$O$70,MONTH(Auxiliares!I$5),DedGrales!$D$68:$O$68)*0.4 -> 0 | J84: =SUMIF(DedGrales!$D$70:$O$70,MONTH(Auxiliares!J$5),DedGrales!$D$68:$O$68)*0.4 -> 0 | K84: =SUMIF(DedGrales!$D$70:$O$70,MONTH(Auxiliares!K$5),DedGrales!$D$68:$O$68)*0.4 -> 0 | L84: =SUMIF(DedGrales!$D$70:$O$70,MONTH(Auxiliares!L$5),DedGrales!$D$68:$O$68)*0.4 -> 0 | M84: =SUMIF(DedGrales!$D$70:$O$70,MONTH(Auxiliares!M$5),DedGrales!$D$68:$O$68)*0.4 -> 0 | N84: =SUMIF(DedGrales!$D$70:$O$70,MONTH(Auxiliares!N$5),DedGrales!$D$68:$O$68)*0.4 -> 0 | O84: =SUMIF(DedGrales!$D$70:$O$70,MONTH(Auxiliares!O$5),DedGrales!$D$68:$O$68)*0.4 -> 0 | P84: 2960
C85: Viáticos | D85: =SUMIF(DedGrales!$D$150:$O$150,MONTH(Auxiliares!D$5),DedGrales!$D$148:$O$148) -> 1500 | E85: =SUMIF(DedGrales!$D$150:$O$150,MONTH(Auxiliares!E$5),DedGrales!$D$148:$O$148) -> 0 | F85: =SUMIF(DedGrales!$D$150:$O$150,MONTH(Auxiliares!F$5),DedGrales!$D$148:$O$148) -> 0 | G85: =SUMIF(DedGrales!$D$150:$O$150,MONTH(Auxiliares!G$5),DedGrales!$D$148:$O$148) -> 0 | H85: =SUMIF(DedGrales!$D$150:$O$150,MONTH(Auxiliares!H$5),DedGrales!$D$148:$O$148) -> 0 | I85: =SUMIF(DedGrales!$D$150:$O$150,MONTH(Auxiliares!I$5),DedGrales!$D$148:$O$148) -> 0 | J85: =SUMIF(DedGrales!$D$150:$O$150,MONTH(Auxiliares!J$5),DedGrales!$D$148:$O$148) -> 0 | K85: =SUMIF(DedGrales!$D$150:$O$150,MONTH(Auxiliares!K$5),DedGrales!$D$148:$O$148) -> 0 | L85: =SUMIF(DedGrales!$D$150:$O$150,MONTH(Auxiliares!L$5),DedGrales!$D$148:$O$148) -> 0 | M85: =SUMIF(DedGrales!$D$150:$O$150,MONTH(Auxiliares!M$5),DedGrales!$D$148:$O$148) -> 0 | N85: =SUMIF(DedGrales!$D$150:$O$150,MONTH(Auxiliares!N$5),DedGrales!$D$148:$O$148) -> 0 | O85: =SUMIF(DedGrales!$D$150:$O$150,MONTH(Auxiliares!O$5),DedGrales!$D$148:$O$148) -> 0 | P85: 1500
C86: Viáticos (larga distancia) | D86: =SUMIF(DedGrales!$D$179:$O$179,MONTH(Auxiliares!D$5),DedGrales!$D$177:$O$177) -> 0 | E86: =SUMIF(DedGrales!$D$179:$O$179,MONTH(Auxiliares!E$5),DedGrales!$D$177:$O$177) -> 0 | F86: =SUMIF(DedGrales!$D$179:$O$179,MONTH(Auxiliares!F$5),DedGrales!$D$177:$O$177) -> 0 | G86: =SUMIF(DedGrales!$D$179:$O$179,MONTH(Auxiliares!G$5),DedGrales!$D$177:$O$177) -> 0 | H86: =SUMIF(DedGrales!$D$179:$O$179,MONTH(Auxiliares!H$5),DedGrales!$D$177:$O$177) -> 0 | I86: =SUMIF(DedGrales!$D$179:$O$179,MONTH(Auxiliares!I$5),DedGrales!$D$177:$O$177) -> 0 | J86: =SUMIF(DedGrales!$D$179:$O$179,MONTH(Auxiliares!J$5),DedGrales!$D$177:$O$177) -> 0 | K86: =SUMIF(DedGrales!$D$179:$O$179,MONTH(Auxiliares!K$5),DedGrales!$D$177:$O$177) -> 0 | L86: =SUMIF(DedGrales!$D$179:$O$179,MONTH(Auxiliares!L$5),DedGrales!$D$177:$O$177) -> 0 | M86: =SUMIF(DedGrales!$D$179:$O$179,MONTH(Auxiliares!M$5),DedGrales!$D$177:$O$177) -> 0 | N86: =SUMIF(DedGrales!$D$179:$O$179,MONTH(Auxiliares!N$5),DedGrales!$D$177:$O$177) -> 0 | O86: =SUMIF(DedGrales!$D$179:$O$179,MONTH(Auxiliares!O$5),DedGrales!$D$177:$O$177) -> 0 | P86: 0
C87: Descuentos obligatorios | D87: =SUMIF(DedGrales!$D$37:$O$37,MONTH(Auxiliares!D$5),DedGrales!$D$35:$O$35) -> 0 | E87: =SUMIF(DedGrales!$D$37:$O$37,MONTH(Auxiliares!E$5),DedGrales!$D$35:$O$35) -> 0 | F87: =SUMIF(DedGrales!$D$37:$O$37,MONTH(Auxiliares!F$5),DedGrales!$D$35:$O$35) -> 0 | G87: =SUMIF(DedGrales!$D$37:$O$37,MONTH(Auxiliares!G$5),DedGrales!$D$35:$O$35) -> 0 | H87: =SUMIF(DedGrales!$D$37:$O$37,MONTH(Auxiliares!H$5),DedGrales!$D$35:$O$35) -> 0 | I87: =SUMIF(DedGrales!$D$37:$O$37,MONTH(Auxiliares!I$5),DedGrales!$D$35:$O$35) -> 0 | J87: =SUMIF(DedGrales!$D$37:$O$37,MONTH(Auxiliares!J$5),DedGrales!$D$35:$O$35) -> 0 | K87: =SUMIF(DedGrales!$D$37:$O$37,MONTH(Auxiliares!K$5),DedGrales!$D$35:$O$35) -> 0 | L87: =SUMIF(DedGrales!$D$37:$O$37,MONTH(Auxiliares!L$5),DedGrales!$D$35:$O$35) -> 0 | M87: =SUMIF(DedGrales!$D$37:$O$37,MONTH(Auxiliares!M$5),DedGrales!$D$35:$O$35) -> 0 | N87: =SUMIF(DedGrales!$D$37:$O$37,MONTH(Auxiliares!N$5),DedGrales!$D$35:$O$35) -> 0 | O87: =SUMIF(DedGrales!$D$37:$O$37,MONTH(Auxiliares!O$5),DedGrales!$D$35:$O$35) -> 0 | P87: 0
C88: SGR | D88: =SUMIF(DedGrales!$D$61:$O$61,MONTH(Auxiliares!D$5),DedGrales!$D$59:$O$59) -> 0 | E88: =SUMIF(DedGrales!$D$61:$O$61,MONTH(Auxiliares!E$5),DedGrales!$D$59:$O$59) -> 0 | F88: =SUMIF(DedGrales!$D$61:$O$61,MONTH(Auxiliares!F$5),DedGrales!$D$59:$O$59) -> 0 | G88: =SUMIF(DedGrales!$D$61:$O$61,MONTH(Auxiliares!G$5),DedGrales!$D$59:$O$59) -> 0 | H88: =SUMIF(DedGrales!$D$61:$O$61,MONTH(Auxiliares!H$5),DedGrales!$D$59:$O$59) -> 0 | I88: =SUMIF(DedGrales!$D$61:$O$61,MONTH(Auxiliares!I$5),DedGrales!$D$59:$O$59) -> 0 | J88: =SUMIF(DedGrales!$D$61:$O$61,MONTH(Auxiliares!J$5),DedGrales!$D$59:$O$59) -> 0 | K88: =SUMIF(DedGrales!$D$61:$O$61,MONTH(Auxiliares!K$5),DedGrales!$D$59:$O$59) -> 0 | L88: =SUMIF(DedGrales!$D$61:$O$61,MONTH(Auxiliares!L$5),DedGrales!$D$59:$O$59) -> 0 | M88: =SUMIF(DedGrales!$D$61:$O$61,MONTH(Auxiliares!M$5),DedGrales!$D$59:$O$59) -> 0 | N88: =SUMIF(DedGrales!$D$61:$O$61,MONTH(Auxiliares!N$5),DedGrales!$D$59:$O$59) -> 0 | O88: =SUMIF(DedGrales!$D$61:$O$61,MONTH(Auxiliares!O$5),DedGrales!$D$59:$O$59) -> 0 | P88: 0
C89: Cajas complementarias de previsión | D89: =SUMIF(DedGrales!$D$53:$O$53,MONTH(Auxiliares!D$5),DedGrales!$D$51:$O$51) -> 0 | E89: =SUMIF(DedGrales!$D$53:$O$53,MONTH(Auxiliares!E$5),DedGrales!$D$51:$O$51) -> 0 | F89: =SUMIF(DedGrales!$D$53:$O$53,MONTH(Auxiliares!F$5),DedGrales!$D$51:$O$51) -> 0 | G89: =SUMIF(DedGrales!$D$53:$O$53,MONTH(Auxiliares!G$5),DedGrales!$D$51:$O$51) -> 0 | H89: =SUMIF(DedGrales!$D$53:$O$53,MONTH(Auxiliares!H$5),DedGrales!$D$51:$O$51) -> 0 | I89: =SUMIF(DedGrales!$D$53:$O$53,MONTH(Auxiliares!I$5),DedGrales!$D$51:$O$51) -> 0 | J89: =SUMIF(DedGrales!$D$53:$O$53,MONTH(Auxiliares!J$5),DedGrales!$D$51:$O$51) -> 0 | K89: =SUMIF(DedGrales!$D$53:$O$53,MONTH(Auxiliares!K$5),DedGrales!$D$51:$O$51) -> 0 | L89: =SUMIF(DedGrales!$D$53:$O$53,MONTH(Auxiliares!L$5),DedGrales!$D$51:$O$51) -> 0 | M89: =SUMIF(DedGrales!$D$53:$O$53,MONTH(Auxiliares!M$5),DedGrales!$D$51:$O$51) -> 0 | N89: =SUMIF(DedGrales!$D$53:$O$53,MONTH(Auxiliares!N$5),DedGrales!$D$51:$O$51) -> 0 | O89: =SUMIF(DedGrales!$D$53:$O$53,MONTH(Auxiliares!O$5),DedGrales!$D$51:$O$51) -> 0 | P89: 0
C90: Viajantes | D90: =SUMIF(DedGrales!$D$141:$O$141,MONTH(Auxiliares!D$5),DedGrales!$D$139:$O$139) -> 0 | E90: =SUMIF(DedGrales!$D$141:$O$141,MONTH(Auxiliares!E$5),DedGrales!$D$139:$O$139) -> 0 | F90: =SUMIF(DedGrales!$D$141:$O$141,MONTH(Auxiliares!F$5),DedGrales!$D$139:$O$139) -> 0 | G90: =SUMIF(DedGrales!$D$141:$O$141,MONTH(Auxiliares!G$5),DedGrales!$D$139:$O$139) -> 0 | H90: =SUMIF(DedGrales!$D$141:$O$141,MONTH(Auxiliares!H$5),DedGrales!$D$139:$O$139) -> 0 | I90: =SUMIF(DedGrales!$D$141:$O$141,MONTH(Auxiliares!I$5),DedGrales!$D$139:$O$139) -> 0 | J90: =SUMIF(DedGrales!$D$141:$O$141,MONTH(Auxiliares!J$5),DedGrales!$D$139:$O$139) -> 0 | K90: =SUMIF(DedGrales!$D$141:$O$141,MONTH(Auxiliares!K$5),DedGrales!$D$139:$O$139) -> 0 | L90: =SUMIF(DedGrales!$D$141:$O$141,MONTH(Auxiliares!L$5),DedGrales!$D$139:$O$139) -> 0 | M90: =SUMIF(DedGrales!$D$141:$O$141,MONTH(Auxiliares!M$5),DedGrales!$D$139:$O$139) -> 0 | N90: =SUMIF(DedGrales!$D$141:$O$141,MONTH(Auxiliares!N$5),DedGrales!$D$139:$O$139) -> 0 | O90: =SUMIF(DedGrales!$D$141:$O$141,MONTH(Auxiliares!O$5),DedGrales!$D$139:$O$139) -> 0 | P90: 0
C91: Retiro privado | D91: =SUMIF(DedGrales!$D$160:$O$160,MONTH(Auxiliares!D$5),DedGrales!$D$158:$O$158) -> 0 | E91: =SUMIF(DedGrales!$D$160:$O$160,MONTH(Auxiliares!E$5),DedGrales!$D$158:$O$158) -> 0 | F91: =SUMIF(DedGrales!$D$160:$O$160,MONTH(Auxiliares!F$5),DedGrales!$D$158:$O$158) -> 0 | G91: =SUMIF(DedGrales!$D$160:$O$160,MONTH(Auxiliares!G$5),DedGrales!$D$158:$O$158) -> 0 | H91: =SUMIF(DedGrales!$D$160:$O$160,MONTH(Auxiliares!H$5),DedGrales!$D$158:$O$158) -> 0 | I91: =SUMIF(DedGrales!$D$160:$O$160,MONTH(Auxiliares!I$5),DedGrales!$D$158:$O$158) -> 0 | J91: =SUMIF(DedGrales!$D$160:$O$160,MONTH(Auxiliares!J$5),DedGrales!$D$158:$O$158) -> 0 | K91: =SUMIF(DedGrales!$D$160:$O$160,MONTH(Auxiliares!K$5),DedGrales!$D$158:$O$158) -> 0 | L91: =SUMIF(DedGrales!$D$160:$O$160,MONTH(Auxiliares!L$5),DedGrales!$D$158:$O$158) -> 0 | M91: =SUMIF(DedGrales!$D$160:$O$160,MONTH(Auxiliares!M$5),DedGrales!$D$158:$O$158) -> 0 | N91: =SUMIF(DedGrales!$D$160:$O$160,MONTH(Auxiliares!N$5),DedGrales!$D$158:$O$158) -> 0 | O91: =SUMIF(DedGrales!$D$160:$O$160,MONTH(Auxiliares!O$5),DedGrales!$D$158:$O$158) -> 0 | P91: 0
C92: Indumentaria | D92: =SUMIF(DedGrales!$D$170:$O$170,MONTH(Auxiliares!D$5),DedGrales!$D$168:$O$168) -> 0 | E92: =SUMIF(DedGrales!$D$170:$O$170,MONTH(Auxiliares!E$5),DedGrales!$D$168:$O$168) -> 0 | F92: =SUMIF(DedGrales!$D$170:$O$170,MONTH(Auxiliares!F$5),DedGrales!$D$168:$O$168) -> 0 | G92: =SUMIF(DedGrales!$D$170:$O$170,MONTH(Auxiliares!G$5),DedGrales!$D$168:$O$168) -> 0 | H92: =SUMIF(DedGrales!$D$170:$O$170,MONTH(Auxiliares!H$5),DedGrales!$D$168:$O$168) -> 0 | I92: =SUMIF(DedGrales!$D$170:$O$170,MONTH(Auxiliares!I$5),DedGrales!$D$168:$O$168) -> 0 | J92: =SUMIF(DedGrales!$D$170:$O$170,MONTH(Auxiliares!J$5),DedGrales!$D$168:$O$168) -> 0 | K92: =SUMIF(DedGrales!$D$170:$O$170,MONTH(Auxiliares!K$5),DedGrales!$D$168:$O$168) -> 0 | L92: =SUMIF(DedGrales!$D$170:$O$170,MONTH(Auxiliares!L$5),DedGrales!$D$168:$O$168) -> 0 | M92: =SUMIF(DedGrales!$D$170:$O$170,MONTH(Auxiliares!M$5),DedGrales!$D$168:$O$168) -> 0 | N92: =SUMIF(DedGrales!$D$170:$O$170,MONTH(Auxiliares!N$5),DedGrales!$D$168:$O$168) -> 0 | O92: =SUMIF(DedGrales!$D$170:$O$170,MONTH(Auxiliares!O$5),DedGrales!$D$168:$O$168) -> 0 | P92: =SUM(D92:O92) -> 0
C93: Tope (5% de la ganancia neta) | D93: =+Liquidacion!F73*0.05 -> 2665.261833 | E93: =+Liquidacion!G73*0.05 -> 2660.343333 | F93: =+Liquidacion!H73*0.05 -> 2660.343333 | G93: =+Liquidacion!I73*0.05 -> 2660.343333 | H93: =+Liquidacion!J73*0.05 -> 2660.343333 | I93: =+Liquidacion!K73*0.05 -> 2660.343333 | J93: =+Liquidacion!L73*0.05 -> 2660.343333 | K93: =+Liquidacion!M73*0.05 -> 2660.343333 | L93: =+Liquidacion!N73*0.05 -> 2660.343333 | M93: =+Liquidacion!O73*0.05 -> 2660.343333 | N93: =+Liquidacion!P73*0.05 -> 2660.343333 | O93: =+Liquidacion!Q73*0.05 -> 2660.343333 | P93: =+Liquidacion!S73*0.05 -> 2418.26
C94: Cuota Médico Asistencial | D94: =SUMIF(DedGrales!$D$116:$O$116,MONTH(Auxiliares!D$5),DedGrales!$D$114:$O$114) -> 0 | E94: =SUMIF(DedGrales!$D$116:$O$116,MONTH(Auxiliares!E$5),DedGrales!$D$114:$O$114) -> 0 | F94: =SUMIF(DedGrales!$D$116:$O$116,MONTH(Auxiliares!F$5),DedGrales!$D$114:$O$114) -> 0 | G94: =SUMIF(DedGrales!$D$116:$O$116,MONTH(Auxiliares!G$5),DedGrales!$D$114:$O$114) -> 0 | H94: =SUMIF(DedGrales!$D$116:$O$116,MONTH(Auxiliares!H$5),DedGrales!$D$114:$O$114) -> 0 | I94: =SUMIF(DedGrales!$D$116:$O$116,MONTH(Auxiliares!I$5),DedGrales!$D$114:$O$114) -> 0 | J94: =SUMIF(DedGrales!$D$116:$O$116,MONTH(Auxiliares!J$5),DedGrales!$D$114:$O$114) -> 0 | K94: =SUMIF(DedGrales!$D$116:$O$116,MONTH(Auxiliares!K$5),DedGrales!$D$114:$O$114) -> 0 | L94: =SUMIF(DedGrales!$D$116:$O$116,MONTH(Auxiliares!L$5),DedGrales!$D$114:$O$114) -> 0 | M94: =SUMIF(DedGrales!$D$116:$O$116,MONTH(Auxiliares!M$5),DedGrales!$D$114:$O$114) -> 0 | N94: =SUMIF(DedGrales!$D$116:$O$116,MONTH(Auxiliares!N$5),DedGrales!$D$114:$O$114) -> 0 | O94: =SUMIF(DedGrales!$D$116:$O$116,MONTH(Auxiliares!O$5),DedGrales!$D$114:$O$114) -> 0 | P94: 0
C95: Donaciones | D95: =SUMIF(DedGrales!$D$125:$O$125,MONTH(Auxiliares!D$5),DedGrales!$D$123:$O$123) -> 0 | E95: =SUMIF(DedGrales!$D$125:$O$125,MONTH(Auxiliares!E$5),DedGrales!$D$123:$O$123) -> 0 | F95: =SUMIF(DedGrales!$D$125:$O$125,MONTH(Auxiliares!F$5),DedGrales!$D$123:$O$123) -> 0 | G95: =SUMIF(DedGrales!$D$125:$O$125,MONTH(Auxiliares!G$5),DedGrales!$D$123:$O$123) -> 0 | H95: =SUMIF(DedGrales!$D$125:$O$125,MONTH(Auxiliares!H$5),DedGrales!$D$123:$O$123) -> 0 | I95: =SUMIF(DedGrales!$D$125:$O$125,MONTH(Auxiliares!I$5),DedGrales!$D$123:$O$123) -> 0 | J95: =SUMIF(DedGrales!$D$125:$O$125,MONTH(Auxiliares!J$5),DedGrales!$D$123:$O$123) -> 0 | K95: =SUMIF(DedGrales!$D$125:$O$125,MONTH(Auxiliares!K$5),DedGrales!$D$123:$O$123) -> 0 | L95: =SUMIF(DedGrales!$D$125:$O$125,MONTH(Auxiliares!L$5),DedGrales!$D$123:$O$123) -> 0 | M95: =SUMIF(DedGrales!$D$125:$O$125,MONTH(Auxiliares!M$5),DedGrales!$D$123:$O$123) -> 0 | N95: =SUMIF(DedGrales!$D$125:$O$125,MONTH(Auxiliares!N$5),DedGrales!$D$123:$O$123) -> 0 | O95: =SUMIF(DedGrales!$D$125:$O$125,MONTH(Auxiliares!O$5),DedGrales!$D$123:$O$123) -> 0 | P95: 0
C96: Honorarios Médicos Profesionales | P96: =SUM(DedGrales!$D$131:$O$131)*0.4 -> 0
C99: Deducciones personales | D99: 2017-01-01 | E99: 2017-02-01 | F99: 2017-03-01 | G99: 2017-04-01 | H99: 2017-05-01 | I99: 2017-06-01 | J99: 2017-07-01 | K99: 2017-08-01 | L99: 2017-09-01 | M99: 2017-10-01 | N99: 2017-11-01 | O99: 2017-12-01 | P99: Anual
C100: Alta/baja
C101: Cónyuge | D101: =COUNTIF(DedPersonales!$E$8,"<="&MONTH(Auxiliares!D99))-COUNTIF(DedPersonales!$F$8,"<"&MONTH(Auxiliares!D99)) -> 0 | E101: =COUNTIF(DedPersonales!$E$8,"<="&MONTH(Auxiliares!E99))-COUNTIF(DedPersonales!$F$8,"<"&MONTH(Auxiliares!E99)) -> 0 | F101: =COUNTIF(DedPersonales!$E$8,"<="&MONTH(Auxiliares!F99))-COUNTIF(DedPersonales!$F$8,"<"&MONTH(Auxiliares!F99)) -> 0 | G101: =COUNTIF(DedPersonales!$E$8,"<="&MONTH(Auxiliares!G99))-COUNTIF(DedPersonales!$F$8,"<"&MONTH(Auxiliares!G99)) -> 0 | H101: =COUNTIF(DedPersonales!$E$8,"<="&MONTH(Auxiliares!H99))-COUNTIF(DedPersonales!$F$8,"<"&MONTH(Auxiliares!H99)) -> 0 | I101: =COUNTIF(DedPersonales!$E$8,"<="&MONTH(Auxiliares!I99))-COUNTIF(DedPersonales!$F$8,"<"&MONTH(Auxiliares!I99)) -> 0 | J101: =COUNTIF(DedPersonales!$E$8,"<="&MONTH(Auxiliares!J99))-COUNTIF(DedPersonales!$F$8,"<"&MONTH(Auxiliares!J99)) -> 0 | K101: =COUNTIF(DedPersonales!$E$8,"<="&MONTH(Auxiliares!K99))-COUNTIF(DedPersonales!$F$8,"<"&MONTH(Auxiliares!K99)) -> 0 | L101: =COUNTIF(DedPersonales!$E$8,"<="&MONTH(Auxiliares!L99))-COUNTIF(DedPersonales!$F$8,"<"&MONTH(Auxiliares!L99)) -> 0 | M101: =COUNTIF(DedPersonales!$E$8,"<="&MONTH(Auxiliares!M99))-COUNTIF(DedPersonales!$F$8,"<"&MONTH(Auxiliares!M99)) -> 0 | N101: =COUNTIF(DedPersonales!$E$8,"<="&MONTH(Auxiliares!N99))-COUNTIF(DedPersonales!$F$8,"<"&MONTH(Auxiliares!N99)) -> 0 | O101: =COUNTIF(DedPersonales!$E$8,"<="&MONTH(Auxiliares!O99))-COUNTIF(DedPersonales!$F$8,"<"&MONTH(Auxiliares!O99)) -> 0
C103: Hijo1 | D103: =COUNTIF(DedPersonales!$E13,"<="&MONTH(Auxiliares!D$99))-COUNTIF(DedPersonales!$F13,"<"&MONTH(Auxiliares!D$99)) -> 1 | E103: =COUNTIF(DedPersonales!$E13,"<="&MONTH(Auxiliares!E$99))-COUNTIF(DedPersonales!$F13,"<"&MONTH(Auxiliares!E$99)) -> 1 | F103: =COUNTIF(DedPersonales!$E13,"<="&MONTH(Auxiliares!F$99))-COUNTIF(DedPersonales!$F13,"<"&MONTH(Auxiliares!F$99)) -> 1 | G103: =COUNTIF(DedPersonales!$E13,"<="&MONTH(Auxiliares!G$99))-COUNTIF(DedPersonales!$F13,"<"&MONTH(Auxiliares!G$99)) -> 1 | H103: =COUNTIF(DedPersonales!$E13,"<="&MONTH(Auxiliares!H$99))-COUNTIF(DedPersonales!$F13,"<"&MONTH(Auxiliares!H$99)) -> 1 | I103: =COUNTIF(DedPersonales!$E13,"<="&MONTH(Auxiliares!I$99))-COUNTIF(DedPersonales!$F13,"<"&MONTH(Auxiliares!I$99)) -> 1 | J103: =COUNTIF(DedPersonales!$E13,"<="&MONTH(Auxiliares!J$99))-COUNTIF(DedPersonales!$F13,"<"&MONTH(Auxiliares!J$99)) -> 1 | K103: =COUNTIF(DedPersonales!$E13,"<="&MONTH(Auxiliares!K$99))-COUNTIF(DedPersonales!$F13,"<"&MONTH(Auxiliares!K$99)) -> 1 | L103: =COUNTIF(DedPersonales!$E13,"<="&MONTH(Auxiliares!L$99))-COUNTIF(DedPersonales!$F13,"<"&MONTH(Auxiliares!L$99)) -> 1 | M103: =COUNTIF(DedPersonales!$E13,"<="&MONTH(Auxiliares!M$99))-COUNTIF(DedPersonales!$F13,"<"&MONTH(Auxiliares!M$99)) -> 1 | N103: =COUNTIF(DedPersonales!$E13,"<="&MONTH(Auxiliares!N$99))-COUNTIF(DedPersonales!$F13,"<"&MONTH(Auxiliares!N$99)) -> 1 | O103: =COUNTIF(DedPersonales!$E13,"<="&MONTH(Auxiliares!O$99))-COUNTIF(DedPersonales!$F13,"<"&MONTH(Auxiliares!O$99)) -> 1 | Q103: =IF(SUM(D103:O103)<>0,1,0) -> 1
C104: Hijo2 | D104: =COUNTIF(DedPersonales!$E14,"<="&MONTH(Auxiliares!D$99))-COUNTIF(DedPersonales!$F14,"<"&MONTH(Auxiliares!D$99)) -> 0 | E104: =COUNTIF(DedPersonales!$E14,"<="&MONTH(Auxiliares!E$99))-COUNTIF(DedPersonales!$F14,"<"&MONTH(Auxiliares!E$99)) -> 0 | F104: =COUNTIF(DedPersonales!$E14,"<="&MONTH(Auxiliares!F$99))-COUNTIF(DedPersonales!$F14,"<"&MONTH(Auxiliares!F$99)) -> 0 | G104: =COUNTIF(DedPersonales!$E14,"<="&MONTH(Auxiliares!G$99))-COUNTIF(DedPersonales!$F14,"<"&MONTH(Auxiliares!G$99)) -> 0 | H104: =COUNTIF(DedPersonales!$E14,"<="&MONTH(Auxiliares!H$99))-COUNTIF(DedPersonales!$F14,"<"&MONTH(Auxiliares!H$99)) -> 0 | I104: =COUNTIF(DedPersonales!$E14,"<="&MONTH(Auxiliares!I$99))-COUNTIF(DedPersonales!$F14,"<"&MONTH(Auxiliares!I$99)) -> 0 | J104: =COUNTIF(DedPersonales!$E14,"<="&MONTH(Auxiliares!J$99))-COUNTIF(DedPersonales!$F14,"<"&MONTH(Auxiliares!J$99)) -> 0 | K104: =COUNTIF(DedPersonales!$E14,"<="&MONTH(Auxiliares!K$99))-COUNTIF(DedPersonales!$F14,"<"&MONTH(Auxiliares!K$99)) -> 0 | L104: =COUNTIF(DedPersonales!$E14,"<="&MONTH(Auxiliares!L$99))-COUNTIF(DedPersonales!$F14,"<"&MONTH(Auxiliares!L$99)) -> 0 | M104: =COUNTIF(DedPersonales!$E14,"<="&MONTH(Auxiliares!M$99))-COUNTIF(DedPersonales!$F14,"<"&MONTH(Auxiliares!M$99)) -> 0 | N104: =COUNTIF(DedPersonales!$E14,"<="&MONTH(Auxiliares!N$99))-COUNTIF(DedPersonales!$F14,"<"&MONTH(Auxiliares!N$99)) -> 0 | O104: =COUNTIF(DedPersonales!$E14,"<="&MONTH(Auxiliares!O$99))-COUNTIF(DedPersonales!$F14,"<"&MONTH(Auxiliares!O$99)) -> 0 | Q104: =IF(SUM(D104:O104)<>0,1,0) -> 0
C105: Hijo3 | D105: =COUNTIF(DedPersonales!$E15,"<="&MONTH(Auxiliares!D$99))-COUNTIF(DedPersonales!$F15,"<"&MONTH(Auxiliares!D$99)) -> 0 | E105: =COUNTIF(DedPersonales!$E15,"<="&MONTH(Auxiliares!E$99))-COUNTIF(DedPersonales!$F15,"<"&MONTH(Auxiliares!E$99)) -> 0 | F105: =COUNTIF(DedPersonales!$E15,"<="&MONTH(Auxiliares!F$99))-COUNTIF(DedPersonales!$F15,"<"&MONTH(Auxiliares!F$99)) -> 0 | G105: =COUNTIF(DedPersonales!$E15,"<="&MONTH(Auxiliares!G$99))-COUNTIF(DedPersonales!$F15,"<"&MONTH(Auxiliares!G$99)) -> 0 | H105: =COUNTIF(DedPersonales!$E15,"<="&MONTH(Auxiliares!H$99))-COUNTIF(DedPersonales!$F15,"<"&MONTH(Auxiliares!H$99)) -> 0 | I105: =COUNTIF(DedPersonales!$E15,"<="&MONTH(Auxiliares!I$99))-COUNTIF(DedPersonales!$F15,"<"&MONTH(Auxiliares!I$99)) -> 0 | J105: =COUNTIF(DedPersonales!$E15,"<="&MONTH(Auxiliares!J$99))-COUNTIF(DedPersonales!$F15,"<"&MONTH(Auxiliares!J$99)) -> 0 | K105: =COUNTIF(DedPersonales!$E15,"<="&MONTH(Auxiliares!K$99))-COUNTIF(DedPersonales!$F15,"<"&MONTH(Auxiliares!K$99)) -> 0 | L105: =COUNTIF(DedPersonales!$E15,"<="&MONTH(Auxiliares!L$99))-COUNTIF(DedPersonales!$F15,"<"&MONTH(Auxiliares!L$99)) -> 0 | M105: =COUNTIF(DedPersonales!$E15,"<="&MONTH(Auxiliares!M$99))-COUNTIF(DedPersonales!$F15,"<"&MONTH(Auxiliares!M$99)) -> 0 | N105: =COUNTIF(DedPersonales!$E15,"<="&MONTH(Auxiliares!N$99))-COUNTIF(DedPersonales!$F15,"<"&MONTH(Auxiliares!N$99)) -> 0 | O105: =COUNTIF(DedPersonales!$E15,"<="&MONTH(Auxiliares!O$99))-COUNTIF(DedPersonales!$F15,"<"&MONTH(Auxiliares!O$99)) -> 0 | Q105: 0
C106: Hijo4 | D106: =COUNTIF(DedPersonales!$E16,"<="&MONTH(Auxiliares!D$99))-COUNTIF(DedPersonales!$F16,"<"&MONTH(Auxiliares!D$99)) -> 0 | E106: =COUNTIF(DedPersonales!$E16,"<="&MONTH(Auxiliares!E$99))-COUNTIF(DedPersonales!$F16,"<"&MONTH(Auxiliares!E$99)) -> 0 | F106: =COUNTIF(DedPersonales!$E16,"<="&MONTH(Auxiliares!F$99))-COUNTIF(DedPersonales!$F16,"<"&MONTH(Auxiliares!F$99)) -> 0 | G106: =COUNTIF(DedPersonales!$E16,"<="&MONTH(Auxiliares!G$99))-COUNTIF(DedPersonales!$F16,"<"&MONTH(Auxiliares!G$99)) -> 0 | H106: =COUNTIF(DedPersonales!$E16,"<="&MONTH(Auxiliares!H$99))-COUNTIF(DedPersonales!$F16,"<"&MONTH(Auxiliares!H$99)) -> 0 | I106: =COUNTIF(DedPersonales!$E16,"<="&MONTH(Auxiliares!I$99))-COUNTIF(DedPersonales!$F16,"<"&MONTH(Auxiliares!I$99)) -> 0 | J106: =COUNTIF(DedPersonales!$E16,"<="&MONTH(Auxiliares!J$99))-COUNTIF(DedPersonales!$F16,"<"&MONTH(Auxiliares!J$99)) -> 0 | K106: =COUNTIF(DedPersonales!$E16,"<="&MONTH(Auxiliares!K$99))-COUNTIF(DedPersonales!$F16,"<"&MONTH(Auxiliares!K$99)) -> 0 | L106: =COUNTIF(DedPersonales!$E16,"<="&MONTH(Auxiliares!L$99))-COUNTIF(DedPersonales!$F16,"<"&MONTH(Auxiliares!L$99)) -> 0 | M106: =COUNTIF(DedPersonales!$E16,"<="&MONTH(Auxiliares!M$99))-COUNTIF(DedPersonales!$F16,"<"&MONTH(Auxiliares!M$99)) -> 0 | N106: =COUNTIF(DedPersonales!$E16,"<="&MONTH(Auxiliares!N$99))-COUNTIF(DedPersonales!$F16,"<"&MONTH(Auxiliares!N$99)) -> 0 | O106: =COUNTIF(DedPersonales!$E16,"<="&MONTH(Auxiliares!O$99))-COUNTIF(DedPersonales!$F16,"<"&MONTH(Auxiliares!O$99)) -> 0 | Q106: 0
C107: Hijo5 | D107: =COUNTIF(DedPersonales!$E17,"<="&MONTH(Auxiliares!D$99))-COUNTIF(DedPersonales!$F17,"<"&MONTH(Auxiliares!D$99)) -> 0 | E107: =COUNTIF(DedPersonales!$E17,"<="&MONTH(Auxiliares!E$99))-COUNTIF(DedPersonales!$F17,"<"&MONTH(Auxiliares!E$99)) -> 0 | F107: =COUNTIF(DedPersonales!$E17,"<="&MONTH(Auxiliares!F$99))-COUNTIF(DedPersonales!$F17,"<"&MONTH(Auxiliares!F$99)) -> 0 | G107: =COUNTIF(DedPersonales!$E17,"<="&MONTH(Auxiliares!G$99))-COUNTIF(DedPersonales!$F17,"<"&MONTH(Auxiliares!G$99)) -> 0 | H107: =COUNTIF(DedPersonales!$E17,"<="&MONTH(Auxiliares!H$99))-COUNTIF(DedPersonales!$F17,"<"&MONTH(Auxiliares!H$99)) -> 0 | I107: =COUNTIF(DedPersonales!$E17,"<="&MONTH(Auxiliares!I$99))-COUNTIF(DedPersonales!$F17,"<"&MONTH(Auxiliares!I$99)) -> 0 | J107: =COUNTIF(DedPersonales!$E17,"<="&MONTH(Auxiliares!J$99))-COUNTIF(DedPersonales!$F17,"<"&MONTH(Auxiliares!J$99)) -> 0 | K107: =COUNTIF(DedPersonales!$E17,"<="&MONTH(Auxiliares!K$99))-COUNTIF(DedPersonales!$F17,"<"&MONTH(Auxiliares!K$99)) -> 0 | L107: =COUNTIF(DedPersonales!$E17,"<="&MONTH(Auxiliares!L$99))-COUNTIF(DedPersonales!$F17,"<"&MONTH(Auxiliares!L$99)) -> 0 | M107: =COUNTIF(DedPersonales!$E17,"<="&MONTH(Auxiliares!M$99))-COUNTIF(DedPersonales!$F17,"<"&MONTH(Auxiliares!M$99)) -> 0 | N107: =COUNTIF(DedPersonales!$E17,"<="&MONTH(Auxiliares!N$99))-COUNTIF(DedPersonales!$F17,"<"&MONTH(Auxiliares!N$99)) -> 0 | O107: =COUNTIF(DedPersonales!$E17,"<="&MONTH(Auxiliares!O$99))-COUNTIF(DedPersonales!$F17,"<"&MONTH(Auxiliares!O$99)) -> 0 | Q107: 0
C108: Hijo6 | D108: =COUNTIF(DedPersonales!$E18,"<="&MONTH(Auxiliares!D$99))-COUNTIF(DedPersonales!$F18,"<"&MONTH(Auxiliares!D$99)) -> 0 | E108: =COUNTIF(DedPersonales!$E18,"<="&MONTH(Auxiliares!E$99))-COUNTIF(DedPersonales!$F18,"<"&MONTH(Auxiliares!E$99)) -> 0 | F108: =COUNTIF(DedPersonales!$E18,"<="&MONTH(Auxiliares!F$99))-COUNTIF(DedPersonales!$F18,"<"&MONTH(Auxiliares!F$99)) -> 0 | G108: =COUNTIF(DedPersonales!$E18,"<="&MONTH(Auxiliares!G$99))-COUNTIF(DedPersonales!$F18,"<"&MONTH(Auxiliares!G$99)) -> 0 | H108: =COUNTIF(DedPersonales!$E18,"<="&MONTH(Auxiliares!H$99))-COUNTIF(DedPersonales!$F18,"<"&MONTH(Auxiliares!H$99)) -> 0 | I108: =COUNTIF(DedPersonales!$E18,"<="&MONTH(Auxiliares!I$99))-COUNTIF(DedPersonales!$F18,"<"&MONTH(Auxiliares!I$99)) -> 0 | J108: =COUNTIF(DedPersonales!$E18,"<="&MONTH(Auxiliares!J$99))-COUNTIF(DedPersonales!$F18,"<"&MONTH(Auxiliares!J$99)) -> 0 | K108: =COUNTIF(DedPersonales!$E18,"<="&MONTH(Auxiliares!K$99))-COUNTIF(DedPersonales!$F18,"<"&MONTH(Auxiliares!K$99)) -> 0 | L108: =COUNTIF(DedPersonales!$E18,"<="&MONTH(Auxiliares!L$99))-COUNTIF(DedPersonales!$F18,"<"&MONTH(Auxiliares!L$99)) -> 0 | M108: =COUNTIF(DedPersonales!$E18,"<="&MONTH(Auxiliares!M$99))-COUNTIF(DedPersonales!$F18,"<"&MONTH(Auxiliares!M$99)) -> 0 | N108: =COUNTIF(DedPersonales!$E18,"<="&MONTH(Auxiliares!N$99))-COUNTIF(DedPersonales!$F18,"<"&MONTH(Auxiliares!N$99)) -> 0 | O108: =COUNTIF(DedPersonales!$E18,"<="&MONTH(Auxiliares!O$99))-COUNTIF(DedPersonales!$F18,"<"&MONTH(Auxiliares!O$99)) -> 0 | Q108: 0
C109: Hijo7 | D109: =COUNTIF(DedPersonales!$E19,"<="&MONTH(Auxiliares!D$99))-COUNTIF(DedPersonales!$F19,"<"&MONTH(Auxiliares!D$99)) -> 0 | E109: =COUNTIF(DedPersonales!$E19,"<="&MONTH(Auxiliares!E$99))-COUNTIF(DedPersonales!$F19,"<"&MONTH(Auxiliares!E$99)) -> 0 | F109: =COUNTIF(DedPersonales!$E19,"<="&MONTH(Auxiliares!F$99))-COUNTIF(DedPersonales!$F19,"<"&MONTH(Auxiliares!F$99)) -> 0 | G109: =COUNTIF(DedPersonales!$E19,"<="&MONTH(Auxiliares!G$99))-COUNTIF(DedPersonales!$F19,"<"&MONTH(Auxiliares!G$99)) -> 0 | H109: =COUNTIF(DedPersonales!$E19,"<="&MONTH(Auxiliares!H$99))-COUNTIF(DedPersonales!$F19,"<"&MONTH(Auxiliares!H$99)) -> 0 | I109: =COUNTIF(DedPersonales!$E19,"<="&MONTH(Auxiliares!I$99))-COUNTIF(DedPersonales!$F19,"<"&MONTH(Auxiliares!I$99)) -> 0 | J109: =COUNTIF(DedPersonales!$E19,"<="&MONTH(Auxiliares!J$99))-COUNTIF(DedPersonales!$F19,"<"&MONTH(Auxiliares!J$99)) -> 0 | K109: =COUNTIF(DedPersonales!$E19,"<="&MONTH(Auxiliares!K$99))-COUNTIF(DedPersonales!$F19,"<"&MONTH(Auxiliares!K$99)) -> 0 | L109: =COUNTIF(DedPersonales!$E19,"<="&MONTH(Auxiliares!L$99))-COUNTIF(DedPersonales!$F19,"<"&MONTH(Auxiliares!L$99)) -> 0 | M109: =COUNTIF(DedPersonales!$E19,"<="&MONTH(Auxiliares!M$99))-COUNTIF(DedPersonales!$F19,"<"&MONTH(Auxiliares!M$99)) -> 0 | N109: =COUNTIF(DedPersonales!$E19,"<="&MONTH(Auxiliares!N$99))-COUNTIF(DedPersonales!$F19,"<"&MONTH(Auxiliares!N$99)) -> 0 | O109: =COUNTIF(DedPersonales!$E19,"<="&MONTH(Auxiliares!O$99))-COUNTIF(DedPersonales!$F19,"<"&MONTH(Auxiliares!O$99)) -> 0 | Q109: 0
C110: Hijo8 | D110: =COUNTIF(DedPersonales!$E20,"<="&MONTH(Auxiliares!D$99))-COUNTIF(DedPersonales!$F20,"<"&MONTH(Auxiliares!D$99)) -> 0 | E110: =COUNTIF(DedPersonales!$E20,"<="&MONTH(Auxiliares!E$99))-COUNTIF(DedPersonales!$F20,"<"&MONTH(Auxiliares!E$99)) -> 0 | F110: =COUNTIF(DedPersonales!$E20,"<="&MONTH(Auxiliares!F$99))-COUNTIF(DedPersonales!$F20,"<"&MONTH(Auxiliares!F$99)) -> 0 | G110: =COUNTIF(DedPersonales!$E20,"<="&MONTH(Auxiliares!G$99))-COUNTIF(DedPersonales!$F20,"<"&MONTH(Auxiliares!G$99)) -> 0 | H110: =COUNTIF(DedPersonales!$E20,"<="&MONTH(Auxiliares!H$99))-COUNTIF(DedPersonales!$F20,"<"&MONTH(Auxiliares!H$99)) -> 0 | I110: =COUNTIF(DedPersonales!$E20,"<="&MONTH(Auxiliares!I$99))-COUNTIF(DedPersonales!$F20,"<"&MONTH(Auxiliares!I$99)) -> 0 | J110: =COUNTIF(DedPersonales!$E20,"<="&MONTH(Auxiliares!J$99))-COUNTIF(DedPersonales!$F20,"<"&MONTH(Auxiliares!J$99)) -> 0 | K110: =COUNTIF(DedPersonales!$E20,"<="&MONTH(Auxiliares!K$99))-COUNTIF(DedPersonales!$F20,"<"&MONTH(Auxiliares!K$99)) -> 0 | L110: =COUNTIF(DedPersonales!$E20,"<="&MONTH(Auxiliares!L$99))-COUNTIF(DedPersonales!$F20,"<"&MONTH(Auxiliares!L$99)) -> 0 | M110: =COUNTIF(DedPersonales!$E20,"<="&MONTH(Auxiliares!M$99))-COUNTIF(DedPersonales!$F20,"<"&MONTH(Auxiliares!M$99)) -> 0 | N110: =COUNTIF(DedPersonales!$E20,"<="&MONTH(Auxiliares!N$99))-COUNTIF(DedPersonales!$F20,"<"&MONTH(Auxiliares!N$99)) -> 0 | O110: =COUNTIF(DedPersonales!$E20,"<="&MONTH(Auxiliares!O$99))-COUNTIF(DedPersonales!$F20,"<"&MONTH(Auxiliares!O$99)) -> 0 | Q110: 0
C111: Hijo9 | D111: =COUNTIF(DedPersonales!$E21,"<="&MONTH(Auxiliares!D$99))-COUNTIF(DedPersonales!$F21,"<"&MONTH(Auxiliares!D$99)) -> 0 | E111: =COUNTIF(DedPersonales!$E21,"<="&MONTH(Auxiliares!E$99))-COUNTIF(DedPersonales!$F21,"<"&MONTH(Auxiliares!E$99)) -> 0 | F111: =COUNTIF(DedPersonales!$E21,"<="&MONTH(Auxiliares!F$99))-COUNTIF(DedPersonales!$F21,"<"&MONTH(Auxiliares!F$99)) -> 0 | G111: =COUNTIF(DedPersonales!$E21,"<="&MONTH(Auxiliares!G$99))-COUNTIF(DedPersonales!$F21,"<"&MONTH(Auxiliares!G$99)) -> 0 | H111: =COUNTIF(DedPersonales!$E21,"<="&MONTH(Auxiliares!H$99))-COUNTIF(DedPersonales!$F21,"<"&MONTH(Auxiliares!H$99)) -> 0 | I111: =COUNTIF(DedPersonales!$E21,"<="&MONTH(Auxiliares!I$99))-COUNTIF(DedPersonales!$F21,"<"&MONTH(Auxiliares!I$99)) -> 0 | J111: =COUNTIF(DedPersonales!$E21,"<="&MONTH(Auxiliares!J$99))-COUNTIF(DedPersonales!$F21,"<"&MONTH(Auxiliares!J$99)) -> 0 | K111: =COUNTIF(DedPersonales!$E21,"<="&MONTH(Auxiliares!K$99))-COUNTIF(DedPersonales!$F21,"<"&MONTH(Auxiliares!K$99)) -> 0 | L111: =COUNTIF(DedPersonales!$E21,"<="&MONTH(Auxiliares!L$99))-COUNTIF(DedPersonales!$F21,"<"&MONTH(Auxiliares!L$99)) -> 0 | M111: =COUNTIF(DedPersonales!$E21,"<="&MONTH(Auxiliares!M$99))-COUNTIF(DedPersonales!$F21,"<"&MONTH(Auxiliares!M$99)) -> 0 | N111: =COUNTIF(DedPersonales!$E21,"<="&MONTH(Auxiliares!N$99))-COUNTIF(DedPersonales!$F21,"<"&MONTH(Auxiliares!N$99)) -> 0 | O111: =COUNTIF(DedPersonales!$E21,"<="&MONTH(Auxiliares!O$99))-COUNTIF(DedPersonales!$F21,"<"&MONTH(Auxiliares!O$99)) -> 0 | Q111: 0
C112: Hijo10 | D112: =COUNTIF(DedPersonales!$E22,"<="&MONTH(Auxiliares!D$99))-COUNTIF(DedPersonales!$F22,"<"&MONTH(Auxiliares!D$99)) -> 0 | E112: =COUNTIF(DedPersonales!$E22,"<="&MONTH(Auxiliares!E$99))-COUNTIF(DedPersonales!$F22,"<"&MONTH(Auxiliares!E$99)) -> 0 | F112: =COUNTIF(DedPersonales!$E22,"<="&MONTH(Auxiliares!F$99))-COUNTIF(DedPersonales!$F22,"<"&MONTH(Auxiliares!F$99)) -> 0 | G112: =COUNTIF(DedPersonales!$E22,"<="&MONTH(Auxiliares!G$99))-COUNTIF(DedPersonales!$F22,"<"&MONTH(Auxiliares!G$99)) -> 0 | H112: =COUNTIF(DedPersonales!$E22,"<="&MONTH(Auxiliares!H$99))-COUNTIF(DedPersonales!$F22,"<"&MONTH(Auxiliares!H$99)) -> 0 | I112: =COUNTIF(DedPersonales!$E22,"<="&MONTH(Auxiliares!I$99))-COUNTIF(DedPersonales!$F22,"<"&MONTH(Auxiliares!I$99)) -> 0 | J112: =COUNTIF(DedPersonales!$E22,"<="&MONTH(Auxiliares!J$99))-COUNTIF(DedPersonales!$F22,"<"&MONTH(Auxiliares!J$99)) -> 0 | K112: =COUNTIF(DedPersonales!$E22,"<="&MONTH(Auxiliares!K$99))-COUNTIF(DedPersonales!$F22,"<"&MONTH(Auxiliares!K$99)) -> 0 | L112: =COUNTIF(DedPersonales!$E22,"<="&MONTH(Auxiliares!L$99))-COUNTIF(DedPersonales!$F22,"<"&MONTH(Auxiliares!L$99)) -> 0 | M112: =COUNTIF(DedPersonales!$E22,"<="&MONTH(Auxiliares!M$99))-COUNTIF(DedPersonales!$F22,"<"&MONTH(Auxiliares!M$99)) -> 0 | N112: =COUNTIF(DedPersonales!$E22,"<="&MONTH(Auxiliares!N$99))-COUNTIF(DedPersonales!$F22,"<"&MONTH(Auxiliares!N$99)) -> 0 | O112: =COUNTIF(DedPersonales!$E22,"<="&MONTH(Auxiliares!O$99))-COUNTIF(DedPersonales!$F22,"<"&MONTH(Auxiliares!O$99)) -> 0 | Q112: 0
C113: Hijo11 | D113: =COUNTIF(DedPersonales!$E23,"<="&MONTH(Auxiliares!D$99))-COUNTIF(DedPersonales!$F23,"<"&MONTH(Auxiliares!D$99)) -> 0 | E113: =COUNTIF(DedPersonales!$E23,"<="&MONTH(Auxiliares!E$99))-COUNTIF(DedPersonales!$F23,"<"&MONTH(Auxiliares!E$99)) -> 0 | F113: =COUNTIF(DedPersonales!$E23,"<="&MONTH(Auxiliares!F$99))-COUNTIF(DedPersonales!$F23,"<"&MONTH(Auxiliares!F$99)) -> 0 | G113: =COUNTIF(DedPersonales!$E23,"<="&MONTH(Auxiliares!G$99))-COUNTIF(DedPersonales!$F23,"<"&MONTH(Auxiliares!G$99)) -> 0 | H113: =COUNTIF(DedPersonales!$E23,"<="&MONTH(Auxiliares!H$99))-COUNTIF(DedPersonales!$F23,"<"&MONTH(Auxiliares!H$99)) -> 0 | I113: =COUNTIF(DedPersonales!$E23,"<="&MONTH(Auxiliares!I$99))-COUNTIF(DedPersonales!$F23,"<"&MONTH(Auxiliares!I$99)) -> 0 | J113: =COUNTIF(DedPersonales!$E23,"<="&MONTH(Auxiliares!J$99))-COUNTIF(DedPersonales!$F23,"<"&MONTH(Auxiliares!J$99)) -> 0 | K113: =COUNTIF(DedPersonales!$E23,"<="&MONTH(Auxiliares!K$99))-COUNTIF(DedPersonales!$F23,"<"&MONTH(Auxiliares!K$99)) -> 0 | L113: =COUNTIF(DedPersonales!$E23,"<="&MONTH(Auxiliares!L$99))-COUNTIF(DedPersonales!$F23,"<"&MONTH(Auxiliares!L$99)) -> 0 | M113: =COUNTIF(DedPersonales!$E23,"<="&MONTH(Auxiliares!M$99))-COUNTIF(DedPersonales!$F23,"<"&MONTH(Auxiliares!M$99)) -> 0 | N113: =COUNTIF(DedPersonales!$E23,"<="&MONTH(Auxiliares!N$99))-COUNTIF(DedPersonales!$F23,"<"&MONTH(Auxiliares!N$99)) -> 0 | O113: =COUNTIF(DedPersonales!$E23,"<="&MONTH(Auxiliares!O$99))-COUNTIF(DedPersonales!$F23,"<"&MONTH(Auxiliares!O$99)) -> 0 | Q113: 0
C114: Hijo12 | D114: =COUNTIF(DedPersonales!$E24,"<="&MONTH(Auxiliares!D$99))-COUNTIF(DedPersonales!$F24,"<"&MONTH(Auxiliares!D$99)) -> 0 | E114: =COUNTIF(DedPersonales!$E24,"<="&MONTH(Auxiliares!E$99))-COUNTIF(DedPersonales!$F24,"<"&MONTH(Auxiliares!E$99)) -> 0 | F114: =COUNTIF(DedPersonales!$E24,"<="&MONTH(Auxiliares!F$99))-COUNTIF(DedPersonales!$F24,"<"&MONTH(Auxiliares!F$99)) -> 0 | G114: =COUNTIF(DedPersonales!$E24,"<="&MONTH(Auxiliares!G$99))-COUNTIF(DedPersonales!$F24,"<"&MONTH(Auxiliares!G$99)) -> 0 | H114: =COUNTIF(DedPersonales!$E24,"<="&MONTH(Auxiliares!H$99))-COUNTIF(DedPersonales!$F24,"<"&MONTH(Auxiliares!H$99)) -> 0 | I114: =COUNTIF(DedPersonales!$E24,"<="&MONTH(Auxiliares!I$99))-COUNTIF(DedPersonales!$F24,"<"&MONTH(Auxiliares!I$99)) -> 0 | J114: =COUNTIF(DedPersonales!$E24,"<="&MONTH(Auxiliares!J$99))-COUNTIF(DedPersonales!$F24,"<"&MONTH(Auxiliares!J$99)) -> 0 | K114: =COUNTIF(DedPersonales!$E24,"<="&MONTH(Auxiliares!K$99))-COUNTIF(DedPersonales!$F24,"<"&MONTH(Auxiliares!K$99)) -> 0 | L114: =COUNTIF(DedPersonales!$E24,"<="&MONTH(Auxiliares!L$99))-COUNTIF(DedPersonales!$F24,"<"&MONTH(Auxiliares!L$99)) -> 0 | M114: =COUNTIF(DedPersonales!$E24,"<="&MONTH(Auxiliares!M$99))-COUNTIF(DedPersonales!$F24,"<"&MONTH(Auxiliares!M$99)) -> 0 | N114: =COUNTIF(DedPersonales!$E24,"<="&MONTH(Auxiliares!N$99))-COUNTIF(DedPersonales!$F24,"<"&MONTH(Auxiliares!N$99)) -> 0 | O114: =COUNTIF(DedPersonales!$E24,"<="&MONTH(Auxiliares!O$99))-COUNTIF(DedPersonales!$F24,"<"&MONTH(Auxiliares!O$99)) -> 0 | Q114: 0
C115: Hijo13 | D115: =COUNTIF(DedPersonales!$E25,"<="&MONTH(Auxiliares!D$99))-COUNTIF(DedPersonales!$F25,"<"&MONTH(Auxiliares!D$99)) -> 0 | E115: =COUNTIF(DedPersonales!$E25,"<="&MONTH(Auxiliares!E$99))-COUNTIF(DedPersonales!$F25,"<"&MONTH(Auxiliares!E$99)) -> 0 | F115: =COUNTIF(DedPersonales!$E25,"<="&MONTH(Auxiliares!F$99))-COUNTIF(DedPersonales!$F25,"<"&MONTH(Auxiliares!F$99)) -> 0 | G115: =COUNTIF(DedPersonales!$E25,"<="&MONTH(Auxiliares!G$99))-COUNTIF(DedPersonales!$F25,"<"&MONTH(Auxiliares!G$99)) -> 0 | H115: =COUNTIF(DedPersonales!$E25,"<="&MONTH(Auxiliares!H$99))-COUNTIF(DedPersonales!$F25,"<"&MONTH(Auxiliares!H$99)) -> 0 | I115: =COUNTIF(DedPersonales!$E25,"<="&MONTH(Auxiliares!I$99))-COUNTIF(DedPersonales!$F25,"<"&MONTH(Auxiliares!I$99)) -> 0 | J115: =COUNTIF(DedPersonales!$E25,"<="&MONTH(Auxiliares!J$99))-COUNTIF(DedPersonales!$F25,"<"&MONTH(Auxiliares!J$99)) -> 0 | K115: =COUNTIF(DedPersonales!$E25,"<="&MONTH(Auxiliares!K$99))-COUNTIF(DedPersonales!$F25,"<"&MONTH(Auxiliares!K$99)) -> 0 | L115: =COUNTIF(DedPersonales!$E25,"<="&MONTH(Auxiliares!L$99))-COUNTIF(DedPersonales!$F25,"<"&MONTH(Auxiliares!L$99)) -> 0 | M115: =COUNTIF(DedPersonales!$E25,"<="&MONTH(Auxiliares!M$99))-COUNTIF(DedPersonales!$F25,"<"&MONTH(Auxiliares!M$99)) -> 0 | N115: =COUNTIF(DedPersonales!$E25,"<="&MONTH(Auxiliares!N$99))-COUNTIF(DedPersonales!$F25,"<"&MONTH(Auxiliares!N$99)) -> 0 | O115: =COUNTIF(DedPersonales!$E25,"<="&MONTH(Auxiliares!O$99))-COUNTIF(DedPersonales!$F25,"<"&MONTH(Auxiliares!O$99)) -> 0 | Q115: 0
C116: Hijo14 | D116: =COUNTIF(DedPersonales!$E26,"<="&MONTH(Auxiliares!D$99))-COUNTIF(DedPersonales!$F26,"<"&MONTH(Auxiliares!D$99)) -> 0 | E116: =COUNTIF(DedPersonales!$E26,"<="&MONTH(Auxiliares!E$99))-COUNTIF(DedPersonales!$F26,"<"&MONTH(Auxiliares!E$99)) -> 0 | F116: =COUNTIF(DedPersonales!$E26,"<="&MONTH(Auxiliares!F$99))-COUNTIF(DedPersonales!$F26,"<"&MONTH(Auxiliares!F$99)) -> 0 | G116: =COUNTIF(DedPersonales!$E26,"<="&MONTH(Auxiliares!G$99))-COUNTIF(DedPersonales!$F26,"<"&MONTH(Auxiliares!G$99)) -> 0 | H116: =COUNTIF(DedPersonales!$E26,"<="&MONTH(Auxiliares!H$99))-COUNTIF(DedPersonales!$F26,"<"&MONTH(Auxiliares!H$99)) -> 0 | I116: =COUNTIF(DedPersonales!$E26,"<="&MONTH(Auxiliares!I$99))-COUNTIF(DedPersonales!$F26,"<"&MONTH(Auxiliares!I$99)) -> 0 | J116: =COUNTIF(DedPersonales!$E26,"<="&MONTH(Auxiliares!J$99))-COUNTIF(DedPersonales!$F26,"<"&MONTH(Auxiliares!J$99)) -> 0 | K116: =COUNTIF(DedPersonales!$E26,"<="&MONTH(Auxiliares!K$99))-COUNTIF(DedPersonales!$F26,"<"&MONTH(Auxiliares!K$99)) -> 0 | L116: =COUNTIF(DedPersonales!$E26,"<="&MONTH(Auxiliares!L$99))-COUNTIF(DedPersonales!$F26,"<"&MONTH(Auxiliares!L$99)) -> 0 | M116: =COUNTIF(DedPersonales!$E26,"<="&MONTH(Auxiliares!M$99))-COUNTIF(DedPersonales!$F26,"<"&MONTH(Auxiliares!M$99)) -> 0 | N116: =COUNTIF(DedPersonales!$E26,"<="&MONTH(Auxiliares!N$99))-COUNTIF(DedPersonales!$F26,"<"&MONTH(Auxiliares!N$99)) -> 0 | O116: =COUNTIF(DedPersonales!$E26,"<="&MONTH(Auxiliares!O$99))-COUNTIF(DedPersonales!$F26,"<"&MONTH(Auxiliares!O$99)) -> 0 | Q116: 0
C117: Hijo15 | D117: =COUNTIF(DedPersonales!$E27,"<="&MONTH(Auxiliares!D$99))-COUNTIF(DedPersonales!$F27,"<"&MONTH(Auxiliares!D$99)) -> 0 | E117: =COUNTIF(DedPersonales!$E27,"<="&MONTH(Auxiliares!E$99))-COUNTIF(DedPersonales!$F27,"<"&MONTH(Auxiliares!E$99)) -> 0 | F117: =COUNTIF(DedPersonales!$E27,"<="&MONTH(Auxiliares!F$99))-COUNTIF(DedPersonales!$F27,"<"&MONTH(Auxiliares!F$99)) -> 0 | G117: =COUNTIF(DedPersonales!$E27,"<="&MONTH(Auxiliares!G$99))-COUNTIF(DedPersonales!$F27,"<"&MONTH(Auxiliares!G$99)) -> 0 | H117: =COUNTIF(DedPersonales!$E27,"<="&MONTH(Auxiliares!H$99))-COUNTIF(DedPersonales!$F27,"<"&MONTH(Auxiliares!H$99)) -> 0 | I117: =COUNTIF(DedPersonales!$E27,"<="&MONTH(Auxiliares!I$99))-COUNTIF(DedPersonales!$F27,"<"&MONTH(Auxiliares!I$99)) -> 0 | J117: =COUNTIF(DedPersonales!$E27,"<="&MONTH(Auxiliares!J$99))-COUNTIF(DedPersonales!$F27,"<"&MONTH(Auxiliares!J$99)) -> 0 | K117: =COUNTIF(DedPersonales!$E27,"<="&MONTH(Auxiliares!K$99))-COUNTIF(DedPersonales!$F27,"<"&MONTH(Auxiliares!K$99)) -> 0 | L117: =COUNTIF(DedPersonales!$E27,"<="&MONTH(Auxiliares!L$99))-COUNTIF(DedPersonales!$F27,"<"&MONTH(Auxiliares!L$99)) -> 0 | M117: =COUNTIF(DedPersonales!$E27,"<="&MONTH(Auxiliares!M$99))-COUNTIF(DedPersonales!$F27,"<"&MONTH(Auxiliares!M$99)) -> 0 | N117: =COUNTIF(DedPersonales!$E27,"<="&MONTH(Auxiliares!N$99))-COUNTIF(DedPersonales!$F27,"<"&MONTH(Auxiliares!N$99)) -> 0 | O117: =COUNTIF(DedPersonales!$E27,"<="&MONTH(Auxiliares!O$99))-COUNTIF(DedPersonales!$F27,"<"&MONTH(Auxiliares!O$99)) -> 0 | Q117: 0
C118: Hijo16 | D118: =COUNTIF(DedPersonales!$E28,"<="&MONTH(Auxiliares!D$99))-COUNTIF(DedPersonales!$F28,"<"&MONTH(Auxiliares!D$99)) -> 0 | E118: =COUNTIF(DedPersonales!$E28,"<="&MONTH(Auxiliares!E$99))-COUNTIF(DedPersonales!$F28,"<"&MONTH(Auxiliares!E$99)) -> 0 | F118: =COUNTIF(DedPersonales!$E28,"<="&MONTH(Auxiliares!F$99))-COUNTIF(DedPersonales!$F28,"<"&MONTH(Auxiliares!F$99)) -> 0 | G118: =COUNTIF(DedPersonales!$E28,"<="&MONTH(Auxiliares!G$99))-COUNTIF(DedPersonales!$F28,"<"&MONTH(Auxiliares!G$99)) -> 0 | H118: =COUNTIF(DedPersonales!$E28,"<="&MONTH(Auxiliares!H$99))-COUNTIF(DedPersonales!$F28,"<"&MONTH(Auxiliares!H$99)) -> 0 | I118: =COUNTIF(DedPersonales!$E28,"<="&MONTH(Auxiliares!I$99))-COUNTIF(DedPersonales!$F28,"<"&MONTH(Auxiliares!I$99)) -> 0 | J118: =COUNTIF(DedPersonales!$E28,"<="&MONTH(Auxiliares!J$99))-COUNTIF(DedPersonales!$F28,"<"&MONTH(Auxiliares!J$99)) -> 0 | K118: =COUNTIF(DedPersonales!$E28,"<="&MONTH(Auxiliares!K$99))-COUNTIF(DedPersonales!$F28,"<"&MONTH(Auxiliares!K$99)) -> 0 | L118: =COUNTIF(DedPersonales!$E28,"<="&MONTH(Auxiliares!L$99))-COUNTIF(DedPersonales!$F28,"<"&MONTH(Auxiliares!L$99)) -> 0 | M118: =COUNTIF(DedPersonales!$E28,"<="&MONTH(Auxiliares!M$99))-COUNTIF(DedPersonales!$F28,"<"&MONTH(Auxiliares!M$99)) -> 0 | N118: =COUNTIF(DedPersonales!$E28,"<="&MONTH(Auxiliares!N$99))-COUNTIF(DedPersonales!$F28,"<"&MONTH(Auxiliares!N$99)) -> 0 | O118: =COUNTIF(DedPersonales!$E28,"<="&MONTH(Auxiliares!O$99))-COUNTIF(DedPersonales!$F28,"<"&MONTH(Auxiliares!O$99)) -> 0 | Q118: 0
C120: Mes de información
C121: Cónyuge | D121: =IF(DedPersonales!$G$8=MONTH(D$99),1,0) -> 0 | E121: =IF(DedPersonales!$G$8=MONTH(E$99),1,0) -> 0 | F121: =IF(DedPersonales!$G$8=MONTH(F$99),1,0) -> 0 | G121: =IF(DedPersonales!$G$8=MONTH(G$99),1,0) -> 0 | H121: =IF(DedPersonales!$G$8=MONTH(H$99),1,0) -> 0 | I121: =IF(DedPersonales!$G$8=MONTH(I$99),1,0) -> 0 | J121: =IF(DedPersonales!$G$8=MONTH(J$99),1,0) -> 0 | K121: =IF(DedPersonales!$G$8=MONTH(K$99),1,0) -> 0 | L121: =IF(DedPersonales!$G$8=MONTH(L$99),1,0) -> 0 | M121: =IF(DedPersonales!$G$8=MONTH(M$99),1,0) -> 0 | N121: =IF(DedPersonales!$G$8=MONTH(N$99),1,0) -> 0 | O121: =IF(DedPersonales!$G$8=MONTH(O$99),1,0) -> 0
C123: Hijo1 | D123: =IF(DedPersonales!$G13=MONTH(D$99),1,0) -> 1 | E123: =IF(DedPersonales!$G13=MONTH(E$99),1,0) -> 0 | F123: =IF(DedPersonales!$G13=MONTH(F$99),1,0) -> 0 | G123: =IF(DedPersonales!$G13=MONTH(G$99),1,0) -> 0 | H123: =IF(DedPersonales!$G13=MONTH(H$99),1,0) -> 0 | I123: =IF(DedPersonales!$G13=MONTH(I$99),1,0) -> 0 | J123: =IF(DedPersonales!$G13=MONTH(J$99),1,0) -> 0 | K123: =IF(DedPersonales!$G13=MONTH(K$99),1,0) -> 0 | L123: =IF(DedPersonales!$G13=MONTH(L$99),1,0) -> 0 | M123: =IF(DedPersonales!$G13=MONTH(M$99),1,0) -> 0 | N123: =IF(DedPersonales!$G13=MONTH(N$99),1,0) -> 0 | O123: =IF(DedPersonales!$G13=MONTH(O$99),1,0) -> 0
C124: Hijo2 | D124: =IF(DedPersonales!$G14=MONTH(D$99),1,0) -> 0 | E124: =IF(DedPersonales!$G14=MONTH(E$99),1,0) -> 0 | F124: =IF(DedPersonales!$G14=MONTH(F$99),1,0) -> 0 | G124: =IF(DedPersonales!$G14=MONTH(G$99),1,0) -> 0 | H124: =IF(DedPersonales!$G14=MONTH(H$99),1,0) -> 0 | I124: =IF(DedPersonales!$G14=MONTH(I$99),1,0) -> 0 | J124: =IF(DedPersonales!$G14=MONTH(J$99),1,0) -> 0 | K124: =IF(DedPersonales!$G14=MONTH(K$99),1,0) -> 0 | L124: =IF(DedPersonales!$G14=MONTH(L$99),1,0) -> 0 | M124: =IF(DedPersonales!$G14=MONTH(M$99),1,0) -> 0 | N124: =IF(DedPersonales!$G14=MONTH(N$99),1,0) -> 0 | O124: =IF(DedPersonales!$G14=MONTH(O$99),1,0) -> 0
C125: Hijo3 | D125: =IF(DedPersonales!$G15=MONTH(D$99),1,0) -> 0 | E125: =IF(DedPersonales!$G15=MONTH(E$99),1,0) -> 0 | F125: =IF(DedPersonales!$G15=MONTH(F$99),1,0) -> 0 | G125: =IF(DedPersonales!$G15=MONTH(G$99),1,0) -> 0 | H125: =IF(DedPersonales!$G15=MONTH(H$99),1,0) -> 0 | I125: =IF(DedPersonales!$G15=MONTH(I$99),1,0) -> 0 | J125: =IF(DedPersonales!$G15=MONTH(J$99),1,0) -> 0 | K125: =IF(DedPersonales!$G15=MONTH(K$99),1,0) -> 0 | L125: =IF(DedPersonales!$G15=MONTH(L$99),1,0) -> 0 | M125: =IF(DedPersonales!$G15=MONTH(M$99),1,0) -> 0 | N125: =IF(DedPersonales!$G15=MONTH(N$99),1,0) -> 0 | O125: =IF(DedPersonales!$G15=MONTH(O$99),1,0) -> 0
C126: Hijo4 | D126: =IF(DedPersonales!$G16=MONTH(D$99),1,0) -> 0 | E126: =IF(DedPersonales!$G16=MONTH(E$99),1,0) -> 0 | F126: =IF(DedPersonales!$G16=MONTH(F$99),1,0) -> 0 | G126: =IF(DedPersonales!$G16=MONTH(G$99),1,0) -> 0 | H126: =IF(DedPersonales!$G16=MONTH(H$99),1,0) -> 0 | I126: =IF(DedPersonales!$G16=MONTH(I$99),1,0) -> 0 | J126: =IF(DedPersonales!$G16=MONTH(J$99),1,0) -> 0 | K126: =IF(DedPersonales!$G16=MONTH(K$99),1,0) -> 0 | L126: =IF(DedPersonales!$G16=MONTH(L$99),1,0) -> 0 | M126: =IF(DedPersonales!$G16=MONTH(M$99),1,0) -> 0 | N126: =IF(DedPersonales!$G16=MONTH(N$99),1,0) -> 0 | O126: =IF(DedPersonales!$G16=MONTH(O$99),1,0) -> 0
C127: Hijo5 | D127: =IF(DedPersonales!$G17=MONTH(D$99),1,0) -> 0 | E127: =IF(DedPersonales!$G17=MONTH(E$99),1,0) -> 0 | F127: =IF(DedPersonales!$G17=MONTH(F$99),1,0) -> 0 | G127: =IF(DedPersonales!$G17=MONTH(G$99),1,0) -> 0 | H127: =IF(DedPersonales!$G17=MONTH(H$99),1,0) -> 0 | I127: =IF(DedPersonales!$G17=MONTH(I$99),1,0) -> 0 | J127: =IF(DedPersonales!$G17=MONTH(J$99),1,0) -> 0 | K127: =IF(DedPersonales!$G17=MONTH(K$99),1,0) -> 0 | L127: =IF(DedPersonales!$G17=MONTH(L$99),1,0) -> 0 | M127: =IF(DedPersonales!$G17=MONTH(M$99),1,0) -> 0 | N127: =IF(DedPersonales!$G17=MONTH(N$99),1,0) -> 0 | O127: =IF(DedPersonales!$G17=MONTH(O$99),1,0) -> 0
C128: Hijo6 | D128: =IF(DedPersonales!$G18=MONTH(D$99),1,0) -> 0 | E128: =IF(DedPersonales!$G18=MONTH(E$99),1,0) -> 0 | F128: =IF(DedPersonales!$G18=MONTH(F$99),1,0) -> 0 | G128: =IF(DedPersonales!$G18=MONTH(G$99),1,0) -> 0 | H128: =IF(DedPersonales!$G18=MONTH(H$99),1,0) -> 0 | I128: =IF(DedPersonales!$G18=MONTH(I$99),1,0) -> 0 | J128: =IF(DedPersonales!$G18=MONTH(J$99),1,0) -> 0 | K128: =IF(DedPersonales!$G18=MONTH(K$99),1,0) -> 0 | L128: =IF(DedPersonales!$G18=MONTH(L$99),1,0) -> 0 | M128: =IF(DedPersonales!$G18=MONTH(M$99),1,0) -> 0 | N128: =IF(DedPersonales!$G18=MONTH(N$99),1,0) -> 0 | O128: =IF(DedPersonales!$G18=MONTH(O$99),1,0) -> 0
C129: Hijo7 | D129: =IF(DedPersonales!$G19=MONTH(D$99),1,0) -> 0 | E129: =IF(DedPersonales!$G19=MONTH(E$99),1,0) -> 0 | F129: =IF(DedPersonales!$G19=MONTH(F$99),1,0) -> 0 | G129: =IF(DedPersonales!$G19=MONTH(G$99),1,0) -> 0 | H129: =IF(DedPersonales!$G19=MONTH(H$99),1,0) -> 0 | I129: =IF(DedPersonales!$G19=MONTH(I$99),1,0) -> 0 | J129: =IF(DedPersonales!$G19=MONTH(J$99),1,0) -> 0 | K129: =IF(DedPersonales!$G19=MONTH(K$99),1,0) -> 0 | L129: =IF(DedPersonales!$G19=MONTH(L$99),1,0) -> 0 | M129: =IF(DedPersonales!$G19=MONTH(M$99),1,0) -> 0 | N129: =IF(DedPersonales!$G19=MONTH(N$99),1,0) -> 0 | O129: =IF(DedPersonales!$G19=MONTH(O$99),1,0) -> 0
C130: Hijo8 | D130: =IF(DedPersonales!$G20=MONTH(D$99),1,0) -> 0 | E130: =IF(DedPersonales!$G20=MONTH(E$99),1,0) -> 0 | F130: =IF(DedPersonales!$G20=MONTH(F$99),1,0) -> 0 | G130: =IF(DedPersonales!$G20=MONTH(G$99),1,0) -> 0 | H130: =IF(DedPersonales!$G20=MONTH(H$99),1,0) -> 0 | I130: =IF(DedPersonales!$G20=MONTH(I$99),1,0) -> 0 | J130: =IF(DedPersonales!$G20=MONTH(J$99),1,0) -> 0 | K130: =IF(DedPersonales!$G20=MONTH(K$99),1,0) -> 0 | L130: =IF(DedPersonales!$G20=MONTH(L$99),1,0) -> 0 | M130: =IF(DedPersonales!$G20=MONTH(M$99),1,0) -> 0 | N130: =IF(DedPersonales!$G20=MONTH(N$99),1,0) -> 0 | O130: =IF(DedPersonales!$G20=MONTH(O$99),1,0) -> 0
C131: Hijo9 | D131: =IF(DedPersonales!$G21=MONTH(D$99),1,0) -> 0 | E131: =IF(DedPersonales!$G21=MONTH(E$99),1,0) -> 0 | F131: =IF(DedPersonales!$G21=MONTH(F$99),1,0) -> 0 | G131: =IF(DedPersonales!$G21=MONTH(G$99),1,0) -> 0 | H131: =IF(DedPersonales!$G21=MONTH(H$99),1,0) -> 0 | I131: =IF(DedPersonales!$G21=MONTH(I$99),1,0) -> 0 | J131: =IF(DedPersonales!$G21=MONTH(J$99),1,0) -> 0 | K131: =IF(DedPersonales!$G21=MONTH(K$99),1,0) -> 0 | L131: =IF(DedPersonales!$G21=MONTH(L$99),1,0) -> 0 | M131: =IF(DedPersonales!$G21=MONTH(M$99),1,0) -> 0 | N131: =IF(DedPersonales!$G21=MONTH(N$99),1,0) -> 0 | O131: =IF(DedPersonales!$G21=MONTH(O$99),1,0) -> 0
C132: Hijo10 | D132: =IF(DedPersonales!$G22=MONTH(D$99),1,0) -> 0 | E132: =IF(DedPersonales!$G22=MONTH(E$99),1,0) -> 0 | F132: =IF(DedPersonales!$G22=MONTH(F$99),1,0) -> 0 | G132: =IF(DedPersonales!$G22=MONTH(G$99),1,0) -> 0 | H132: =IF(DedPersonales!$G22=MONTH(H$99),1,0) -> 0 | I132: =IF(DedPersonales!$G22=MONTH(I$99),1,0) -> 0 | J132: =IF(DedPersonales!$G22=MONTH(J$99),1,0) -> 0 | K132: =IF(DedPersonales!$G22=MONTH(K$99),1,0) -> 0 | L132: =IF(DedPersonales!$G22=MONTH(L$99),1,0) -> 0 | M132: =IF(DedPersonales!$G22=MONTH(M$99),1,0) -> 0 | N132: =IF(DedPersonales!$G22=MONTH(N$99),1,0) -> 0 | O132: =IF(DedPersonales!$G22=MONTH(O$99),1,0) -> 0
C133: Hijo11 | D133: =IF(DedPersonales!$G23=MONTH(D$99),1,0) -> 0 | E133: =IF(DedPersonales!$G23=MONTH(E$99),1,0) -> 0 | F133: =IF(DedPersonales!$G23=MONTH(F$99),1,0) -> 0 | G133: =IF(DedPersonales!$G23=MONTH(G$99),1,0) -> 0 | H133: =IF(DedPersonales!$G23=MONTH(H$99),1,0) -> 0 | I133: =IF(DedPersonales!$G23=MONTH(I$99),1,0) -> 0 | J133: =IF(DedPersonales!$G23=MONTH(J$99),1,0) -> 0 | K133: =IF(DedPersonales!$G23=MONTH(K$99),1,0) -> 0 | L133: =IF(DedPersonales!$G23=MONTH(L$99),1,0) -> 0 | M133: =IF(DedPersonales!$G23=MONTH(M$99),1,0) -> 0 | N133: =IF(DedPersonales!$G23=MONTH(N$99),1,0) -> 0 | O133: =IF(DedPersonales!$G23=MONTH(O$99),1,0) -> 0
C134: Hijo12 | D134: =IF(DedPersonales!$G24=MONTH(D$99),1,0) -> 0 | E134: =IF(DedPersonales!$G24=MONTH(E$99),1,0) -> 0 | F134: =IF(DedPersonales!$G24=MONTH(F$99),1,0) -> 0 | G134: =IF(DedPersonales!$G24=MONTH(G$99),1,0) -> 0 | H134: =IF(DedPersonales!$G24=MONTH(H$99),1,0) -> 0 | I134: =IF(DedPersonales!$G24=MONTH(I$99),1,0) -> 0 | J134: =IF(DedPersonales!$G24=MONTH(J$99),1,0) -> 0 | K134: =IF(DedPersonales!$G24=MONTH(K$99),1,0) -> 0 | L134: =IF(DedPersonales!$G24=MONTH(L$99),1,0) -> 0 | M134: =IF(DedPersonales!$G24=MONTH(M$99),1,0) -> 0 | N134: =IF(DedPersonales!$G24=MONTH(N$99),1,0) -> 0 | O134: =IF(DedPersonales!$G24=MONTH(O$99),1,0) -> 0
C135: Hijo13 | D135: =IF(DedPersonales!$G25=MONTH(D$99),1,0) -> 0 | E135: =IF(DedPersonales!$G25=MONTH(E$99),1,0) -> 0 | F135: =IF(DedPersonales!$G25=MONTH(F$99),1,0) -> 0 | G135: =IF(DedPersonales!$G25=MONTH(G$99),1,0) -> 0 | H135: =IF(DedPersonales!$G25=MONTH(H$99),1,0) -> 0 | I135: =IF(DedPersonales!$G25=MONTH(I$99),1,0) -> 0 | J135: =IF(DedPersonales!$G25=MONTH(J$99),1,0) -> 0 | K135: =IF(DedPersonales!$G25=MONTH(K$99),1,0) -> 0 | L135: =IF(DedPersonales!$G25=MONTH(L$99),1,0) -> 0 | M135: =IF(DedPersonales!$G25=MONTH(M$99),1,0) -> 0 | N135: =IF(DedPersonales!$G25=MONTH(N$99),1,0) -> 0 | O135: =IF(DedPersonales!$G25=MONTH(O$99),1,0) -> 0
C136: Hijo14 | D136: =IF(DedPersonales!$G26=MONTH(D$99),1,0) -> 0 | E136: =IF(DedPersonales!$G26=MONTH(E$99),1,0) -> 0 | F136: =IF(DedPersonales!$G26=MONTH(F$99),1,0) -> 0 | G136: =IF(DedPersonales!$G26=MONTH(G$99),1,0) -> 0 | H136: =IF(DedPersonales!$G26=MONTH(H$99),1,0) -> 0 | I136: =IF(DedPersonales!$G26=MONTH(I$99),1,0) -> 0 | J136: =IF(DedPersonales!$G26=MONTH(J$99),1,0) -> 0 | K136: =IF(DedPersonales!$G26=MONTH(K$99),1,0) -> 0 | L136: =IF(DedPersonales!$G26=MONTH(L$99),1,0) -> 0 | M136: =IF(DedPersonales!$G26=MONTH(M$99),1,0) -> 0 | N136: =IF(DedPersonales!$G26=MONTH(N$99),1,0) -> 0 | O136: =IF(DedPersonales!$G26=MONTH(O$99),1,0) -> 0
C137: Hijo15 | D137: =IF(DedPersonales!$G27=MONTH(D$99),1,0) -> 0 | E137: =IF(DedPersonales!$G27=MONTH(E$99),1,0) -> 0 | F137: =IF(DedPersonales!$G27=MONTH(F$99),1,0) -> 0 | G137: =IF(DedPersonales!$G27=MONTH(G$99),1,0) -> 0 | H137: =IF(DedPersonales!$G27=MONTH(H$99),1,0) -> 0 | I137: =IF(DedPersonales!$G27=MONTH(I$99),1,0) -> 0 | J137: =IF(DedPersonales!$G27=MONTH(J$99),1,0) -> 0 | K137: =IF(DedPersonales!$G27=MONTH(K$99),1,0) -> 0 | L137: =IF(DedPersonales!$G27=MONTH(L$99),1,0) -> 0 | M137: =IF(DedPersonales!$G27=MONTH(M$99),1,0) -> 0 | N137: =IF(DedPersonales!$G27=MONTH(N$99),1,0) -> 0 | O137: =IF(DedPersonales!$G27=MONTH(O$99),1,0) -> 0
C138: Hijo16 | D138: =IF(DedPersonales!$G28=MONTH(D$99),1,0) -> 0 | E138: =IF(DedPersonales!$G28=MONTH(E$99),1,0) -> 0 | F138: =IF(DedPersonales!$G28=MONTH(F$99),1,0) -> 0 | G138: =IF(DedPersonales!$G28=MONTH(G$99),1,0) -> 0 | H138: =IF(DedPersonales!$G28=MONTH(H$99),1,0) -> 0 | I138: =IF(DedPersonales!$G28=MONTH(I$99),1,0) -> 0 | J138: =IF(DedPersonales!$G28=MONTH(J$99),1,0) -> 0 | K138: =IF(DedPersonales!$G28=MONTH(K$99),1,0) -> 0 | L138: =IF(DedPersonales!$G28=MONTH(L$99),1,0) -> 0 | M138: =IF(DedPersonales!$G28=MONTH(M$99),1,0) -> 0 | N138: =IF(DedPersonales!$G28=MONTH(N$99),1,0) -> 0 | O138: =IF(DedPersonales!$G28=MONTH(O$99),1,0) -> 0
C140: Imputación
C141: Cónyuge | D141: =IF(D121=1,SUM($D101:D101),0) -> 0 | E141: =IF(OR(E121=1,D141<>0),SUM($D101:E101),0) -> 0 | F141: =IF(OR(F121=1,E141<>0),SUM($D101:F101),0) -> 0 | G141: =IF(OR(G121=1,F141<>0),SUM($D101:G101),0) -> 0 | H141: =IF(OR(H121=1,G141<>0),SUM($D101:H101),0) -> 0 | I141: =IF(OR(I121=1,H141<>0),SUM($D101:I101),0) -> 0 | J141: =IF(OR(J121=1,I141<>0),SUM($D101:J101),0) -> 0 | K141: =IF(OR(K121=1,J141<>0),SUM($D101:K101),0) -> 0 | L141: =IF(OR(L121=1,K141<>0),SUM($D101:L101),0) -> 0 | M141: =IF(OR(M121=1,L141<>0),SUM($D101:M101),0) -> 0 | N141: =IF(OR(N121=1,M141<>0),SUM($D101:N101),0) -> 0 | O141: =IF(OR(O121=1,N141<>0),SUM($D101:O101),0) -> 0 | P141: =O141 -> 0
C143: Hijo1 | D143: =IF(D123=1,SUM($D103:D103),0) -> 1 | E143: =IF(OR(E123=1,D143<>0),SUM($D103:E103),0) -> 2 | F143: =IF(OR(F123=1,E143<>0),SUM($D103:F103),0) -> 3 | G143: =IF(OR(G123=1,F143<>0),SUM($D103:G103),0) -> 4 | H143: =IF(OR(H123=1,G143<>0),SUM($D103:H103),0) -> 5 | I143: =IF(OR(I123=1,H143<>0),SUM($D103:I103),0) -> 6 | J143: =IF(OR(J123=1,I143<>0),SUM($D103:J103),0) -> 7 | K143: =IF(OR(K123=1,J143<>0),SUM($D103:K103),0) -> 8 | L143: =IF(OR(L123=1,K143<>0),SUM($D103:L103),0) -> 9 | M143: =IF(OR(M123=1,L143<>0),SUM($D103:M103),0) -> 10 | N143: =IF(OR(N123=1,M143<>0),SUM($D103:N103),0) -> 11 | O143: =IF(OR(O123=1,N143<>0),SUM($D103:O103),0) -> 12 | P143: =O143 -> 12
C144: Hijo2 | D144: =IF(D124=1,SUM($D104:D104),0) -> 0 | E144: =IF(OR(E124=1,D144<>0),SUM($D104:E104),0) -> 0 | F144: =IF(OR(F124=1,E144<>0),SUM($D104:F104),0) -> 0 | G144: =IF(OR(G124=1,F144<>0),SUM($D104:G104),0) -> 0 | H144: =IF(OR(H124=1,G144<>0),SUM($D104:H104),0) -> 0 | I144: =IF(OR(I124=1,H144<>0),SUM($D104:I104),0) -> 0 | J144: =IF(OR(J124=1,I144<>0),SUM($D104:J104),0) -> 0 | K144: =IF(OR(K124=1,J144<>0),SUM($D104:K104),0) -> 0 | L144: =IF(OR(L124=1,K144<>0),SUM($D104:L104),0) -> 0 | M144: =IF(OR(M124=1,L144<>0),SUM($D104:M104),0) -> 0 | N144: =IF(OR(N124=1,M144<>0),SUM($D104:N104),0) -> 0 | O144: =IF(OR(O124=1,N144<>0),SUM($D104:O104),0) -> 0 | P144: 0
C145: Hijo3 | D145: =IF(D125=1,SUM($D105:D105),0) -> 0 | E145: =IF(OR(E125=1,D145<>0),SUM($D105:E105),0) -> 0 | F145: =IF(OR(F125=1,E145<>0),SUM($D105:F105),0) -> 0 | G145: =IF(OR(G125=1,F145<>0),SUM($D105:G105),0) -> 0 | H145: =IF(OR(H125=1,G145<>0),SUM($D105:H105),0) -> 0 | I145: =IF(OR(I125=1,H145<>0),SUM($D105:I105),0) -> 0 | J145: =IF(OR(J125=1,I145<>0),SUM($D105:J105),0) -> 0 | K145: =IF(OR(K125=1,J145<>0),SUM($D105:K105),0) -> 0 | L145: =IF(OR(L125=1,K145<>0),SUM($D105:L105),0) -> 0 | M145: =IF(OR(M125=1,L145<>0),SUM($D105:M105),0) -> 0 | N145: =IF(OR(N125=1,M145<>0),SUM($D105:N105),0) -> 0 | O145: =IF(OR(O125=1,N145<>0),SUM($D105:O105),0) -> 0 | P145: 0
C146: Hijo4 | D146: =IF(D126=1,SUM($D106:D106),0) -> 0 | E146: =IF(OR(E126=1,D146<>0),SUM($D106:E106),0) -> 0 | F146: =IF(OR(F126=1,E146<>0),SUM($D106:F106),0) -> 0 | G146: =IF(OR(G126=1,F146<>0),SUM($D106:G106),0) -> 0 | H146: =IF(OR(H126=1,G146<>0),SUM($D106:H106),0) -> 0 | I146: =IF(OR(I126=1,H146<>0),SUM($D106:I106),0) -> 0 | J146: =IF(OR(J126=1,I146<>0),SUM($D106:J106),0) -> 0 | K146: =IF(OR(K126=1,J146<>0),SUM($D106:K106),0) -> 0 | L146: =IF(OR(L126=1,K146<>0),SUM($D106:L106),0) -> 0 | M146: =IF(OR(M126=1,L146<>0),SUM($D106:M106),0) -> 0 | N146: =IF(OR(N126=1,M146<>0),SUM($D106:N106),0) -> 0 | O146: =IF(OR(O126=1,N146<>0),SUM($D106:O106),0) -> 0 | P146: 0
C147: Hijo5 | D147: =IF(D127=1,SUM($D107:D107),0) -> 0 | E147: =IF(OR(E127=1,D147<>0),SUM($D107:E107),0) -> 0 | F147: =IF(OR(F127=1,E147<>0),SUM($D107:F107),0) -> 0 | G147: =IF(OR(G127=1,F147<>0),SUM($D107:G107),0) -> 0 | H147: =IF(OR(H127=1,G147<>0),SUM($D107:H107),0) -> 0 | I147: =IF(OR(I127=1,H147<>0),SUM($D107:I107),0) -> 0 | J147: =IF(OR(J127=1,I147<>0),SUM($D107:J107),0) -> 0 | K147: =IF(OR(K127=1,J147<>0),SUM($D107:K107),0) -> 0 | L147: =IF(OR(L127=1,K147<>0),SUM($D107:L107),0) -> 0 | M147: =IF(OR(M127=1,L147<>0),SUM($D107:M107),0) -> 0 | N147: =IF(OR(N127=1,M147<>0),SUM($D107:N107),0) -> 0 | O147: =IF(OR(O127=1,N147<>0),SUM($D107:O107),0) -> 0 | P147: 0
C148: Hijo6 | D148: =IF(D128=1,SUM($D108:D108),0) -> 0 | E148: =IF(OR(E128=1,D148<>0),SUM($D108:E108),0) -> 0 | F148: =IF(OR(F128=1,E148<>0),SUM($D108:F108),0) -> 0 | G148: =IF(OR(G128=1,F148<>0),SUM($D108:G108),0) -> 0 | H148: =IF(OR(H128=1,G148<>0),SUM($D108:H108),0) -> 0 | I148: =IF(OR(I128=1,H148<>0),SUM($D108:I108),0) -> 0 | J148: =IF(OR(J128=1,I148<>0),SUM($D108:J108),0) -> 0 | K148: =IF(OR(K128=1,J148<>0),SUM($D108:K108),0) -> 0 | L148: =IF(OR(L128=1,K148<>0),SUM($D108:L108),0) -> 0 | M148: =IF(OR(M128=1,L148<>0),SUM($D108:M108),0) -> 0 | N148: =IF(OR(N128=1,M148<>0),SUM($D108:N108),0) -> 0 | O148: =IF(OR(O128=1,N148<>0),SUM($D108:O108),0) -> 0 | P148: 0
C149: Hijo7 | D149: =IF(D129=1,SUM($D109:D109),0) -> 0 | E149: =IF(OR(E129=1,D149<>0),SUM($D109:E109),0) -> 0 | F149: =IF(OR(F129=1,E149<>0),SUM($D109:F109),0) -> 0 | G149: =IF(OR(G129=1,F149<>0),SUM($D109:G109),0) -> 0 | H149: =IF(OR(H129=1,G149<>0),SUM($D109:H109),0) -> 0 | I149: =IF(OR(I129=1,H149<>0),SUM($D109:I109),0) -> 0 | J149: =IF(OR(J129=1,I149<>0),SUM($D109:J109),0) -> 0 | K149: =IF(OR(K129=1,J149<>0),SUM($D109:K109),0) -> 0 | L149: =IF(OR(L129=1,K149<>0),SUM($D109:L109),0) -> 0 | M149: =IF(OR(M129=1,L149<>0),SUM($D109:M109),0) -> 0 | N149: =IF(OR(N129=1,M149<>0),SUM($D109:N109),0) -> 0 | O149: =IF(OR(O129=1,N149<>0),SUM($D109:O109),0) -> 0 | P149: 0
C150: Hijo8 | D150: =IF(D130=1,SUM($D110:D110),0) -> 0 | E150: =IF(OR(E130=1,D150<>0),SUM($D110:E110),0) -> 0 | F150: =IF(OR(F130=1,E150<>0),SUM($D110:F110),0) -> 0 | G150: =IF(OR(G130=1,F150<>0),SUM($D110:G110),0) -> 0 | H150: =IF(OR(H130=1,G150<>0),SUM($D110:H110),0) -> 0 | I150: =IF(OR(I130=1,H150<>0),SUM($D110:I110),0) -> 0 | J150: =IF(OR(J130=1,I150<>0),SUM($D110:J110),0) -> 0 | K150: =IF(OR(K130=1,J150<>0),SUM($D110:K110),0) -> 0 | L150: =IF(OR(L130=1,K150<>0),SUM($D110:L110),0) -> 0 | M150: =IF(OR(M130=1,L150<>0),SUM($D110:M110),0) -> 0 | N150: =IF(OR(N130=1,M150<>0),SUM($D110:N110),0) -> 0 | O150: =IF(OR(O130=1,N150<>0),SUM($D110:O110),0) -> 0 | P150: 0
C151: Hijo9 | D151: =IF(D131=1,SUM($D111:D111),0) -> 0 | E151: =IF(OR(E131=1,D151<>0),SUM($D111:E111),0) -> 0 | F151: =IF(OR(F131=1,E151<>0),SUM($D111:F111),0) -> 0 | G151: =IF(OR(G131=1,F151<>0),SUM($D111:G111),0) -> 0 | H151: =IF(OR(H131=1,G151<>0),SUM($D111:H111),0) -> 0 | I151: =IF(OR(I131=1,H151<>0),SUM($D111:I111),0) -> 0 | J151: =IF(OR(J131=1,I151<>0),SUM($D111:J111),0) -> 0 | K151: =IF(OR(K131=1,J151<>0),SUM($D111:K111),0) -> 0 | L151: =IF(OR(L131=1,K151<>0),SUM($D111:L111),0) -> 0 | M151: =IF(OR(M131=1,L151<>0),SUM($D111:M111),0) -> 0 | N151: =IF(OR(N131=1,M151<>0),SUM($D111:N111),0) -> 0 | O151: =IF(OR(O131=1,N151<>0),SUM($D111:O111),0) -> 0 | P151: 0
C152: Hijo10 | D152: =IF(D132=1,SUM($D112:D112),0) -> 0 | E152: =IF(OR(E132=1,D152<>0),SUM($D112:E112),0) -> 0 | F152: =IF(OR(F132=1,E152<>0),SUM($D112:F112),0) -> 0 | G152: =IF(OR(G132=1,F152<>0),SUM($D112:G112),0) -> 0 | H152: =IF(OR(H132=1,G152<>0),SUM($D112:H112),0) -> 0 | I152: =IF(OR(I132=1,H152<>0),SUM($D112:I112),0) -> 0 | J152: =IF(OR(J132=1,I152<>0),SUM($D112:J112),0) -> 0 | K152: =IF(OR(K132=1,J152<>0),SUM($D112:K112),0) -> 0 | L152: =IF(OR(L132=1,K152<>0),SUM($D112:L112),0) -> 0 | M152: =IF(OR(M132=1,L152<>0),SUM($D112:M112),0) -> 0 | N152: =IF(OR(N132=1,M152<>0),SUM($D112:N112),0) -> 0 | O152: =IF(OR(O132=1,N152<>0),SUM($D112:O112),0) -> 0 | P152: 0
C153: Hijo11 | D153: =IF(D133=1,SUM($D113:D113),0) -> 0 | E153: =IF(OR(E133=1,D153<>0),SUM($D113:E113),0) -> 0 | F153: =IF(OR(F133=1,E153<>0),SUM($D113:F113),0) -> 0 | G153: =IF(OR(G133=1,F153<>0),SUM($D113:G113),0) -> 0 | H153: =IF(OR(H133=1,G153<>0),SUM($D113:H113),0) -> 0 | I153: =IF(OR(I133=1,H153<>0),SUM($D113:I113),0) -> 0 | J153: =IF(OR(J133=1,I153<>0),SUM($D113:J113),0) -> 0 | K153: =IF(OR(K133=1,J153<>0),SUM($D113:K113),0) -> 0 | L153: =IF(OR(L133=1,K153<>0),SUM($D113:L113),0) -> 0 | M153: =IF(OR(M133=1,L153<>0),SUM($D113:M113),0) -> 0 | N153: =IF(OR(N133=1,M153<>0),SUM($D113:N113),0) -> 0 | O153: =IF(OR(O133=1,N153<>0),SUM($D113:O113),0) -> 0 | P153: 0
C154: Hijo12 | D154: =IF(D134=1,SUM($D114:D114),0) -> 0 | E154: =IF(OR(E134=1,D154<>0),SUM($D114:E114),0) -> 0 | F154: =IF(OR(F134=1,E154<>0),SUM($D114:F114),0) -> 0 | G154: =IF(OR(G134=1,F154<>0),SUM($D114:G114),0) -> 0 | H154: =IF(OR(H134=1,G154<>0),SUM($D114:H114),0) -> 0 | I154: =IF(OR(I134=1,H154<>0),SUM($D114:I114),0) -> 0 | J154: =IF(OR(J134=1,I154<>0),SUM($D114:J114),0) -> 0 | K154: =IF(OR(K134=1,J154<>0),SUM($D114:K114),0) -> 0 | L154: =IF(OR(L134=1,K154<>0),SUM($D114:L114),0) -> 0 | M154: =IF(OR(M134=1,L154<>0),SUM($D114:M114),0) -> 0 | N154: =IF(OR(N134=1,M154<>0),SUM($D114:N114),0) -> 0 | O154: =IF(OR(O134=1,N154<>0),SUM($D114:O114),0) -> 0 | P154: 0
C155: Hijo13 | D155: =IF(D135=1,SUM($D115:D115),0) -> 0 | E155: =IF(OR(E135=1,D155<>0),SUM($D115:E115),0) -> 0 | F155: =IF(OR(F135=1,E155<>0),SUM($D115:F115),0) -> 0 | G155: =IF(OR(G135=1,F155<>0),SUM($D115:G115),0) -> 0 | H155: =IF(OR(H135=1,G155<>0),SUM($D115:H115),0) -> 0 | I155: =IF(OR(I135=1,H155<>0),SUM($D115:I115),0) -> 0 | J155: =IF(OR(J135=1,I155<>0),SUM($D115:J115),0) -> 0 | K155: =IF(OR(K135=1,J155<>0),SUM($D115:K115),0) -> 0 | L155: =IF(OR(L135=1,K155<>0),SUM($D115:L115),0) -> 0 | M155: =IF(OR(M135=1,L155<>0),SUM($D115:M115),0) -> 0 | N155: =IF(OR(N135=1,M155<>0),SUM($D115:N115),0) -> 0 | O155: =IF(OR(O135=1,N155<>0),SUM($D115:O115),0) -> 0 | P155: 0
C156: Hijo14 | D156: =IF(D136=1,SUM($D116:D116),0) -> 0 | E156: =IF(OR(E136=1,D156<>0),SUM($D116:E116),0) -> 0 | F156: =IF(OR(F136=1,E156<>0),SUM($D116:F116),0) -> 0 | G156: =IF(OR(G136=1,F156<>0),SUM($D116:G116),0) -> 0 | H156: =IF(OR(H136=1,G156<>0),SUM($D116:H116),0) -> 0 | I156: =IF(OR(I136=1,H156<>0),SUM($D116:I116),0) -> 0 | J156: =IF(OR(J136=1,I156<>0),SUM($D116:J116),0) -> 0 | K156: =IF(OR(K136=1,J156<>0),SUM($D116:K116),0) -> 0 | L156: =IF(OR(L136=1,K156<>0),SUM($D116:L116),0) -> 0 | M156: =IF(OR(M136=1,L156<>0),SUM($D116:M116),0) -> 0 | N156: =IF(OR(N136=1,M156<>0),SUM($D116:N116),0) -> 0 | O156: =IF(OR(O136=1,N156<>0),SUM($D116:O116),0) -> 0 | P156: 0
C157: Hijo15 | D157: =IF(D137=1,SUM($D117:D117),0) -> 0 | E157: =IF(OR(E137=1,D157<>0),SUM($D117:E117),0) -> 0 | F157: =IF(OR(F137=1,E157<>0),SUM($D117:F117),0) -> 0 | G157: =IF(OR(G137=1,F157<>0),SUM($D117:G117),0) -> 0 | H157: =IF(OR(H137=1,G157<>0),SUM($D117:H117),0) -> 0 | I157: =IF(OR(I137=1,H157<>0),SUM($D117:I117),0) -> 0 | J157: =IF(OR(J137=1,I157<>0),SUM($D117:J117),0) -> 0 | K157: =IF(OR(K137=1,J157<>0),SUM($D117:K117),0) -> 0 | L157: =IF(OR(L137=1,K157<>0),SUM($D117:L117),0) -> 0 | M157: =IF(OR(M137=1,L157<>0),SUM($D117:M117),0) -> 0 | N157: =IF(OR(N137=1,M157<>0),SUM($D117:N117),0) -> 0 | O157: =IF(OR(O137=1,N157<>0),SUM($D117:O117),0) -> 0 | P157: 0
C158: Hijo16 | D158: =IF(D138=1,SUM($D118:D118),0) -> 0 | E158: =IF(OR(E138=1,D158<>0),SUM($D118:E118),0) -> 0 | F158: =IF(OR(F138=1,E158<>0),SUM($D118:F118),0) -> 0 | G158: =IF(OR(G138=1,F158<>0),SUM($D118:G118),0) -> 0 | H158: =IF(OR(H138=1,G158<>0),SUM($D118:H118),0) -> 0 | I158: =IF(OR(I138=1,H158<>0),SUM($D118:I118),0) -> 0 | J158: =IF(OR(J138=1,I158<>0),SUM($D118:J118),0) -> 0 | K158: =IF(OR(K138=1,J158<>0),SUM($D118:K118),0) -> 0 | L158: =IF(OR(L138=1,K158<>0),SUM($D118:L118),0) -> 0 | M158: =IF(OR(M138=1,L158<>0),SUM($D118:M118),0) -> 0 | N158: =IF(OR(N138=1,M158<>0),SUM($D118:N118),0) -> 0 | O158: =IF(OR(O138=1,N158<>0),SUM($D118:O118),0) -> 0 | P158: 0
C160: Retenciones al SAC | D160: 2017-01-01 | E160: 2017-02-01 | F160: 2017-03-01 | G160: 2017-04-01 | H160: 2017-05-01 | I160: 2017-06-01 | J160: 2017-07-01 | K160: 2017-08-01 | L160: 2017-09-01 | M160: 2017-10-01 | N160: 2017-11-01 | O160: 2017-12-01 | P160: Anual
C161: SAC Importe | D161: =+Ingresos!C12+Ingresos!C39 -> 0 | E161: =+Ingresos!D12+Ingresos!D39 -> 0 | F161: =+Ingresos!E12+Ingresos!E39 -> 0 | G161: =+Ingresos!F12+Ingresos!F39 -> 0 | H161: =+Ingresos!G12+Ingresos!G39 -> 0 | I161: =+Ingresos!H12+Ingresos!H39 -> 0 | J161: =+Ingresos!I12+Ingresos!I39 -> 0 | K161: =+Ingresos!J12+Ingresos!J39 -> 0 | L161: =+Ingresos!K12+Ingresos!K39 -> 0 | M161: =+Ingresos!L12+Ingresos!L39 -> 0 | N161: =+Ingresos!M12+Ingresos!M39 -> 0 | O161: =+Ingresos!N12+Ingresos!N39 -> 0 | P161: =SUM(D161:O161) -> 0
C162: SUMA Remunerativo | D162: =+D10+D9 -> 70000 | E162: 0 | F162: 0 | G162: 0 | H162: 0 | I162: 0 | J162: 0 | K162: 0 | L162: 0 | M162: 0 | N162: 0 | O162: 0 | P162: =SUM(D162:O162) -> 70000
C163: Empleo + Pluriempleo
C164: =+C30 -> Jubilación | D164: =IF(D$161<>0,retenciones(Check!$B$8,$R164,SUM(D$161:D$162),Tablas!C$7*1.5,Tablas!C8,D$161,0),0) -> 0 | E164: =IF(E$161<>0,retenciones(Check!$B$8,$R164,SUM(E$161:E$162),Tablas!D$7*1.5,Tablas!D8,E$161,0),0) -> 0 | F164: =IF(F$161<>0,retenciones(Check!$B$8,$R164,SUM(F$161:F$162),Tablas!E$7*1.5,Tablas!E8,F$161,0),0) -> 0 | G164: =IF(G$161<>0,retenciones(Check!$B$8,$R164,SUM(G$161:G$162),Tablas!F$7*1.5,Tablas!F8,G$161,0),0) -> 0 | H164: =IF(H$161<>0,retenciones(Check!$B$8,$R164,SUM(H$161:H$162),Tablas!G$7*1.5,Tablas!G8,H$161,0),0) -> 0 | I164: =IF(I$161<>0,retenciones(Check!$B$8,$R164,SUM(I$161:I$162),Tablas!H$7*1.5,Tablas!H8,I$161,0),0) -> 0 | J164: =IF(J$161<>0,retenciones(Check!$B$8,$R164,SUM(J$161:J$162),Tablas!I$7*1.5,Tablas!I8,J$161,0),0) -> 0 | K164: =IF(K$161<>0,retenciones(Check!$B$8,$R164,SUM(K$161:K$162),Tablas!J$7*1.5,Tablas!J8,K$161,0),0) -> 0 | L164: =IF(L$161<>0,retenciones(Check!$B$8,$R164,SUM(L$161:L$162),Tablas!K$7*1.5,Tablas!K8,L$161,0),0) -> 0 | M164: =IF(M$161<>0,retenciones(Check!$B$8,$R164,SUM(M$161:M$162),Tablas!L$7*1.5,Tablas!L8,M$161,0),0) -> 0 | N164: =IF(N$161<>0,retenciones(Check!$B$8,$R164,SUM(N$161:N$162),Tablas!M$7*1.5,Tablas!M8,N$161,0),0) -> 0 | O164: =IF(O$161<>0,retenciones(Check!$B$8,$R164,SUM(O$161:O$162),Tablas!N$7*1.5,Tablas!N8,O$161,0),0) -> 0 | P164: =IF(Check!$B$8="Ok",SUM(D164:O164),DedGrales!P23) -> 0 | R164: =+R30 -> Sí
C165: Ley 19032 | D165: =IF(D$161<>0,retenciones(Check!$B$8,$R165,SUM(D$161:D$162),Tablas!C$7*1.5,Tablas!C9,D$161,0),0) -> 0 | E165: =IF(E$161<>0,retenciones(Check!$B$8,$R165,SUM(E$161:E$162),Tablas!D$7*1.5,Tablas!D9,E$161,0),0) -> 0 | F165: =IF(F$161<>0,retenciones(Check!$B$8,$R165,SUM(F$161:F$162),Tablas!E$7*1.5,Tablas!E9,F$161,0),0) -> 0 | G165: =IF(G$161<>0,retenciones(Check!$B$8,$R165,SUM(G$161:G$162),Tablas!F$7*1.5,Tablas!F9,G$161,0),0) -> 0 | H165: =IF(H$161<>0,retenciones(Check!$B$8,$R165,SUM(H$161:H$162),Tablas!G$7*1.5,Tablas!G9,H$161,0),0) -> 0 | I165: =IF(I$161<>0,retenciones(Check!$B$8,$R165,SUM(I$161:I$162),Tablas!H$7*1.5,Tablas!H9,I$161,0),0) -> 0 | J165: =IF(J$161<>0,retenciones(Check!$B$8,$R165,SUM(J$161:J$162),Tablas!I$7*1.5,Tablas!I9,J$161,0),0) -> 0 | K165: =IF(K$161<>0,retenciones(Check!$B$8,$R165,SUM(K$161:K$162),Tablas!J$7*1.5,Tablas!J9,K$161,0),0) -> 0 | L165: =IF(L$161<>0,retenciones(Check!$B$8,$R165,SUM(L$161:L$162),Tablas!K$7*1.5,Tablas!K9,L$161,0),0) -> 0 | M165: =IF(M$161<>0,retenciones(Check!$B$8,$R165,SUM(M$161:M$162),Tablas!L$7*1.5,Tablas!L9,M$161,0),0) -> 0 | N165: =IF(N$161<>0,retenciones(Check!$B$8,$R165,SUM(N$161:N$162),Tablas!M$7*1.5,Tablas!M9,N$161,0),0) -> 0 | O165: =IF(O$161<>0,retenciones(Check!$B$8,$R165,SUM(O$161:O$162),Tablas!N$7*1.5,Tablas!N9,O$161,0),0) -> 0 | P165: =IF(Check!$B$8="Ok",SUM(D165:O165),DedGrales!P24) -> 0 | R165: Sí
C166: Obra social | D166: =IF(D$161<>0,retenciones(Check!$B$8,$R166,SUM(D$161:D$162),Tablas!C$7*1.5,Tablas!C10,D$161,0),0) -> 0 | E166: =IF(E$161<>0,retenciones(Check!$B$8,$R166,SUM(E$161:E$162),Tablas!D$7*1.5,Tablas!D10,E$161,0),0) -> 0 | F166: =IF(F$161<>0,retenciones(Check!$B$8,$R166,SUM(F$161:F$162),Tablas!E$7*1.5,Tablas!E10,F$161,0),0) -> 0 | G166: =IF(G$161<>0,retenciones(Check!$B$8,$R166,SUM(G$161:G$162),Tablas!F$7*1.5,Tablas!F10,G$161,0),0) -> 0 | H166: =IF(H$161<>0,retenciones(Check!$B$8,$R166,SUM(H$161:H$162),Tablas!G$7*1.5,Tablas!G10,H$161,0),0) -> 0 | I166: =IF(I$161<>0,retenciones(Check!$B$8,$R166,SUM(I$161:I$162),Tablas!H$7*1.5,Tablas!H10,I$161,0),0) -> 0 | J166: =IF(J$161<>0,retenciones(Check!$B$8,$R166,SUM(J$161:J$162),Tablas!I$7*1.5,Tablas!I10,J$161,0),0) -> 0 | K166: =IF(K$161<>0,retenciones(Check!$B$8,$R166,SUM(K$161:K$162),Tablas!J$7*1.5,Tablas!J10,K$161,0),0) -> 0 | L166: =IF(L$161<>0,retenciones(Check!$B$8,$R166,SUM(L$161:L$162),Tablas!K$7*1.5,Tablas!K10,L$161,0),0) -> 0 | M166: =IF(M$161<>0,retenciones(Check!$B$8,$R166,SUM(M$161:M$162),Tablas!L$7*1.5,Tablas!L10,M$161,0),0) -> 0 | N166: =IF(N$161<>0,retenciones(Check!$B$8,$R166,SUM(N$161:N$162),Tablas!M$7*1.5,Tablas!M10,N$161,0),0) -> 0 | O166: =IF(O$161<>0,retenciones(Check!$B$8,$R166,SUM(O$161:O$162),Tablas!N$7*1.5,Tablas!N10,O$161,0),0) -> 0 | P166: =IF(Check!$B$8="Ok",SUM(D166:O166),DedGrales!P25) -> 0 | R166: Sí
C167: Sindicato | D167: =IF(D$161<>0,retenciones(Check!$B$8,$R167,SUM(D$161:D$162),Tablas!C$7*1.5,Tablas!C11,D$161,0),0) -> 0 | E167: =IF(E$161<>0,retenciones(Check!$B$8,$R167,SUM(E$161:E$162),Tablas!D$7*1.5,Tablas!D11,E$161,0),0) -> 0 | F167: =IF(F$161<>0,retenciones(Check!$B$8,$R167,SUM(F$161:F$162),Tablas!E$7*1.5,Tablas!E11,F$161,0),0) -> 0 | G167: =IF(G$161<>0,retenciones(Check!$B$8,$R167,SUM(G$161:G$162),Tablas!F$7*1.5,Tablas!F11,G$161,0),0) -> 0 | H167: =IF(H$161<>0,retenciones(Check!$B$8,$R167,SUM(H$161:H$162),Tablas!G$7*1.5,Tablas!G11,H$161,0),0) -> 0 | I167: =IF(I$161<>0,retenciones(Check!$B$8,$R167,SUM(I$161:I$162),Tablas!H$7*1.5,Tablas!H11,I$161,0),0) -> 0 | J167: =IF(J$161<>0,retenciones(Check!$B$8,$R167,SUM(J$161:J$162),Tablas!I$7*1.5,Tablas!I11,J$161,0),0) -> 0 | K167: =IF(K$161<>0,retenciones(Check!$B$8,$R167,SUM(K$161:K$162),Tablas!J$7*1.5,Tablas!J11,K$161,0),0) -> 0 | L167: =IF(L$161<>0,retenciones(Check!$B$8,$R167,SUM(L$161:L$162),Tablas!K$7*1.5,Tablas!K11,L$161,0),0) -> 0 | M167: =IF(M$161<>0,retenciones(Check!$B$8,$R167,SUM(M$161:M$162),Tablas!L$7*1.5,Tablas!L11,M$161,0),0) -> 0 | N167: =IF(N$161<>0,retenciones(Check!$B$8,$R167,SUM(N$161:N$162),Tablas!M$7*1.5,Tablas!M11,N$161,0),0) -> 0 | O167: =IF(O$161<>0,retenciones(Check!$B$8,$R167,SUM(O$161:O$162),Tablas!N$7*1.5,Tablas!N11,O$161,0),0) -> 0 | P167: =IF(Check!$B$8="Ok",SUM(D167:O167),DedGrales!P26) -> 0 | R167: No
C168: 0 | D168: =IF(D$161<>0,retenciones(Check!$B$8,$R168,SUM(D$161:D$162),Tablas!C$7*1.5,Tablas!C12,D$161,0),0) -> 0 | E168: =IF(E$161<>0,retenciones(Check!$B$8,$R168,SUM(E$161:E$162),Tablas!D$7*1.5,Tablas!D12,E$161,0),0) -> 0 | F168: =IF(F$161<>0,retenciones(Check!$B$8,$R168,SUM(F$161:F$162),Tablas!E$7*1.5,Tablas!E12,F$161,0),0) -> 0 | G168: =IF(G$161<>0,retenciones(Check!$B$8,$R168,SUM(G$161:G$162),Tablas!F$7*1.5,Tablas!F12,G$161,0),0) -> 0 | H168: =IF(H$161<>0,retenciones(Check!$B$8,$R168,SUM(H$161:H$162),Tablas!G$7*1.5,Tablas!G12,H$161,0),0) -> 0 | I168: =IF(I$161<>0,retenciones(Check!$B$8,$R168,SUM(I$161:I$162),Tablas!H$7*1.5,Tablas!H12,I$161,0),0) -> 0 | J168: =IF(J$161<>0,retenciones(Check!$B$8,$R168,SUM(J$161:J$162),Tablas!I$7*1.5,Tablas!I12,J$161,0),0) -> 0 | K168: =IF(K$161<>0,retenciones(Check!$B$8,$R168,SUM(K$161:K$162),Tablas!J$7*1.5,Tablas!J12,K$161,0),0) -> 0 | L168: =IF(L$161<>0,retenciones(Check!$B$8,$R168,SUM(L$161:L$162),Tablas!K$7*1.5,Tablas!K12,L$161,0),0) -> 0 | M168: =IF(M$161<>0,retenciones(Check!$B$8,$R168,SUM(M$161:M$162),Tablas!L$7*1.5,Tablas!L12,M$161,0),0) -> 0 | N168: =IF(N$161<>0,retenciones(Check!$B$8,$R168,SUM(N$161:N$162),Tablas!M$7*1.5,Tablas!M12,N$161,0),0) -> 0 | O168: =IF(O$161<>0,retenciones(Check!$B$8,$R168,SUM(O$161:O$162),Tablas!N$7*1.5,Tablas!N12,O$161,0),0) -> 0 | P168: =IF(Check!$B$8="Ok",SUM(D168:O168),DedGrales!P27) -> 0 | R168: No
C169: 0 | D169: =IF(D$161<>0,retenciones(Check!$B$8,$R169,SUM(D$161:D$162),Tablas!C$7*1.5,Tablas!C13,D$161,0),0) -> 0 | E169: =IF(E$161<>0,retenciones(Check!$B$8,$R169,SUM(E$161:E$162),Tablas!D$7*1.5,Tablas!D13,E$161,0),0) -> 0 | F169: =IF(F$161<>0,retenciones(Check!$B$8,$R169,SUM(F$161:F$162),Tablas!E$7*1.5,Tablas!E13,F$161,0),0) -> 0 | G169: =IF(G$161<>0,retenciones(Check!$B$8,$R169,SUM(G$161:G$162),Tablas!F$7*1.5,Tablas!F13,G$161,0),0) -> 0 | H169: =IF(H$161<>0,retenciones(Check!$B$8,$R169,SUM(H$161:H$162),Tablas!G$7*1.5,Tablas!G13,H$161,0),0) -> 0 | I169: =IF(I$161<>0,retenciones(Check!$B$8,$R169,SUM(I$161:I$162),Tablas!H$7*1.5,Tablas!H13,I$161,0),0) -> 0 | J169: =IF(J$161<>0,retenciones(Check!$B$8,$R169,SUM(J$161:J$162),Tablas!I$7*1.5,Tablas!I13,J$161,0),0) -> 0 | K169: =IF(K$161<>0,retenciones(Check!$B$8,$R169,SUM(K$161:K$162),Tablas!J$7*1.5,Tablas!J13,K$161,0),0) -> 0 | L169: =IF(L$161<>0,retenciones(Check!$B$8,$R169,SUM(L$161:L$162),Tablas!K$7*1.5,Tablas!K13,L$161,0),0) -> 0 | M169: =IF(M$161<>0,retenciones(Check!$B$8,$R169,SUM(M$161:M$162),Tablas!L$7*1.5,Tablas!L13,M$161,0),0) -> 0 | N169: =IF(N$161<>0,retenciones(Check!$B$8,$R169,SUM(N$161:N$162),Tablas!M$7*1.5,Tablas!M13,N$161,0),0) -> 0 | O169: =IF(O$161<>0,retenciones(Check!$B$8,$R169,SUM(O$161:O$162),Tablas!N$7*1.5,Tablas!N13,O$161,0),0) -> 0 | P169: =IF(Check!$B$8="Ok",SUM(D169:O169),DedGrales!P28) -> 0 | R169: No
C170: Total | D170: =+SUM(D164:D169) -> 0 | E170: 0 | F170: 0 | G170: 0 | H170: 0 | I170: 0 | J170: 0 | K170: 0 | L170: 0 | M170: 0 | N170: 0 | O170: 0 | P170: =+SUM(P164:P169) -> 0
C172: Retenciones estimadas | D172: 2017-01-01 | E172: 2017-02-01 | F172: 2017-03-01 | G172: 2017-04-01 | H172: 2017-05-01 | I172: 2017-06-01 | J172: 2017-07-01 | K172: 2017-08-01 | L172: 2017-09-01 | M172: 2017-10-01 | N172: 2017-11-01 | O172: 2017-12-01 | P172: Anual
C173: SAC Importe estimado bruto 1 | D173: =+D194 -> 5833.333333 | E173: =+E194 -> 0 | F173: 0 | G173: 0 | H173: 0 | I173: 0 | J173: 0 | K173: 0 | L173: 0 | M173: 0 | N173: 0 | O173: 0
C174: =+C164 -> Jubilación | D174: =maximo(D$173,Tablas!C$7/12)*Tablas!C8 -> 641.6666667 | E174: =maximo(E$173,Tablas!D$7/12)*Tablas!D8 -> 0 | F174: =maximo(F$173,Tablas!E$7/12)*Tablas!E8 -> 0 | G174: =maximo(G$173,Tablas!F$7/12)*Tablas!F8 -> 0 | H174: =maximo(H$173,Tablas!G$7/12)*Tablas!G8 -> 0 | I174: =maximo(I$173,Tablas!H$7/12)*Tablas!H8 -> 0 | J174: =maximo(J$173,Tablas!I$7/12)*Tablas!I8 -> 0 | K174: =maximo(K$173,Tablas!J$7/12)*Tablas!J8 -> 0 | L174: =maximo(L$173,Tablas!K$7/12)*Tablas!K8 -> 0 | M174: =maximo(M$173,Tablas!L$7/12)*Tablas!L8 -> 0 | N174: =maximo(N$173,Tablas!M$7/12)*Tablas!M8 -> 0 | O174: =maximo(O$173,Tablas!N$7/12)*Tablas!N8 -> 0 | P174: =IF(Check!$B$8="Ok",SUM(D174:O174),DedGrales!P161) -> 641.6666667 | R174: =+R30 -> Sí
C175: =+C165 -> Ley 19032 | D175: =maximo(D$173,Tablas!C$7/12)*Tablas!C9 -> 175 | E175: =maximo(E$173,Tablas!D$7/12)*Tablas!D9 -> 0 | F175: =maximo(F$173,Tablas!E$7/12)*Tablas!E9 -> 0 | G175: =maximo(G$173,Tablas!F$7/12)*Tablas!F9 -> 0 | H175: =maximo(H$173,Tablas!G$7/12)*Tablas!G9 -> 0 | I175: =maximo(I$173,Tablas!H$7/12)*Tablas!H9 -> 0 | J175: =maximo(J$173,Tablas!I$7/12)*Tablas!I9 -> 0 | K175: =maximo(K$173,Tablas!J$7/12)*Tablas!J9 -> 0 | L175: =maximo(L$173,Tablas!K$7/12)*Tablas!K9 -> 0 | M175: =maximo(M$173,Tablas!L$7/12)*Tablas!L9 -> 0 | N175: =maximo(N$173,Tablas!M$7/12)*Tablas!M9 -> 0 | O175: =maximo(O$173,Tablas!N$7/12)*Tablas!N9 -> 0 | P175: =IF(Check!$B$8="Ok",SUM(D175:O175),DedGrales!P162) -> 175 | R175: Sí
C176: Obra social | D176: =maximo(D$173,Tablas!C$7/12)*Tablas!C10 -> 175 | E176: =maximo(E$173,Tablas!D$7/12)*Tablas!D10 -> 0 | F176: =maximo(F$173,Tablas!E$7/12)*Tablas!E10 -> 0 | G176: =maximo(G$173,Tablas!F$7/12)*Tablas!F10 -> 0 | H176: =maximo(H$173,Tablas!G$7/12)*Tablas!G10 -> 0 | I176: =maximo(I$173,Tablas!H$7/12)*Tablas!H10 -> 0 | J176: =maximo(J$173,Tablas!I$7/12)*Tablas!I10 -> 0 | K176: =maximo(K$173,Tablas!J$7/12)*Tablas!J10 -> 0 | L176: =maximo(L$173,Tablas!K$7/12)*Tablas!K10 -> 0 | M176: =maximo(M$173,Tablas!L$7/12)*Tablas!L10 -> 0 | N176: =maximo(N$173,Tablas!M$7/12)*Tablas!M10 -> 0 | O176: =maximo(O$173,Tablas!N$7/12)*Tablas!N10 -> 0 | P176: =IF(Check!$B$8="Ok",SUM(D176:O176),DedGrales!P163) -> 175 | R176: Sí
C177: Sindicato | D177: =maximo(D$173,Tablas!C$7/12)*Tablas!C11 -> 0 | E177: =maximo(E$173,Tablas!D$7/12)*Tablas!D11 -> 0 | F177: =maximo(F$173,Tablas!E$7/12)*Tablas!E11 -> 0 | G177: =maximo(G$173,Tablas!F$7/12)*Tablas!F11 -> 0 | H177: =maximo(H$173,Tablas!G$7/12)*Tablas!G11 -> 0 | I177: =maximo(I$173,Tablas!H$7/12)*Tablas!H11 -> 0 | J177: =maximo(J$173,Tablas!I$7/12)*Tablas!I11 -> 0 | K177: =maximo(K$173,Tablas!J$7/12)*Tablas!J11 -> 0 | L177: =maximo(L$173,Tablas!K$7/12)*Tablas!K11 -> 0 | M177: =maximo(M$173,Tablas!L$7/12)*Tablas!L11 -> 0 | N177: =maximo(N$173,Tablas!M$7/12)*Tablas!M11 -> 0 | O177: =maximo(O$173,Tablas!N$7/12)*Tablas!N11 -> 0 | P177: =IF(Check!$B$8="Ok",SUM(D177:O177),DedGrales!P164) -> 0 | R177: No
C178: 0 | D178: =maximo(D$173,Tablas!C$7/12)*Tablas!C12 -> 0 | E178: =maximo(E$173,Tablas!D$7/12)*Tablas!D12 -> 0 | F178: =maximo(F$173,Tablas!E$7/12)*Tablas!E12 -> 0 | G178: =maximo(G$173,Tablas!F$7/12)*Tablas!F12 -> 0 | H178: =maximo(H$173,Tablas!G$7/12)*Tablas!G12 -> 0 | I178: =maximo(I$173,Tablas!H$7/12)*Tablas!H12 -> 0 | J178: =maximo(J$173,Tablas!I$7/12)*Tablas!I12 -> 0 | K178: =maximo(K$173,Tablas!J$7/12)*Tablas!J12 -> 0 | L178: =maximo(L$173,Tablas!K$7/12)*Tablas!K12 -> 0 | M178: =maximo(M$173,Tablas!L$7/12)*Tablas!L12 -> 0 | N178: =maximo(N$173,Tablas!M$7/12)*Tablas!M12 -> 0 | O178: =maximo(O$173,Tablas!N$7/12)*Tablas!N12 -> 0 | P178: =IF(Check!$B$8="Ok",SUM(D178:O178),DedGrales!P165) -> 0 | R178: No
C179: 0 | D179: =maximo(D$173,Tablas!C$7/12)*Tablas!C13 -> 0 | E179: =maximo(E$173,Tablas!D$7/12)*Tablas!D13 -> 0 | F179: =maximo(F$173,Tablas!E$7/12)*Tablas!E13 -> 0 | G179: =maximo(G$173,Tablas!F$7/12)*Tablas!F13 -> 0 | H179: =maximo(H$173,Tablas!G$7/12)*Tablas!G13 -> 0 | I179: =maximo(I$173,Tablas!H$7/12)*Tablas!H13 -> 0 | J179: =maximo(J$173,Tablas!I$7/12)*Tablas!I13 -> 0 | K179: =maximo(K$173,Tablas!J$7/12)*Tablas!J13 -> 0 | L179: =maximo(L$173,Tablas!K$7/12)*Tablas!K13 -> 0 | M179: =maximo(M$173,Tablas!L$7/12)*Tablas!L13 -> 0 | N179: =maximo(N$173,Tablas!M$7/12)*Tablas!M13 -> 0 | O179: =maximo(O$173,Tablas!N$7/12)*Tablas!N13 -> 0 | P179: =IF(Check!$B$8="Ok",SUM(D179:O179),DedGrales!P166) -> 0 | R179: No
C180: Total | D180: =+SUM(D174:D179) -> 991.6666667 | E180: 0 | F180: 0 | G180: 0 | H180: 0 | I180: 0 | J180: 0 | K180: 0 | L180: 0 | M180: 0 | N180: 0 | O180: 0 | P180: =+SUM(P174:P179) -> 991.6666667
C182: Retenciones estimadas | D182: 2017-01-01 | E182: 2017-02-01 | F182: 2017-03-01 | G182: 2017-04-01 | H182: 2017-05-01 | I182: 2017-06-01 | J182: 2017-07-01 | K182: 2017-08-01 | L182: 2017-09-01 | M182: 2017-10-01 | N182: 2017-11-01 | O182: 2017-12-01 | P182: Anual
C183: SAC Importe estimado bruto 2 | D183: =+D199 -> 0 | E183: =+E199 -> 0 | F183: 0 | G183: 0 | H183: 0 | I183: 0 | J183: 0 | K183: 0 | L183: 0 | M183: 0 | N183: 0 | O183: 0
C184: =+C174 -> Jubilación | D184: =maximo(D$183,Tablas!C$7/12)*Tablas!C8 -> 0 | E184: =maximo(E$183,Tablas!D$7/12)*Tablas!D8 -> 0 | F184: =maximo(F$183,Tablas!E$7/12)*Tablas!E8 -> 0 | G184: =maximo(G$183,Tablas!F$7/12)*Tablas!F8 -> 0 | H184: =maximo(H$183,Tablas!G$7/12)*Tablas!G8 -> 0 | I184: =maximo(I$183,Tablas!H$7/12)*Tablas!H8 -> 0 | J184: =maximo(J$183,Tablas!I$7/12)*Tablas!I8 -> 0 | K184: =maximo(K$183,Tablas!J$7/12)*Tablas!J8 -> 0 | L184: =maximo(L$183,Tablas!K$7/12)*Tablas!K8 -> 0 | M184: =maximo(M$183,Tablas!L$7/12)*Tablas!L8 -> 0 | N184: =maximo(N$183,Tablas!M$7/12)*Tablas!M8 -> 0 | O184: =maximo(O$183,Tablas!N$7/12)*Tablas!N8 -> 0 | P184: =IF(Check!$B$8="Ok",SUM(D184:O184),DedGrales!P171) -> 0 | R184: =+R40 -> No
C185: =+C175 -> Ley 19032 | D185: =maximo(D$183,Tablas!C$7/12)*Tablas!C9 -> 0 | E185: =maximo(E$183,Tablas!D$7/12)*Tablas!D9 -> 0 | F185: =maximo(F$183,Tablas!E$7/12)*Tablas!E9 -> 0 | G185: =maximo(G$183,Tablas!F$7/12)*Tablas!F9 -> 0 | H185: =maximo(H$183,Tablas!G$7/12)*Tablas!G9 -> 0 | I185: =maximo(I$183,Tablas!H$7/12)*Tablas!H9 -> 0 | J185: =maximo(J$183,Tablas!I$7/12)*Tablas!I9 -> 0 | K185: =maximo(K$183,Tablas!J$7/12)*Tablas!J9 -> 0 | L185: =maximo(L$183,Tablas!K$7/12)*Tablas!K9 -> 0 | M185: =maximo(M$183,Tablas!L$7/12)*Tablas!L9 -> 0 | N185: =maximo(N$183,Tablas!M$7/12)*Tablas!M9 -> 0 | O185: =maximo(O$183,Tablas!N$7/12)*Tablas!N9 -> 0 | P185: =IF(Check!$B$8="Ok",SUM(D185:O185),DedGrales!P172) -> 0 | R185: No
C186: Obra social | D186: =maximo(D$183,Tablas!C$7/12)*Tablas!C10 -> 0 | E186: =maximo(E$183,Tablas!D$7/12)*Tablas!D10 -> 0 | F186: =maximo(F$183,Tablas!E$7/12)*Tablas!E10 -> 0 | G186: =maximo(G$183,Tablas!F$7/12)*Tablas!F10 -> 0 | H186: =maximo(H$183,Tablas!G$7/12)*Tablas!G10 -> 0 | I186: =maximo(I$183,Tablas!H$7/12)*Tablas!H10 -> 0 | J186: =maximo(J$183,Tablas!I$7/12)*Tablas!I10 -> 0 | K186: =maximo(K$183,Tablas!J$7/12)*Tablas!J10 -> 0 | L186: =maximo(L$183,Tablas!K$7/12)*Tablas!K10 -> 0 | M186: =maximo(M$183,Tablas!L$7/12)*Tablas!L10 -> 0 | N186: =maximo(N$183,Tablas!M$7/12)*Tablas!M10 -> 0 | O186: =maximo(O$183,Tablas!N$7/12)*Tablas!N10 -> 0 | P186: =IF(Check!$B$8="Ok",SUM(D186:O186),DedGrales!P173) -> 0 | R186: No
C187: Sindicato | D187: =maximo(D$183,Tablas!C$7/12)*Tablas!C11 -> 0 | E187: =maximo(E$183,Tablas!D$7/12)*Tablas!D11 -> 0 | F187: =maximo(F$183,Tablas!E$7/12)*Tablas!E11 -> 0 | G187: =maximo(G$183,Tablas!F$7/12)*Tablas!F11 -> 0 | H187: =maximo(H$183,Tablas!G$7/12)*Tablas!G11 -> 0 | I187: =maximo(I$183,Tablas!H$7/12)*Tablas!H11 -> 0 | J187: =maximo(J$183,Tablas!I$7/12)*Tablas!I11 -> 0 | K187: =maximo(K$183,Tablas!J$7/12)*Tablas!J11 -> 0 | L187: =maximo(L$183,Tablas!K$7/12)*Tablas!K11 -> 0 | M187: =maximo(M$183,Tablas!L$7/12)*Tablas!L11 -> 0 | N187: =maximo(N$183,Tablas!M$7/12)*Tablas!M11 -> 0 | O187: =maximo(O$183,Tablas!N$7/12)*Tablas!N11 -> 0 | P187: =IF(Check!$B$8="Ok",SUM(D187:O187),DedGrales!P174) -> 0 | R187: 0
C188: 0 | D188: =maximo(D$183,Tablas!C$7/12)*Tablas!C12 -> 0 | E188: =maximo(E$183,Tablas!D$7/12)*Tablas!D12 -> 0 | F188: =maximo(F$183,Tablas!E$7/12)*Tablas!E12 -> 0 | G188: =maximo(G$183,Tablas!F$7/12)*Tablas!F12 -> 0 | H188: =maximo(H$183,Tablas!G$7/12)*Tablas!G12 -> 0 | I188: =maximo(I$183,Tablas!H$7/12)*Tablas!H12 -> 0 | J188: =maximo(J$183,Tablas!I$7/12)*Tablas!I12 -> 0 | K188: =maximo(K$183,Tablas!J$7/12)*Tablas!J12 -> 0 | L188: =maximo(L$183,Tablas!K$7/12)*Tablas!K12 -> 0 | M188: =maximo(M$183,Tablas!L$7/12)*Tablas!L12 -> 0 | N188: =maximo(N$183,Tablas!M$7/12)*Tablas!M12 -> 0 | O188: =maximo(O$183,Tablas!N$7/12)*Tablas!N12 -> 0 | P188: =IF(Check!$B$8="Ok",SUM(D188:O188),DedGrales!P175) -> 0 | R188: 0
C189: 0 | D189: =maximo(D$183,Tablas!C$7/12)*Tablas!C13 -> 0 | E189: =maximo(E$183,Tablas!D$7/12)*Tablas!D13 -> 0 | F189: =maximo(F$183,Tablas!E$7/12)*Tablas!E13 -> 0 | G189: =maximo(G$183,Tablas!F$7/12)*Tablas!F13 -> 0 | H189: =maximo(H$183,Tablas!G$7/12)*Tablas!G13 -> 0 | I189: =maximo(I$183,Tablas!H$7/12)*Tablas!H13 -> 0 | J189: =maximo(J$183,Tablas!I$7/12)*Tablas!I13 -> 0 | K189: =maximo(K$183,Tablas!J$7/12)*Tablas!J13 -> 0 | L189: =maximo(L$183,Tablas!K$7/12)*Tablas!K13 -> 0 | M189: =maximo(M$183,Tablas!L$7/12)*Tablas!L13 -> 0 | N189: =maximo(N$183,Tablas!M$7/12)*Tablas!M13 -> 0 | O189: =maximo(O$183,Tablas!N$7/12)*Tablas!N13 -> 0 | P189: =IF(Check!$B$8="Ok",SUM(D189:O189),DedGrales!P176) -> 0 | R189: 0
C190: Total | D190: =+SUM(D184:D189) -> 0 | E190: 0 | F190: 0 | G190: 0 | H190: 0 | I190: 0 | J190: 0 | K190: 0 | L190: 0 | M190: 0 | N190: 0 | O190: 0 | P190: =+SUM(P184:P189) -> 0
C192: Base estimada | D192: =SUMIF(Ingresos!$S8:$S26,"Sí",Ingresos!C$8:C$26) -> 70000 | E192: =SUMIF(Ingresos!$S8:$S26,"Sí",Ingresos!D$8:D$26) -> 0 | F192: =SUMIF(Ingresos!$S8:$S26,"Sí",Ingresos!E$8:E$26) -> 0 | G192: =SUMIF(Ingresos!$S8:$S26,"Sí",Ingresos!F$8:F$26) -> 0 | H192: =SUMIF(Ingresos!$S8:$S26,"Sí",Ingresos!G$8:G$26) -> 0 | I192: =SUMIF(Ingresos!$S8:$S26,"Sí",Ingresos!H$8:H$26) -> 0 | J192: =SUMIF(Ingresos!$S8:$S26,"Sí",Ingresos!I$8:I$26) -> 0 | K192: =SUMIF(Ingresos!$S8:$S26,"Sí",Ingresos!J$8:J$26) -> 0 | L192: =SUMIF(Ingresos!$S8:$S26,"Sí",Ingresos!K$8:K$26) -> 0 | M192: =SUMIF(Ingresos!$S8:$S26,"Sí",Ingresos!L$8:L$26) -> 0 | N192: =SUMIF(Ingresos!$S8:$S26,"Sí",Ingresos!M$8:M$26) -> 0 | O192: =SUMIF(Ingresos!$S8:$S26,"Sí",Ingresos!N$8:N$26) -> 0
C193: Máx | D193: =MAX($D$192:D192) -> 70000 | E193: =MAX($D$192:E192) -> 70000 | F193: =MAX($D$192:F192) -> 70000 | G193: =MAX($D$192:G192) -> 70000 | H193: =MAX($D$192:H192) -> 70000 | I193: =MAX($D$192:I192) -> 70000 | J193: =MAX($J$192:J192) -> 0 | K193: =MAX($J$192:K192) -> 0 | L193: =MAX($J$192:L192) -> 0 | M193: =MAX($J$192:M192) -> 0 | N193: =MAX($J$192:N192) -> 0 | O193: =MAX($J$192:O192) -> 0
C194: SAC estimado bruto 1 | D194: =D192/12 -> 5833.333333 | E194: =E192/12 -> 0 | F194: 0 | G194: 0 | H194: 0 | I194: 0 | J194: 0 | K194: 0 | L194: 0 | M194: 0 | N194: 0 | O194: 0
C195: SAC estimado neto 1 | D195: =IF(Check!$B$8="Ok",D173-D180,D173-DedGrales!D18) -> 4841.666667 | E195: =IF(Check!$B$8="Ok",E173-E180,E173-DedGrales!E18) -> 0 | F195: =IF(Check!$B$8="Ok",F173-F180,F173-DedGrales!F18) -> 0 | G195: =IF(Check!$B$8="Ok",G173-G180,G173-DedGrales!G18) -> 0 | H195: =IF(Check!$B$8="Ok",H173-H180,H173-DedGrales!H18) -> 0 | I195: =IF(Check!$B$8="Ok",I173-I180,I173-DedGrales!I18) -> 0 | J195: =IF(Check!$B$8="Ok",J173-J180,J173-DedGrales!J18) -> 0 | K195: =IF(Check!$B$8="Ok",K173-K180,K173-DedGrales!K18) -> 0 | L195: =IF(Check!$B$8="Ok",L173-L180,L173-DedGrales!L18) -> 0 | M195: =IF(Check!$B$8="Ok",M173-M180,M173-DedGrales!M18) -> 0 | N195: =IF(Check!$B$8="Ok",N173-N180,N173-DedGrales!N18) -> 0 | O195: =IF(Check!$B$8="Ok",O173-O180,O173-DedGrales!O18) -> 0
C197: Base estimada | D197: =SUMIF(Ingresos!$S35:$S45,"Sí",Ingresos!C$35:C$45) -> 0 | E197: =SUMIF(Ingresos!$S35:$S45,"Sí",Ingresos!D$35:D$45) -> 0 | F197: =SUMIF(Ingresos!$S35:$S45,"Sí",Ingresos!E$35:E$45) -> 0 | G197: =SUMIF(Ingresos!$S35:$S45,"Sí",Ingresos!F$35:F$45) -> 0 | H197: =SUMIF(Ingresos!$S35:$S45,"Sí",Ingresos!G$35:G$45) -> 0 | I197: =SUMIF(Ingresos!$S35:$S45,"Sí",Ingresos!H$35:H$45) -> 0 | J197: =SUMIF(Ingresos!$S35:$S45,"Sí",Ingresos!I$35:I$45) -> 0 | K197: =SUMIF(Ingresos!$S35:$S45,"Sí",Ingresos!J$35:J$45) -> 0 | L197: =SUMIF(Ingresos!$S35:$S45,"Sí",Ingresos!K$35:K$45) -> 0 | M197: =SUMIF(Ingresos!$S35:$S45,"Sí",Ingresos!L$35:L$45) -> 0 | N197: =SUMIF(Ingresos!$S35:$S45,"Sí",Ingresos!M$35:M$45) -> 0 | O197: =SUMIF(Ingresos!$S35:$S45,"Sí",Ingresos!N$35:N$45) -> 0
C198: Máx | D198: =MAX($D$197:D197) -> 0 | E198: =MAX($D$197:E197) -> 0 | F198: =MAX($D$197:F197) -> 0 | G198: =MAX($D$197:G197) -> 0 | H198: =MAX($D$197:H197) -> 0 | I198: =MAX($D$197:I197) -> 0 | J198: =MAX($D$197:J197) -> 0 | K198: =MAX($D$197:K197) -> 0 | L198: =MAX($D$197:L197) -> 0 | M198: =MAX($D$197:M197) -> 0 | N198: =MAX($D$197:N197) -> 0 | O198: =MAX($D$197:O197) -> 0
C199: SAC estimado bruto 2 | D199: =D197/12 -> 0 | E199: =E197/12 -> 0 | F199: 0 | G199: 0 | H199: 0 | I199: 0 | J199: 0 | K199: 0 | L199: 0 | M199: 0 | N199: 0 | O199: 0
C200: SAC estimado neto 2 | D200: =IF(Check!$B$8="Ok",D183-D190,D183-DedGrales!D29) -> 0 | E200: =IF(Check!$B$8="Ok",E183-E190,E183-DedGrales!E29) -> 0 | F200: =IF(Check!$B$8="Ok",F183-F190,F183-DedGrales!F29) -> 0 | G200: =IF(Check!$B$8="Ok",G183-G190,G183-DedGrales!G29) -> 0 | H200: =IF(Check!$B$8="Ok",H183-H190,H183-DedGrales!H29) -> 0 | I200: =IF(Check!$B$8="Ok",I183-I190,I183-DedGrales!I29) -> 0 | J200: =IF(Check!$B$8="Ok",J183-J190,J183-DedGrales!J29) -> 0 | K200: =IF(Check!$B$8="Ok",K183-K190,K183-DedGrales!K29) -> 0 | L200: =IF(Check!$B$8="Ok",L183-L190,L183-DedGrales!L29) -> 0 | M200: =IF(Check!$B$8="Ok",M183-M190,M183-DedGrales!M29) -> 0 | N200: =IF(Check!$B$8="Ok",N183-N190,N183-DedGrales!N29) -> 0 | O200: =IF(Check!$B$8="Ok",O183-O190,O183-DedGrales!O29) -> 0
C203: Formulario
D204: 2017-01-01 | E204: 2017-02-01 | F204: 2017-03-01 | G204: 2017-04-01 | H204: 2017-05-01 | I204: 2017-06-01 | J204: 2017-07-01 | K204: 2017-08-01 | L204: 2017-09-01 | M204: 2017-10-01 | N204: 2017-11-01 | O204: 2017-12-01
C205: Remunerativo | D205: =SUMIFS(Ingresos!C8:C26,Ingresos!$R$8:$R$26,"Sí") -> 70000 | E205: =SUMIFS(Ingresos!D8:D26,Ingresos!$R$8:$R$26,"Sí") -> 0 | F205: =SUMIFS(Ingresos!E8:E26,Ingresos!$R$8:$R$26,"Sí") -> 0 | G205: =SUMIFS(Ingresos!F8:F26,Ingresos!$R$8:$R$26,"Sí") -> 0 | H205: =SUMIFS(Ingresos!G8:G26,Ingresos!$R$8:$R$26,"Sí") -> 0 | I205: =SUMIFS(Ingresos!H8:H26,Ingresos!$R$8:$R$26,"Sí") -> 0 | J205: =SUMIFS(Ingresos!I8:I26,Ingresos!$R$8:$R$26,"Sí") -> 0 | K205: =SUMIFS(Ingresos!J8:J26,Ingresos!$R$8:$R$26,"Sí") -> 0 | L205: =SUMIFS(Ingresos!K8:K26,Ingresos!$R$8:$R$26,"Sí") -> 0 | M205: =SUMIFS(Ingresos!L8:L26,Ingresos!$R$8:$R$26,"Sí") -> 0 | N205: =SUMIFS(Ingresos!M8:M26,Ingresos!$R$8:$R$26,"Sí") -> 0 | O205: =SUMIFS(Ingresos!N8:N26,Ingresos!$R$8:$R$26,"Sí") -> 0
C206: Si hay SAC | D206: =IF(Ingresos!C12+Ingresos!C39>0,1.5,1) -> 1 | E206: =IF(Ingresos!D12+Ingresos!D39>0,1.5,1) -> 1 | F206: =IF(Ingresos!E12+Ingresos!E39>0,1.5,1) -> 1 | G206: =IF(Ingresos!F12+Ingresos!F39>0,1.5,1) -> 1 | H206: =IF(Ingresos!G12+Ingresos!G39>0,1.5,1) -> 1 | I206: =IF(Ingresos!H12+Ingresos!H39>0,1.5,1) -> 1 | J206: =IF(Ingresos!I12+Ingresos!I39>0,1.5,1) -> 1 | K206: =IF(Ingresos!J12+Ingresos!J39>0,1.5,1) -> 1 | L206: =IF(Ingresos!K12+Ingresos!K39>0,1.5,1) -> 1 | M206: =IF(Ingresos!L12+Ingresos!L39>0,1.5,1) -> 1 | N206: =IF(Ingresos!M12+Ingresos!M39>0,1.5,1) -> 1 | O206: =IF(Ingresos!N12+Ingresos!N39>0,1.5,1) -> 1 | S206: Proporción exento-nogravado/total | T206: Deducciones hs. Extras exentas
C207: Jubilaciones | D207: =(IF(Check!$B$8="Ok",IF($R$207="Sí",maximo(D$205,Tablas!C$7*Auxiliares!D$206)*Tablas!C8,D$205*Tablas!C8),DedGrales!D12)-D211)*D214 -> 7700 | E207: =(IF(Check!$B$8="Ok",IF($R$207="Sí",maximo(E$205,Tablas!D$7*Auxiliares!E$206)*Tablas!D8,E$205*Tablas!D8),DedGrales!E12)-E211)*E214 -> 0 | F207: =(IF(Check!$B$8="Ok",IF($R$207="Sí",maximo(F$205,Tablas!E$7*Auxiliares!F$206)*Tablas!E8,F$205*Tablas!E8),DedGrales!F12)-F211)*F214 -> 0 | G207: =(IF(Check!$B$8="Ok",IF($R$207="Sí",maximo(G$205,Tablas!F$7*Auxiliares!G$206)*Tablas!F8,G$205*Tablas!F8),DedGrales!G12)-G211)*G214 -> 0 | H207: =(IF(Check!$B$8="Ok",IF($R$207="Sí",maximo(H$205,Tablas!G$7*Auxiliares!H$206)*Tablas!G8,H$205*Tablas!G8),DedGrales!H12)-H211)*H214 -> 0 | I207: =(IF(Check!$B$8="Ok",IF($R$207="Sí",maximo(I$205,Tablas!H$7*Auxiliares!I$206)*Tablas!H8,I$205*Tablas!H8),DedGrales!I12)-I211)*I214 -> 0 | J207: =(IF(Check!$B$8="Ok",IF($R$207="Sí",maximo(J$205,Tablas!I$7*Auxiliares!J$206)*Tablas!I8,J$205*Tablas!I8),DedGrales!J12)-J211)*J214 -> 0 | K207: =(IF(Check!$B$8="Ok",IF($R$207="Sí",maximo(K$205,Tablas!J$7*Auxiliares!K$206)*Tablas!J8,K$205*Tablas!J8),DedGrales!K12)-K211)*K214 -> 0 | L207: =(IF(Check!$B$8="Ok",IF($R$207="Sí",maximo(L$205,Tablas!K$7*Auxiliares!L$206)*Tablas!K8,L$205*Tablas!K8),DedGrales!L12)-L211)*L214 -> 0 | M207: =(IF(Check!$B$8="Ok",IF($R$207="Sí",maximo(M$205,Tablas!L$7*Auxiliares!M$206)*Tablas!L8,M$205*Tablas!L8),DedGrales!M12)-M211)*M214 -> 0 | N207: =(IF(Check!$B$8="Ok",IF($R$207="Sí",maximo(N$205,Tablas!M$7*Auxiliares!N$206)*Tablas!M8,N$205*Tablas!M8),DedGrales!N12)-N211)*N214 -> 0 | O207: =(IF(Check!$B$8="Ok",IF($R$207="Sí",maximo(O$205,Tablas!N$7*Auxiliares!O$206)*Tablas!N8,O$205*Tablas!N8),DedGrales!O12)-O211)*O214 -> 0 | P207: =SUM(D207:O207) -> 7700 | R207: =+R30 -> Sí | S207: =SUM(P207:P213)-SUM(D215:O215) -> 0
C208: Obra social | D208: =(IF(Check!$B$8="Ok",IF($R$208="Sí",maximo(D$205,Tablas!C$7*D$206)*(Tablas!C9+Tablas!C10),D$205*(Tablas!C9+Tablas!C10)),DedGrales!D13+DedGrales!D14)-D212)*D214 -> 4200 | E208: =(IF(Check!$B$8="Ok",IF($R$208="Sí",maximo(E$205,Tablas!D$7*E$206)*(Tablas!D9+Tablas!D10),E$205*(Tablas!D9+Tablas!D10)),DedGrales!E13+DedGrales!E14)-E212)*E214 -> 0 | F208: =(IF(Check!$B$8="Ok",IF($R$208="Sí",maximo(F$205,Tablas!E$7*F$206)*(Tablas!E9+Tablas!E10),F$205*(Tablas!E9+Tablas!E10)),DedGrales!F13+DedGrales!F14)-F212)*F214 -> 0 | G208: =(IF(Check!$B$8="Ok",IF($R$208="Sí",maximo(G$205,Tablas!F$7*G$206)*(Tablas!F9+Tablas!F10),G$205*(Tablas!F9+Tablas!F10)),DedGrales!G13+DedGrales!G14)-G212)*G214 -> 0 | H208: =(IF(Check!$B$8="Ok",IF($R$208="Sí",maximo(H$205,Tablas!G$7*H$206)*(Tablas!G9+Tablas!G10),H$205*(Tablas!G9+Tablas!G10)),DedGrales!H13+DedGrales!H14)-H212)*H214 -> 0 | I208: =(IF(Check!$B$8="Ok",IF($R$208="Sí",maximo(I$205,Tablas!H$7*I$206)*(Tablas!H9+Tablas!H10),I$205*(Tablas!H9+Tablas!H10)),DedGrales!I13+DedGrales!I14)-I212)*I214 -> 0 | J208: =(IF(Check!$B$8="Ok",IF($R$208="Sí",maximo(J$205,Tablas!I$7*J$206)*(Tablas!I9+Tablas!I10),J$205*(Tablas!I9+Tablas!I10)),DedGrales!J13+DedGrales!J14)-J212)*J214 -> 0 | K208: =(IF(Check!$B$8="Ok",IF($R$208="Sí",maximo(K$205,Tablas!J$7*K$206)*(Tablas!J9+Tablas!J10),K$205*(Tablas!J9+Tablas!J10)),DedGrales!K13+DedGrales!K14)-K212)*K214 -> 0 | L208: =(IF(Check!$B$8="Ok",IF($R$208="Sí",maximo(L$205,Tablas!K$7*L$206)*(Tablas!K9+Tablas!K10),L$205*(Tablas!K9+Tablas!K10)),DedGrales!L13+DedGrales!L14)-L212)*L214 -> 0 | M208: =(IF(Check!$B$8="Ok",IF($R$208="Sí",maximo(M$205,Tablas!L$7*M$206)*(Tablas!L9+Tablas!L10),M$205*(Tablas!L9+Tablas!L10)),DedGrales!M13+DedGrales!M14)-M212)*M214 -> 0 | N208: =(IF(Check!$B$8="Ok",IF($R$208="Sí",maximo(N$205,Tablas!M$7*N$206)*(Tablas!M9+Tablas!M10),N$205*(Tablas!M9+Tablas!M10)),DedGrales!N13+DedGrales!N14)-N212)*N214 -> 0 | O208: =(IF(Check!$B$8="Ok",IF($R$208="Sí",maximo(O$205,Tablas!N$7*O$206)*(Tablas!N9+Tablas!N10),O$205*(Tablas!N9+Tablas!N10)),DedGrales!O13+DedGrales!O14)-O212)*O214 -> 0 | P208: =SUM(D208:O208) -> 4200 | R208: =+R31 -> Sí
C209: Cuota sindical | D209: =IF(D33=0,0,(IF(Check!$B$8="Ok",IF($R$209="Sí",maximo(D$205,Tablas!C$7*D$206)*Tablas!C11,D$205*Tablas!C11),DedGrales!D15)-D213)*D214) -> 0 | E209: =IF(E33=0,0,(IF(Check!$B$8="Ok",IF($R$209="Sí",maximo(E$205,Tablas!D$7*E$206)*Tablas!D11,E$205*Tablas!D11),DedGrales!E15)-E213)*E214) -> 0 | F209: =IF(F33=0,0,(IF(Check!$B$8="Ok",IF($R$209="Sí",maximo(F$205,Tablas!E$7*F$206)*Tablas!E11,F$205*Tablas!E11),DedGrales!F15)-F213)*F214) -> 0 | G209: =IF(G33=0,0,(IF(Check!$B$8="Ok",IF($R$209="Sí",maximo(G$205,Tablas!F$7*G$206)*Tablas!F11,G$205*Tablas!F11),DedGrales!G15)-G213)*G214) -> 0 | H209: =IF(H33=0,0,(IF(Check!$B$8="Ok",IF($R$209="Sí",maximo(H$205,Tablas!G$7*H$206)*Tablas!G11,H$205*Tablas!G11),DedGrales!H15)-H213)*H214) -> 0 | I209: =IF(I33=0,0,(IF(Check!$B$8="Ok",IF($R$209="Sí",maximo(I$205,Tablas!H$7*I$206)*Tablas!H11,I$205*Tablas!H11),DedGrales!I15)-I213)*I214) -> 0 | J209: =IF(J33=0,0,(IF(Check!$B$8="Ok",IF($R$209="Sí",maximo(J$205,Tablas!I$7*J$206)*Tablas!I11,J$205*Tablas!I11),DedGrales!J15)-J213)*J214) -> 0 | K209: =IF(K33=0,0,(IF(Check!$B$8="Ok",IF($R$209="Sí",maximo(K$205,Tablas!J$7*K$206)*Tablas!J11,K$205*Tablas!J11),DedGrales!K15)-K213)*K214) -> 0 | L209: =IF(L33=0,0,(IF(Check!$B$8="Ok",IF($R$209="Sí",maximo(L$205,Tablas!K$7*L$206)*Tablas!K11,L$205*Tablas!K11),DedGrales!L15)-L213)*L214) -> 0 | M209: =IF(M33=0,0,(IF(Check!$B$8="Ok",IF($R$209="Sí",maximo(M$205,Tablas!L$7*M$206)*Tablas!L11,M$205*Tablas!L11),DedGrales!M15)-M213)*M214) -> 0 | N209: =IF(N33=0,0,(IF(Check!$B$8="Ok",IF($R$209="Sí",maximo(N$205,Tablas!M$7*N$206)*Tablas!M11,N$205*Tablas!M11),DedGrales!N15)-N213)*N214) -> 0 | O209: =IF(O33=0,0,(IF(Check!$B$8="Ok",IF($R$209="Sí",maximo(O$205,Tablas!N$7*O$206)*Tablas!N11,O$205*Tablas!N11),DedGrales!O15)-O213)*O214) -> 0 | P209: =SUM(D209:O209) -> 0 | R209: =+R33 -> No
C210: Otros empleos (remunerativo) | D210: =SUMIFS(Ingresos!C35:C45,Ingresos!$R$35:$R$45,"Sí")+D205 -> 70000 | E210: =SUMIFS(Ingresos!D35:D45,Ingresos!$R$35:$R$45,"Sí")+E205 -> 0 | F210: =SUMIFS(Ingresos!E35:E45,Ingresos!$R$35:$R$45,"Sí")+F205 -> 0 | G210: =SUMIFS(Ingresos!F35:F45,Ingresos!$R$35:$R$45,"Sí")+G205 -> 0 | H210: =SUMIFS(Ingresos!G35:G45,Ingresos!$R$35:$R$45,"Sí")+H205 -> 0 | I210: =SUMIFS(Ingresos!H35:H45,Ingresos!$R$35:$R$45,"Sí")+I205 -> 0 | J210: =SUMIFS(Ingresos!I35:I45,Ingresos!$R$35:$R$45,"Sí")+J205 -> 0 | K210: =SUMIFS(Ingresos!J35:J45,Ingresos!$R$35:$R$45,"Sí")+K205 -> 0 | L210: =SUMIFS(Ingresos!K35:K45,Ingresos!$R$35:$R$45,"Sí")+L205 -> 0 | M210: =SUMIFS(Ingresos!L35:L45,Ingresos!$R$35:$R$45,"Sí")+M205 -> 0 | N210: =SUMIFS(Ingresos!M35:M45,Ingresos!$R$35:$R$45,"Sí")+N205 -> 0 | O210: =SUMIFS(Ingresos!N35:N45,Ingresos!$R$35:$R$45,"Sí")+O205 -> 0
C211: Aportes jubilatorios otros empleos | D211: =(IF(Check!$B$8="Ok",IF(AND($R$211="Sí",D205<>0),(maximo(D$210,Tablas!C$7*D206)*Tablas!C8)*(D$210-D$205)/D$210,(D$210-D$205)*Tablas!C8),DedGrales!D23))*D214 -> 0 | E211: =(IF(Check!$B$8="Ok",IF(AND($R$211="Sí",E205<>0),(maximo(E$210,Tablas!D$7*E206)*Tablas!D8)*(E$210-E$205)/E$210,(E$210-E$205)*Tablas!D8),DedGrales!E23))*E214 -> 0 | F211: =(IF(Check!$B$8="Ok",IF(AND($R$211="Sí",F205<>0),(maximo(F$210,Tablas!E$7*F206)*Tablas!E8)*(F$210-F$205)/F$210,(F$210-F$205)*Tablas!E8),DedGrales!F23))*F214 -> 0 | G211: =(IF(Check!$B$8="Ok",IF(AND($R$211="Sí",G205<>0),(maximo(G$210,Tablas!F$7*G206)*Tablas!F8)*(G$210-G$205)/G$210,(G$210-G$205)*Tablas!F8),DedGrales!G23))*G214 -> 0 | H211: =(IF(Check!$B$8="Ok",IF(AND($R$211="Sí",H205<>0),(maximo(H$210,Tablas!G$7*H206)*Tablas!G8)*(H$210-H$205)/H$210,(H$210-H$205)*Tablas!G8),DedGrales!H23))*H214 -> 0 | I211: =(IF(Check!$B$8="Ok",IF(AND($R$211="Sí",I205<>0),(maximo(I$210,Tablas!H$7*I206)*Tablas!H8)*(I$210-I$205)/I$210,(I$210-I$205)*Tablas!H8),DedGrales!I23))*I214 -> 0 | J211: =(IF(Check!$B$8="Ok",IF(AND($R$211="Sí",J205<>0),(maximo(J$210,Tablas!I$7*J206)*Tablas!I8)*(J$210-J$205)/J$210,(J$210-J$205)*Tablas!I8),DedGrales!J23))*J214 -> 0 | K211: =(IF(Check!$B$8="Ok",IF(AND($R$211="Sí",K205<>0),(maximo(K$210,Tablas!J$7*K206)*Tablas!J8)*(K$210-K$205)/K$210,(K$210-K$205)*Tablas!J8),DedGrales!K23))*K214 -> 0 | L211: =(IF(Check!$B$8="Ok",IF(AND($R$211="Sí",L205<>0),(maximo(L$210,Tablas!K$7*L206)*Tablas!K8)*(L$210-L$205)/L$210,(L$210-L$205)*Tablas!K8),DedGrales!L23))*L214 -> 0 | M211: =(IF(Check!$B$8="Ok",IF(AND($R$211="Sí",M205<>0),(maximo(M$210,Tablas!L$7*M206)*Tablas!L8)*(M$210-M$205)/M$210,(M$210-M$205)*Tablas!L8),DedGrales!M23))*M214 -> 0 | N211: =(IF(Check!$B$8="Ok",IF(AND($R$211="Sí",N205<>0),(maximo(N$210,Tablas!M$7*N206)*Tablas!M8)*(N$210-N$205)/N$210,(N$210-N$205)*Tablas!M8),DedGrales!N23))*N214 -> 0 | O211: =(IF(Check!$B$8="Ok",IF(AND($R$211="Sí",O205<>0),(maximo(O$210,Tablas!N$7*O206)*Tablas!N8)*(O$210-O$205)/O$210,(O$210-O$205)*Tablas!N8),DedGrales!O23))*O214 -> 0 | P211: =SUM(D211:O211) -> 0 | R211: =+R207 -> Sí
C212: Aportes obra social otros empleos | D212: =(IF(Check!$B$8="Ok",IF(AND($R$212="Sí",D205<>0),(maximo(D$210,Tablas!C$7*D206)*Tablas!C9)*(D$210-D$205)/D$210,(D$210-D$205)*Tablas!C9),DedGrales!D24+DedGrales!D25))*D214 -> 0 | E212: =(IF(Check!$B$8="Ok",IF(AND($R$212="Sí",E205<>0),(maximo(E$210,Tablas!D$7*E206)*Tablas!D9)*(E$210-E$205)/E$210,(E$210-E$205)*Tablas!D9),DedGrales!E24+DedGrales!E25))*E214 -> 0 | F212: =(IF(Check!$B$8="Ok",IF(AND($R$212="Sí",F205<>0),(maximo(F$210,Tablas!E$7*F206)*Tablas!E9)*(F$210-F$205)/F$210,(F$210-F$205)*Tablas!E9),DedGrales!F24+DedGrales!F25))*F214 -> 0 | G212: =(IF(Check!$B$8="Ok",IF(AND($R$212="Sí",G205<>0),(maximo(G$210,Tablas!F$7*G206)*Tablas!F9)*(G$210-G$205)/G$210,(G$210-G$205)*Tablas!F9),DedGrales!G24+DedGrales!G25))*G214 -> 0 | H212: =(IF(Check!$B$8="Ok",IF(AND($R$212="Sí",H205<>0),(maximo(H$210,Tablas!G$7*H206)*Tablas!G9)*(H$210-H$205)/H$210,(H$210-H$205)*Tablas!G9),DedGrales!H24+DedGrales!H25))*H214 -> 0 | I212: =(IF(Check!$B$8="Ok",IF(AND($R$212="Sí",I205<>0),(maximo(I$210,Tablas!H$7*I206)*Tablas!H9)*(I$210-I$205)/I$210,(I$210-I$205)*Tablas!H9),DedGrales!I24+DedGrales!I25))*I214 -> 0 | J212: =(IF(Check!$B$8="Ok",IF(AND($R$212="Sí",J205<>0),(maximo(J$210,Tablas!I$7*J206)*Tablas!I9)*(J$210-J$205)/J$210,(J$210-J$205)*Tablas!I9),DedGrales!J24+DedGrales!J25))*J214 -> 0 | K212: =(IF(Check!$B$8="Ok",IF(AND($R$212="Sí",K205<>0),(maximo(K$210,Tablas!J$7*K206)*Tablas!J9)*(K$210-K$205)/K$210,(K$210-K$205)*Tablas!J9),DedGrales!K24+DedGrales!K25))*K214 -> 0 | L212: =(IF(Check!$B$8="Ok",IF(AND($R$212="Sí",L205<>0),(maximo(L$210,Tablas!K$7*L206)*Tablas!K9)*(L$210-L$205)/L$210,(L$210-L$205)*Tablas!K9),DedGrales!L24+DedGrales!L25))*L214 -> 0 | M212: =(IF(Check!$B$8="Ok",IF(AND($R$212="Sí",M205<>0),(maximo(M$210,Tablas!L$7*M206)*Tablas!L9)*(M$210-M$205)/M$210,(M$210-M$205)*Tablas!L9),DedGrales!M24+DedGrales!M25))*M214 -> 0 | N212: =(IF(Check!$B$8="Ok",IF(AND($R$212="Sí",N205<>0),(maximo(N$210,Tablas!M$7*N206)*Tablas!M9)*(N$210-N$205)/N$210,(N$210-N$205)*Tablas!M9),DedGrales!N24+DedGrales!N25))*N214 -> 0 | O212: =(IF(Check!$B$8="Ok",IF(AND($R$212="Sí",O205<>0),(maximo(O$210,Tablas!N$7*O206)*Tablas!N9)*(O$210-O$205)/O$210,(O$210-O$205)*Tablas!N9),DedGrales!O24+DedGrales!O25))*O214 -> 0 | P212: =SUM(D212:O212) -> 0 | R212: =+R208 -> Sí
C213: Cuota sindical otros empleos | D213: =IF(D40=0,0,(IF(Check!$B$8="Ok",IF($R$213="Sí",(maximo(D$210,Tablas!C$7*D206)*Tablas!C10)*(D$210-D$205)/D$210,(D$210-D$205)*Tablas!C10),DedGrales!D26))*D214) -> 0 | E213: =IF(E40=0,0,(IF(Check!$B$8="Ok",IF($R$213="Sí",(maximo(E$210,Tablas!D$7*E206)*Tablas!D10)*(E$210-E$205)/E$210,(E$210-E$205)*Tablas!D10),DedGrales!E26))*E214) -> 0 | F213: =IF(F40=0,0,(IF(Check!$B$8="Ok",IF($R$213="Sí",(maximo(F$210,Tablas!E$7*F206)*Tablas!E10)*(F$210-F$205)/F$210,(F$210-F$205)*Tablas!E10),DedGrales!F26))*F214) -> 0 | G213: =IF(G40=0,0,(IF(Check!$B$8="Ok",IF($R$213="Sí",(maximo(G$210,Tablas!F$7*G206)*Tablas!F10)*(G$210-G$205)/G$210,(G$210-G$205)*Tablas!F10),DedGrales!G26))*G214) -> 0 | H213: =IF(H40=0,0,(IF(Check!$B$8="Ok",IF($R$213="Sí",(maximo(H$210,Tablas!G$7*H206)*Tablas!G10)*(H$210-H$205)/H$210,(H$210-H$205)*Tablas!G10),DedGrales!H26))*H214) -> 0 | I213: =IF(I40=0,0,(IF(Check!$B$8="Ok",IF($R$213="Sí",(maximo(I$210,Tablas!H$7*I206)*Tablas!H10)*(I$210-I$205)/I$210,(I$210-I$205)*Tablas!H10),DedGrales!I26))*I214) -> 0 | J213: =IF(J40=0,0,(IF(Check!$B$8="Ok",IF($R$213="Sí",(maximo(J$210,Tablas!I$7*J206)*Tablas!I10)*(J$210-J$205)/J$210,(J$210-J$205)*Tablas!I10),DedGrales!J26))*J214) -> 0 | K213: =IF(K40=0,0,(IF(Check!$B$8="Ok",IF($R$213="Sí",(maximo(K$210,Tablas!J$7*K206)*Tablas!J10)*(K$210-K$205)/K$210,(K$210-K$205)*Tablas!J10),DedGrales!K26))*K214) -> 0 | L213: =IF(L40=0,0,(IF(Check!$B$8="Ok",IF($R$213="Sí",(maximo(L$210,Tablas!K$7*L206)*Tablas!K10)*(L$210-L$205)/L$210,(L$210-L$205)*Tablas!K10),DedGrales!L26))*L214) -> 0 | M213: =IF(M40=0,0,(IF(Check!$B$8="Ok",IF($R$213="Sí",(maximo(M$210,Tablas!L$7*M206)*Tablas!L10)*(M$210-M$205)/M$210,(M$210-M$205)*Tablas!L10),DedGrales!M26))*M214) -> 0 | N213: =IF(N40=0,0,(IF(Check!$B$8="Ok",IF($R$213="Sí",(maximo(N$210,Tablas!M$7*N206)*Tablas!M10)*(N$210-N$205)/N$210,(N$210-N$205)*Tablas!M10),DedGrales!N26))*N214) -> 0 | O213: =IF(O40=0,0,(IF(Check!$B$8="Ok",IF($R$213="Sí",(maximo(O$210,Tablas!N$7*O206)*Tablas!N10)*(O$210-O$205)/O$210,(O$210-O$205)*Tablas!N10),DedGrales!O26))*O214) -> 0 | P213: =SUM(D213:O213) -> 0 | R213: =+R209 -> No
C214: Proporción Gravado/Total | D214: =proporcionGravado(SUM(D9:D10),SUM(D9:D10,D16:D17,D23:D24)) -> 1 | E214: 0 | F214: 0 | G214: 0 | H214: 0 | I214: 0 | J214: 0 | K214: 0 | L214: 0 | M214: 0 | N214: 0 | O214: 0 | P214: =+SUM(D214:O214)/12 -> 0.08333333333
C215: Para restar horas extras exentas | D215: =IF(OR(TYPE(+D207/D214)=16,TYPE(+D208/D214)=16,TYPE(+D209/D214)=16,TYPE(+D211/D214)=16,TYPE(+D211/D214)=16,TYPE(+D212/D214)=16,TYPE(+D213/D214)=16),0,+D207/D214+D208/D214+D209/D214+D211/D214+D212/D214+D213/D214) -> 11900 | E215: =IF(OR(TYPE(+E207/E214)=16,TYPE(+E208/E214)=16,TYPE(+E209/E214)=16,TYPE(+E211/E214)=16,TYPE(+E211/E214)=16,TYPE(+E212/E214)=16,TYPE(+E213/E214)=16),0,+E207/E214+E208/E214+E209/E214+E211/E214+E212/E214+E213/E214) -> 0 | F215: 0 | G215: 0 | H215: 0 | I215: 0 | J215: 0 | K215: 0 | L215: 0 | M215: 0 | N215: 0 | O215: 0
C216: Retenciones Hs Extras
C217: HsExtras1 | D217: =+Ingresos!C9+Ingresos!C11 -> 0 | E217: =+Ingresos!D9+Ingresos!D11 -> 0 | F217: =+Ingresos!E9+Ingresos!E11 -> 0 | G217: =+Ingresos!F9+Ingresos!F11 -> 0 | H217: =+Ingresos!G9+Ingresos!G11 -> 0 | I217: =+Ingresos!H9+Ingresos!H11 -> 0 | J217: =+Ingresos!I9+Ingresos!I11 -> 0 | K217: =+Ingresos!J9+Ingresos!J11 -> 0 | L217: =+Ingresos!K9+Ingresos!K11 -> 0 | M217: =+Ingresos!L9+Ingresos!L11 -> 0 | N217: =+Ingresos!M9+Ingresos!M11 -> 0 | O217: =+Ingresos!N9+Ingresos!N11 -> 0
C218: HsExtras2 | D218: =+Ingresos!C36+Ingresos!C38 -> 0 | E218: =+Ingresos!D36+Ingresos!D38 -> 0 | F218: =+Ingresos!E36+Ingresos!E38 -> 0 | G218: =+Ingresos!F36+Ingresos!F38 -> 0 | H218: =+Ingresos!G36+Ingresos!G38 -> 0 | I218: =+Ingresos!H36+Ingresos!H38 -> 0 | J218: =+Ingresos!I36+Ingresos!I38 -> 0 | K218: =+Ingresos!J36+Ingresos!J38 -> 0 | L218: =+Ingresos!K36+Ingresos!K38 -> 0 | M218: =+Ingresos!L36+Ingresos!L38 -> 0 | N218: =+Ingresos!M36+Ingresos!M38 -> 0 | O218: =+Ingresos!N36+Ingresos!N38 -> 0
C219: =+C164 -> Jubilación | D219: =retenciones(Check!$B$8,Auxiliares!$R$219,SUM(D$9:D$10,D$16:D$17,D$23:D$24),Tablas!C$7,Tablas!C8,D$217,0) -> 0 | E219: =retenciones(Check!$B$8,Auxiliares!$R$219,SUM(E$9:E$10,E$16:E$17,E$23:E$24),Tablas!D$7,Tablas!D8,E$217,0) -> 0 | F219: =retenciones(Check!$B$8,Auxiliares!$R$219,SUM(F$9:F$10,F$16:F$17,F$23:F$24),Tablas!E$7,Tablas!E8,F$217,0) -> 0 | G219: =retenciones(Check!$B$8,Auxiliares!$R$219,SUM(G$9:G$10,G$16:G$17,G$23:G$24),Tablas!F$7,Tablas!F8,G$217,0) -> 0 | H219: =retenciones(Check!$B$8,Auxiliares!$R$219,SUM(H$9:H$10,H$16:H$17,H$23:H$24),Tablas!G$7,Tablas!G8,H$217,0) -> 0 | I219: =retenciones(Check!$B$8,Auxiliares!$R$219,SUM(I$9:I$10,I$16:I$17,I$23:I$24),Tablas!H$7,Tablas!H8,I$217,0) -> 0 | J219: =retenciones(Check!$B$8,Auxiliares!$R$219,SUM(J$9:J$10,J$16:J$17,J$23:J$24),Tablas!I$7,Tablas!I8,J$217,0) -> 0 | K219: =retenciones(Check!$B$8,Auxiliares!$R$219,SUM(K$9:K$10,K$16:K$17,K$23:K$24),Tablas!J$7,Tablas!J8,K$217,0) -> 0 | L219: =retenciones(Check!$B$8,Auxiliares!$R$219,SUM(L$9:L$10,L$16:L$17,L$23:L$24),Tablas!K$7,Tablas!K8,L$217,0) -> 0 | M219: =retenciones(Check!$B$8,Auxiliares!$R$219,SUM(M$9:M$10,M$16:M$17,M$23:M$24),Tablas!L$7,Tablas!L8,M$217,0) -> 0 | N219: =retenciones(Check!$B$8,Auxiliares!$R$219,SUM(N$9:N$10,N$16:N$17,N$23:N$24),Tablas!M$7,Tablas!M8,N$217,0) -> 0 | O219: =retenciones(Check!$B$8,Auxiliares!$R$219,SUM(O$9:O$10,O$16:O$17,O$23:O$24),Tablas!N$7,Tablas!N8,O$217,0) -> 0 | R219: =+R164 -> Sí
C220: Ley 19032 | D220: =retenciones(Check!$B$8,Auxiliares!$R$220,SUM(D$9:D$10,D$16:D$17,D$23:D$24),Tablas!C$7,Tablas!C9,D$217,0) -> 0 | E220: =retenciones(Check!$B$8,Auxiliares!$R$220,SUM(E$9:E$10,E$16:E$17,E$23:E$24),Tablas!D$7,Tablas!D9,E$217,0) -> 0 | F220: =retenciones(Check!$B$8,Auxiliares!$R$220,SUM(F$9:F$10,F$16:F$17,F$23:F$24),Tablas!E$7,Tablas!E9,F$217,0) -> 0 | G220: =retenciones(Check!$B$8,Auxiliares!$R$220,SUM(G$9:G$10,G$16:G$17,G$23:G$24),Tablas!F$7,Tablas!F9,G$217,0) -> 0 | H220: =retenciones(Check!$B$8,Auxiliares!$R$220,SUM(H$9:H$10,H$16:H$17,H$23:H$24),Tablas!G$7,Tablas!G9,H$217,0) -> 0 | I220: =retenciones(Check!$B$8,Auxiliares!$R$220,SUM(I$9:I$10,I$16:I$17,I$23:I$24),Tablas!H$7,Tablas!H9,I$217,0) -> 0 | J220: =retenciones(Check!$B$8,Auxiliares!$R$220,SUM(J$9:J$10,J$16:J$17,J$23:J$24),Tablas!I$7,Tablas!I9,J$217,0) -> 0 | K220: =retenciones(Check!$B$8,Auxiliares!$R$220,SUM(K$9:K$10,K$16:K$17,K$23:K$24),Tablas!J$7,Tablas!J9,K$217,0) -> 0 | L220: =retenciones(Check!$B$8,Auxiliares!$R$220,SUM(L$9:L$10,L$16:L$17,L$23:L$24),Tablas!K$7,Tablas!K9,L$217,0) -> 0 | M220: =retenciones(Check!$B$8,Auxiliares!$R$220,SUM(M$9:M$10,M$16:M$17,M$23:M$24),Tablas!L$7,Tablas!L9,M$217,0) -> 0 | N220: =retenciones(Check!$B$8,Auxiliares!$R$220,SUM(N$9:N$10,N$16:N$17,N$23:N$24),Tablas!M$7,Tablas!M9,N$217,0) -> 0 | O220: =retenciones(Check!$B$8,Auxiliares!$R$220,SUM(O$9:O$10,O$16:O$17,O$23:O$24),Tablas!N$7,Tablas!N9,O$217,0) -> 0 | R220: Sí
C221: Obra social | D221: =retenciones(Check!$B$8,Auxiliares!$R$221,SUM(D$9:D$10,D$16:D$17,D$23:D$24),Tablas!C$7,Tablas!C10,D$217,0) -> 0 | E221: =retenciones(Check!$B$8,Auxiliares!$R$221,SUM(E$9:E$10,E$16:E$17,E$23:E$24),Tablas!D$7,Tablas!D10,E$217,0) -> 0 | F221: =retenciones(Check!$B$8,Auxiliares!$R$221,SUM(F$9:F$10,F$16:F$17,F$23:F$24),Tablas!E$7,Tablas!E10,F$217,0) -> 0 | G221: =retenciones(Check!$B$8,Auxiliares!$R$221,SUM(G$9:G$10,G$16:G$17,G$23:G$24),Tablas!F$7,Tablas!F10,G$217,0) -> 0 | H221: =retenciones(Check!$B$8,Auxiliares!$R$221,SUM(H$9:H$10,H$16:H$17,H$23:H$24),Tablas!G$7,Tablas!G10,H$217,0) -> 0 | I221: =retenciones(Check!$B$8,Auxiliares!$R$221,SUM(I$9:I$10,I$16:I$17,I$23:I$24),Tablas!H$7,Tablas!H10,I$217,0) -> 0 | J221: =retenciones(Check!$B$8,Auxiliares!$R$221,SUM(J$9:J$10,J$16:J$17,J$23:J$24),Tablas!I$7,Tablas!I10,J$217,0) -> 0 | K221: =retenciones(Check!$B$8,Auxiliares!$R$221,SUM(K$9:K$10,K$16:K$17,K$23:K$24),Tablas!J$7,Tablas!J10,K$217,0) -> 0 | L221: =retenciones(Check!$B$8,Auxiliares!$R$221,SUM(L$9:L$10,L$16:L$17,L$23:L$24),Tablas!K$7,Tablas!K10,L$217,0) -> 0 | M221: =retenciones(Check!$B$8,Auxiliares!$R$221,SUM(M$9:M$10,M$16:M$17,M$23:M$24),Tablas!L$7,Tablas!L10,M$217,0) -> 0 | N221: =retenciones(Check!$B$8,Auxiliares!$R$221,SUM(N$9:N$10,N$16:N$17,N$23:N$24),Tablas!M$7,Tablas!M10,N$217,0) -> 0 | O221: =retenciones(Check!$B$8,Auxiliares!$R$221,SUM(O$9:O$10,O$16:O$17,O$23:O$24),Tablas!N$7,Tablas!N10,O$217,0) -> 0 | R221: Sí
C222: Sindicato | D222: =retenciones(Check!$B$8,Auxiliares!$R$222,SUM(D$9:D$10,D$16:D$17,D$23:D$24),Tablas!C$7,Tablas!C11,D$217,0) -> 0 | E222: =retenciones(Check!$B$8,Auxiliares!$R$222,SUM(E$9:E$10,E$16:E$17,E$23:E$24),Tablas!D$7,Tablas!D11,E$217,0) -> 0 | F222: =retenciones(Check!$B$8,Auxiliares!$R$222,SUM(F$9:F$10,F$16:F$17,F$23:F$24),Tablas!E$7,Tablas!E11,F$217,0) -> 0 | G222: =retenciones(Check!$B$8,Auxiliares!$R$222,SUM(G$9:G$10,G$16:G$17,G$23:G$24),Tablas!F$7,Tablas!F11,G$217,0) -> 0 | H222: =retenciones(Check!$B$8,Auxiliares!$R$222,SUM(H$9:H$10,H$16:H$17,H$23:H$24),Tablas!G$7,Tablas!G11,H$217,0) -> 0 | I222: =retenciones(Check!$B$8,Auxiliares!$R$222,SUM(I$9:I$10,I$16:I$17,I$23:I$24),Tablas!H$7,Tablas!H11,I$217,0) -> 0 | J222: =retenciones(Check!$B$8,Auxiliares!$R$222,SUM(J$9:J$10,J$16:J$17,J$23:J$24),Tablas!I$7,Tablas!I11,J$217,0) -> 0 | K222: =retenciones(Check!$B$8,Auxiliares!$R$222,SUM(K$9:K$10,K$16:K$17,K$23:K$24),Tablas!J$7,Tablas!J11,K$217,0) -> 0 | L222: =retenciones(Check!$B$8,Auxiliares!$R$222,SUM(L$9:L$10,L$16:L$17,L$23:L$24),Tablas!K$7,Tablas!K11,L$217,0) -> 0 | M222: =retenciones(Check!$B$8,Auxiliares!$R$222,SUM(M$9:M$10,M$16:M$17,M$23:M$24),Tablas!L$7,Tablas!L11,M$217,0) -> 0 | N222: =retenciones(Check!$B$8,Auxiliares!$R$222,SUM(N$9:N$10,N$16:N$17,N$23:N$24),Tablas!M$7,Tablas!M11,N$217,0) -> 0 | O222: =retenciones(Check!$B$8,Auxiliares!$R$222,SUM(O$9:O$10,O$16:O$17,O$23:O$24),Tablas!N$7,Tablas!N11,O$217,0) -> 0 | R222: No
C223: 0 | D223: =retenciones(Check!$B$8,Auxiliares!$R$223,SUM(D$9:D$10,D$16:D$17,D$23:D$24),Tablas!C$7,Tablas!C12,D$217,0) -> 0 | E223: =retenciones(Check!$B$8,Auxiliares!$R$223,SUM(E$9:E$10,E$16:E$17,E$23:E$24),Tablas!D$7,Tablas!D12,E$217,0) -> 0 | F223: =retenciones(Check!$B$8,Auxiliares!$R$223,SUM(F$9:F$10,F$16:F$17,F$23:F$24),Tablas!E$7,Tablas!E12,F$217,0) -> 0 | G223: =retenciones(Check!$B$8,Auxiliares!$R$223,SUM(G$9:G$10,G$16:G$17,G$23:G$24),Tablas!F$7,Tablas!F12,G$217,0) -> 0 | H223: =retenciones(Check!$B$8,Auxiliares!$R$223,SUM(H$9:H$10,H$16:H$17,H$23:H$24),Tablas!G$7,Tablas!G12,H$217,0) -> 0 | I223: =retenciones(Check!$B$8,Auxiliares!$R$223,SUM(I$9:I$10,I$16:I$17,I$23:I$24),Tablas!H$7,Tablas!H12,I$217,0) -> 0 | J223: =retenciones(Check!$B$8,Auxiliares!$R$223,SUM(J$9:J$10,J$16:J$17,J$23:J$24),Tablas!I$7,Tablas!I12,J$217,0) -> 0 | K223: =retenciones(Check!$B$8,Auxiliares!$R$223,SUM(K$9:K$10,K$16:K$17,K$23:K$24),Tablas!J$7,Tablas!J12,K$217,0) -> 0 | L223: =retenciones(Check!$B$8,Auxiliares!$R$223,SUM(L$9:L$10,L$16:L$17,L$23:L$24),Tablas!K$7,Tablas!K12,L$217,0) -> 0 | M223: =retenciones(Check!$B$8,Auxiliares!$R$223,SUM(M$9:M$10,M$16:M$17,M$23:M$24),Tablas!L$7,Tablas!L12,M$217,0) -> 0 | N223: =retenciones(Check!$B$8,Auxiliares!$R$223,SUM(N$9:N$10,N$16:N$17,N$23:N$24),Tablas!M$7,Tablas!M12,N$217,0) -> 0 | O223: =retenciones(Check!$B$8,Auxiliares!$R$223,SUM(O$9:O$10,O$16:O$17,O$23:O$24),Tablas!N$7,Tablas!N12,O$217,0) -> 0 | R223: No
C224: 0 | D224: =retenciones(Check!$B$8,Auxiliares!$R$224,SUM(D$9:D$10,D$16:D$17,D$23:D$24),Tablas!C$7,Tablas!C13,D$217,0) -> 0 | E224: =retenciones(Check!$B$8,Auxiliares!$R$224,SUM(E$9:E$10,E$16:E$17,E$23:E$24),Tablas!D$7,Tablas!D13,E$217,0) -> 0 | F224: =retenciones(Check!$B$8,Auxiliares!$R$224,SUM(F$9:F$10,F$16:F$17,F$23:F$24),Tablas!E$7,Tablas!E13,F$217,0) -> 0 | G224: =retenciones(Check!$B$8,Auxiliares!$R$224,SUM(G$9:G$10,G$16:G$17,G$23:G$24),Tablas!F$7,Tablas!F13,G$217,0) -> 0 | H224: =retenciones(Check!$B$8,Auxiliares!$R$224,SUM(H$9:H$10,H$16:H$17,H$23:H$24),Tablas!G$7,Tablas!G13,H$217,0) -> 0 | I224: =retenciones(Check!$B$8,Auxiliares!$R$224,SUM(I$9:I$10,I$16:I$17,I$23:I$24),Tablas!H$7,Tablas!H13,I$217,0) -> 0 | J224: =retenciones(Check!$B$8,Auxiliares!$R$224,SUM(J$9:J$10,J$16:J$17,J$23:J$24),Tablas!I$7,Tablas!I13,J$217,0) -> 0 | K224: =retenciones(Check!$B$8,Auxiliares!$R$224,SUM(K$9:K$10,K$16:K$17,K$23:K$24),Tablas!J$7,Tablas!J13,K$217,0) -> 0 | L224: =retenciones(Check!$B$8,Auxiliares!$R$224,SUM(L$9:L$10,L$16:L$17,L$23:L$24),Tablas!K$7,Tablas!K13,L$217,0) -> 0 | M224: =retenciones(Check!$B$8,Auxiliares!$R$224,SUM(M$9:M$10,M$16:M$17,M$23:M$24),Tablas!L$7,Tablas!L13,M$217,0) -> 0 | N224: =retenciones(Check!$B$8,Auxiliares!$R$224,SUM(N$9:N$10,N$16:N$17,N$23:N$24),Tablas!M$7,Tablas!M13,N$217,0) -> 0 | O224: =retenciones(Check!$B$8,Auxiliares!$R$224,SUM(O$9:O$10,O$16:O$17,O$23:O$24),Tablas!N$7,Tablas!N13,O$217,0) -> 0 | R224: No
C225: Total | D225: =IF(Check!$B$8="Ok",D217-SUM(D219:D224),Ingresos!C31) -> 0 | E225: =IF(Check!$B$8="Ok",E217-SUM(E219:E224),Ingresos!D31) -> 0 | F225: =IF(Check!$B$8="Ok",F217-SUM(F219:F224),Ingresos!E31) -> 0 | G225: =IF(Check!$B$8="Ok",G217-SUM(G219:G224),Ingresos!F31) -> 0 | H225: =IF(Check!$B$8="Ok",H217-SUM(H219:H224),Ingresos!G31) -> 0 | I225: =IF(Check!$B$8="Ok",I217-SUM(I219:I224),Ingresos!H31) -> 0 | J225: =IF(Check!$B$8="Ok",J217-SUM(J219:J224),Ingresos!I31) -> 0 | K225: =IF(Check!$B$8="Ok",K217-SUM(K219:K224),Ingresos!J31) -> 0 | L225: =IF(Check!$B$8="Ok",L217-SUM(L219:L224),Ingresos!K31) -> 0 | M225: =IF(Check!$B$8="Ok",M217-SUM(M219:M224),Ingresos!L31) -> 0 | N225: =IF(Check!$B$8="Ok",N217-SUM(N219:N224),Ingresos!M31) -> 0 | O225: =IF(Check!$B$8="Ok",O217-SUM(O219:O224),Ingresos!N31) -> 0 | P225: =P217-SUM(P219:P224) -> 0
C227: =+C219 -> Jubilación | D227: =retenciones(Check!$B$8,Auxiliares!$R$227,SUM(D$9:D$10,D$16:D$17,D$23:D$24),Tablas!C$7,Tablas!C8,D$218,0) -> 0 | E227: =retenciones(Check!$B$8,Auxiliares!$R$227,SUM(E$9:E$10,E$16:E$17,E$23:E$24),Tablas!D$7,Tablas!D8,E$218,0) -> 0 | F227: =retenciones(Check!$B$8,Auxiliares!$R$227,SUM(F$9:F$10,F$16:F$17,F$23:F$24),Tablas!E$7,Tablas!E8,F$218,0) -> 0 | G227: =retenciones(Check!$B$8,Auxiliares!$R$227,SUM(G$9:G$10,G$16:G$17,G$23:G$24),Tablas!F$7,Tablas!F8,G$218,0) -> 0 | H227: =retenciones(Check!$B$8,Auxiliares!$R$227,SUM(H$9:H$10,H$16:H$17,H$23:H$24),Tablas!G$7,Tablas!G8,H$218,0) -> 0 | I227: =retenciones(Check!$B$8,Auxiliares!$R$227,SUM(I$9:I$10,I$16:I$17,I$23:I$24),Tablas!H$7,Tablas!H8,I$218,0) -> 0 | J227: =retenciones(Check!$B$8,Auxiliares!$R$227,SUM(J$9:J$10,J$16:J$17,J$23:J$24),Tablas!I$7,Tablas!I8,J$218,0) -> 0 | K227: =retenciones(Check!$B$8,Auxiliares!$R$227,SUM(K$9:K$10,K$16:K$17,K$23:K$24),Tablas!J$7,Tablas!J8,K$218,0) -> 0 | L227: =retenciones(Check!$B$8,Auxiliares!$R$227,SUM(L$9:L$10,L$16:L$17,L$23:L$24),Tablas!K$7,Tablas!K8,L$218,0) -> 0 | M227: =retenciones(Check!$B$8,Auxiliares!$R$227,SUM(M$9:M$10,M$16:M$17,M$23:M$24),Tablas!L$7,Tablas!L8,M$218,0) -> 0 | N227: =retenciones(Check!$B$8,Auxiliares!$R$227,SUM(N$9:N$10,N$16:N$17,N$23:N$24),Tablas!M$7,Tablas!M8,N$218,0) -> 0 | O227: =retenciones(Check!$B$8,Auxiliares!$R$227,SUM(O$9:O$10,O$16:O$17,O$23:O$24),Tablas!N$7,Tablas!N8,O$218,0) -> 0 | R227: =+R219 -> Sí
C228: =+C220 -> Ley 19032 | D228: =retenciones(Check!$B$8,Auxiliares!$R$228,SUM(D$9:D$10,D$16:D$17,D$23:D$24),Tablas!C$7,Tablas!C9,D$218,0) -> 0 | E228: =retenciones(Check!$B$8,Auxiliares!$R$228,SUM(E$9:E$10,E$16:E$17,E$23:E$24),Tablas!D$7,Tablas!D9,E$218,0) -> 0 | F228: =retenciones(Check!$B$8,Auxiliares!$R$228,SUM(F$9:F$10,F$16:F$17,F$23:F$24),Tablas!E$7,Tablas!E9,F$218,0) -> 0 | G228: =retenciones(Check!$B$8,Auxiliares!$R$228,SUM(G$9:G$10,G$16:G$17,G$23:G$24),Tablas!F$7,Tablas!F9,G$218,0) -> 0 | H228: =retenciones(Check!$B$8,Auxiliares!$R$228,SUM(H$9:H$10,H$16:H$17,H$23:H$24),Tablas!G$7,Tablas!G9,H$218,0) -> 0 | I228: =retenciones(Check!$B$8,Auxiliares!$R$228,SUM(I$9:I$10,I$16:I$17,I$23:I$24),Tablas!H$7,Tablas!H9,I$218,0) -> 0 | J228: =retenciones(Check!$B$8,Auxiliares!$R$228,SUM(J$9:J$10,J$16:J$17,J$23:J$24),Tablas!I$7,Tablas!I9,J$218,0) -> 0 | K228: =retenciones(Check!$B$8,Auxiliares!$R$228,SUM(K$9:K$10,K$16:K$17,K$23:K$24),Tablas!J$7,Tablas!J9,K$218,0) -> 0 | L228: =retenciones(Check!$B$8,Auxiliares!$R$228,SUM(L$9:L$10,L$16:L$17,L$23:L$24),Tablas!K$7,Tablas!K9,L$218,0) -> 0 | M228: =retenciones(Check!$B$8,Auxiliares!$R$228,SUM(M$9:M$10,M$16:M$17,M$23:M$24),Tablas!L$7,Tablas!L9,M$218,0) -> 0 | N228: =retenciones(Check!$B$8,Auxiliares!$R$228,SUM(N$9:N$10,N$16:N$17,N$23:N$24),Tablas!M$7,Tablas!M9,N$218,0) -> 0 | O228: =retenciones(Check!$B$8,Auxiliares!$R$228,SUM(O$9:O$10,O$16:O$17,O$23:O$24),Tablas!N$7,Tablas!N9,O$218,0) -> 0 | R228: =+R220 -> Sí
... 63 more rows

Sheet Tablas
B2: TABLAS
B4: RETENCIONES DE LA SEGURIDAD SOCIAL
C6: enero | D6: febrero | E6: marzo | F6: abril | G6: mayo | H6: junio | I6: julio | J6: agosto | K6: septiembre | L6: octubre | M6: noviembre | N6: diciembre | O6: Aplica tope?
B7: BI Máx | C7: 97637.14 | D7: =+C7 -> 97637.14 | E7: =IF(Check!$B$1="Ok",Tablas!D7,97637.14) -> 97637.14 | F7: 97637.14 | G7: =+F7 -> 97637.14 | H7: =IF(Check!$B$1="Ok",Tablas!G7,97637.14) -> 97637.14 | I7: 97637.14 | J7: =+I7 -> 97637.14 | K7: =IF(Check!$B$1="Ok",Tablas!J7,97637.14) -> 97637.14 | L7: =+K7 -> 97637.14 | M7: =+L7 -> 97637.14 | N7: =+M7 -> 97637.14
B8: Jubilación | C8: 0.11 | D8: 0.11 | E8: 0.11 | F8: 0.11 | G8: 0.11 | H8: 0.11 | I8: 0.11 | J8: 0.11 | K8: 0.11 | L8: 0.11 | M8: 0.11 | N8: 0.11 | O8: Sí
B9: Ley 19032 | C9: 0.03 | D9: 0.03 | E9: 0.03 | F9: 0.03 | G9: 0.03 | H9: 0.03 | I9: 0.03 | J9: 0.03 | K9: 0.03 | L9: 0.03 | M9: 0.03 | N9: 0.03 | O9: Sí
B10: Obra social | C10: 0.03 | D10: 0.03 | E10: 0.03 | F10: 0.03 | G10: 0.03 | H10: 0.03 | I10: 0.03 | J10: 0.03 | K10: 0.03 | L10: 0.03 | M10: 0.03 | N10: 0.03 | O10: Sí
B11: Sindicato | C11: 0 | D11: 0 | E11: 0 | F11: 0 | G11: 0 | H11: 0 | I11: 0 | J11: 0 | K11: 0 | L11: 0 | M11: 0 | N11: 0 | O11: No
C12: 0 | D12: 0 | E12: 0 | F12: 0 | G12: 0 | H12: 0 | I12: 0 | J12: 0 | K12: 0 | L12: 0 | M12: 0 | N12: 0 | O12: No
C13: 0 | D13: 0 | E13: 0 | F13: 0 | G13: 0 | H13: 0 | I13: 0 | J13: 0 | K13: 0 | L13: 0 | M13: 0 | N13: 0 | O13: No
B15: DEDUCCIONES GENERALES
C17: 2017-01-01 | D17: 2017-02-01 | E17: 2017-03-01 | F17: 2017-04-01 | G17: 2017-05-01 | H17: 2017-06-01 | I17: 2017-07-01 | J17: 2017-08-01 | K17: 2017-09-01 | L17: 2017-10-01 | M17: 2017-11-01 | N17: 2017-12-01 | O17: Anual
B18: Seguro de vida | C18: 83.01 | D18: =+C18+83.01 -> 166.02 | E18: =+D18+83.01 -> 249.03 | F18: 332.04 | G18: 415.05 | H18: 498.06 | I18: 581.07 | J18: 664.08 | K18: 747.09 | L18: 830.1 | M18: 913.11 | N18: 996.23 | O18: =+N18 -> 996.23
B19: Gastos de sepelio | C19: =+$C$18*DedGrales!$D$85 -> 83.01 | D19: =+D18*DedGrales!$D$85 -> 166.02 | E19: =+E18*DedGrales!$D$85 -> 249.03 | F19: =+F18*DedGrales!$D$85 -> 332.04 | G19: =+G18*DedGrales!$D$85 -> 415.05 | H19: =+H18*DedGrales!$D$85 -> 498.06 | I19: =+I18*DedGrales!$D$85 -> 581.07 | J19: =+J18*DedGrales!$D$85 -> 664.08 | K19: =+K18*DedGrales!$D$85 -> 747.09 | L19: =+L18*DedGrales!$D$85 -> 830.1 | M19: =+M18*DedGrales!$D$85 -> 913.11 | N19: 996.23 | O19: =+N19 -> 996.23
B20: Intereses créditos hipotecarios | C20: 20000 | D20: 20000 | E20: 20000 | F20: 20000 | G20: 20000 | H20: 20000 | I20: 20000 | J20: 20000 | K20: 20000 | L20: 20000 | M20: 20000 | N20: 20000 | O20: 20000
B21: Personal de Casas Particulares | C21: =+$O$21 -> 85848.99 | D21: =+$O$21 -> 85848.99 | E21: 85848.99 | F21: 85848.99 | G21: 85848.99 | H21: 85848.99 | I21: 85848.99 | J21: 85848.99 | K21: 85848.99 | L21: 85848.99 | M21: 85848.99 | N21: 85848.99 | O21: =+O31 -> 85848.99
B22: Alquiler de casa habitación | C22: =+$O$22/12*MONTH(C17) -> 7154.0825 | D22: =+$O$22/12*MONTH(D17) -> 14308.165 | E22: 21462.2475 | F22: 28616.33 | G22: 35770.4125 | H22: 42924.495 | I22: 50078.5775 | J22: 57232.66 | K22: 64386.7425 | L22: 71540.825 | M22: 78694.9075 | N22: 85848.99 | O22: =+O31 -> 85848.99
B23: Viáticos | C23: =+$O$23 -> 34339.596 | D23: =+$O$23 -> 34339.596 | E23: 34339.596 | F23: 34339.596 | G23: 34339.596 | H23: 34339.596 | I23: 34339.596 | J23: 34339.596 | K23: 34339.596 | L23: 34339.596 | M23: 34339.596 | N23: 34339.596 | O23: =+O31*0.4 -> 34339.596
B24: Viáticos (larga distancia) | C24: =+$O$31 -> 85848.99 | D24: =+$O$31 -> 85848.99 | E24: 85848.99 | F24: 85848.99 | G24: 85848.99 | H24: 85848.99 | I24: 85848.99 | J24: 85848.99 | K24: 85848.99 | L24: 85848.99 | M24: 85848.99 | N24: 85848.99 | O24: =+$O$31 -> 85848.99
B25: Viajantes de comercio (sin tope)
B26: Tope 5% ganancia neta | C26: =Liquidacion!F73*0.05 -> 2665.261833 | D26: =Liquidacion!G73*0.05 -> 2660.343333 | E26: =Liquidacion!H73*0.05 -> 2660.343333 | F26: =Liquidacion!I73*0.05 -> 2660.343333 | G26: =Liquidacion!J73*0.05 -> 2660.343333 | H26: =Liquidacion!K73*0.05 -> 2660.343333 | I26: =Liquidacion!L73*0.05 -> 2660.343333 | J26: =Liquidacion!M73*0.05 -> 2660.343333 | K26: =Liquidacion!N73*0.05 -> 2660.343333 | L26: =Liquidacion!O73*0.05 -> 2660.343333 | M26: =Liquidacion!P73*0.05 -> 2660.343333 | N26: =Liquidacion!Q73*0.05 -> 2660.343333 | O26: =+Liquidacion!S73*0.05 -> 2418.26
B28: DEDUCCIONES PERSONALES
C30: enero | D30: febrero | E30: marzo | F30: abril | G30: mayo | H30: junio | I30: julio | J30: agosto | K30: septiembre | L30: octubre | M30: noviembre | N30: diciembre | O30: Anual
B31: GNI | C31: =+$O$31/12 -> 7154.0825 | D31: =+$O$31/12 -> 7154.0825 | E31: 7154.0825 | F31: 7154.0825 | G31: 7154.0825 | H31: 7154.0825 | I31: 7154.0825 | J31: 7154.0825 | K31: 7154.0825 | L31: 7154.0825 | M31: 7154.0825 | N31: 7154.0825 | O31: =IF(Datos!$F$20="Zona patagónica",85848.99*1.22,85848.99) -> 85848.99
B32: Deducción especial | C32: =+$O$32/12 -> 34339.596 | D32: =+$O$32/12 -> 34339.596 | E32: 34339.596 | F32: 34339.596 | G32: 34339.596 | H32: 34339.596 | I32: 34339.596 | J32: 34339.596 | K32: 34339.596 | L32: 34339.596 | M32: 34339.596 | N32: 34339.596 | O32: =IF(Datos!$F$20="Zona patagónica",85848.99*1.22*4.8,85848.99*4.8) -> 412075.152
B33: Cónyuge | C33: =+$O$33/12 -> 6669.4975 | D33: =+$O$33/12 -> 6669.4975 | E33: 6669.4975 | F33: 6669.4975 | G33: 6669.4975 | H33: 6669.4975 | I33: 6669.4975 | J33: 6669.4975 | K33: 6669.4975 | L33: 6669.4975 | M33: 6669.4975 | N33: 6669.4975 | O33: =IF(Datos!$F$20="Zona patagónica",80033.97*1.22,80033.97) -> 80033.97
B34: Hijo | C34: =+$O$34/12 -> 3363.4525 | D34: =+$O$34/12 -> 3363.4525 | E34: 3363.4525 | F34: 3363.4525 | G34: 3363.4525 | H34: 3363.4525 | I34: 3363.4525 | J34: 3363.4525 | K34: 3363.4525 | L34: 3363.4525 | M34: 3363.4525 | N34: 3363.4525 | O34: =IF(Datos!$F$20="Zona patagónica",40361.43*1.22,40361.43) -> 40361.43

Sheet Liquidacion
D4: Período fiscal 2019 | F4: ="Trabajador:"&Datos!F15&" "&Datos!F16 -> Trabajador: | K4: Legajo: | L4: =Datos!F17 -> 0 | O4: CUIL: | P4: =Datos!F18 -> 0
B6: Datos Mensuales | D6: Ingresos | F6: 2016-01-31 | G6: 2016-02-28 | H6: 2016-03-31 | I6: 2016-04-30 | J6: 2016-05-31 | K6: 2016-06-30 | L6: 2016-07-31 | M6: 2016-08-31 | N6: 2016-09-30 | O6: 2016-10-31 | P6: 2016-11-30 | Q6: 2016-12-31 | S6: Anual
D7: =Ingresos!B8 -> Sueldo bruto | F7: =Ingresos!C8 -> 70000 | G7: =Ingresos!D8 -> 0 | H7: =Ingresos!E8 -> 0 | I7: =Ingresos!F8 -> 0 | J7: =Ingresos!G8 -> 0 | K7: =Ingresos!H8 -> 0 | L7: =Ingresos!I8 -> 0 | M7: =Ingresos!J8 -> 0 | N7: =Ingresos!K8 -> 0 | O7: =Ingresos!L8 -> 0 | P7: =Ingresos!M8 -> 0 | Q7: =Ingresos!N8 -> 0 | S7: =SUM(F7:Q7) -> 70000
D8: =Ingresos!B9 -> Horas extras (días inhábiles) | F8: =Ingresos!C9 -> 0 | G8: =Ingresos!D9 -> 0 | H8: =Ingresos!E9 -> 0 | I8: =Ingresos!F9 -> 0 | J8: =Ingresos!G9 -> 0 | K8: =Ingresos!H9 -> 0 | L8: =Ingresos!I9 -> 0 | M8: =Ingresos!J9 -> 0 | N8: =Ingresos!K9 -> 0 | O8: =Ingresos!L9 -> 0 | P8: =Ingresos!M9 -> 0 | Q8: =Ingresos!N9 -> 0 | S8: 0
D9: =Ingresos!B10 -> Plus horas extras (días inhábiles) | F9: =Ingresos!C10 -> 0 | G9: =Ingresos!D10 -> 0 | H9: =Ingresos!E10 -> 0 | I9: =Ingresos!F10 -> 0 | J9: =Ingresos!G10 -> 0 | K9: =Ingresos!H10 -> 0 | L9: =Ingresos!I10 -> 0 | M9: =Ingresos!J10 -> 0 | N9: =Ingresos!K10 -> 0 | O9: =Ingresos!L10 -> 0 | P9: =Ingresos!M10 -> 0 | Q9: =Ingresos!N10 -> 0 | S9: 0
D10: =Ingresos!B11 -> Horas extras (días hábiles) | F10: =Ingresos!C11 -> 0 | G10: =Ingresos!D11 -> 0 | H10: =Ingresos!E11 -> 0 | I10: =Ingresos!F11 -> 0 | J10: =Ingresos!G11 -> 0 | K10: =Ingresos!H11 -> 0 | L10: =Ingresos!I11 -> 0 | M10: =Ingresos!J11 -> 0 | N10: =Ingresos!K11 -> 0 | O10: =Ingresos!L11 -> 0 | P10: =Ingresos!M11 -> 0 | Q10: =Ingresos!N11 -> 0 | S10: 0
D11: =Ingresos!B12 -> SAC | F11: =Ingresos!C12 -> 0 | G11: =Ingresos!D12 -> 0 | H11: =Ingresos!E12 -> 0 | I11: =Ingresos!F12 -> 0 | J11: =Ingresos!G12 -> 0 | K11: =Ingresos!H12 -> 0 | L11: =Ingresos!I12 -> 0 | M11: =Ingresos!J12 -> 0 | N11: =Ingresos!K12 -> 0 | O11: =Ingresos!L12 -> 0 | P11: =Ingresos!M12 -> 0 | Q11: =Ingresos!N12 -> 0 | S11: 0
D12: =Ingresos!B13 -> Plus Vacacional | F12: =Ingresos!C13 -> 0 | G12: =Ingresos!D13 -> 0 | H12: =Ingresos!E13 -> 0 | I12: =Ingresos!F13 -> 0 | J12: =Ingresos!G13 -> 0 | K12: =Ingresos!H13 -> 0 | L12: =Ingresos!I13 -> 0 | M12: =Ingresos!J13 -> 0 | N12: =Ingresos!K13 -> 0 | O12: =Ingresos!L13 -> 0 | P12: =Ingresos!M13 -> 0 | Q12: =Ingresos!N13 -> 0 | S12: 0
D13: =Ingresos!B14 -> Plus Feriado | F13: =Ingresos!C14 -> 0 | G13: =Ingresos!D14 -> 0 | H13: =Ingresos!E14 -> 0 | I13: =Ingresos!F14 -> 0 | J13: =Ingresos!G14 -> 0 | K13: =Ingresos!H14 -> 0 | L13: =Ingresos!I14 -> 0 | M13: =Ingresos!J14 -> 0 | N13: =Ingresos!K14 -> 0 | O13: =Ingresos!L14 -> 0 | P13: =Ingresos!M14 -> 0 | Q13: =Ingresos!N14 -> 0 | S13: 0
D14: =Ingresos!B15 -> Movilidad y viáticos (gravado) | F14: =Ingresos!C15 -> 0 | G14: =Ingresos!D15 -> 0 | H14: =Ingresos!E15 -> 0 | I14: =Ingresos!F15 -> 0 | J14: =Ingresos!G15 -> 0 | K14: =Ingresos!H15 -> 0 | L14: =Ingresos!I15 -> 0 | M14: =Ingresos!J15 -> 0 | N14: =Ingresos!K15 -> 0 | O14: =Ingresos!L15 -> 0 | P14: =Ingresos!M15 -> 0 | Q14: =Ingresos!N15 -> 0 | S14: 0
D15: =Ingresos!B16 -> Movilidad y viáticos (exento) | F15: =Ingresos!C16 -> 0 | G15: =Ingresos!D16 -> 0 | H15: =Ingresos!E16 -> 0 | I15: =Ingresos!F16 -> 0 | J15: =Ingresos!G16 -> 0 | K15: =Ingresos!H16 -> 0 | L15: =Ingresos!I16 -> 0 | M15: =Ingresos!J16 -> 0 | N15: =Ingresos!K16 -> 0 | O15: =Ingresos!L16 -> 0 | P15: =Ingresos!M16 -> 0 | Q15: =Ingresos!N16 -> 0 | S15: 0
D16: =Ingresos!B17 -> Licencias varias | F16: =Ingresos!C17 -> 0 | G16: =Ingresos!D17 -> 0 | H16: =Ingresos!E17 -> 0 | I16: =Ingresos!F17 -> 0 | J16: =Ingresos!G17 -> 0 | K16: =Ingresos!H17 -> 0 | L16: =Ingresos!I17 -> 0 | M16: =Ingresos!J17 -> 0 | N16: =Ingresos!K17 -> 0 | O16: =Ingresos!L17 -> 0 | P16: =Ingresos!M17 -> 0 | Q16: =Ingresos!N17 -> 0 | S16: 0
D17: =Ingresos!B18 -> Benef. Soc. (no rem.) | F17: =Ingresos!C18 -> 0 | G17: =Ingresos!D18 -> 0 | H17: =Ingresos!E18 -> 0 | I17: =Ingresos!F18 -> 0 | J17: =Ingresos!G18 -> 0 | K17: =Ingresos!H18 -> 0 | L17: =Ingresos!I18 -> 0 | M17: =Ingresos!J18 -> 0 | N17: =Ingresos!K18 -> 0 | O17: =Ingresos!L18 -> 0 | P17: =Ingresos!M18 -> 0 | Q17: =Ingresos!N18 -> 0 | S17: 0
D18: =Ingresos!B19 -> Indemnización art. 245 | F18: =Ingresos!C19 -> 0 | G18: =Ingresos!D19 -> 0 | H18: =Ingresos!E19 -> 0 | I18: =Ingresos!F19 -> 0 | J18: =Ingresos!G19 -> 0 | K18: =Ingresos!H19 -> 0 | L18: =Ingresos!I19 -> 0 | M18: =Ingresos!J19 -> 0 | N18: =Ingresos!K19 -> 0 | O18: =Ingresos!L19 -> 0 | P18: =Ingresos!M19 -> 0 | Q18: =Ingresos!N19 -> 0 | S18: 0
D19: =Ingresos!B20 -> Preaviso | F19: =Ingresos!C20 -> 0 | G19: =Ingresos!D20 -> 0 | H19: =Ingresos!E20 -> 0 | I19: =Ingresos!F20 -> 0 | J19: =Ingresos!G20 -> 0 | K19: =Ingresos!H20 -> 0 | L19: =Ingresos!I20 -> 0 | M19: =Ingresos!J20 -> 0 | N19: =Ingresos!K20 -> 0 | O19: =Ingresos!L20 -> 0 | P19: =Ingresos!M20 -> 0 | Q19: =Ingresos!N20 -> 0 | S19: 0
D20: =Ingresos!B21 -> SAC s/preaviso | F20: =Ingresos!C21 -> 0 | G20: =Ingresos!D21 -> 0 | H20: =Ingresos!E21 -> 0 | I20: =Ingresos!F21 -> 0 | J20: =Ingresos!G21 -> 0 | K20: =Ingresos!H21 -> 0 | L20: =Ingresos!I21 -> 0 | M20: =Ingresos!J21 -> 0 | N20: =Ingresos!K21 -> 0 | O20: =Ingresos!L21 -> 0 | P20: =Ingresos!M21 -> 0 | Q20: =Ingresos!N21 -> 0 | S20: 0
D21: =Ingresos!B22 -> Vacaciones no gozadas | F21: =Ingresos!C22 -> 0 | G21: =Ingresos!D22 -> 0 | H21: =Ingresos!E22 -> 0 | I21: =Ingresos!F22 -> 0 | J21: =Ingresos!G22 -> 0 | K21: =Ingresos!H22 -> 0 | L21: =Ingresos!I22 -> 0 | M21: =Ingresos!J22 -> 0 | N21: =Ingresos!K22 -> 0 | O21: =Ingresos!L22 -> 0 | P21: =Ingresos!M22 -> 0 | Q21: =Ingresos!N22 -> 0 | S21: 0
D22: =Ingresos!B23 -> SAC s/vacaciones no gozadas | F22: =Ingresos!C23 -> 0 | G22: =Ingresos!D23 -> 0 | H22: =Ingresos!E23 -> 0 | I22: =Ingresos!F23 -> 0 | J22: =Ingresos!G23 -> 0 | K22: =Ingresos!H23 -> 0 | L22: =Ingresos!I23 -> 0 | M22: =Ingresos!J23 -> 0 | N22: =Ingresos!K23 -> 0 | O22: =Ingresos!L23 -> 0 | P22: =Ingresos!M23 -> 0 | Q22: =Ingresos!N23 -> 0 | S22: 0
D23: =Ingresos!B24 -> Integración mes de despido | F23: =Ingresos!C24 -> 0 | G23: =Ingresos!D24 -> 0 | H23: =Ingresos!E24 -> 0 | I23: =Ingresos!F24 -> 0 | J23: =Ingresos!G24 -> 0 | K23: =Ingresos!H24 -> 0 | L23: =Ingresos!I24 -> 0 | M23: =Ingresos!J24 -> 0 | N23: =Ingresos!K24 -> 0 | O23: =Ingresos!L24 -> 0 | P23: =Ingresos!M24 -> 0 | Q23: =Ingresos!N24 -> 0 | S23: 0
D24: =Ingresos!B25 -> SAC s/integración mes de despido | F24: =Ingresos!C25 -> 0 | G24: =Ingresos!D25 -> 0 | H24: =Ingresos!E25 -> 0 | I24: =Ingresos!F25 -> 0 | J24: =Ingresos!G25 -> 0 | K24: =Ingresos!H25 -> 0 | L24: =Ingresos!I25 -> 0 | M24: =Ingresos!J25 -> 0 | N24: =Ingresos!K25 -> 0 | O24: =Ingresos!L25 -> 0 | P24: =Ingresos!M25 -> 0 | Q24: =Ingresos!N25 -> 0 | S24: 0
D25: =Ingresos!B26 -> Gratificación por cese | F25: =Ingresos!C26 -> 0 | G25: =Ingresos!D26 -> 0 | H25: =Ingresos!E26 -> 0 | I25: =Ingresos!F26 -> 0 | J25: =Ingresos!G26 -> 0 | K25: =Ingresos!H26 -> 0 | L25: =Ingresos!I26 -> 0 | M25: =Ingresos!J26 -> 0 | N25: =Ingresos!K26 -> 0 | O25: =Ingresos!L26 -> 0 | P25: =Ingresos!M26 -> 0 | Q25: =Ingresos!N26 -> 0 | S25: 0
D26: Pluriempleo
D27: =Ingresos!B35 -> Sueldo bruto | F27: =+Ingresos!C35 -> 0 | G27: =+Ingresos!D35 -> 0 | H27: =+Ingresos!E35 -> 0 | I27: =+Ingresos!F35 -> 0 | J27: =+Ingresos!G35 -> 0 | K27: =+Ingresos!H35 -> 0 | L27: =+Ingresos!I35 -> 0 | M27: =+Ingresos!J35 -> 0 | N27: =+Ingresos!K35 -> 0 | O27: =+Ingresos!L35 -> 0 | P27: =+Ingresos!M35 -> 0 | Q27: =+Ingresos!N35 -> 0 | S27: 0
D28: =Ingresos!B36 -> Horas extras (días inhábiles) | F28: =+Ingresos!C36 -> 0 | G28: =+Ingresos!D36 -> 0 | H28: =+Ingresos!E36 -> 0 | I28: =+Ingresos!F36 -> 0 | J28: =+Ingresos!G36 -> 0 | K28: =+Ingresos!H36 -> 0 | L28: =+Ingresos!I36 -> 0 | M28: =+Ingresos!J36 -> 0 | N28: =+Ingresos!K36 -> 0 | O28: =+Ingresos!L36 -> 0 | P28: =+Ingresos!M36 -> 0 | Q28: =+Ingresos!N36 -> 0 | S28: 0
D29: =Ingresos!B37 -> Plus horas extras (días inhábiles) | F29: =+Ingresos!C37 -> 0 | G29: =+Ingresos!D37 -> 0 | H29: =+Ingresos!E37 -> 0 | I29: =+Ingresos!F37 -> 0 | J29: =+Ingresos!G37 -> 0 | K29: =+Ingresos!H37 -> 0 | L29: =+Ingresos!I37 -> 0 | M29: =+Ingresos!J37 -> 0 | N29: =+Ingresos!K37 -> 0 | O29: =+Ingresos!L37 -> 0 | P29: =+Ingresos!M37 -> 0 | Q29: =+Ingresos!N37 -> 0 | S29: 0
D30: =Ingresos!B38 -> Horas extras (días hábiles) | F30: =+Ingresos!C38 -> 0 | G30: =+Ingresos!D38 -> 0 | H30: =+Ingresos!E38 -> 0 | I30: =+Ingresos!F38 -> 0 | J30: =+Ingresos!G38 -> 0 | K30: =+Ingresos!H38 -> 0 | L30: =+Ingresos!I38 -> 0 | M30: =+Ingresos!J38 -> 0 | N30: =+Ingresos!K38 -> 0 | O30: =+Ingresos!L38 -> 0 | P30: =+Ingresos!M38 -> 0 | Q30: =+Ingresos!N38 -> 0 | S30: 0
D31: =Ingresos!B39 -> SAC | F31: =+Ingresos!C39 -> 0 | G31: =+Ingresos!D39 -> 0 | H31: =+Ingresos!E39 -> 0 | I31: =+Ingresos!F39 -> 0 | J31: =+Ingresos!G39 -> 0 | K31: =+Ingresos!H39 -> 0 | L31: =+Ingresos!I39 -> 0 | M31: =+Ingresos!J39 -> 0 | N31: =+Ingresos!K39 -> 0 | O31: =+Ingresos!L39 -> 0 | P31: =+Ingresos!M39 -> 0 | Q31: =+Ingresos!N39 -> 0 | S31: 0
D32: =Ingresos!B40 -> Movilidad y viáticos | F32: =+Ingresos!C40 -> 0 | G32: =+Ingresos!D40 -> 0 | H32: =+Ingresos!E40 -> 0 | I32: =+Ingresos!F40 -> 0 | J32: =+Ingresos!G40 -> 0 | K32: =+Ingresos!H40 -> 0 | L32: =+Ingresos!I40 -> 0 | M32: =+Ingresos!J40 -> 0 | N32: =+Ingresos!K40 -> 0 | O32: =+Ingresos!L40 -> 0 | P32: =+Ingresos!M40 -> 0 | Q32: =+Ingresos!N40 -> 0 | S32: 0
D33: =Ingresos!B41 -> Movilidad y viáticos (exento) | F33: =+Ingresos!C41 -> 0 | G33: =+Ingresos!D41 -> 0 | H33: =+Ingresos!E41 -> 0 | I33: =+Ingresos!F41 -> 0 | J33: =+Ingresos!G41 -> 0 | K33: =+Ingresos!H41 -> 0 | L33: =+Ingresos!I41 -> 0 | M33: =+Ingresos!J41 -> 0 | N33: =+Ingresos!K41 -> 0 | O33: =+Ingresos!L41 -> 0 | P33: =+Ingresos!M41 -> 0 | Q33: =+Ingresos!N41 -> 0 | S33: 0
D34: =Ingresos!B42 -> 0 | F34: =+Ingresos!C42 -> 0 | G34: =+Ingresos!D42 -> 0 | H34: =+Ingresos!E42 -> 0 | I34: =+Ingresos!F42 -> 0 | J34: =+Ingresos!G42 -> 0 | K34: =+Ingresos!H42 -> 0 | L34: =+Ingresos!I42 -> 0 | M34: =+Ingresos!J42 -> 0 | N34: =+Ingresos!K42 -> 0 | O34: =+Ingresos!L42 -> 0 | P34: =+Ingresos!M42 -> 0 | Q34: =+Ingresos!N42 -> 0 | S34: 0
D35: =Ingresos!B43 -> 0 | F35: =+Ingresos!C43 -> 0 | G35: =+Ingresos!D43 -> 0 | H35: =+Ingresos!E43 -> 0 | I35: =+Ingresos!F43 -> 0 | J35: =+Ingresos!G43 -> 0 | K35: =+Ingresos!H43 -> 0 | L35: =+Ingresos!I43 -> 0 | M35: =+Ingresos!J43 -> 0 | N35: =+Ingresos!K43 -> 0 | O35: =+Ingresos!L43 -> 0 | P35: =+Ingresos!M43 -> 0 | Q35: =+Ingresos!N43 -> 0 | S35: 0
D36: =Ingresos!B44 -> 0 | F36: =+Ingresos!C44 -> 0 | G36: =+Ingresos!D44 -> 0 | H36: =+Ingresos!E44 -> 0 | I36: =+Ingresos!F44 -> 0 | J36: =+Ingresos!G44 -> 0 | K36: =+Ingresos!H44 -> 0 | L36: =+Ingresos!I44 -> 0 | M36: =+Ingresos!J44 -> 0 | N36: =+Ingresos!K44 -> 0 | O36: =+Ingresos!L44 -> 0 | P36: =+Ingresos!M44 -> 0 | Q36: =+Ingresos!N44 -> 0 | S36: 0
D37: =Ingresos!B45 -> 0 | F37: =+Ingresos!C45 -> 0 | G37: =+Ingresos!D45 -> 0 | H37: =+Ingresos!E45 -> 0 | I37: =+Ingresos!F45 -> 0 | J37: =+Ingresos!G45 -> 0 | K37: =+Ingresos!H45 -> 0 | L37: =+Ingresos!I45 -> 0 | M37: =+Ingresos!J45 -> 0 | N37: =+Ingresos!K45 -> 0 | O37: =+Ingresos!L45 -> 0 | P37: =+Ingresos!M45 -> 0 | Q37: =+Ingresos!N45 -> 0 | S37: 0
D38: Sub Total Ganancia Bruta | F38: =SUM(F7:F37) -> 70000 | G38: =SUM(G7:G37) -> 0 | H38: 0 | I38: 0 | J38: 0 | K38: 0 | L38: 0 | M38: 0 | N38: 0 | O38: 0 | P38: 0 | Q38: 0 | S38: =SUM(S7:S37) -> 70000
D40: Retenciones computables | F40: 2016-01-31 | G40: 2016-02-28 | H40: 2016-03-31 | I40: 2016-04-30 | J40: 2016-05-31 | K40: 2016-06-30 | L40: 2016-07-31 | M40: 2016-08-31 | N40: 2016-09-30 | O40: 2016-10-31 | P40: 2016-11-30 | Q40: 2016-12-31 | S40: Anual
D41: =Tablas!B8 -> Jubilación | F41: =Auxiliares!D30+Auxiliares!D37+Auxiliares!D164 -> 7700 | G41: =Auxiliares!E30+Auxiliares!E37+Auxiliares!E164 -> 0 | H41: =Auxiliares!F30+Auxiliares!F37+Auxiliares!F164 -> 0 | I41: =Auxiliares!G30+Auxiliares!G37+Auxiliares!G164 -> 0 | J41: =Auxiliares!H30+Auxiliares!H37+Auxiliares!H164 -> 0 | K41: =Auxiliares!I30+Auxiliares!I37+Auxiliares!I164 -> 0 | L41: =Auxiliares!J30+Auxiliares!J37+Auxiliares!J164 -> 0 | M41: =Auxiliares!K30+Auxiliares!K37+Auxiliares!K164 -> 0 | N41: =Auxiliares!L30+Auxiliares!L37+Auxiliares!L164 -> 0 | O41: =Auxiliares!M30+Auxiliares!M37+Auxiliares!M164 -> 0 | P41: =Auxiliares!N30+Auxiliares!N37+Auxiliares!N164 -> 0 | Q41: =Auxiliares!O30+Auxiliares!O37+Auxiliares!O164 -> 0 | S41: =SUM(F41:Q41) -> 7700
D42: =Tablas!B9 -> Ley 19032 | F42: =Auxiliares!D31+Auxiliares!D38+Auxiliares!D165 -> 2100 | G42: =Auxiliares!E31+Auxiliares!E38+Auxiliares!E165 -> 0 | H42: =Auxiliares!F31+Auxiliares!F38+Auxiliares!F165 -> 0 | I42: =Auxiliares!G31+Auxiliares!G38+Auxiliares!G165 -> 0 | J42: =Auxiliares!H31+Auxiliares!H38+Auxiliares!H165 -> 0 | K42: =Auxiliares!I31+Auxiliares!I38+Auxiliares!I165 -> 0 | L42: =Auxiliares!J31+Auxiliares!J38+Auxiliares!J165 -> 0 | M42: =Auxiliares!K31+Auxiliares!K38+Auxiliares!K165 -> 0 | N42: =Auxiliares!L31+Auxiliares!L38+Auxiliares!L165 -> 0 | O42: =Auxiliares!M31+Auxiliares!M38+Auxiliares!M165 -> 0 | P42: =Auxiliares!N31+Auxiliares!N38+Auxiliares!N165 -> 0 | Q42: =Auxiliares!O31+Auxiliares!O38+Auxiliares!O165 -> 0 | S42: =SUM(F42:Q42) -> 2100
D43: =Tablas!B10 -> Obra social | F43: =Auxiliares!D32+Auxiliares!D39+Auxiliares!D166 -> 2100 | G43: =Auxiliares!E32+Auxiliares!E39+Auxiliares!E166 -> 0 | H43: =Auxiliares!F32+Auxiliares!F39+Auxiliares!F166 -> 0 | I43: =Auxiliares!G32+Auxiliares!G39+Auxiliares!G166 -> 0 | J43: =Auxiliares!H32+Auxiliares!H39+Auxiliares!H166 -> 0 | K43: =Auxiliares!I32+Auxiliares!I39+Auxiliares!I166 -> 0 | L43: =Auxiliares!J32+Auxiliares!J39+Auxiliares!J166 -> 0 | M43: =Auxiliares!K32+Auxiliares!K39+Auxiliares!K166 -> 0 | N43: =Auxiliares!L32+Auxiliares!L39+Auxiliares!L166 -> 0 | O43: =Auxiliares!M32+Auxiliares!M39+Auxiliares!M166 -> 0 | P43: =Auxiliares!N32+Auxiliares!N39+Auxiliares!N166 -> 0 | Q43: =Auxiliares!O32+Auxiliares!O39+Auxiliares!O166 -> 0 | S43: =SUM(F43:Q43) -> 2100
D44: =Tablas!B11 -> Sindicato | F44: =Auxiliares!D33+Auxiliares!D40+Auxiliares!D167 -> 0 | G44: =Auxiliares!E33+Auxiliares!E40+Auxiliares!E167 -> 0 | H44: =Auxiliares!F33+Auxiliares!F40+Auxiliares!F167 -> 0 | I44: =Auxiliares!G33+Auxiliares!G40+Auxiliares!G167 -> 0 | J44: =Auxiliares!H33+Auxiliares!H40+Auxiliares!H167 -> 0 | K44: =Auxiliares!I33+Auxiliares!I40+Auxiliares!I167 -> 0 | L44: =Auxiliares!J33+Auxiliares!J40+Auxiliares!J167 -> 0 | M44: =Auxiliares!K33+Auxiliares!K40+Auxiliares!K167 -> 0 | N44: =Auxiliares!L33+Auxiliares!L40+Auxiliares!L167 -> 0 | O44: =Auxiliares!M33+Auxiliares!M40+Auxiliares!M167 -> 0 | P44: =Auxiliares!N33+Auxiliares!N40+Auxiliares!N167 -> 0 | Q44: =Auxiliares!O33+Auxiliares!O40+Auxiliares!O167 -> 0 | S44: =SUM(F44:Q44) -> 0
D45: =Tablas!B12 -> 0 | F45: =Auxiliares!D34+Auxiliares!D41+Auxiliares!D168 -> 0 | G45: =Auxiliares!E34+Auxiliares!E41+Auxiliares!E168 -> 0 | H45: =Auxiliares!F34+Auxiliares!F41+Auxiliares!F168 -> 0 | I45: =Auxiliares!G34+Auxiliares!G41+Auxiliares!G168 -> 0 | J45: =Auxiliares!H34+Auxiliares!H41+Auxiliares!H168 -> 0 | K45: =Auxiliares!I34+Auxiliares!I41+Auxiliares!I168 -> 0 | L45: =Auxiliares!J34+Auxiliares!J41+Auxiliares!J168 -> 0 | M45: =Auxiliares!K34+Auxiliares!K41+Auxiliares!K168 -> 0 | N45: =Auxiliares!L34+Auxiliares!L41+Auxiliares!L168 -> 0 | O45: =Auxiliares!M34+Auxiliares!M41+Auxiliares!M168 -> 0 | P45: =Auxiliares!N34+Auxiliares!N41+Auxiliares!N168 -> 0 | Q45: =Auxiliares!O34+Auxiliares!O41+Auxiliares!O168 -> 0 | S45: 0
D46: =Tablas!B13 -> 0 | F46: =Auxiliares!D35+Auxiliares!D42+Auxiliares!D169 -> 0 | G46: =Auxiliares!E35+Auxiliares!E42+Auxiliares!E169 -> 0 | H46: =Auxiliares!F35+Auxiliares!F42+Auxiliares!F169 -> 0 | I46: =Auxiliares!G35+Auxiliares!G42+Auxiliares!G169 -> 0 | J46: =Auxiliares!H35+Auxiliares!H42+Auxiliares!H169 -> 0 | K46: =Auxiliares!I35+Auxiliares!I42+Auxiliares!I169 -> 0 | L46: =Auxiliares!J35+Auxiliares!J42+Auxiliares!J169 -> 0 | M46: =Auxiliares!K35+Auxiliares!K42+Auxiliares!K169 -> 0 | N46: =Auxiliares!L35+Auxiliares!L42+Auxiliares!L169 -> 0 | O46: =Auxiliares!M35+Auxiliares!M42+Auxiliares!M169 -> 0 | P46: =Auxiliares!N35+Auxiliares!N42+Auxiliares!N169 -> 0 | Q46: =Auxiliares!O35+Auxiliares!O42+Auxiliares!O169 -> 0 | S46: 0
B48: Datos Acumulados | D48: Ingresos Gravados Acumulados | F48: 2016-01-31 | G48: 2016-02-28 | H48: 2016-03-31 | I48: 2016-04-30 | J48: 2016-05-31 | K48: 2016-06-30 | L48: 2016-07-31 | M48: 2016-08-31 | N48: 2016-09-30 | O48: 2016-10-31 | P48: 2016-11-30 | Q48: 2016-12-31 | S48: Anual
D49: Ingresos gravados (menos SAC) | F49: =Auxiliares!D9+Auxiliares!D11 -> 70000 | G49: =Auxiliares!E9+Auxiliares!E11+F49 -> 70000 | H49: =Auxiliares!F9+Auxiliares!F11+G49 -> 70000 | I49: =Auxiliares!G9+Auxiliares!G11+H49 -> 70000 | J49: =Auxiliares!H9+Auxiliares!H11+I49 -> 70000 | K49: =Auxiliares!I9+Auxiliares!I11+J49 -> 70000 | L49: =Auxiliares!J9+Auxiliares!J11+K49 -> 70000 | M49: =Auxiliares!K9+Auxiliares!K11+L49 -> 70000 | N49: =Auxiliares!L9+Auxiliares!L11+M49 -> 70000 | O49: =Auxiliares!M9+Auxiliares!M11+N49 -> 70000 | P49: =Auxiliares!N9+Auxiliares!N11+O49 -> 70000 | Q49: =Auxiliares!O9+Auxiliares!O11+P49 -> 70000 | S49: =Q49 -> 70000
D50: Ingresos prorrateados (menos SAC) | F50: =+Auxiliares!D49 -> 0 | G50: =+F50+Auxiliares!E49 -> 0 | H50: =+G50+Auxiliares!F49 -> 0 | I50: =+H50+Auxiliares!G49 -> 0 | J50: =+I50+Auxiliares!H49 -> 0 | K50: =+J50+Auxiliares!I49 -> 0 | L50: =+K50+Auxiliares!J49 -> 0 | M50: =+L50+Auxiliares!K49 -> 0 | N50: =+M50+Auxiliares!L49 -> 0 | O50: =+N50+Auxiliares!M49 -> 0 | P50: =+O50+Auxiliares!N49 -> 0 | Q50: =+P50+Auxiliares!O49 -> 0 | S50: =+Q50 -> 0
D51: Ajuste SAC Neto | F51: =Ingresos!C28+Ingresos!C47 -> 4841.666667 | G51: =Ingresos!D28+Ingresos!D47+F51 -> 4841.666667 | H51: =Ingresos!E28+Ingresos!E47+G51 -> 4841.666667 | I51: =Ingresos!F28+Ingresos!F47+H51 -> 4841.666667 | J51: =Ingresos!G28+Ingresos!G47+I51 -> 4841.666667 | K51: =Ingresos!H28+Ingresos!H47+J51 -> 4841.666667 | L51: =Ingresos!I28+Ingresos!I47+K51 -> 4841.666667 | M51: =Ingresos!J28+Ingresos!J47+L51 -> 4841.666667 | N51: =Ingresos!K28+Ingresos!K47+M51 -> 4841.666667 | O51: =Ingresos!L28+Ingresos!L47+N51 -> 4841.666667 | P51: =Ingresos!M28+Ingresos!M47+O51 -> 4841.666667 | Q51: =Ingresos!N28+Ingresos!N47+P51 -> 4841.666667 | S51: 0
D52: SAC (bruto) | F52: 0 | G52: 0 | H52: 0 | I52: 0 | J52: 0 | K52: 0 | L52: 0 | M52: 0 | N52: 0 | O52: 0 | P52: 0 | Q52: 0 | S52: =SUM(Ingresos!$C$12:$N$12)+SUM(Ingresos!$C$39:$N$39) -> 0
D53: Sub Total Ganancia Bruta | F53: =SUM(F49:F51) -> 74841.66667 | G53: 74841.66667 | H53: 74841.66667 | I53: 74841.66667 | J53: 74841.66667 | K53: 74841.66667 | L53: 74841.66667 | M53: 74841.66667 | N53: 74841.66667 | O53: 74841.66667 | P53: 74841.66667 | Q53: 74841.66667 | S53: =SUM(S49:S52) -> 70000
D55: Deducciones Generales Acumuladas | F55: 2016-01-31 | G55: 2016-02-28 | H55: 2016-03-31 | I55: 2016-04-30 | J55: 2016-05-31 | K55: 2016-06-30 | L55: 2016-07-31 | M55: 2016-08-31 | N55: 2016-09-30 | O55: 2016-10-31 | P55: 2016-11-30 | Q55: 2016-12-31 | S55: Anual
D56: Retenciones sobre ing. no prorrateados | F56: =Auxiliares!D45 -> 11900 | G56: =Auxiliares!E45+F56 -> 11900 | H56: =Auxiliares!F45+G56 -> 11900 | I56: =Auxiliares!G45+H56 -> 11900 | J56: =Auxiliares!H45+I56 -> 11900 | K56: =Auxiliares!I45+J56 -> 11900 | L56: =Auxiliares!J45+K56 -> 11900 | M56: =Auxiliares!K45+L56 -> 11900 | N56: =Auxiliares!L45+M56 -> 11900 | O56: =Auxiliares!M45+N56 -> 11900 | P56: =Auxiliares!N45+O56 -> 11900 | Q56: =Auxiliares!O45+P56 -> 11900 | S56: =+SUM(Auxiliares!P30:P35) -> 11900
D57: Retenciones sobre ing. prorrateados | F57: =+Auxiliares!D63 -> 0 | G57: =+Auxiliares!E63+F57 -> 0 | H57: =+Auxiliares!F63+G57 -> 0 | I57: =+Auxiliares!G63+H57 -> 0 | J57: =+Auxiliares!H63+I57 -> 0 | K57: =+Auxiliares!I63+J57 -> 0 | L57: =+Auxiliares!J63+K57 -> 0 | M57: =+Auxiliares!K63+L57 -> 0 | N57: =+Auxiliares!L63+M57 -> 0 | O57: =+Auxiliares!M63+N57 -> 0 | P57: =+Auxiliares!N63+O57 -> 0 | Q57: =+Auxiliares!O63+P57 -> 0 | S57: =+SUM(Q57,Auxiliares!P170)+Auxiliares!P244 -> 0
D60: Gastos de Sepelio | F60: =IF(Check!$B$3<>"",maximo(SUM(Auxiliares!$D$80:D80),Tablas!C19),0) -> 0 | G60: =IF(Check!$B$3<>"",maximo(SUM(Auxiliares!$D$80:E80),Tablas!D19),0) -> 0 | H60: =IF(Check!$B$3<>"",maximo(SUM(Auxiliares!$D$80:F80),Tablas!E19),0) -> 0 | I60: =IF(Check!$B$3<>"",maximo(SUM(Auxiliares!$D$80:G80),Tablas!F19),0) -> 0 | J60: =IF(Check!$B$3<>"",maximo(SUM(Auxiliares!$D$80:H80),Tablas!G19),0) -> 0 | K60: =IF(Check!$B$3<>"",maximo(SUM(Auxiliares!$D$80:I80),Tablas!H19),0) -> 0 | L60: =IF(Check!$B$3<>"",maximo(SUM(Auxiliares!$D$80:J80),Tablas!I19),0) -> 0 | M60: =IF(Check!$B$3<>"",maximo(SUM(Auxiliares!$D$80:K80),Tablas!J19),0) -> 0 | N60: =IF(Check!$B$3<>"",maximo(SUM(Auxiliares!$D$80:L80),Tablas!K19),0) -> 0 | O60: =IF(Check!$B$3<>"",maximo(SUM(Auxiliares!$D$80:M80),Tablas!L19),0) -> 0 | P60: =IF(Check!$B$3<>"",maximo(SUM(Auxiliares!$D$80:N80),Tablas!M19),0) -> 0 | Q60: =IF(Check!$B$3<>"",maximo(SUM(Auxiliares!$D$80:O80),Tablas!N19),0) -> 0 | S60: =Q60 -> 0
D61: Intereses Crédito Hipotecario | F61: =IF(Check!$B4<>"",maximo(SUM(Auxiliares!$D$81:D81),Tablas!C20),0) -> 0 | G61: =IF(Check!$B$4<>"",maximo(SUM(Auxiliares!$D$81:E81),Tablas!D20),0) -> 0 | H61: =IF(Check!$B$4<>"",maximo(SUM(Auxiliares!$D$81:F81),Tablas!E20),0) -> 0 | I61: =IF(Check!$B$4<>"",maximo(SUM(Auxiliares!$D$81:G81),Tablas!F20),0) -> 0 | J61: =IF(Check!$B$4<>"",maximo(SUM(Auxiliares!$D$81:H81),Tablas!G20),0) -> 0 | K61: =IF(Check!$B$4<>"",maximo(SUM(Auxiliares!$D$81:I81),Tablas!H20),0) -> 0 | L61: =IF(Check!$B$4<>"",maximo(SUM(Auxiliares!$D$81:J81),Tablas!I20),0) -> 0 | M61: =IF(Check!$B$4<>"",maximo(SUM(Auxiliares!$D$81:K81),Tablas!J20),0) -> 0 | N61: =IF(Check!$B$4<>"",maximo(SUM(Auxiliares!$D$81:L81),Tablas!K20),0) -> 0 | O61: =IF(Check!$B$4<>"",maximo(SUM(Auxiliares!$D$81:M81),Tablas!L20),0) -> 0 | P61: =IF(Check!$B$4<>"",maximo(SUM(Auxiliares!$D$81:N81),Tablas!M20),0) -> 0 | Q61: =IF(Check!$B$4<>"",maximo(SUM(Auxiliares!$D$81:O81),Tablas!N20),0) -> 0 | S61: 0
D62: Personal de Casas Particulares | F62: =IF(Check!$B5<>"",maximo(SUM(Auxiliares!$D$82:D82),Tablas!C21),0) -> 5274.8 | G62: =IF(Check!$B5<>"",maximo(SUM(Auxiliares!$D$82:E82),Tablas!D21),0) -> 5274.8 | H62: =IF(Check!$B5<>"",maximo(SUM(Auxiliares!$D$82:F82),Tablas!E21),0) -> 5274.8 | I62: =IF(Check!$B5<>"",maximo(SUM(Auxiliares!$D$82:G82),Tablas!F21),0) -> 5274.8 | J62: =IF(Check!$B5<>"",maximo(SUM(Auxiliares!$D$82:H82),Tablas!G21),0) -> 5274.8 | K62: =IF(Check!$B5<>"",maximo(SUM(Auxiliares!$D$82:I82),Tablas!H21),0) -> 5274.8 | L62: =IF(Check!$B5<>"",maximo(SUM(Auxiliares!$D$82:J82),Tablas!I21),0) -> 5274.8 | M62: =IF(Check!$B5<>"",maximo(SUM(Auxiliares!$D$82:K82),Tablas!J21),0) -> 5274.8 | N62: =IF(Check!$B5<>"",maximo(SUM(Auxiliares!$D$82:L82),Tablas!K21),0) -> 5274.8 | O62: =IF(Check!$B5<>"",maximo(SUM(Auxiliares!$D$82:M82),Tablas!L21),0) -> 5274.8 | P62: =IF(Check!$B5<>"",maximo(SUM(Auxiliares!$D$82:N82),Tablas!M21),0) -> 5274.8 | Q62: =IF(Check!$B5<>"",maximo(SUM(Auxiliares!$D$82:O82),Tablas!N21),0) -> 5274.8 | S62: 5274.8
D63: Aportes a fondos de jubilaciones | F63: =IF(Check!$B$9<>"",SUM(Auxiliares!$D83:D83),0) -> 0 | G63: =IF(Check!$B$9<>"",SUM(Auxiliares!$D83:E83),0) -> 0 | H63: =IF(Check!$B$9<>"",SUM(Auxiliares!$D83:F83),0) -> 0 | I63: =IF(Check!$B$9<>"",SUM(Auxiliares!$D83:G83),0) -> 0 | J63: =IF(Check!$B$9<>"",SUM(Auxiliares!$D83:H83),0) -> 0 | K63: =IF(Check!$B$9<>"",SUM(Auxiliares!$D83:I83),0) -> 0 | L63: =IF(Check!$B$9<>"",SUM(Auxiliares!$D83:J83),0) -> 0 | M63: =IF(Check!$B$9<>"",SUM(Auxiliares!$D83:K83),0) -> 0 | N63: =IF(Check!$B$9<>"",SUM(Auxiliares!$D83:L83),0) -> 0 | O63: =IF(Check!$B$9<>"",SUM(Auxiliares!$D83:M83),0) -> 0 | P63: =IF(Check!$B$9<>"",SUM(Auxiliares!$D83:N83),0) -> 0 | Q63: =IF(Check!$B$9<>"",SUM(Auxiliares!$D83:O83),0) -> 0 | S63: 0
D64: Alquiler de casa habitación | F64: =IF(Check!$B10<>"",maximo(SUM(Auxiliares!$D84:D84),Tablas!C22),0)*0+2861.63 -> 2861.63 | G64: =IF(Check!$B10<>"",maximo(SUM(Auxiliares!$D84:E84),Tablas!D22),0) -> 2960 | H64: =IF(Check!$B10<>"",maximo(SUM(Auxiliares!$D84:F84),Tablas!E22),0) -> 2960 | I64: =IF(Check!$B10<>"",maximo(SUM(Auxiliares!$D84:G84),Tablas!F22),0) -> 2960 | J64: =IF(Check!$B10<>"",maximo(SUM(Auxiliares!$D84:H84),Tablas!G22),0) -> 2960 | K64: =IF(Check!$B10<>"",maximo(SUM(Auxiliares!$D84:I84),Tablas!H22),0) -> 2960 | L64: =IF(Check!$B10<>"",maximo(SUM(Auxiliares!$D84:J84),Tablas!I22),0) -> 2960 | M64: =IF(Check!$B10<>"",maximo(SUM(Auxiliares!$D84:K84),Tablas!J22),0) -> 2960 | N64: =IF(Check!$B10<>"",maximo(SUM(Auxiliares!$D84:L84),Tablas!K22),0) -> 2960 | O64: =IF(Check!$B10<>"",maximo(SUM(Auxiliares!$D84:M84),Tablas!L22),0) -> 2960 | P64: =IF(Check!$B10<>"",maximo(SUM(Auxiliares!$D84:N84),Tablas!M22),0) -> 2960 | Q64: =IF(Check!$B10<>"",maximo(SUM(Auxiliares!$D84:O84),Tablas!N22),0) -> 2960 | S64: 2960
D65: Descuentos obligatorios | F65: =IF(Check!$B12<>"",SUM(Auxiliares!$D87:D87),0) -> 0 | G65: =IF(Check!$B12<>"",SUM(Auxiliares!$D87:E87),0) -> 0 | H65: =IF(Check!$B12<>"",SUM(Auxiliares!$D87:F87),0) -> 0 | I65: =IF(Check!$B12<>"",SUM(Auxiliares!$D87:G87),0) -> 0 | J65: =IF(Check!$B12<>"",SUM(Auxiliares!$D87:H87),0) -> 0 | K65: =IF(Check!$B12<>"",SUM(Auxiliares!$D87:I87),0) -> 0 | L65: =IF(Check!$B12<>"",SUM(Auxiliares!$D87:J87),0) -> 0 | M65: =IF(Check!$B12<>"",SUM(Auxiliares!$D87:K87),0) -> 0 | N65: =IF(Check!$B12<>"",SUM(Auxiliares!$D87:L87),0) -> 0 | O65: =IF(Check!$B12<>"",SUM(Auxiliares!$D87:M87),0) -> 0 | P65: =IF(Check!$B12<>"",SUM(Auxiliares!$D87:N87),0) -> 0 | Q65: =IF(Check!$B12<>"",SUM(Auxiliares!$D87:O87),0) -> 0 | S65: 0
D66: SGR | F66: =IF(Check!$B13<>"",SUM(Auxiliares!$D88:D88),0) -> 0 | G66: =IF(Check!$B13<>"",SUM(Auxiliares!$D88:E88),0) -> 0 | H66: =IF(Check!$B13<>"",SUM(Auxiliares!$D88:F88),0) -> 0 | I66: =IF(Check!$B13<>"",SUM(Auxiliares!$D88:G88),0) -> 0 | J66: =IF(Check!$B13<>"",SUM(Auxiliares!$D88:H88),0) -> 0 | K66: =IF(Check!$B13<>"",SUM(Auxiliares!$D88:I88),0) -> 0 | L66: =IF(Check!$B13<>"",SUM(Auxiliares!$D88:J88),0) -> 0 | M66: =IF(Check!$B13<>"",SUM(Auxiliares!$D88:K88),0) -> 0 | N66: =IF(Check!$B13<>"",SUM(Auxiliares!$D88:L88),0) -> 0 | O66: =IF(Check!$B13<>"",SUM(Auxiliares!$D88:M88),0) -> 0 | P66: =IF(Check!$B13<>"",SUM(Auxiliares!$D88:N88),0) -> 0 | Q66: =IF(Check!$B13<>"",SUM(Auxiliares!$D88:O88),0) -> 0 | S66: 0
D67: Cajas complementarias de previsión | F67: =IF(Check!$B14<>"",SUM(Auxiliares!$D89:D89),0) -> 0 | G67: =IF(Check!$B14<>"",SUM(Auxiliares!$D89:E89),0) -> 0 | H67: =IF(Check!$B14<>"",SUM(Auxiliares!$D89:F89),0) -> 0 | I67: =IF(Check!$B14<>"",SUM(Auxiliares!$D89:G89),0) -> 0 | J67: =IF(Check!$B14<>"",SUM(Auxiliares!$D89:H89),0) -> 0 | K67: =IF(Check!$B14<>"",SUM(Auxiliares!$D89:I89),0) -> 0 | L67: =IF(Check!$B14<>"",SUM(Auxiliares!$D89:J89),0) -> 0 | M67: =IF(Check!$B14<>"",SUM(Auxiliares!$D89:K89),0) -> 0 | N67: =IF(Check!$B14<>"",SUM(Auxiliares!$D89:L89),0) -> 0 | O67: =IF(Check!$B14<>"",SUM(Auxiliares!$D89:M89),0) -> 0 | P67: =IF(Check!$B14<>"",SUM(Auxiliares!$D89:N89),0) -> 0 | Q67: =IF(Check!$B14<>"",SUM(Auxiliares!$D89:O89),0) -> 0 | S67: 0
D68: Indumentaria y/o equipamiento | F68: =IF(Check!$B$19<>"",SUM(Auxiliares!$D92:D92),0) -> 0 | G68: =IF(Check!$B$19<>"",SUM(Auxiliares!$D92:E92),0) -> 0 | H68: =IF(Check!$B$19<>"",SUM(Auxiliares!$D92:F92),0) -> 0 | I68: =IF(Check!$B$19<>"",SUM(Auxiliares!$D92:G92),0) -> 0 | J68: =IF(Check!$B$19<>"",SUM(Auxiliares!$D92:H92),0) -> 0 | K68: =IF(Check!$B$19<>"",SUM(Auxiliares!$D92:I92),0) -> 0 | L68: =IF(Check!$B$19<>"",SUM(Auxiliares!$D92:J92),0) -> 0 | M68: =IF(Check!$B$19<>"",SUM(Auxiliares!$D92:K92),0) -> 0 | N68: =IF(Check!$B$19<>"",SUM(Auxiliares!$D92:L92),0) -> 0 | O68: =IF(Check!$B$19<>"",SUM(Auxiliares!$D92:M92),0) -> 0 | P68: =IF(Check!$B$19<>"",SUM(Auxiliares!$D92:N92),0) -> 0 | Q68: =IF(Check!$B$19<>"",SUM(Auxiliares!$D92:O92),0) -> 0 | S68: =Q68 -> 0
D69: Viajantes | F69: =IF(Check!$B16<>"",maximo(SUM(Auxiliares!$D90:D90),0),0) -> 0 | G69: =IF(Check!$B16<>"",maximo(SUM(Auxiliares!$D90:E90),0),0) -> 0 | H69: =IF(Check!$B16<>"",maximo(SUM(Auxiliares!$D90:F90),0),0) -> 0 | I69: =IF(Check!$B16<>"",maximo(SUM(Auxiliares!$D90:G90),0),0) -> 0 | J69: =IF(Check!$B16<>"",maximo(SUM(Auxiliares!$D90:H90),0),0) -> 0 | K69: =IF(Check!$B16<>"",maximo(SUM(Auxiliares!$D90:I90),0),0) -> 0 | L69: =IF(Check!$B16<>"",maximo(SUM(Auxiliares!$D90:J90),0),0) -> 0 | M69: =IF(Check!$B16<>"",maximo(SUM(Auxiliares!$D90:K90),0),0) -> 0 | N69: =IF(Check!$B16<>"",maximo(SUM(Auxiliares!$D90:L90),0),0) -> 0 | O69: =IF(Check!$B16<>"",maximo(SUM(Auxiliares!$D90:M90),0),0) -> 0 | P69: =IF(Check!$B16<>"",maximo(SUM(Auxiliares!$D90:N90),0),0) -> 0 | Q69: =IF(Check!$B16<>"",maximo(SUM(Auxiliares!$D90:O90),0),0) -> 0 | S69: 0
D70: Viáticos | F70: =IF(Check!$B11<>"",maximo(SUM(Auxiliares!$D85:D85),Tablas!C23),0) -> 1500 | G70: =IF(Check!$B11<>"",maximo(SUM(Auxiliares!$D85:E85),Tablas!D23),0) -> 1500 | H70: =IF(Check!$B11<>"",maximo(SUM(Auxiliares!$D85:F85),Tablas!E23),0) -> 1500 | I70: =IF(Check!$B11<>"",maximo(SUM(Auxiliares!$D85:G85),Tablas!F23),0) -> 1500 | J70: =IF(Check!$B11<>"",maximo(SUM(Auxiliares!$D85:H85),Tablas!G23),0) -> 1500 | K70: =IF(Check!$B11<>"",maximo(SUM(Auxiliares!$D85:I85),Tablas!H23),0) -> 1500 | L70: =IF(Check!$B11<>"",maximo(SUM(Auxiliares!$D85:J85),Tablas!I23),0) -> 1500 | M70: =IF(Check!$B11<>"",maximo(SUM(Auxiliares!$D85:K85),Tablas!J23),0) -> 1500 | N70: =IF(Check!$B11<>"",maximo(SUM(Auxiliares!$D85:L85),Tablas!K23),0) -> 1500 | O70: =IF(Check!$B11<>"",maximo(SUM(Auxiliares!$D85:M85),Tablas!L23),0) -> 1500 | P70: =IF(Check!$B11<>"",maximo(SUM(Auxiliares!$D85:N85),Tablas!M23),0) -> 1500 | Q70: =IF(Check!$B11<>"",maximo(SUM(Auxiliares!$D85:O85),Tablas!N23),0) -> 1500 | S70: =+Q70 -> 1500
D71: Viáticos (larga distancia) | F71: =IF(Check!$B20<>"",maximo(SUM(Auxiliares!$D86:D86),Tablas!C24),0) -> 0 | G71: =IF(Check!$B20<>"",maximo(SUM(Auxiliares!$D86:E86),Tablas!D24),0) -> 0 | H71: =IF(Check!$B20<>"",maximo(SUM(Auxiliares!$D86:F86),Tablas!E24),0) -> 0 | I71: =IF(Check!$B20<>"",maximo(SUM(Auxiliares!$D86:G86),Tablas!F24),0) -> 0 | J71: =IF(Check!$B20<>"",maximo(SUM(Auxiliares!$D86:H86),Tablas!G24),0) -> 0 | K71: =IF(Check!$B20<>"",maximo(SUM(Auxiliares!$D86:I86),Tablas!H24),0) -> 0 | L71: =IF(Check!$B20<>"",maximo(SUM(Auxiliares!$D86:J86),Tablas!I24),0) -> 0 | M71: =IF(Check!$B20<>"",maximo(SUM(Auxiliares!$D86:K86),Tablas!J24),0) -> 0 | N71: =IF(Check!$B20<>"",maximo(SUM(Auxiliares!$D86:L86),Tablas!K24),0) -> 0 | O71: =IF(Check!$B20<>"",maximo(SUM(Auxiliares!$D86:M86),Tablas!L24),0) -> 0 | P71: =IF(Check!$B20<>"",maximo(SUM(Auxiliares!$D86:N86),Tablas!M24),0) -> 0 | Q71: =IF(Check!$B20<>"",maximo(SUM(Auxiliares!$D86:O86),Tablas!N24),0) -> 0 | S71: =+Q71 -> 0
D72: Auxiliar Deducciones | F72: =SUM(F56:F71) -> 21536.43 | G72: =SUM(G56:G71) -> 21634.8 | H72: =SUM(H56:H71) -> 21634.8 | I72: 21634.8 | J72: 21634.8 | K72: 21634.8 | L72: 21634.8 | M72: 21634.8 | N72: 21634.8 | O72: 21634.8 | P72: 21634.8 | Q72: =SUM(Q56:Q71) -> 21634.8 | S72: =SUM(S56:S71) -> 21634.8
D73: Auxiliar Ganancia Neta | F73: =IF(F53-F72<=0,0,F53-F72) -> 53305.23667 | G73: 53206.86667 | H73: 53206.86667 | I73: 53206.86667 | J73: 53206.86667 | K73: 53206.86667 | L73: 53206.86667 | M73: 53206.86667 | N73: 53206.86667 | O73: 53206.86667 | P73: 53206.86667 | Q73: 53206.86667 | S73: =IF(S53-S72<=0,0,S53-S72) -> 48365.2
D74: Cuota Médico Asistencial | F74: =IF(Check!$B6<>"",maximo(SUM(Auxiliares!$D94:D94),Auxiliares!D$93),0) -> 0 | G74: =IF(Check!$B6<>"",maximo(SUM(Auxiliares!$D94:E94),Auxiliares!E$93),0) -> 0 | H74: =IF(Check!$B6<>"",maximo(SUM(Auxiliares!$D94:F94),Auxiliares!F$93),0) -> 0 | I74: =IF(Check!$B6<>"",maximo(SUM(Auxiliares!$D94:G94),Auxiliares!G$93),0) -> 0 | J74: =IF(Check!$B6<>"",maximo(SUM(Auxiliares!$D94:H94),Auxiliares!H$93),0) -> 0 | K74: =IF(Check!$B6<>"",maximo(SUM(Auxiliares!$D94:I94),Auxiliares!I$93),0) -> 0 | L74: =IF(Check!$B6<>"",maximo(SUM(Auxiliares!$D94:J94),Auxiliares!J$93),0) -> 0 | M74: =IF(Check!$B6<>"",maximo(SUM(Auxiliares!$D94:K94),Auxiliares!K$93),0) -> 0 | N74: =IF(Check!$B6<>"",maximo(SUM(Auxiliares!$D94:L94),Auxiliares!L$93),0) -> 0 | O74: =IF(Check!$B6<>"",maximo(SUM(Auxiliares!$D94:M94),Auxiliares!M$93),0) -> 0 | P74: =IF(Check!$B6<>"",maximo(SUM(Auxiliares!$D94:N94),Auxiliares!N$93),0) -> 0 | Q74: =IF(Check!$B6<>"",maximo(SUM(Auxiliares!$D94:O94),Auxiliares!O$93),0) -> 0 | S74: =+Q74 -> 0
D75: Donaciones | F75: =IF(Check!$B7<>"",maximo(SUM(Auxiliares!$D95:D95),Auxiliares!D$93),0) -> 0 | G75: =IF(Check!$B7<>"",maximo(SUM(Auxiliares!$D95:E95),Auxiliares!E$93),0) -> 0 | H75: =IF(Check!$B7<>"",maximo(SUM(Auxiliares!$D95:F95),Auxiliares!F$93),0) -> 0 | I75: =IF(Check!$B7<>"",maximo(SUM(Auxiliares!$D95:G95),Auxiliares!G$93),0) -> 0 | J75: =IF(Check!$B7<>"",maximo(SUM(Auxiliares!$D95:H95),Auxiliares!H$93),0) -> 0 | K75: =IF(Check!$B7<>"",maximo(SUM(Auxiliares!$D95:I95),Auxiliares!I$93),0) -> 0 | L75: =IF(Check!$B7<>"",maximo(SUM(Auxiliares!$D95:J95),Auxiliares!J$93),0) -> 0 | M75: =IF(Check!$B7<>"",maximo(SUM(Auxiliares!$D95:K95),Auxiliares!K$93),0) -> 0 | N75: =IF(Check!$B7<>"",maximo(SUM(Auxiliares!$D95:L95),Auxiliares!L$93),0) -> 0 | O75: =IF(Check!$B7<>"",maximo(SUM(Auxiliares!$D95:M95),Auxiliares!M$93),0) -> 0 | P75: =IF(Check!$B7<>"",maximo(SUM(Auxiliares!$D95:N95),Auxiliares!N$93),0) -> 0 | Q75: =IF(Check!$B7<>"",maximo(SUM(Auxiliares!$D95:O95),Auxiliares!O$93),0) -> 0 | S75: =+Q75 -> 0
D76: Planes de seguro de retiro privado | S76: =IF(Check!$B$18<>"",Auxiliares!P91,0) -> 0
D77: Seguro de vida | S77: =IF(Check!$B$2<>"",maximo(SUM(Auxiliares!$D$79:O79),Tablas!O18),0) -> 0
D78: Honorarios Médicos Profesionales | S78: =IF(Check!B15<>"",maximo(Auxiliares!P96,Auxiliares!P93),0) -> 0
D79: Sub Total Deducciones Generales | F79: =SUM(F56:F70,F74:F78) -> 21536.43 | G79: 21634.8 | H79: 21634.8 | I79: 21634.8 | J79: 21634.8 | K79: 21634.8 | L79: 21634.8 | M79: 21634.8 | N79: 21634.8 | O79: 21634.8 | P79: 21634.8 | Q79: 21634.8 | S79: =SUM(S56:S70,S74:S78) -> 21634.8
D81: Ganancia Neta | F81: =IF((F53-F79)<0,0,F53-F79) -> 53305.23667 | G81: 53206.86667 | H81: 53206.86667 | I81: 53206.86667 | J81: 53206.86667 | K81: 53206.86667 | L81: 53206.86667 | M81: 53206.86667 | N81: 53206.86667 | O81: 53206.86667 | P81: 53206.86667 | Q81: 53206.86667 | S81: =IF((S53-S79)<0,0,S53-S79) -> 48365.2
D83: Deducciones Art. 23 | F83: 2016-01-31 | G83: 2016-02-28 | H83: 2016-03-31 | I83: 2016-04-30 | J83: 2016-05-31 | K83: 2016-06-30 | L83: 2016-07-31 | M83: 2016-08-31 | N83: 2016-09-30 | O83: 2016-10-31 | P83: 2016-11-30 | Q83: 2016-12-31 | S83: Anual
D84: Ganancia no Imponible | F84: =Tablas!C31 -> 7154.0825 | G84: =+F84+Tablas!D31 -> 14308.165 | H84: =+G84+Tablas!E31 -> 21462.2475 | I84: =+H84+Tablas!F31 -> 28616.33 | J84: =+I84+Tablas!G31 -> 35770.4125 | K84: =+J84+Tablas!H31 -> 42924.495 | L84: =+K84+Tablas!I31 -> 50078.5775 | M84: =+L84+Tablas!J31 -> 57232.66 | N84: =+M84+Tablas!K31 -> 64386.7425 | O84: =+N84+Tablas!L31 -> 71540.825 | P84: =+O84+Tablas!M31 -> 78694.9075 | Q84: =+P84+Tablas!N31 -> 85848.99 | S84: =Q84 -> 85848.99
D85: Deducción especial | F85: =+Tablas!C32 -> 34339.596 | G85: =+F85+Tablas!D32 -> 68679.192 | H85: =+G85+Tablas!E32 -> 103018.788 | I85: =+H85+Tablas!F32 -> 137358.384 | J85: =+I85+Tablas!G32 -> 171697.98 | K85: =+J85+Tablas!H32 -> 206037.576 | L85: =+K85+Tablas!I32 -> 240377.172 | M85: =+L85+Tablas!J32 -> 274716.768 | N85: =+M85+Tablas!K32 -> 309056.364 | O85: =+N85+Tablas!L32 -> 343395.96 | P85: =+O85+Tablas!M32 -> 377735.556 | Q85: =+P85+Tablas!N32 -> 412075.152 | S85: =Q85 -> 412075.152
D86: Cónyuge | F86: =Auxiliares!D141*Tablas!C33 -> 0 | G86: =Auxiliares!E141*Tablas!D33 -> 0 | H86: =Auxiliares!F141*Tablas!E33 -> 0 | I86: =Auxiliares!G141*Tablas!F33 -> 0 | J86: =Auxiliares!H141*Tablas!G33 -> 0 | K86: =Auxiliares!I141*Tablas!H33 -> 0 | L86: =Auxiliares!J141*Tablas!I33 -> 0 | M86: =Auxiliares!K141*Tablas!J33 -> 0 | N86: =Auxiliares!L141*Tablas!K33 -> 0 | O86: =Auxiliares!M141*Tablas!L33 -> 0 | P86: =Auxiliares!N141*Tablas!M33 -> 0 | Q86: =Auxiliares!O141*Tablas!N33 -> 0 | S86: =Q86 -> 0
D87: Hijos | F87: =SUM(Auxiliares!D282:D297)*Tablas!C34 -> 3363.4525 | G87: =SUM(Auxiliares!E282:E297)*Tablas!D34 -> 6726.905 | H87: =SUM(Auxiliares!F282:F297)*Tablas!E34 -> 10090.3575 | I87: =SUM(Auxiliares!G282:G297)*Tablas!F34 -> 13453.81 | J87: =SUM(Auxiliares!H282:H297)*Tablas!G34 -> 16817.2625 | K87: =SUM(Auxiliares!I282:I297)*Tablas!H34 -> 20180.715 | L87: =SUM(Auxiliares!J282:J297)*Tablas!I34 -> 23544.1675 | M87: =SUM(Auxiliares!K282:K297)*Tablas!J34 -> 26907.62 | N87: =SUM(Auxiliares!L282:L297)*Tablas!K34 -> 30271.0725 | O87: =SUM(Auxiliares!M282:M297)*Tablas!L34 -> 33634.525 | P87: =SUM(Auxiliares!N282:N297)*Tablas!M34 -> 36997.9775 | Q87: =SUM(Auxiliares!O282:O297)*Tablas!N34 -> 40361.43 | S87: =Q87 -> 40361.43
D88: Sub Total Deducciones Art. 23 | F88: =SUM(F84:F87) -> 44857.131 | G88: 89714.262 | H88: 134571.393 | I88: 179428.524 | J88: 224285.655 | K88: 269142.786 | L88: 313999.917 | M88: 358857.048 | N88: 403714.179 | O88: 448571.31 | P88: 493428.441 | Q88: 538285.572 | S88: =SUM(S84:S87) -> 538285.572
D90: Ganancia Neta Sujeta a Impuesto | F90: =IF((F81-F88)>=0,F81-F88,0) -> 8448.105667 | G90: 0 | H90: 0 | I90: 0 | J90: 0 | K90: 0 | L90: 0 | M90: 0 | N90: 0 | O90: 0 | P90: 0 | Q90: 0 | S90: =IF((S81-S88)>=0,S81-S88,0) -> 0
B92: Liquidación | D92: Determinación del Impuesto | F92: 2016-01-31 | G92: 2016-02-28 | H92: 2016-03-31 | I92: 2016-04-30 | J92: 2016-05-31 | K92: 2016-06-30 | L92: 2016-07-31 | M92: 2016-08-31 | N92: 2016-09-30 | O92: 2016-10-31 | P92: 2016-11-30 | Q92: 2016-12-31 | S92: Anual
D93: Porcentaje | F93: =impuestoAlicuota(F90,IF(Check!$B$8="Ok",SUM(Auxiliares!$D$225:D225)+SUM(Auxiliares!$D$239:D239),SUM(Ingresos!$C$31:'Ingresos'!C31)),MONTH(F92)) -> 0.15 | G93: =impuestoAlicuota(G90,IF(Check!$B$8="Ok",SUM(Auxiliares!$D$225:E225)+SUM(Auxiliares!$D$239:E239),SUM(Ingresos!$C$31:'Ingresos'!D31)),MONTH(G92)) -> 0 | H93: =impuestoAlicuota(H90,IF(Check!$B$8="Ok",SUM(Auxiliares!$D$225:F225)+SUM(Auxiliares!$D$239:F239),SUM(Ingresos!$C$31:'Ingresos'!E31)),MONTH(H92)) -> 0 | I93: =impuestoAlicuota(I90,IF(Check!$B$8="Ok",SUM(Auxiliares!$D$225:G225)+SUM(Auxiliares!$D$239:G239),SUM(Ingresos!$C$31:'Ingresos'!F31)),MONTH(I92)) -> 0 | J93: =impuestoAlicuota(J90,IF(Check!$B$8="Ok",SUM(Auxiliares!$D$225:H225)+SUM(Auxiliares!$D$239:H239),SUM(Ingresos!$C$31:'Ingresos'!G31)),MONTH(J92)) -> 0 | K93: =impuestoAlicuota(K90,IF(Check!$B$8="Ok",SUM(Auxiliares!$D$225:I225)+SUM(Auxiliares!$D$239:I239),SUM(Ingresos!$C$31:'Ingresos'!H31)),MONTH(K92)) -> 0 | L93: =impuestoAlicuota(L90,IF(Check!$B$8="Ok",SUM(Auxiliares!$D$225:J225)+SUM(Auxiliares!$D$239:J239),SUM(Ingresos!$C$31:'Ingresos'!I31)),MONTH(L92)) -> 0 | M93: =impuestoAlicuota(M90,IF(Check!$B$8="Ok",SUM(Auxiliares!$D$225:K225)+SUM(Auxiliares!$D$239:K239),SUM(Ingresos!$C$31:'Ingresos'!J31)),MONTH(M92)) -> 0 | N93: =impuestoAlicuota(N90,IF(Check!$B$8="Ok",SUM(Auxiliares!$D$225:L225)+SUM(Auxiliares!$D$239:L239),SUM(Ingresos!$C$31:'Ingresos'!K31)),MONTH(N92)) -> 0 | O93: =impuestoAlicuota(O90,IF(Check!$B$8="Ok",SUM(Auxiliares!$D$225:M225)+SUM(Auxiliares!$D$239:M239),SUM(Ingresos!$C$31:'Ingresos'!L31)),MONTH(O92)) -> 0 | P93: =impuestoAlicuota(P90,IF(Check!$B$8="Ok",SUM(Auxiliares!$D$225:N225)+SUM(Auxiliares!$D$239:N239),SUM(Ingresos!$C$31:'Ingresos'!M31)),MONTH(P92)) -> 0 | Q93: =impuestoAlicuota(Q90,IF(Check!$B$8="Ok",SUM(Auxiliares!$D$225:O225)+SUM(Auxiliares!$D$239:O239),SUM(Ingresos!$C$31:'Ingresos'!N31)),MONTH(Q92)) -> 0 | S93: =impuestoAlicuota(S90,IF(Check!$B$8="Ok",SUM(Auxiliares!$D$225:O225)+SUM(Auxiliares!$D$239:O239),SUM(Ingresos!$C$31:'Ingresos'!N31)),12) -> 0
D94: Valor Fijo | F94: =impuestoFijo(F90,IF(Check!$B$8="Ok",SUM(Auxiliares!$D$225:D225,Auxiliares!$D$239:D239),SUM(Ingresos!$C$31:C31)),MONTH(F92)) -> 715.8625 | G94: =impuestoFijo(G90,IF(Check!$B$8="Ok",SUM(Auxiliares!$D$225:E225,Auxiliares!$D$239:E239),SUM(Ingresos!$C$31:D31)),MONTH(G92)) -> 0 | H94: =impuestoFijo(H90,IF(Check!$B$8="Ok",SUM(Auxiliares!$D$225:F225,Auxiliares!$D$239:F239),SUM(Ingresos!$C$31:E31)),MONTH(H92)) -> 0 | I94: =impuestoFijo(I90,IF(Check!$B$8="Ok",SUM(Auxiliares!$D$225:G225,Auxiliares!$D$239:G239),SUM(Ingresos!$C$31:F31)),MONTH(I92)) -> 0 | J94: =impuestoFijo(J90,IF(Check!$B$8="Ok",SUM(Auxiliares!$D$225:H225,Auxiliares!$D$239:H239),SUM(Ingresos!$C$31:G31)),MONTH(J92)) -> 0 | K94: =impuestoFijo(K90,IF(Check!$B$8="Ok",SUM(Auxiliares!$D$225:I225,Auxiliares!$D$239:I239),SUM(Ingresos!$C$31:H31)),MONTH(K92)) -> 0 | L94: =impuestoFijo(L90,IF(Check!$B$8="Ok",SUM(Auxiliares!$D$225:J225,Auxiliares!$D$239:J239),SUM(Ingresos!$C$31:I31)),MONTH(L92)) -> 0 | M94: =impuestoFijo(M90,IF(Check!$B$8="Ok",SUM(Auxiliares!$D$225:K225,Auxiliares!$D$239:K239),SUM(Ingresos!$C$31:J31)),MONTH(M92)) -> 0 | N94: =impuestoFijo(N90,IF(Check!$B$8="Ok",SUM(Auxiliares!$D$225:L225,Auxiliares!$D$239:L239),SUM(Ingresos!$C$31:K31)),MONTH(N92)) -> 0 | O94: =impuestoFijo(O90,IF(Check!$B$8="Ok",SUM(Auxiliares!$D$225:M225,Auxiliares!$D$239:M239),SUM(Ingresos!$C$31:L31)),MONTH(O92)) -> 0 | P94: =impuestoFijo(P90,IF(Check!$B$8="Ok",SUM(Auxiliares!$D$225:N225,Auxiliares!$D$239:N239),SUM(Ingresos!$C$31:M31)),MONTH(P92)) -> 0 | Q94: =impuestoFijo(Q90,IF(Check!$B$8="Ok",SUM(Auxiliares!$D$225:O225,Auxiliares!$D$239:O239),SUM(Ingresos!$C$31:N31)),MONTH(Q92)) -> 0 | S94: =impuestoFijo(S90,IF(Check!$B$8="Ok",SUM(Auxiliares!$D$225:O225)+SUM(Auxiliares!$D$239:O239),SUM(Ingresos!$C$31:'Ingresos'!N31)),12) -> 0
D95: Excedente | F95: =impuestoExcedente(F90,IF(Check!$B$8="Ok",SUM(Auxiliares!$D$225:D225,Auxiliares!$D$239:D239),SUM(Ingresos!$C$31:'Ingresos'!C31)),MONTH(F92)) -> 8259.951667 | G95: =impuestoExcedente(G90,IF(Check!$B$8="Ok",SUM(Auxiliares!$D$225:E225,Auxiliares!$D$239:E239),SUM(Ingresos!$C$31:'Ingresos'!D31)),MONTH(G92)) -> 0 | H95: =impuestoExcedente(H90,IF(Check!$B$8="Ok",SUM(Auxiliares!$D$225:F225,Auxiliares!$D$239:F239),SUM(Ingresos!$C$31:'Ingresos'!E31)),MONTH(H92)) -> 0 | I95: =impuestoExcedente(I90,IF(Check!$B$8="Ok",SUM(Auxiliares!$D$225:G225,Auxiliares!$D$239:G239),SUM(Ingresos!$C$31:'Ingresos'!F31)),MONTH(I92)) -> 0 | J95: =impuestoExcedente(J90,IF(Check!$B$8="Ok",SUM(Auxiliares!$D$225:H225,Auxiliares!$D$239:H239),SUM(Ingresos!$C$31:'Ingresos'!G31)),MONTH(J92)) -> 0 | K95: =impuestoExcedente(K90,IF(Check!$B$8="Ok",SUM(Auxiliares!$D$225:I225,Auxiliares!$D$239:I239),SUM(Ingresos!$C$31:'Ingresos'!H31)),MONTH(K92)) -> 0 | L95: =impuestoExcedente(L90,IF(Check!$B$8="Ok",SUM(Auxiliares!$D$225:J225,Auxiliares!$D$239:J239),SUM(Ingresos!$C$31:'Ingresos'!I31)),MONTH(L92)) -> 0 | M95: =impuestoExcedente(M90,IF(Check!$B$8="Ok",SUM(Auxiliares!$D$225:K225,Auxiliares!$D$239:K239),SUM(Ingresos!$C$31:'Ingresos'!J31)),MONTH(M92)) -> 0 | N95: =impuestoExcedente(N90,IF(Check!$B$8="Ok",SUM(Auxiliares!$D$225:L225,Auxiliares!$D$239:L239),SUM(Ingresos!$C$31:'Ingresos'!K31)),MONTH(N92)) -> 0 | O95: =impuestoExcedente(O90,IF(Check!$B$8="Ok",SUM(Auxiliares!$D$225:M225,Auxiliares!$D$239:M239),SUM(Ingresos!$C$31:'Ingresos'!L31)),MONTH(O92)) -> 0 | P95: =impuestoExcedente(P90,IF(Check!$B$8="Ok",SUM(Auxiliares!$D$225:N225,Auxiliares!$D$239:N239),SUM(Ingresos!$C$31:'Ingresos'!M31)),MONTH(P92)) -> 0 | Q95: =impuestoExcedente(Q90,IF(Check!$B$8="Ok",SUM(Auxiliares!$D$225:O225,Auxiliares!$D$239:O239),SUM(Ingresos!$C$31:'Ingresos'!N31)),MONTH(Q92)) -> 0 | S95: =impuestoExcedente(S90,IF(Check!$B$8="Ok",SUM(Auxiliares!$D$225:O225)+SUM(Auxiliares!$D$239:O239),SUM(Ingresos!$C$31:'Ingresos'!N31)),12) -> 0
D96: Impuesto determinado (acumulado) | F96: =impuestoDeterminado(F90,SUM(Auxiliares!$D$225:D225,Auxiliares!$D$233:D233,Auxiliares!$D$239:D239),MONTH(F6)) -> 744.0856 | G96: =impuestoDeterminado(G90,SUM(Auxiliares!$D$225:E225,Auxiliares!$D$233:E233,Auxiliares!$D$239:E239),MONTH(G6)) -> 0 | H96: =impuestoDeterminado(H90,SUM(Auxiliares!$D$225:F225,Auxiliares!$D$233:F233,Auxiliares!$D$239:F239),MONTH(H6)) -> 0 | I96: =impuestoDeterminado(I90,SUM(Auxiliares!$D$225:G225,Auxiliares!$D$233:G233,Auxiliares!$D$239:G239),MONTH(I6)) -> 0 | J96: =impuestoDeterminado(J90,SUM(Auxiliares!$D$225:H225,Auxiliares!$D$233:H233,Auxiliares!$D$239:H239),MONTH(J6)) -> 0 | K96: =impuestoDeterminado(K90,SUM(Auxiliares!$D$225:I225,Auxiliares!$D$233:I233,Auxiliares!$D$239:I239),MONTH(K6)) -> 0 | L96: =impuestoDeterminado(L90,SUM(Auxiliares!$D$225:J225,Auxiliares!$D$233:J233,Auxiliares!$D$239:J239),MONTH(L6)) -> 0 | M96: =impuestoDeterminado(M90,SUM(Auxiliares!$D$225:K225,Auxiliares!$D$233:K233,Auxiliares!$D$239:K239),MONTH(M6)) -> 0 | N96: =impuestoDeterminado(N90,SUM(Auxiliares!$D$225:L225,Auxiliares!$D$233:L233,Auxiliares!$D$239:L239),MONTH(N6)) -> 0 | O96: =impuestoDeterminado(O90,SUM(Auxiliares!$D$225:M225,Auxiliares!$D$233:M233,Auxiliares!$D$239:M239),MONTH(O6)) -> 0 | P96: =impuestoDeterminado(P90,SUM(Auxiliares!$D$225:N225,Auxiliares!$D$233:N233,Auxiliares!$D$239:N239),MONTH(P6)) -> 0 | Q96: =impuestoDeterminado(Q90,SUM(Auxiliares!$D$225:O225,Auxiliares!$D$233:O233,Auxiliares!$D$239:O239),MONTH(Q6)) -> 0 | S96: =impuestoDeterminado(S90,IF(Check!$B$8="Ok",SUM(Auxiliares!$D$225:O225)+SUM(Auxiliares!$D$239:O239),SUM(Ingresos!$C$31:'Ingresos'!N31)),12) -> 0
D97: Pagos a cuenta | S97: =+PagosACuenta!O8+PagosACuenta!O14+PagosACuenta!O20 -> 0
D99: Cálculo de la retención del impuesto | F99: 2016-01-31 | G99: 2016-02-28 | H99: 2016-03-31 | I99: 2016-04-30 | J99: 2016-05-31 | K99: 2016-06-30 | L99: 2016-07-31 | M99: 2016-08-31 | N99: 2016-09-30 | O99: 2016-10-31 | P99: 2016-11-30 | Q99: 2016-12-31 | S99: Anual
D100: Importe a Retener (mensual) | F100: =retener(F96,0,SUM(Ingresos!C$8:C$26)) -> 744.0856 | G100: =ROUND(retener(G96,SUM($F$100:F100)-SUM($F$101:F101),SUM(Ingresos!D$8:D$26)),2) -> 0 | H100: =ROUND(retener(H96,SUM($F$100:G100)-SUM($F$101:G101),SUM(Ingresos!E$8:E$26)),2) -> 0 | I100: =ROUND(retener(I96,SUM($F$100:H100)-SUM($F$101:H101),SUM(Ingresos!F$8:F$26)),2) -> 0 | J100: =ROUND(retener(J96,SUM($F$100:I100)-SUM($F$101:I101),SUM(Ingresos!G$8:G$26)),2) -> 0 | K100: =ROUND(retener(K96,SUM($F$100:J100)-SUM($F$101:J101),SUM(Ingresos!H$8:H$26)),2) -> 0 | L100: =ROUND(retener(L96,SUM($F$100:K100)-SUM($F$101:K101),SUM(Ingresos!I$8:I$26)),2) -> 0 | M100: =ROUND(retener(M96,SUM($F$100:L100)-SUM($F$101:L101),SUM(Ingresos!J$8:J$26)),2) -> 0 | N100: =ROUND(retener(N96,SUM($F$100:M100)-SUM($F$101:M101),SUM(Ingresos!K$8:K$26)),2) -> 0 | O100: =ROUND(retener(O96,SUM($F$100:N100)-SUM($F$101:N101),SUM(Ingresos!L$8:L$26)),2) -> 0 | P100: =ROUND(retener(P96,SUM($F$100:O100)-SUM($F$101:O101),SUM(Ingresos!M$8:M$26)),2) -> 0 | Q100: =ROUND(retener(Q96,SUM($F$100:P100)-SUM($F$101:P101),SUM(Ingresos!N$8:N$26)),2) -> 0 | S100: =retenerAnual(S96,SUM($F100:R100)-SUM(F101:Q101),SUM(Auxiliares!P9:P12,Auxiliares!P16:P19,Auxiliares!P23:P26)-SUM(Auxiliares!P30:P35,Auxiliares!P37:P42),Check!$B$17) -> 0.004399999998
D101: Importe a Devolver | F101: =devolucion(F96,F100,0) -> 0 | G101: =ROUND(devolucion(G96,SUM($F$100:G100),SUM($F$101:F101)),2) -> 744.09 | H101: =ROUND(devolucion(H96,SUM($F$100:H100),SUM($F$101:G101)),2) -> 0 | I101: =ROUND(devolucion(I96,SUM($F$100:I100),SUM($F$101:H101)),2) -> 0 | J101: =ROUND(devolucion(J96,SUM($F$100:J100),SUM($F$101:I101)),2) -> 0 | K101: =ROUND(devolucion(K96,SUM($F$100:K100),SUM($F$101:J101)),2) -> 0 | L101: =ROUND(devolucion(L96,SUM($F$100:L100),SUM($F$101:K101)),2) -> 0 | M101: =ROUND(devolucion(M96,SUM($F$100:M100),SUM($F$101:L101)),2) -> 0 | N101: =ROUND(devolucion(N96,SUM($F$100:N100),SUM($F$101:M101)),2) -> 0 | O101: =ROUND(devolucion(O96,SUM($F$100:O100),SUM($F$101:N101)),2) -> 0 | P101: =ROUND(devolucion(P96,SUM($F$100:P100),SUM($F$101:O101)),2) -> 0 | Q101: =ROUND(devolucion(Q96,SUM($F$100:Q100),SUM($F$101:P101)),2) -> 0 | S101: =devolucion(S96-S97,SUM($F$100:S100),SUM($F$101:R101)) -> 0
D103: Importe efectivamente retenido | F103: =PagosACuenta!C25-PagosACuenta!C26 -> 0 | G103: =PagosACuenta!D25-PagosACuenta!D26 -> 0 | H103: =PagosACuenta!E25-PagosACuenta!E26 -> 0 | I103: =PagosACuenta!F25-PagosACuenta!F26 -> 0 | J103: =PagosACuenta!G25-PagosACuenta!G26 -> 0 | K103: =PagosACuenta!H25-PagosACuenta!H26 -> 0 | L103: =PagosACuenta!I25-PagosACuenta!I26 -> 0 | M103: =PagosACuenta!J25-PagosACuenta!J26 -> 0 | N103: =PagosACuenta!K25-PagosACuenta!K26 -> 0 | O103: =PagosACuenta!L25-PagosACuenta!L26 -> 0 | P103: =PagosACuenta!M25-PagosACuenta!M26 -> 0 | Q103: =PagosACuenta!N25-PagosACuenta!N26 -> 0 | S103: =PagosACuenta!O25-PagosACuenta!O26 -> 0
D104: Saldo a favor de AFIP/Contribuyente | F104: =ROUND(F96-F103,2) -> 744.09 | G104: =ROUND(G96-SUM($F$103:G103),2) -> 0 | H104: =ROUND(H96-SUM($F$103:H103),2) -> 0 | I104: =ROUND(I96-SUM($F$103:I103),2) -> 0 | J104: =ROUND(J96-SUM($F$103:J103),2) -> 0 | K104: =ROUND(K96-SUM($F$103:K103),2) -> 0 | L104: =ROUND(L96-SUM($F$103:L103),2) -> 0 | M104: =ROUND(M96-SUM($F$103:M103),2) -> 0 | N104: =ROUND(N96-SUM($F$103:N103),2) -> 0 | O104: =ROUND(O96-SUM($F$103:O103),2) -> 0 | P104: =ROUND(P96-SUM($F$103:P103),2) -> 0 | Q104: =ROUND(Q96-SUM($F$103:Q103),2) -> 0 | S104: =ROUND(S96-SUM($F$103:Q103),2) -> 0
F105: =IF(F104=0,"",IF(F104>0,"A favor de AFIP","A favor del contribuyente")) -> A favor de AFIP | G105: =IF(G104=0,"",IF(G104>0,"A favor de AFIP","A favor del contribuyente")) -> 
B107: En el cálculo de las retenciones mensuales y a los fines del encuadre en el tramo correspondiente de la escala para determinar el impuesto, no se han tenido en cuenta las horas extras netas gravadas ni la doceava parte del SAC neto correspondiente a las mismas. A la fecha de cierre de la presente versión, esto no ha sido reglamentado.

Sheet Formulario
C4: Liquidación de impuesto a las ganancias -
C5: 4ta. categoría relación de dependencia
C7: ="Fecha: "&DAY(Datos!F34)&"/"&MONTH(Datos!F34)&"/"&YEAR(Datos!F34) -> Fecha: 31/12/2019
C8: ="Beneficiario: "&Datos!F18&", "&Datos!F16&" "&Datos!F15&", "&Datos!F19 -> Beneficiario: , ,
C9: ="Agente de Retención: "&Datos!F24&", "&Datos!F25 -> Agente de Retención: ,
C10: ="Período Fiscal: "&Datos!F12 -> Período Fiscal: 2019
C12: REMUNERACIONES
C13: Abonadas por el Agente de Retención:
C14: Remuneración bruta | H14: =SUM(Liquidacion!S7:S25) -> 70000
C15: Retribuciones no habituales | D15: $ | H15: =SUMIF(Ingresos!$Q$8:$Q$26,"Sí",Ingresos!C$8:C$26)+SUMIF(Ingresos!$Q$8:$Q$26,"Sí",Ingresos!D$8:D$26)+SUMIF(Ingresos!$Q$8:$Q$26,"Sí",Ingresos!E$8:E$26)+SUMIF(Ingresos!$Q$8:$Q$26,"Sí",Ingresos!F$8:F$26)+SUMIF(Ingresos!$Q$8:$Q$26,"Sí",Ingresos!G$8:G$26)+SUMIF(Ingresos!$Q$8:$Q$26,"Sí",Ingresos!H$8:H$26)+SUMIF(Ingresos!$Q$8:$Q$26,"Sí",Ingresos!I$8:I$26)+SUMIF(Ingresos!$Q$8:$Q$26,"Sí",Ingresos!J$8:J$26)+SUMIF(Ingresos!$Q$8:$Q$26,"Sí",Ingresos!K$8:K$26)+SUMIF(Ingresos!$Q$8:$Q$26,"Sí",Ingresos!L$8:L$26)+SUMIF(Ingresos!$Q$8:$Q$26,"Sí",Ingresos!M$8:M$26)+SUMIF(Ingresos!$Q$8:$Q$26,"Sí",Ingresos!N$8:N$26)-H16-H17 -> 0
C16: SAC primera cuota | D16: $ | H16: =SUM(Liquidacion!F11:K11) -> 0
C17: SAC segunda cuota | D17: $ | H17: =SUM(Liquidacion!L11:Q11) -> 0
C18: Horas extras remuneración gravada | H18: =SUM(Ingresos!C9:N9)+SUM(Ingresos!C11:N11) -> 0
C19: Movilidad y viáticos remuneración gravada | H19: =SUM(Ingresos!C15:N15) -> 0
C20: Material didáctico personal docente remuneración gravada | H20: 0
C21: Remuneración no alcanzada o exenta | D21: $ | H21: =+SUMIF(Ingresos!$P$8:$P$26,"No gravado",Ingresos!C$8:C$26)+SUMIF(Ingresos!$P$8:$P$26,"No gravado",Ingresos!D$8:D$26)+SUMIF(Ingresos!$P$8:$P$26,"No gravado",Ingresos!E$8:E$26)+SUMIF(Ingresos!$P$8:$P$26,"No gravado",Ingresos!F$8:F$26)+SUMIF(Ingresos!$P$8:$P$26,"No gravado",Ingresos!G$8:G$26)+SUMIF(Ingresos!$P$8:$P$26,"No gravado",Ingresos!H$8:H$26)+SUMIF(Ingresos!$P$8:$P$26,"No gravado",Ingresos!I$8:I$26)+SUMIF(Ingresos!$P$8:$P$26,"No gravado",Ingresos!J$8:J$26)+SUMIF(Ingresos!$P$8:$P$26,"No gravado",Ingresos!K$8:K$26)+SUMIF(Ingresos!$P$8:$P$26,"No gravado",Ingresos!L$8:L$26)+SUMIF(Ingresos!$P$8:$P$26,"No gravado",Ingresos!M$8:M$26)+SUMIF(Ingresos!$P$8:$P$26,"No gravado",Ingresos!N$8:N$26)+SUMIF(Ingresos!$P$8:$P$26,"Exento",Ingresos!C$8:C$26)+SUMIF(Ingresos!$P$8:$P$26,"Exento",Ingresos!D$8:D$26)+SUMIF(Ingresos!$P$8:$P$26,"Exento",Ingresos!E$8:E$26)+SUMIF(Ingresos!$P$8:$P$26,"Exento",Ingresos!F$8:F$26)+SUMIF(Ingresos!$P$8:$P$26,"Exento",Ingresos!G$8:G$26)+SUMIF(Ingresos!$P$8:$P$26,"Exento",Ingresos!H$8:H$26)+SUMIF(Ingresos!$P$8:$P$26,"Exento",Ingresos!I$8:I$26)+SUMIF(Ingresos!$P$8:$P$26,"Exento",Ingresos!J$8:J$26)+SUMIF(Ingresos!$P$8:$P$26,"Exento",Ingresos!K$8:K$26)+SUMIF(Ingresos!$P$8:$P$26,"Exento",Ingresos!L$8:L$26)+SUMIF(Ingresos!$P$8:$P$26,"Exento",Ingresos!M$8:M$26)+SUMIF(Ingresos!$P$8:$P$26,"Exento",Ingresos!N$8:N$26) -> 0
C22: Horas extras remuneración exenta | H22: =SUM(Ingresos!C10:N10) -> 0
C23: Movilidad y viáticos remuneración exenta | H23: =SUM(Ingresos!C16:N16) -> 0
C24: Material didáctico personal docente remuneración exenta | H24: 0
C25: Otros empleos:
C26: Remuneración bruta | H26: =SUM(Liquidacion!S27:S37) -> 0
C27: Retribuciones no habituales | D27: $ | H27: =SUMIF(Ingresos!$Q$35:$Q$45,"Sí",Ingresos!C35:C45)+SUMIF(Ingresos!$Q$35:$Q$45,"Sí",Ingresos!D35:D45)+SUMIF(Ingresos!$Q$35:$Q$45,"Sí",Ingresos!E35:E45)+SUMIF(Ingresos!$Q$35:$Q$45,"Sí",Ingresos!F35:F45)+SUMIF(Ingresos!$Q$35:$Q$45,"Sí",Ingresos!G35:G45)+SUMIF(Ingresos!$Q$35:$Q$45,"Sí",Ingresos!H35:H45)+SUMIF(Ingresos!$Q$35:$Q$45,"Sí",Ingresos!I35:I45)+SUMIF(Ingresos!$Q$35:$Q$45,"Sí",Ingresos!J35:J45)+SUMIF(Ingresos!$Q$35:$Q$45,"Sí",Ingresos!K35:K45)+SUMIF(Ingresos!$Q$35:$Q$45,"Sí",Ingresos!L35:L45)+SUMIF(Ingresos!$Q$35:$Q$45,"Sí",Ingresos!M35:M45)+SUMIF(Ingresos!$Q$35:$Q$45,"Sí",Ingresos!N35:N45) -> 0
C28: SAC primera cuota | D28: $ | H28: =SUM(Liquidacion!F31:K31) -> 0
C29: SAC segunda cuota | D29: $ | H29: =SUM(Liquidacion!L31:Q31) -> 0
C30: Horas extras remuneración gravada | H30: =SUM(Ingresos!C36:N36)+SUM(Ingresos!C38:N38) -> 0
C31: Movilidad y viáticos remuneración gravada | H31: =SUM(Ingresos!C40:N40) -> 0
C32: Material didáctico personal docente remuneración gravada | H32: 0
C33: Remuneración no alcanzada o exenta | D33: $ | H33: =+SUMIF(Ingresos!$P$35:$P$46,"No gravado",Ingresos!C$35:C$46)+SUMIF(Ingresos!$P$35:$P$46,"No gravado",Ingresos!D$35:D$46)+SUMIF(Ingresos!$P$35:$P$46,"No gravado",Ingresos!E$35:E$46)+SUMIF(Ingresos!$P$35:$P$46,"No gravado",Ingresos!F$35:F$46)+SUMIF(Ingresos!$P$35:$P$46,"No gravado",Ingresos!G$35:G$46)+SUMIF(Ingresos!$P$35:$P$46,"No gravado",Ingresos!H$35:H$46)+SUMIF(Ingresos!$P$35:$P$46,"No gravado",Ingresos!I$35:I$46)+SUMIF(Ingresos!$P$35:$P$46,"No gravado",Ingresos!J$35:J$46)+SUMIF(Ingresos!$P$35:$P$46,"No gravado",Ingresos!K$35:K$46)+SUMIF(Ingresos!$P$35:$P$46,"No gravado",Ingresos!L$35:L$46)+SUMIF(Ingresos!$P$35:$P$46,"No gravado",Ingresos!M$35:M$46)+SUMIF(Ingresos!$P$35:$P$46,"No gravado",Ingresos!N$35:N$46)+SUMIF(Ingresos!$P$35:$P$46,"Exento",Ingresos!C$35:C$46)+SUMIF(Ingresos!$P$35:$P$46,"Exento",Ingresos!D$35:D$46)+SUMIF(Ingresos!$P$35:$P$46,"Exento",Ingresos!E$35:E$46)+SUMIF(Ingresos!$P$35:$P$46,"Exento",Ingresos!F$35:F$46)+SUMIF(Ingresos!$P$35:$P$46,"Exento",Ingresos!G$35:G$46)+SUMIF(Ingresos!$P$35:$P$46,"Exento",Ingresos!H$35:H$46)+SUMIF(Ingresos!$P$35:$P$46,"Exento",Ingresos!I$35:I$46)+SUMIF(Ingresos!$P$35:$P$46,"Exento",Ingresos!J$35:J$46)+SUMIF(Ingresos!$P$35:$P$46,"Exento",Ingresos!K$35:K$46)+SUMIF(Ingresos!$P$35:$P$46,"Exento",Ingresos!L$35:L$46)+SUMIF(Ingresos!$P$35:$P$46,"Exento",Ingresos!M$35:M$46)+SUMIF(Ingresos!$P$35:$P$46,"Exento",Ingresos!N$35:N$46) -> 0
C34: Horas extras remuneración exenta | H34: =SUM(Ingresos!C37:N37) -> 0
C35: Movilidad y viáticos remuneración exenta | H35: =SUM(Ingresos!C41:N41) -> 0
C36: Material didáctico personal docente remuneración exenta | H36: 0
C37: TOTAL REMUNERACIÓN GRAVADA | D37: $ | H37: =H14+H26-H38 -> 70000
C38: TOTAL REMUNERACIÓN NO ALCANZADA O EXENTA | D38: $ | H38: =H33+H21 -> 0
C39: TOTAL REMUNERACIONES | D39: $ | H39: =H37+H38 -> 70000
C41: DEDUCCIONES GENERALES
C43: Aportes a fondos de jubilaciones, retiros, pensiones o subsidios que se destinen a cajas nacionales, provinciales o municipales. | H43: =+Auxiliares!P207 -> 7700
C44: Aportes a fondos de jubilaciones, retiros, pensiones o subsidios que se destinen a cajas nacionales, provinciales o municipales por otros empleos | H44: =+Auxiliares!P211 -> 0
C45: Aportes a obra sociales | H45: =+Auxiliares!P208 -> 4200
C46: Aportes a obra sociales por otros empleos | H46: =+Auxiliares!P212 -> 0
C47: Cuota sindical | H47: =+Auxiliares!P209 -> 0
C48: Cuota sindical por otros empleos | H48: =+Auxiliares!P213 -> 0
C49: Cuotas médico asistenciales | H49: =+Liquidacion!S74 -> 0
C50: Primas de Seguro para el caso de muerte | H50: =+Liquidacion!S59 -> 0
C51: Primas por riesgo de muerte y de ahorro de seguros mixtos, excepto para los casos de seguros de retiro privados administrados por entidades sujetas al control de la Superintendencia de Seguros de la Nación
C52: Aportes a planes de seguro de retiro privados administrados por entidades sujetas al control de la Superintendencia de Seguros de la Nación
C53: Cuotapartes de fondos comunes de inversión constituidos con fines de retiro
C54: Gastos de sepelio | H54: =+Liquidacion!S60 -> 0
C55: Gastos amortización e intereses rodado para corredores y viajantes de comercio | H55: =+Liquidacion!S69 -> 0
C56: Donaciones a Fiscos nacional, provinciales y municipales, y a instituciones comprendidas en el art. 20, incs. e) y f) de la ley | H56: =+Liquidacion!S75 -> 0
C57: Descuentos obligatorios establecidos por ley nacional, provincial o municipal | H57: =+Liquidacion!S65 -> 0
C58: Honorarios por servicios de asistencia sanitaria, médica y paramédica | H58: =+Liquidacion!S78 -> 0
C59: Intereses créditos hipotecarios | H59: =+Liquidacion!S61 -> 0
C60: Aportes al capital social o al fondo de riesgo de socios protectores de Sociedades de Garantía Recíproca | H60: =+Liquidacion!S66 -> 0
C61: Aportes a Cajas Complementarias de Previsión, Fondos Compensadores de Previsión o similares | H61: =+Liquidacion!S67 -> 0
C62: Alquileres de inmuebles destinados a su casa habitación | H62: =+Liquidacion!S64 -> 2960
C63: Empleados del servicio doméstico | H63: =+Liquidacion!S62 -> 5274.8
C64: Gastos de movilidad, viáticos y otras compensaciones análogas abonados por el empleador | H64: =+Liquidacion!S70+Liquidacion!S71 -> 1500
C65: Gastos por adquisición de indumentaria y/o equipamiento de trabajo | H65: =Liquidacion!S68 -> 0
C66: Otras deducciones | H66: =+Liquidacion!S63 -> 0
C67: TOTAL DEDUCCIONES | H67: =SUM(H43:H66) -> 21634.8
C69: DEDUCCIONES PERSONALES
C71: ="Ganancia no imponible "&IF(Tablas!O31=85848.99,"","(incrementada en 22%)") -> Ganancia no imponible | H71: =+Liquidacion!S84 -> 85848.99
C72: ="Deducción especial "&IF(Tablas!O31=85848.99,"","(incrementada en 22%)") -> Deducción especial | H72: =+Liquidacion!S85 -> 412075.152
C73: Deducción específica | H73: 0
C74: ="Cargas de familia "&IF(Tablas!O31=85848.99,"","(incrementada en 22%)") -> Cargas de familia
C75: ="Cónyuge "&IF(Tablas!O31=85848.99,"","(incrementada en 22%)") -> Cónyuge | H75: =+Liquidacion!S86 -> 0
C76: Cantidad de hijos e hijastros | H76: =SUM(Auxiliares!Q103:Q118) -> 1
C77: Deducción total hijos e hijastros | H77: =+Liquidacion!S87 -> 40361.43
C78: TOTAL DEDUCCIONES PERSONALES | H78: =SUM(H71:H77)-H76 -> 538285.572
C80: DETERMINACIÓN DEL IMPUESTO
C82: REMUNERACIÓN SUJETA A IMPUESTO | D82: $ | H82: =+Liquidacion!S90 -> 0
C83: Alícuota aplicable art. 90 de la ley de impuesto a las ganancias | D83: % | H83: =impuestoAlicuota(Liquidacion!S90,0,12) -> 0
C84: Alícuota aplicable sin incluir horas extras | D84: % | H84: =Liquidacion!S93 -> 0
C85: IMPUESTO DETERMINADO | D85: $ | H85: =Liquidacion!S96 -> 0
C86: Impuesto retenido | D86: $ | H86: =SUM(Liquidacion!S103,Liquidacion!F103:Q103) -> 0
C87: Pagos a cuenta | D87: $ | H87: =Liquidacion!S97 -> 0
C88: ="Saldo"&IF(H88>=0," (a favor de AFIP)"," (a favor del contribuyente)") -> Saldo (a favor de AFIP) | D88: $ | H88: =+H85-H86+H87 -> 0
C90: Se extiende el presente certificado para constancia del interesado
C91: =Datos!F33&", "&DAY(Datos!F34)&"/"&MONTH(Datos!F34)&"/"&YEAR(Datos!F34) -> , 31/12/2019
C92: Firma del responsable
C93: =Datos!F29&", "&Datos!F30 -> ,

Sheet ImpuestoTabla
B3: CÁLCULO DEL IMPUESTO DETERMINADO | I3: ESCALA DEL ART. 90
B5: • Período mensual/anual | J5: Ganancia neta imponible acumulada | L5: Pagarán $ | M5: Más el % | N5: Sobre el excedente
J6: Más de $ | K6: A $
I7: =IF(HLOOKUP($B$32,$D$31:$P$36,6,FALSE)=M7,1,0) -> 0 | J7: 0 | K7: =33039.81/12*IF($B$32=13,12,$B$32) -> 2753.3175 | L7: 0 | M7: 0.05 | N7: 0
B8: • Ganancia neta sujeta a impuesto (acumulado) | F8: =HLOOKUP(B32,D31:P35,3,FALSE) -> 8448.105667 | I8: 0 | J8: =33039.81/12*IF($B$32=13,12,$B$32) -> 2753.3175 | K8: =66079.61/12*IF($B$32=13,12,$B$32) -> 5506.634167 | L8: =1651.99/12*IF($B$32=13,12,$B$32) -> 137.6658333 | M8: 0.09 | N8: =33039.81/12*IF($B$32=13,12,$B$32) -> 2753.3175
I9: 0 | J9: =66079.61/12*IF($B$32=13,12,$B$32) -> 5506.634167 | K9: =99119.42/12*IF($B$32=13,12,$B$32) -> 8259.951667 | L9: =4625.57/12*IF($B$32=13,12,$B$32) -> 385.4641667 | M9: 0.12 | N9: =66079.61/12*IF($B$32=13,12,$B$32) -> 5506.634167
B10: • Ganancia neta sujeta a impuesto - horas extras netas (acumulado) | F10: =IF(+HLOOKUP(B32,D31:P35,3,FALSE)-HLOOKUP(B32,D31:P35,5,FALSE)<0,0,+HLOOKUP(B32,D31:P35,3,FALSE)-HLOOKUP(B32,D31:P35,5,FALSE)) -> 8448.105667 | I10: 1 | J10: =99119.42/12*IF($B$32=13,12,$B$32) -> 8259.951667 | K10: =132159.23/12*IF($B$32=13,12,$B$32) -> 11013.26917 | L10: =8590.35/12*IF($B$32=13,12,$B$32) -> 715.8625 | M10: 0.15 | N10: =99119.42/12*IF($B$32=13,12,$B$32) -> 8259.951667
I11: 0 | J11: =132159.23/12*IF($B$32=13,12,$B$32) -> 11013.26917 | K11: =198238.84/12*IF($B$32=13,12,$B$32) -> 16519.90333 | L11: =13546.32/12*IF($B$32=13,12,$B$32) -> 1128.86 | M11: 0.19 | N11: =132159.23/12*IF($B$32=13,12,$B$32) -> 11013.26917
B12: • Ganancia neta sujeta a impuesto detraidas las horas extras netas y las horas extras netas del SAC prorrateado (acumulado) | F12: =IF(+F10-HLOOKUP(B32,D31:P37,7,FALSE)<0,0,+F10-HLOOKUP(B32,D31:P37,7,FALSE)) -> 8448.105667 | I12: 0 | J12: =198238.84/12*IF($B$32=13,12,$B$32) -> 16519.90333 | K12: =264318.45/12*IF($B$32=13,12,$B$32) -> 22026.5375 | L12: =26101.45/12*IF($B$32=13,12,$B$32) -> 2175.120833 | M12: 0.23 | N12: =198238.84/12*IF($B$32=13,12,$B$32) -> 16519.90333
I13: 0 | J13: =264318.45/12*IF($B$32=13,12,$B$32) -> 22026.5375 | K13: =396477.68/12*IF($B$32=13,12,$B$32) -> 33039.80667 | L13: =41299.76/12*IF($B$32=13,12,$B$32) -> 3441.646667 | M13: 0.27 | N13: =264318.45/12*IF($B$32=13,12,$B$32) -> 22026.5375
I14: 0 | J14: =396477.68/12*IF($B$32=13,12,$B$32) -> 33039.80667 | K14: =528636.91/12*IF($B$32=13,12,$B$32) -> 44053.07583 | L14: =76982.75/12*IF($B$32=13,12,$B$32) -> 6415.229167 | M14: 0.31 | N14: =396477.68/12*IF($B$32=13,12,$B$32) -> 33039.80667
B15: • Impuesto determinado | F15: =HLOOKUP(B32,D31:P32,2,FALSE) -> 744.0856 | I15: 0 | J15: =528636.91/12*IF($B$32=13,12,$B$32) -> 44053.07583 | K15: en adelante | L15: =117952.11/12*IF($B$32=13,12,$B$32) -> 9829.3425 | M15: 0.35 | N15: =528636.91/12*IF($B$32=13,12,$B$32) -> 44053.07583
B17: • Cálculo auxiliar | D17: =IF(F8=0,0,TEXT(VLOOKUP(1,I7:N15,4,FALSE),"$#.##0,00")&" + ("&TEXT(F8,"$#.##0,00")&" - "&TEXT(VLOOKUP(1,I7:N15,6,FALSE),"$#.##0,00")&") * "&VLOOKUP(1,$I$7:$N$15,5,FALSE)) -> $715,86 + ($8.448,11 - $8.259,95) * 0,15
B20: En el cálculo de las retenciones mensuales y a los fines del encuadre en el tramo correspondiente de la escala para determinar el impuesto, no se han tenido en cuenta las horas extras netas gravadas ni la doceava parte del SAC neto correspondiente a las mismas. A la fecha de cierre de la presente versión, esto no ha sido reglamentado.
B31: Mes | C31: 0 | D31: 1 | E31: 2 | F31: 3 | G31: 4 | H31: 5 | I31: 6 | J31: 7 | K31: 8 | L31: 9 | M31: 10 | N31: 11 | O31: 12 | P31: 13
B32: 1 | C32: 0 | D32: =Liquidacion!F96 -> 744.0856 | E32: =Liquidacion!G96 -> 0 | F32: =Liquidacion!H96 -> 0 | G32: =Liquidacion!I96 -> 0 | H32: =Liquidacion!J96 -> 0 | I32: =Liquidacion!K96 -> 0 | J32: =Liquidacion!L96 -> 0 | K32: =Liquidacion!M96 -> 0 | L32: =Liquidacion!N96 -> 0 | M32: =Liquidacion!O96 -> 0 | N32: =Liquidacion!P96 -> 0 | O32: =Liquidacion!Q96 -> 0 | P32: =+Liquidacion!S96 -> 0 | Q32: Impuesto det
C33: =+C32 -> 0 | D33: =Liquidacion!F90 -> 8448.105667 | E33: =Liquidacion!G90 -> 0 | F33: =Liquidacion!H90 -> 0 | G33: =Liquidacion!I90 -> 0 | H33: =Liquidacion!J90 -> 0 | I33: =Liquidacion!K90 -> 0 | J33: =Liquidacion!L90 -> 0 | K33: =Liquidacion!M90 -> 0 | L33: =Liquidacion!N90 -> 0 | M33: =Liquidacion!O90 -> 0 | N33: =Liquidacion!P90 -> 0 | O33: =Liquidacion!Q90 -> 0 | P33: =+Liquidacion!S90 -> 0 | Q33: GNSI
C34: =+C33 -> 0 | D34: =+IF(Check!$B$8="Ok",Ingresos!C30+Ingresos!C49,Ingresos!C31+Ingresos!C50) -> 0 | E34: =+IF(Check!$B$8="Ok",Ingresos!D30+Ingresos!D49,Ingresos!D31+Ingresos!D50) -> 0 | F34: =+IF(Check!$B$8="Ok",Ingresos!E30+Ingresos!E49,Ingresos!E31+Ingresos!E50) -> 0 | G34: =+IF(Check!$B$8="Ok",Ingresos!F30+Ingresos!F49,Ingresos!F31+Ingresos!F50) -> 0 | H34: =+IF(Check!$B$8="Ok",Ingresos!G30+Ingresos!G49,Ingresos!G31+Ingresos!G50) -> 0 | I34: =+IF(Check!$B$8="Ok",Ingresos!H30+Ingresos!H49,Ingresos!H31+Ingresos!H50) -> 0 | J34: =+IF(Check!$B$8="Ok",Ingresos!I30+Ingresos!I49,Ingresos!I31+Ingresos!I50) -> 0 | K34: =+IF(Check!$B$8="Ok",Ingresos!J30+Ingresos!J49,Ingresos!J31+Ingresos!J50) -> 0 | L34: =+IF(Check!$B$8="Ok",Ingresos!K30+Ingresos!K49,Ingresos!K31+Ingresos!K50) -> 0 | M34: =+IF(Check!$B$8="Ok",Ingresos!L30+Ingresos!L49,Ingresos!L31+Ingresos!L50) -> 0 | N34: =+IF(Check!$B$8="Ok",Ingresos!M30+Ingresos!M49,Ingresos!M31+Ingresos!M50) -> 0 | O34: =+IF(Check!$B$8="Ok",Ingresos!N30+Ingresos!N49,Ingresos!N31+Ingresos!N50) -> 0 | P34: =+O34 -> 0 | Q34: Hrs. extras
C35: 0 | D35: =+D34 -> 0 | E35: =+E34+D35 -> 0 | F35: =+F34+E35 -> 0 | G35: 0 | H35: =+H34+G35 -> 0 | I35: 0 | J35: 0 | K35: 0 | L35: 0 | M35: 0 | N35: 0 | O35: 0 | P35: =+O35 -> 0 | Q35: Hrs. extras (acumuladas
C36: 0 | D36: =+Liquidacion!F93 -> 0.15 | E36: =+Liquidacion!G93 -> 0 | F36: =+Liquidacion!H93 -> 0 | G36: =+Liquidacion!I93 -> 0 | H36: =+Liquidacion!J93 -> 0 | I36: =+Liquidacion!K93 -> 0 | J36: =+Liquidacion!L93 -> 0 | K36: =+Liquidacion!M93 -> 0 | L36: =+Liquidacion!N93 -> 0 | M36: =+Liquidacion!O93 -> 0 | N36: =+Liquidacion!P93 -> 0 | O36: =+Liquidacion!Q93 -> 0 | P36: =+Liquidacion!S93 -> 0 | Q36: Alícuota
D37: =Auxiliares!D239 -> 0 | E37: =Auxiliares!E239+D37 -> 0 | F37: =Auxiliares!F239+E37 -> 0 | G37: =Auxiliares!G239+F37 -> 0 | H37: =Auxiliares!H239+G37 -> 0 | I37: =Auxiliares!I239+H37 -> 0 | J37: =Auxiliares!J239+I37 -> 0 | K37: =Auxiliares!K239+J37 -> 0 | L37: =Auxiliares!L239+K37 -> 0 | M37: =Auxiliares!M239+L37 -> 0 | N37: =Auxiliares!N239+M37 -> 0 | O37: =Auxiliares!O239+N37 -> 0 | P37: =Auxiliares!P239+O37 -> 0 | Q37: Hrs. extras netas, parte del SAC
